{"text_format":"1","workbook":"xlsx","n_sheets":29,"sheets":["1.- Oficio de comision","2.- Desglose de gastos","3.- Informe de comision","4.- Oficio de cancelacion","Matriz","GOA","Proyecto_Estrategico","PRS","QR","Nacionales","Internacionales","Tipo_Comprobante","Comprobante","Forma_Pago","Conceptos","Vehiculos","Tipo_Pasajes","Homologacion","Dias_Inhabiles","Divisas","Programa_Presupuestal","Unidades_Administrativas","Tipo_Representacion","Puestos","Puestos_listas","Tipo_Comision","Tipo_Viaticos","Paises","Estados"],"not_rendered":{"charts":0,"images":4,"macros":1,"external_links":1,"defined_names":232,"comments":0,"pivot_tables":0},"unopened":[],"bounds":{"document_bytes":16777216,"sheet_cells":100000,"rows_first":2000,"rows_last":500,"rows_between":2000,"halvings":0,"cell_chars":16384,"cell_head_chars":4096},"cells_cut":0,"cells_raw":0,"read":"whole","date_system":"1900"}

{"sheet":"1.- Oficio de comision","index":0,"n_rows":86,"n_cols":20,"rows_kept":86,"cut":false,"hidden":false,"merged":[[83,4,83,15],[84,4,84,15],[85,4,85,15],[70,4,70,5],[66,4,66,5],[49,4,49,5],[51,4,51,5],[53,4,53,5],[55,4,55,5],[57,4,57,5],[59,4,59,5],[61,4,61,5],[64,4,64,8],[51,6,51,15],[53,6,53,7],[55,6,55,7],[57,6,57,7],[59,6,59,15],[61,6,61,15],[70,6,70,11],[70,14,70,15],[72,4,72,5],[68,4,68,5],[64,9,64,15],[42,13,42,15],[42,4,42,5],[44,4,44,5],[42,8,42,9],[57,12,57,13],[44,6,44,15],[47,4,47,7],[47,8,47,15],[49,14,49,15],[49,6,49,7],[49,10,49,11],[53,8,53,9],[55,8,55,9],[57,8,57,9],[53,12,53,13],[55,12,55,13],[42,6,42,7],[42,10,42,11],[72,6,72,15],[66,14,66,15],[68,14,68,15],[66,6,66,11],[68,6,68,11],[3,10,3,15],[2,10,2,15],[4,1,9,1],[9,3,9,16],[7,10,7,15],[6,10,6,15],[5,10,5,15],[4,10,4,15],[11,4,11,15],[12,4,12,15],[13,4,13,15],[15,4,15,15],[17,8,17,15],[17,4,17,7],[21,14,21,15],[23,14,23,15],[25,14,25,15],[21,12,21,13],[23,12,23,13],[25,12,25,13],[19,4,19,5],[21,4,21,5],[23,4,23,5],[25,4,25,5],[19,6,19,15],[32,6,32,15],[21,6,21,11],[23,6,23,11],[25,6,25,11],[28,8,28,15],[30,6,30,15],[34,6,34,15],[28,4,28,7],[30,4,30,5],[32,4,32,5],[34,4,34,5],[36,4,36,5],[38,4,38,5],[38,14,38,15],[40,14,40,15],[36,10,36,11],[36,14,36,15],[40,10,40,11],[36,12,36,13],[38,12,38,13],[40,12,40,13],[38,6,38,7],[40,4,40,5],[36,8,36,9],[38,8,38,9],[40,8,40,9],[36,6,36,7],[40,6,40,7],[38,10,38,11],[77,4,77,8],[78,4,78,8],[79,4,79,8],[80,4,80,8],[77,11,77,15],[78,11,78,15],[79,11,79,15],[80,11,80,15],[82,4,82,15],[81,4,81,15]]}
[null,null,{"$f":"AjustarEspacios(CONCATENATE(SUBSTITUTE(UPPER($K$6),\"/\",\"-\"),\"_\",INICIALES(PROPER(G20)),\"_\",PROPER(O41),\"_\",TEXT(G43,\"aammdd\")))","v":"___000100"},{"$f":"TEXT($G$43,\"aaaammdd\")","v":"19000100"}]
[]
[null,null,null,null,null,null,null,null,null,null,"INSTITUTO NACIONAL DE TRANSPARENCIA, ACCESO A LA INFORMACIÓN Y PROTECCIÓN DE DATOS PERSONALES"]
[null,null,null,null,null,null,null,null,null,null,"\"2024, Año de Felipe Carrillo Puerto, Benemérito del Proletariado, Revolucionario y Defensor del Mayab\"",null,null,null,null,null,null,null,{"$f":"+IF(K4=\"\",\"Indicar Leyenda del ejercicio\",\"\")","v":""}]
[null,{"$f":"IF($K$43=\"\",\"\",IF(TODAY()<=WORKDAY($K$43,Dias_Inhabiles!$C$3,Dias_Inhabiles),CONCATENATE(\"Fecha límite para presentar comprobación de gastos:\",CHAR(10),CHAR(10),\" --   \",TEXT(WORKDAY($K$43,Dias_Inhabiles!$C$3,Dias_Inhabiles),\"dddd\"),\", \",TEXT(WORKDAY($K$43,Dias_Inhabiles!$C$3,Dias_Inhabiles),\"dd\"),\" de \",TEXT(WORKDAY($K$43,Dias_Inhabiles!$C$3,Dias_Inhabiles),\"mmmm\"),\" de \",TEXT(WORKDAY($K$43,Dias_Inhabiles!$C$3,Dias_Inhabiles),\"aaaa\"),\"    -- \"),CONCATENATE(\"El plazo para presentar la comprobación venció el:\",CHAR(10),CHAR(10),\" --   \",TEXT(WORKDAY($K$43,Dias_Inhabiles!$C$3,Dias_Inhabiles),\"dddd\"),\", \",TEXT(WORKDAY($K$43,Dias_Inhabiles!$C$3,Dias_Inhabiles),\"dd\"),\" de \",TEXT(WORKDAY($K$43,Dias_Inhabiles!$C$3,Dias_Inhabiles),\"mmmm\"),\" de \",TEXT(WORKDAY($K$43,Dias_Inhabiles!$C$3,Dias_Inhabiles),\"aaaa\"),\"   -- \")))","v":""},null,null,null,null,null,null,null,null,null,null,null,null,null,null,null,null,{"$f":"+IF(K5=\"\",\"Indicar Unidad Administrativa\",\"\")","v":"Indicar Unidad Administrativa"}]
[null,null,null,null,null,null,null,null,null,null,null,null,null,null,null,null,null,null,{"$f":"+IF(K6=\"\",\"Indicar No. de Oficio\",IF(ISERROR(SEARCH(\"oficio\",#REF!,1)),\"\",\"Omite la palabra 'Oficio'\"))","v":"Indicar No. de Oficio"}]
[null,null,null,null,null,null,null,null,null,null,null,null,null,null,null,null,null,null,{"$f":"+IF(K7=\"\",\"Indicar asunto\",IF(ISERROR(SEARCH(\"asunto\",#REF!,1)),\"\",\"Omite la palabra 'Asunto'\"))","v":"Indicar asunto"}]
[null,null,null,null,null,null,null,null,null,null,null,null,null,null,null,null,null,null,{"$f":"+IF(K8=\"\",\"Fecha (dd/mm/aa)\",\"\")","v":"Fecha (dd/mm/aa)"}]
[]
[null,null,null,"OFICIO DE COMISIÓN"]
[]
[null,null,null,null,"Mtra. Mónica López Sandoval"]
[null,null,null,null,"Directora General de Administración"]
[null,null,null,null,"P r e s e n t e"]
[]
[null,null,null,null,{"$f":"CONCATENATE(\"Me permito informarle que \",IF(IFERROR(FIND(\"COMISIONADA\",UPPER(Puesto),1),0),\"la \"&Puesto,IF(IFERROR(FIND(\"COMISIONADO\",UPPER(Puesto),1),0),\"el \"&Puesto,\"\")),\" asistirá a la comisión oficial que se detalla a continuación: \")","v":"Me permito informarle que  asistirá a la comisión oficial que se detalla a continuación: "}]
[]
[null,null,null,null,"Datos de la persona servidora pública comisionada",null,null,null,{"$f":"+IF(OR(G20=\"\",G22=\"\",O22=\"\",G24=\"\",O24=\"\",G26=\"\",O26=\"\"),\".: Favor de llenar los espacios indicados en esta sección :.\",\"\")","v":".: Favor de llenar los espacios indicados en esta sección :."}]
[]
[null,null,null,null,"Nombre"]
[]
[null,null,null,null,"Puesto",null,null,null,null,null,null,null,"No. Empleado"]
[]
[null,null,null,null,"Área de adscripción",null,null,null,null,null,null,null,"Clave de Área"]
[]
[null,null,null,null,"Categoría",null,"Titular de Dirección General",null,null,null,null,null,"Clave de puesto"]
[]
[]
[null,null,null,null,"Datos de la comisión",null,null,null,{"$f":"IF(OR(G37=\"\",K37=\"\",G39=\"\",G41=\"\",G43=\"\",K43=\"\",G31=\"\"),\".: Favor de llenar los espacios indicados en esta sección :.\",IF(OR(AND(G37=\"Nacional\",G41<>\"México\"),AND(G37=\"Internacional\",G41=\"México\")),\".: El tipo de comisión no corresponde al país de origen o de destino :.\",\"\"))","v":".: Favor de llenar los espacios indicados en esta sección :."}]
[]
[null,null,null,null,"Evento o motivo"]
[]
[null,null,null,null,"Organizador"]
[]
[null,null,null,null,"Sitio web del evento"]
[]
[null,null,null,null,"Tipo de comisión",null,{"$f":"IF(G41=\"\",\"\",IF(OR(G39<>\"México\",G41<>\"México\"),\"Internacional\",\"Nacional\"))","v":""},null,"Tipo de representación",null,null,null,"No. Acuerdo"]
[]
[null,null,null,null,"País de origen",null,null,null,"Estado de origen",null,null,null,"Ciudad de origen"]
[]
[null,null,null,null,"País de destino",null,null,null,"Estado de destino",null,null,null,"Ciudad de destino"]
[]
[null,null,null,null,"Fecha y hora de salida",null,null,null,"Fecha y hora de regreso"]
[]
[null,null,null,null,"Observaciones"]
[]
[]
[null,null,null,null,"Datos de viáticos solicitados",null,null,null,{"$f":"IFERROR(IF(P58>L58,\".: El importe solicitado es mayor al Importe máximo autorizado :.\",IF(OR(G50=\"\",G54=\"\",L54=\"\",P54=\"\",G56=\"\",L56=\"\",P56=\"\",G58=\"\",L58=\"\",P58=\"\",AND(K50=\"Si\",OR(O50=\"\",G52=\"\"))),\".: Favor de llenar los espacios indicados en esta sección :.\",IF(OR(AND($G$37=\"Internacional\",DIVISA=\"MXN\"),AND($G$37=\"Nacional\",DIVISA=\"USD\"),AND($G$37=\"Nacional\",DIVISA=\"EUR\")),\".: Divisa incorrecta para tipo de comisión :.\",\"\"))),\".: Favor de llenar los espacios indicados en esta sección :.\")","v":".: Favor de llenar los espacios indicados en esta sección :."}]
[]
[null,null,null,null,"Tipo de viáticos",null,null,null,null,null,null,null,null,"Nivel de homologación",null,null,null,null,null,false]
[]
[null,null,null,null,"Motivo de homologación"]
[]
[null,null,null,null,"Días sin pernocta",null,{"$f":"IF(OR(Salida=\"\",Regreso=\"\"),0,IF(AND(MOD(Regreso-Salida,1)<>0,Pernoctas<Regreso-Salida),1,0))","v":0},null,"Tarifa sin pernocta",null,{"$f":"+IF(DIVISA=\"\",\"\",IF(DIVISA=\"MXN\",\"$\",DIVISA))","v":""},{"$f":"IFERROR(IF($G$37=\"Nacional\",IF($K$50=\"Si\",VLOOKUP($O$50,SinPernocta_MXP,4,0),VLOOKUP($O$26,SinPernocta_MXP,4,0)),IF($K$50=\"Si\",IF($G$58=\"USD\",VLOOKUP($O$50,SinPernocta_USD,6,0),VLOOKUP($O$50,SinPernocta_EUR,8,0)),IF($G$58=\"USD\",VLOOKUP($O$26,SinPernocta_USD,6,0),VLOOKUP($O$26,SinPernocta_EUR,8,0)))),0)","v":0},"Importe sin pernocta",null,{"$f":"+IF(DIVISA=\"\",\"\",IF(DIVISA=\"MXN\",\"$\",DIVISA))","v":""},{"$f":"+L54*G54","v":0}]
[]
[null,null,null,null,"Días con pernocta",null,{"$f":"IF(OR(Salida=\"\",Regreso=\"\"),0,IF(Regreso-Salida>1/4,INT(Regreso)-INT(Salida),0))","v":0},null,"Tarifa con pernocta",null,{"$f":"+IF(DIVISA=\"\",\"\",IF(DIVISA=\"MXN\",\"$\",DIVISA))","v":""},{"$f":"IFERROR(IF($G$37=\"Nacional\",IF($K$50=\"Si\",VLOOKUP($O$50,Pernocta_MXP,3,0),VLOOKUP($O$26,Pernocta_MXP,3,0)),IF($K$50=\"Si\",IF($G$58=\"USD\",VLOOKUP($O$50,Pernocta_USD,5,0),VLOOKUP($O$50,Pernocta_EUR,7,0)),IF($G$58=\"USD\",VLOOKUP($O$26,Pernocta_USD,5,0),VLOOKUP($O$26,Pernocta_EUR,7,0)))),0)","v":0},"Importe con pernocta",null,{"$f":"+IF(DIVISA=\"\",\"\",IF(DIVISA=\"MXN\",\"$\",DIVISA))","v":""},{"$f":"+L56*G56","v":0}]
[]
[null,null,null,null,"Divisa",null,null,null,"Importe autorizado",null,{"$f":"+IF(DIVISA=\"\",\"\",IF(DIVISA=\"MXN\",\"$\",DIVISA))","v":""},{"$f":"P54+P56","v":0},"Importe anticipado solicitado",null,{"$f":"+IF(DIVISA=\"\",\"\",IF(DIVISA=\"MXN\",\"$\",DIVISA))","v":""},null,null,null,{"$f":"+IF(P58=\"\",\"Indicar Importe a solicitar\",IF(P58>L58,\"Importe no válido\",\"\"))","v":"Indicar Importe a solicitar"}]
[]
[null,null,null,null,"Importe solicitado en letra ",null,{"$f":"IF(DIVISA=\"\",\"Favor de indicar divisa\",IF(OR(Importe_Solicitado=\"\",Importe_Solicitado=0),\"No se solicitaron viáticos anticipados\",CONCATENATE(MID(NUMEROLETRA(N(Importe_Solicitado)),5,1),MID(LOWER(NUMEROLETRA(N(Importe_Solicitado))),6,LEN(NUMEROLETRA(N(Importe_Solicitado)))-6))))","v":"Favor de indicar divisa"}]
[]
[null,null,null,null,"Observaciones"]
[]
[]
[null,null,null,null,"Datos de la Unidad Administrativa responsable del gasto",null,null,null,null,{"$f":"+IF(OR(G67=\"\",G69=\"\",G71=\"\"),\".: Favor de llenar los espacios indicados en esta sección :.\",\"\")","v":".: Favor de llenar los espacios indicados en esta sección :."}]
[]
[null,null,null,null,"Nombre  U. Administrativa",null,null,null,null,null,null,null,null,"Clave  U. Administrativa",{"$f":"IF(ISERROR(VLOOKUP(G67,Tabla24[],2,0)),\"\",VLOOKUP(G67,Tabla24[],2,0))","v":""}]
[]
[null,null,null,null,"Programa presupuestal",null,null,null,null,null,null,null,null,"Clave P. Presupuestal",{"$f":"+IF(ISERROR(VLOOKUP(PP,Tabla25[[#All],[PP]:[CP2]],2,0)),\"\",VLOOKUP(PP,Tabla25[[#All],[PP]:[CP2]],2,0))","v":""}]
[]
[null,null,null,null,"Proyecto estratégico",null,null,null,null,null,null,null,null,"Clave P. Estratégico"]
[]
[null,null,null,null,"Observaciones"]
[]
[]
[null,null,null,null,"Sin otro particular, reciba un cordial saludo."]
[]
[null,null,null,null,"Atentamente",null,null,null,null,null,null,"Vo. Bo."]
[]
[null,null,null,null,null,null,null,null,null,null,null,{"$f":"+E12","v":"Mtra. Mónica López Sandoval"}]
[null,null,null,null,"Jefe de Ponencia",null,null,null,null,null,null,{"$f":"+E13","v":"Directora General de Administración"}]
[null,"C.c.p."]
[null,"C.c.p."]
[null,"C.c.p."]
[null,"C.c.p."]
[null,"C.c.p."]

{"sheet":"2.- Desglose de gastos","index":1,"n_rows":109,"n_cols":19,"rows_kept":109,"cut":false,"hidden":false,"merged":[[102,4,102,7],[104,4,104,9],[107,11,107,15],[108,11,108,15],[107,4,107,9],[108,4,108,9],[9,4,9,7],[9,8,9,15],[28,6,28,7],[28,10,28,11],[28,14,28,15],[11,6,11,15],[13,6,13,11],[13,14,13,15],[15,6,15,11],[15,14,15,15],[17,6,17,11],[17,14,17,15],[20,4,20,7],[20,8,20,15],[22,6,22,15],[24,6,24,15],[2,10,2,15],[3,10,3,15],[4,10,4,15],[6,4,6,15],[7,4,7,15],[94,14,96,15],[70,13,70,15],[26,6,26,15],[30,6,30,7],[30,10,30,11],[30,14,30,15],[32,6,32,7],[32,10,32,11],[32,14,32,15],[99,6,99,15],[97,7,97,12],[61,4,61,7],[54,6,54,7],[54,14,54,15],[54,10,54,11],[56,8,56,15],[68,4,68,7],[70,4,70,6],[70,7,70,9],[70,10,70,12],[91,4,91,7],[97,4,97,5],[88,6,88,15],[97,14,97,15],[93,14,93,15],[4,1,7,1],[91,8,91,15],[86,7,86,15],[58,6,58,15],[52,4,52,7],[52,8,52,15],[34,6,34,7],[34,10,34,11],[34,13,34,15],[36,6,36,15],[39,4,39,7],[39,8,39,15],[49,6,49,15],[41,8,41,15],[43,8,43,15],[47,8,47,15]]}
[null,null,{"$f":"AjustarEspacios(CONCATENATE(Nombre_Oficio,\"_\",\"Desglose\"))","v":"___000100_Desglose"}]
[]
[null,null,null,null,null,null,null,null,null,null,{"$f":"+'1.- Oficio de comision'!K3","v":"INSTITUTO NACIONAL DE TRANSPARENCIA, ACCESO A LA INFORMACIÓN Y PROTECCIÓN DE DATOS PERSONALES"}]
[null,null,null,null,null,null,null,null,null,null,{"$f":"+'1.- Oficio de comision'!K4","v":"\"2024, Año de Felipe Carrillo Puerto, Benemérito del Proletariado, Revolucionario y Defensor del Mayab\""}]
[null,{"$f":"IF($K$35=\"\",\"\",IF(TODAY()<=WORKDAY($K$35,Dias_Inhabiles!$C$3,Dias_Inhabiles),CONCATENATE(\"Fecha límite para presentar comprobación de gastos:\",CHAR(10),CHAR(10),\" --   \",TEXT(WORKDAY($K$35,Dias_Inhabiles!$C$3,Dias_Inhabiles),\"dddd\"),\", \",TEXT(WORKDAY($K$35,Dias_Inhabiles!$C$3,Dias_Inhabiles),\"dd\"),\" de \",TEXT(WORKDAY($K$35,Dias_Inhabiles!$C$3,Dias_Inhabiles),\"mmmm\"),\" de \",TEXT(WORKDAY($K$35,Dias_Inhabiles!$C$3,Dias_Inhabiles),\"aaaa\"),\"    -- \"),CONCATENATE(\"El plazo para presentar la comprobación venció el:\",CHAR(10),CHAR(10),\" --   \",TEXT(WORKDAY($K$35,Dias_Inhabiles!$C$3,Dias_Inhabiles),\"dddd\"),\", \",TEXT(WORKDAY($K$35,Dias_Inhabiles!$C$3,Dias_Inhabiles),\"dd\"),\" de \",TEXT(WORKDAY($K$35,Dias_Inhabiles!$C$3,Dias_Inhabiles),\"mmmm\"),\" de \",TEXT(WORKDAY($K$35,Dias_Inhabiles!$C$3,Dias_Inhabiles),\"aaaa\"),\"   -- \")))","v":""},null,null,null,null,null,null,null,null,null,null,null,null,null,null,null,null,{"$f":"+IF(K5=\"\",\"Fecha (dd/mm/aa)\",\"\")","v":"Fecha (dd/mm/aa)"}]
[]
[null,null,null,null,"DESGLOSE PORMENORIZADO DE GASTOS"]
[null,null,null,null,{"$f":"CONCATENATE(\"Oficio relacionado: \",'1.- Oficio de comision'!K6)","v":"Oficio relacionado: "}]
[]
[null,null,null,null,"Datos de la persona servidora pública comisionada",null,null,null,{"$f":"+IF(OR(G12=\"\",G14=\"\",O14=\"\",G16=\"\",O16=\"\",G18=\"\",O18=\"\"),\".: Favor de llenar los espacios indicados en esta sección :.\",\"\")","v":".: Favor de llenar los espacios indicados en esta sección :."}]
[]
[null,null,null,null,null,"Nombre",{"$f":"IF('1.- Oficio de comision'!G20=\"\",\"\",'1.- Oficio de comision'!G20)","v":""}]
[]
[null,null,null,null,null,"Puesto",{"$f":"IF('1.- Oficio de comision'!G22=\"\",\"\",'1.- Oficio de comision'!G22)","v":""},null,null,null,null,null,null,"No. Empleado",{"$f":"IF('1.- Oficio de comision'!O22=\"\",\"\",'1.- Oficio de comision'!O22)","v":""}]
[]
[null,null,null,null,null,"Área de adscripción",{"$f":"IF('1.- Oficio de comision'!G24=\"\",\"\",'1.- Oficio de comision'!G24)","v":""},null,null,null,null,null,null,"Clave de Área",{"$f":"IF('1.- Oficio de comision'!O24=\"\",\"\",'1.- Oficio de comision'!O24)","v":""}]
[]
[null,null,null,null,null,"Categoría",{"$f":"IF('1.- Oficio de comision'!G26=\"\",\"\",'1.- Oficio de comision'!G26)","v":"Titular de Dirección General"},null,null,null,null,null,null,"Clave de puesto",{"$f":"IF('1.- Oficio de comision'!O26=\"\",\"\",'1.- Oficio de comision'!O26)","v":""}]
[]
[]
[null,null,null,null,"Datos de la comisión",null,null,null,{"$f":"+'1.- Oficio de comision'!I29","v":".: Favor de llenar los espacios indicados en esta sección :."}]
[]
[null,null,null,null,null,{"$f":"+'1.- Oficio de comision'!E31","v":"Evento o motivo"},{"$f":"IF('1.- Oficio de comision'!$G$31=\"\",\"\",'1.- Oficio de comision'!$G$31)","v":""}]
[]
[null,null,null,null,null,"Organizador",{"$f":"IF('1.- Oficio de comision'!$G$33=\"\",\"\",'1.- Oficio de comision'!$G$33)","v":""}]
[]
[null,null,null,null,null,"Sitio web del evento",{"$f":"IF('1.- Oficio de comision'!$G$35=\"\",\"\",'1.- Oficio de comision'!$G$35)","v":""}]
[]
[null,null,null,null,null,"Tipo de comisión",{"$f":"IF('1.- Oficio de comision'!G37=\"\",\"\",'1.- Oficio de comision'!G37)","v":""},null,null,"Tipo de representación",{"$f":"IF('1.- Oficio de comision'!K37=\"\",\"\",'1.- Oficio de comision'!K37)","v":""},null,null,"No. Acuerdo",{"$f":"IF('1.- Oficio de comision'!O37=\"\",\"\",'1.- Oficio de comision'!O37)","v":""}]
[]
[null,null,null,null,null,"País de origen",{"$f":"IF('1.- Oficio de comision'!G39=\"\",\"\",'1.- Oficio de comision'!G39)","v":""},null,null,"Estado de origen",{"$f":"IF('1.- Oficio de comision'!K39=\"\",\"\",'1.- Oficio de comision'!K39)","v":""},null,null,"Ciudad de origen",{"$f":"IF('1.- Oficio de comision'!O39=\"\",\"\",'1.- Oficio de comision'!O39)","v":""}]
[]
[null,null,null,null,null,"País de destino",{"$f":"IF('1.- Oficio de comision'!G41=\"\",\"\",'1.- Oficio de comision'!G41)","v":""},null,null,"Estado de destino",{"$f":"IF('1.- Oficio de comision'!K41=\"\",\"\",'1.- Oficio de comision'!K41)","v":""},null,null,"Ciudad de destino",{"$f":"IF('1.- Oficio de comision'!O41=\"\",\"\",'1.- Oficio de comision'!O41)","v":""}]
[]
[null,null,null,null,null,"Fecha y hora de salida",{"$f":"IF(Salida=\"\",\"\",Salida)","v":""},null,null,"Fecha y hora de regreso",{"$f":"IF(Regreso=\"\",\"\",Regreso)","v":""}]
[]
[null,null,null,null,null,"Observaciones",{"$f":"IF('1.- Oficio de comision'!G45=\"\",\"\",'1.- Oficio de comision'!G45)","v":""}]
[]
[]
[null,null,null,null,"Datos de viáticos",null,null,null,{"$f":"IF(H44=\"\",\".: Favor de llenar los espacios indicados en esta sección :.\",IF(AND(DIVISA=\"MXN\",H44>H42),\".: Favor de verificar los importes solicitado y otorgado :.\",'1.- Oficio de comision'!I48))","v":".: Favor de llenar los espacios indicados en esta sección :."}]
[]
[null,null,null,null,null,"Importe anticipado solicitado",{"$f":"+'1.- Oficio de comision'!O58","v":""},{"$f":"IF('1.- Oficio de comision'!G50=\"Anticipados\",'1.- Oficio de comision'!P58,0)","v":0},{"$f":"IF(H42=0,\"\",CONCATENATE(\"( \",Importe_Letra,\" )\"))","v":""}]
[]
[null,null,null,null,null,"Importe anticipado otorgado","$",null,{"$f":"IF(H44=0,\"\",IF(OR(H44=\"\"),\"\",CONCATENATE(\"( \",MID(PesosMN(H44),3,1),MID(LOWER(PesosMN(H44)),4,LEN(PesosMN(H44))-3))))","v":""}]
[]
[null,null,null,null,null,"Tipo de cambio aplicado","$",{"$f":"IF(AND('1.- Oficio de comision'!G37=\"Internacional\",'1.- Oficio de comision'!G50=\"Devengados\"),IF(ISERROR(LARGE(Tabla33[Tipo de \ncambio],1)),1,LARGE(Tabla33[Tipo de \ncambio],1)),IF(OR(H44=0,H42=0),1,H44/H42))","v":1}]
[]
[null,null,null,null,null,"Importe de viáticos  devengados","$",{"$f":"IFERROR(IF(IF(G85+J85>'1.- Oficio de comision'!L58*'2.- Desglose de gastos'!H46,'1.- Oficio de comision'!L58*'2.- Desglose de gastos'!H46-'2.- Desglose de gastos'!H44,G85+J85-H44)<0,0,IF(G85+J85>'1.- Oficio de comision'!L58*'2.- Desglose de gastos'!H46,'1.- Oficio de comision'!L58*'2.- Desglose de gastos'!H46-'2.- Desglose de gastos'!H44,G85+J85-H44)),\"\")","v":0},{"$f":"IF(H48=0,\"\",IF(OR(H48=\"\"),\"\",CONCATENATE(\"( \",MID(PesosMN(H48),3,1),MID(LOWER(PesosMN(H48)),4,LEN(PesosMN(H48))-3))))","v":""}]
[]
[null,null,null,null,null,"Observaciones"]
[]
[]
[null,null,null,null,"Datos de pasajes",null,null,null,{"$f":"IF(OR(AND(G55<>\"\",OR(K55=\"\",H57=\"\",H57=0)),OR(AND($G$55=\"\",$K$55<>\"\"),AND($G$55=\"\",$H$57<>\"\"))),\".: Favor de llenar los espacios indicados en esta sección :.\",\"\")","v":""}]
[]
[null,null,null,null,null,"Tipo de pasajes",null,null,null,"No. Oficio Relacionado",null,null,null,"Transporte utilizado"]
[]
[null,null,null,null,null,"Importe ","$",null,{"$f":"IF(H57=0,\"\",IF(OR(H57=\"\"),\"\",CONCATENATE(\"( \",MID(PesosMN(H57),3,1),MID(LOWER(PesosMN(H57)),4,LEN(PesosMN(H57))-3))))","v":""}]
[]
[null,null,null,null,null,"Observaciones"]
[]
[]
[null,null,null,null,"Datos de gastos autorizados realizados"]
[]
[null,null,null,null,"Consecutivo","Fecha","Concepto","Forma\nde pago","Presenta\ncomprobante","Tipo\ncomprobante","Folio\ncomprobante","Divisa","Importe\nen divisa","Tipo de \ncambio","Importe en\npesos","Observaciones"]
[null,null,null,null,{"$f":"+ROW(Tabla33[[#This Row],[Fecha]])-64","v":1},null,null,null,null,null,null,null,null,null,{"$f":"+IF(OR(Tabla33[[#This Row],[Divisa]]=\"\",UPPER(Tabla33[[#This Row],[Divisa]])=\"MXN\",UPPER(Tabla33[[#This Row],[Divisa]])=\"PESOS\",UPPER(Tabla33[[#This Row],[Divisa]])=\"PESO\"),Tabla33[[#This Row],[Importe\nen divisa]],Tabla33[[#This Row],[Importe\nen divisa]]*Tabla33[[#This Row],[Tipo de \ncambio]])","v":0}]
[null,null,null,null,{"$f":"CONCATENATE(\"Total:  \",TEXT(SUBTOTAL(103,Tabla33[Consecutivo]),\"00\"),\" registros\")","v":"Total:  01 registros"},null,null,null,null,null,null,null,null,null,{"$f":"SUBTOTAL(109,Tabla33[Importe en\npesos])","v":0}]
[]
[]
[null,null,null,null,"Datos de totales de gastos autorizados realizados"]
[]
[null,null,null,null,"                      .: Viáticos comprobados :.",null,null,"                .: Viáticos No comprobados :.",null,null,"                     .: Pasajes :.",null,null,"                      .: Totales :."]
[]
[null,null,null,null,null,"Subtotal en efectivo",{"$f":"IF(G29=\"Internacional\",Tabla4152[[#Totals],[E]],Tabla41[[#Totals],[E]])","v":0},null,"Subtotal en efectivo",{"$f":"IF(G29=\"Internacional\",0,SUM(Tabla4144[[#Totals],[E]],Tabla4146[[#Totals],[E]],Tabla4148[[#Totals],[E]],Tabla4150[[#Totals],[E]]))","v":0},null,"Subtotal en efectivo",{"$f":"IF(G29=\"Internacional\",Tabla4253[[#Totals],[E]],Tabla42[[#Totals],[E]])","v":0},null,"Total en efectivo",{"$f":"+SUM(G73,J73,M73)","v":0}]
[]
[null,null,null,null,null,"Subtotal en TCC",{"$f":"IF(G29=\"Internacional\",Tabla4152[[#Totals],[TCC]],Tabla41[[#Totals],[TCC]])","v":0},null,"Subtotal en TCC",{"$f":"IF(G29=\"Internacional\",0,SUM(Tabla4144[[#Totals],[TCC]],Tabla4146[[#Totals],[TCC]],Tabla4148[[#Totals],[TCC]],Tabla4150[[#Totals],[TCC]]))","v":0},null,"Subtotal en TCC",{"$f":"IF(G29=\"Internacional\",Tabla4253[[#Totals],[TCC]],Tabla42[[#Totals],[TCC]])","v":0},null,"Total en TCC",{"$f":"+SUMIFS(Tabla33[Importe en\npesos],Tabla33[Forma\nde pago],\"TCC\")","v":0}]
[]
[null,null,null,null,null,"Subtotal en TDD",{"$f":"IF(G29=\"Internacional\",Tabla4152[[#Totals],[TDD]],Tabla41[[#Totals],[TDD]])","v":0},null,"Subtotal en TDD",{"$f":"IF(G29=\"Internacional\",0,SUM(Tabla4144[[#Totals],[TDD]],Tabla4146[[#Totals],[TDD]],Tabla4148[[#Totals],[TDD]],Tabla4150[[#Totals],[TDD]]))","v":0},null,"Subtotal en TDD",{"$f":"IF(G29=\"Internacional\",Tabla4253[[#Totals],[TDD]],Tabla42[[#Totals],[TDD]])","v":0},null,"Total en TDD",{"$f":"+SUM(G77,J77,M77)","v":0}]
[]
[null,null,null,null,null,"Subtotal  en TDE",{"$f":"IF(G29=\"Internacional\",Tabla4152[[#Totals],[TDE]],Tabla41[[#Totals],[TDE]])","v":0},null,"Subtotal  en TDE",{"$f":"IF(G29=\"Internacional\",0,SUM(Tabla4144[[#Totals],[TDE]],Tabla4146[[#Totals],[TDE]],Tabla4148[[#Totals],[TDE]],Tabla4150[[#Totals],[TDE]]))","v":0},null,"Subtotal  en TDE",{"$f":"IF(G29=\"Internacional\",Tabla4253[[#Totals],[TDE]],Tabla42[[#Totals],[TDE]])","v":0},null,"Total  en TDE",{"$f":"+SUM(G79,J79,M79)","v":0}]
[]
[null,null,null,null,null,"Subtotal en TDC",{"$f":"IF(G29=\"Internacional\",Tabla4152[[#Totals],[TDC]],Tabla41[[#Totals],[TDC]])","v":0},null,"Subtotal en TDC",{"$f":"IF(G29=\"Internacional\",0,SUM(Tabla4144[[#Totals],[TDC]],Tabla4146[[#Totals],[TDC]],Tabla4148[[#Totals],[TDC]],Tabla4150[[#Totals],[TDC]]))","v":0},null,"Subtotal en TDC",{"$f":"IF(G29=\"Internacional\",Tabla4253[[#Totals],[TDC]],Tabla42[[#Totals],[TDC]])","v":0},null,"Total en TDC",{"$f":"+SUM(G81,J81,M81)","v":0}]
[]
[null,null,null,null,null,"Subtotal en Transfer. INAI",{"$f":"IF(G30=\"Internacional\",Tabla4152[[#Totals],[Transfer. INAI]],Tabla41[[#Totals],[Transfer. INAI]])","v":0},null,"Subtotal en Transfer. INAI",{"$f":"IF(G30=\"Internacional\",0,SUM(Tabla4144[[#Totals],[Transfer. INAI]],Tabla4146[[#Totals],[Transfer. INAI]],Tabla4148[[#Totals],[Transfer. INAI]],Tabla4150[[#Totals],[Transfer. INAI]]))","v":0},null,"Subtotal en Transfer. INAI",{"$f":"IF(G30=\"Internacional\",Tabla4253[[#Totals],[Transfer. INAI]],Tabla42[[#Totals],[Transfer. INAI]])","v":0},null,"Subtotal en Transfer. INAI",{"$f":"+SUM(G83,J83,M83)","v":0}]
[]
[null,null,null,null,null,"Viáticos comprobados",{"$f":"IFERROR(IF($G73+$G75+$G77+$G79+$G81+$G83>Importe_Autorizado*Tipo_Cambio,Importe_Autorizado*Tipo_Cambio,$G73+$G75+$G77+$G79+$G81+$G83),0)","v":0},null,"Viáticos no comprobados¹",{"$f":"IF(Tipo_de_Comision=\"Internacional\",0,IF(Total_Comprobados+IF($J83+$J81+$J79+$J77+$J75+$J73>($G83+$G81+$G79+$G77+$G75)*0.2,($G81+$G79+$G77+$G75)*0.2,$J83+$J81+$J79+$J77+$J75+$J73)>Importe_Autorizado*Tipo_Cambio,Importe_Autorizado*Tipo_Cambio-Total_Comprobados,IF($J83+$J81+$J79+$J77+$J75+$J73>($G83+$G81+$G79+$G77+$G75)*0.2,($G81+$G79+$G77+$G75)*0.2,$J83+$J81+$J79+$J77+$J75+$J73)))","v":0},null,"Pasajes",{"$f":"$M73+$M75+$M77+$M79+$M81+$M83","v":0},null,"Total gastos",{"$f":"SUM($G$85,$J$85,$M$85)","v":0}]
[]
[null,null,null,null,null,"Total gastos de comisión",{"$f":"+P85","v":0},{"$f":"IF(G87=0,\"\",IF(OR(G87=\"\"),\"\",CONCATENATE(\"( \",MID(PesosMN(G87),3,1),MID(LOWER(PesosMN(G87)),4,LEN(PesosMN(G87))-3))))","v":""}]
[]
[null,null,null,null,null,"Observaciones","*El importe de gastos, por concepto de viáticos, está limitado al Importe autorizado indicado en el Oficio de comisión y, este último, se determina de acuerdo con los Lineamientos internos que regulan la asignación de comisiones, viáticos y pasajes nacionales e internacionales del INAI vigentes, en función de la categoría del puesto que desempeña la persona servidora pública viaticante.\n¹ El importe máximo de Viáticos No comprobados, corresponde al 20% de los Viáticos comprobados pagados a través de medios electrónicos (TCC, TDD, TDE, TDC, Transfer. INAI), sin considerar los gastos por concepto de pasajes; dicho porcentaje, únicamente aplica en el desarrollo de comisiones nacionales."]
[]
[]
[null,null,null,null,{"$f":"IF(G94+J94-G96-J96+M94<0,\"Datos de reembolso\",\"Datos de reintegro\")","v":"Datos de reintegro"}]
[]
[null,null,null,null,null,"Viáticos anticipados",{"$f":"H44","v":0},null,"Pasajes anticipados",{"$f":"+IF(G55=\"Anticipados\",H57,0)","v":0},null,"Total TCC + Transfer. INAI",{"$f":"+P75+P83","v":0}]
[]
[null,null,null,null,null,"Total viáticos",{"$f":"IFERROR(G85+J85,0)","v":0},null,"Total pasajes",{"$f":"+M85","v":0}]
[]
[null,null,null,null,{"$f":"IF(G94+J94-G96-J96+M94<0,\"Total a reembolsar\na la persona servidora pública\",\"Total a reintegrar\na la cuenta del INAI\")","v":"Total a reintegrar\na la cuenta del INAI"},null,{"$f":"ABS(G94+J94-G96-J96+M94)","v":0},{"$f":"IF(G98=0,\"\",IF(OR(G98=\"\"),\"\",CONCATENATE(\"( \",MID(PesosMN(G98),3,1),MID(LOWER(PesosMN(G98)),4,LEN(PesosMN(G98))-3))))","v":""},null,null,null,null,null,null,{"$f":"IF(G94+J94-G96-J96+M94<0,\"Folio de reembolso\",IF(G94+J94-G96-J96+M94=0,\"\",\"Folio de comprobante bancario\"))","v":""}]
[]
[null,null,null,null,null,"Observaciones",{"$f":"IF(G94+J94-G96-J96+M94<0,\"El reembolso queda sujeto a revisión por parte del departamento de Tesorería del INAI y está condicionado a la existencia de suficiencia presupuestal, así como a la autorización del titular de la Unidad Administrativa responsable del gasto.\",IF(G94+J94-G96-J96+M94=0,\"\",\"El importe del reintegro queda sujeto a la verificación por parte del departamento de Tesorería del INAI.\"))","v":""}]
[]
[]
[]
[]
[null,null,null,null,"Declaro bajo protesta de decir verdad que los gastos registrados en el presente documento fueron efectivamente erogados durante el periodo de la comisión realizada y que estos, se apegan a los criterios indicados en los Lineamientos internos que regulan la asignación de comisiones, viáticos y pasajes nacionales e internacionales del INAI vigentes."]
[]
[]
[null,null,null,null,{"$f":"IF('1.- Oficio de comision'!G20=\"\",\"\",'1.- Oficio de comision'!G20)","v":""},null,null,null,null,null,null,"José Alberto Espinosa Lastiri"]
[null,null,null,null,{"$f":"IF('1.- Oficio de comision'!G22=\"\",\"\",'1.- Oficio de comision'!G22)","v":""},null,null,null,null,null,null,"Director de Recursos Financieros"]

{"sheet":"3.- Informe de comision","index":2,"n_rows":71,"n_cols":19,"rows_kept":71,"cut":false,"hidden":false,"merged":[[66,4,66,15],[67,4,67,15],[68,4,68,15],[69,4,69,15],[70,4,70,15],[2,10,2,15],[3,10,3,15],[4,1,7,1],[4,10,4,15],[6,4,6,15],[7,4,7,15],[24,6,24,15],[9,4,9,7],[9,8,9,15],[11,6,11,15],[13,6,13,11],[13,14,13,15],[15,6,15,11],[15,14,15,15],[17,6,17,11],[17,14,17,15],[20,4,20,7],[20,8,20,15],[22,6,22,15],[26,6,26,15],[28,6,28,7],[28,10,28,11],[28,14,28,15],[30,6,30,7],[30,10,30,11],[30,14,30,15],[32,6,32,7],[32,10,32,11],[32,14,32,15],[34,6,34,7],[34,10,34,11],[34,13,34,15],[52,6,52,15],[54,6,54,15],[52,4,52,5],[54,4,54,5],[36,6,36,15],[39,4,39,7],[39,8,39,15],[41,6,41,15],[43,6,43,15],[45,6,45,15],[47,6,47,15],[50,4,50,7],[50,8,50,15],[56,4,56,5],[58,4,58,5],[60,4,60,5],[64,7,64,12],[65,7,65,12],[62,7,62,12],[58,6,58,15],[56,6,56,15],[60,6,60,15]]}
[null,null,{"$f":"AjustarEspacios(CONCATENATE(Nombre_Oficio,\"_\",\"Informe\"))","v":"___000100_Informe"}]
[]
[null,null,null,null,null,null,null,null,null,null,{"$f":"+'1.- Oficio de comision'!K3","v":"INSTITUTO NACIONAL DE TRANSPARENCIA, ACCESO A LA INFORMACIÓN Y PROTECCIÓN DE DATOS PERSONALES"}]
[null,null,null,null,null,null,null,null,null,null,{"$f":"+'1.- Oficio de comision'!K4","v":"\"2024, Año de Felipe Carrillo Puerto, Benemérito del Proletariado, Revolucionario y Defensor del Mayab\""}]
[null,null,null,null,null,null,null,null,null,null,{"$f":"IF('2.- Desglose de gastos'!$K$5=\"\",\"\",'2.- Desglose de gastos'!$K$5)","v":""},null,null,null,null,null,null,null,{"$f":"+IF(K5=\"\",\"Fecha (dd/mm/aa)\",\"\")","v":"Fecha (dd/mm/aa)"}]
[]
[null,null,null,null,"INFORME DE COMISIÓN"]
[null,null,null,null,{"$f":"CONCATENATE(\"Oficio relacionado: \",'1.- Oficio de comision'!K6)","v":"Oficio relacionado: "}]
[]
[null,null,null,null,"Datos de la persona servidora pública comisionada",null,null,null,{"$f":"+IF(OR(G12=\"\",G14=\"\",O14=\"\",G16=\"\",O16=\"\",G18=\"\",O18=\"\"),\".: Favor de llenar los espacios indicados en esta sección :.\",\"\")","v":".: Favor de llenar los espacios indicados en esta sección :."}]
[]
[null,null,null,null,null,"Nombre",{"$f":"IF('1.- Oficio de comision'!G20=\"\",\"\",'1.- Oficio de comision'!G20)","v":""}]
[]
[null,null,null,null,null,"Puesto",{"$f":"IF('1.- Oficio de comision'!G22=\"\",\"\",'1.- Oficio de comision'!G22)","v":""},null,null,null,null,null,null,"No. Empleado",{"$f":"IF('1.- Oficio de comision'!O22=\"\",\"\",'1.- Oficio de comision'!O22)","v":""}]
[]
[null,null,null,null,null,"Área de adscripción",{"$f":"IF('1.- Oficio de comision'!G24=\"\",\"\",'1.- Oficio de comision'!G24)","v":""},null,null,null,null,null,null,"Clave de Área",{"$f":"IF('1.- Oficio de comision'!O24=\"\",\"\",'1.- Oficio de comision'!O24)","v":""}]
[]
[null,null,null,null,null,"Categoría",{"$f":"IF('1.- Oficio de comision'!G26=\"\",\"\",'1.- Oficio de comision'!G26)","v":"Titular de Dirección General"},null,null,null,null,null,null,"Clave de puesto",{"$f":"IF('1.- Oficio de comision'!O26=\"\",\"\",'1.- Oficio de comision'!O26)","v":""}]
[]
[]
[null,null,null,null,"Datos de la comisión",null,null,null,{"$f":"+'1.- Oficio de comision'!I29","v":".: Favor de llenar los espacios indicados en esta sección :."}]
[]
[null,null,null,null,null,{"$f":"+'1.- Oficio de comision'!E31","v":"Evento o motivo"},{"$f":"IF('1.- Oficio de comision'!$G$31=\"\",\"\",'1.- Oficio de comision'!$G$31)","v":""}]
[]
[null,null,null,null,null,"Organizador",{"$f":"IF('1.- Oficio de comision'!$G$33=\"\",\"\",'1.- Oficio de comision'!$G$33)","v":""}]
[]
[null,null,null,null,null,"Sitio web del evento",{"$f":"IF('1.- Oficio de comision'!$G$35=\"\",\"\",'1.- Oficio de comision'!$G$35)","v":""}]
[]
[null,null,null,null,null,"Tipo de comisión",{"$f":"IF('1.- Oficio de comision'!G37=\"\",\"\",'1.- Oficio de comision'!G37)","v":""},null,null,"Tipo de representación",{"$f":"IF('1.- Oficio de comision'!K37=\"\",\"\",'1.- Oficio de comision'!K37)","v":""},null,null,"No. Acuerdo",{"$f":"IF('1.- Oficio de comision'!O37=\"\",\"\",'1.- Oficio de comision'!O37)","v":""}]
[]
[null,null,null,null,null,"País de origen",{"$f":"IF('1.- Oficio de comision'!G39=\"\",\"\",'1.- Oficio de comision'!G39)","v":""},null,null,"Estado de origen",{"$f":"IF('1.- Oficio de comision'!K39=\"\",\"\",'1.- Oficio de comision'!K39)","v":""},null,null,"Ciudad de origen",{"$f":"IF('1.- Oficio de comision'!O39=\"\",\"\",'1.- Oficio de comision'!O39)","v":""}]
[]
[null,null,null,null,null,"País de destino",{"$f":"IF('1.- Oficio de comision'!G41=\"\",\"\",'1.- Oficio de comision'!G41)","v":""},null,null,"Estado de destino",{"$f":"IF('1.- Oficio de comision'!K41=\"\",\"\",'1.- Oficio de comision'!K41)","v":""},null,null,"Ciudad de destino",{"$f":"IF('1.- Oficio de comision'!O41=\"\",\"\",'1.- Oficio de comision'!O41)","v":""}]
[]
[null,null,null,null,null,"Fecha y hora de salida",{"$f":"IF(Salida=\"\",\"\",Salida)","v":""},null,null,"Fecha y hora de regreso",{"$f":"IF(Regreso=\"\",\"\",Regreso)","v":""}]
[]
[null,null,null,null,null,"Observaciones",{"$f":"IF('1.- Oficio de comision'!G45=\"\",\"\",'1.- Oficio de comision'!G45)","v":""}]
[]
[]
[null,null,null,null,"Datos de justificación",null,null,null,{"$f":"IF(OR(G42=\"\",G44=\"\",G46=\"\",G48=\"\"),\".: Favor de llenar los espacios indicados en esta sección :.\",\"\")","v":".: Favor de llenar los espacios indicados en esta sección :."}]
[]
[null,null,null,null,null,"Objetivo estratégico",null,null,null,null,null,null,null,null,null,null," "]
[]
[null,null,null,null,null,"Objetivo específico"]
[]
[null,null,null,null,null,"Tema"]
[]
[null,null,null,null,null,"Motivo"]
[]
[]
[null,null,null,null,"Datos de resultados obtenidos",null,null,null,{"$f":"IF(OR(G53=\"\",G55=\"\",G57=\"\",G59=\"\",G61=\"\"),\".: Favor de llenar los espacios indicados en esta sección :.\",\"\")","v":".: Favor de llenar los espacios indicados en esta sección :."}]
[]
[null,null,null,null,"Actividades realizadas"]
[]
[null,null,null,null,"Contribuciones al INAI"]
[]
[null,null,null,null,"Conclusiones"]
[]
[null,null,null,null,"Vínculos a notas informativas"]
[]
[null,null,null,null,"Listado de documentación anexa"]
[]
[null,null,null,null,null,null,null,"Servidor Público Comisionado"]
[]
[null,null,null,null,null,null,null,{"$f":"IF('1.- Oficio de comision'!G20=\"\",\"\",'1.- Oficio de comision'!G20)","v":""}]
[null,null,null,null,null,null,null,{"$f":"IF('1.- Oficio de comision'!G22=\"\",\"\",'1.- Oficio de comision'!G22)","v":""}]
[null,"C.c.p."]
[null,"C.c.p."]
[null,"C.c.p."]
[null,"C.c.p."]
[null,"C.c.p."]

{"sheet":"4.- Oficio de cancelacion","index":3,"n_rows":89,"n_cols":20,"rows_kept":89,"cut":false,"hidden":false,"merged":[[80,4,80,8],[81,4,81,8],[82,4,82,8],[83,4,83,8],[80,11,80,15],[81,11,81,15],[82,11,82,15],[83,11,83,15],[85,4,85,15],[84,4,84,15],[86,4,86,15],[87,4,87,15],[88,4,88,15],[12,4,12,15],[13,4,13,15],[14,4,14,15],[16,4,16,15],[18,4,18,7],[18,8,18,15],[41,4,41,5],[41,6,41,7],[41,8,41,9],[41,10,41,11],[41,12,41,13],[41,14,41,15],[39,4,39,5],[39,6,39,7],[39,8,39,9],[39,10,39,11],[39,12,39,13],[39,14,39,15],[50,4,50,7],[50,8,50,15],[52,4,52,5],[2,10,2,15],[3,10,3,15],[26,4,26,5],[26,6,26,11],[26,12,26,13],[26,14,26,15],[35,4,35,5],[35,6,35,15],[37,4,37,5],[37,6,37,7],[37,8,37,9],[37,10,37,11],[37,12,37,13],[37,14,37,15],[29,4,29,7],[29,8,29,15],[31,4,31,5],[31,6,31,15],[33,4,33,5],[33,6,33,15],[4,1,10,1],[4,10,4,15],[5,10,5,15],[6,10,6,15],[7,10,7,15],[10,3,10,16],[24,4,24,5],[24,6,24,11],[24,12,24,13],[24,14,24,15],[20,4,20,5],[20,6,20,15],[22,4,22,5],[22,6,22,11],[22,12,22,13],[22,14,22,15],[9,3,9,16],[52,6,52,7],[52,10,52,11],[52,14,52,15],[43,4,43,5],[43,6,43,7],[43,8,43,9],[43,10,43,11],[43,13,43,15],[45,4,45,5],[45,6,45,15],[47,6,47,15],[58,4,58,5],[58,6,58,7],[73,4,73,5],[73,6,73,11],[54,4,54,5],[54,6,54,15],[56,4,56,5],[56,6,56,7],[56,8,56,9],[56,12,56,13],[58,8,58,9],[58,12,58,13],[60,4,60,5],[60,6,60,7],[60,8,60,9],[60,12,60,13],[62,4,62,5],[62,6,62,15],[64,4,64,5],[64,6,64,15],[73,14,73,15],[75,4,75,5],[75,6,75,15],[69,4,69,5],[69,6,69,11],[69,14,69,15],[71,4,71,5],[71,6,71,11],[71,14,71,15],[67,4,67,8],[67,9,67,15]]}
[null,null,{"$f":"AjustarEspacios(CONCATENATE(SUBSTITUTE(UPPER($K$6),\"/\",\"-\"),\"_\",INICIALES(PROPER(G21)),\"_\",PROPER(O42),\"_\",TEXT(G44,\"aammdd\"),\"_Cancelacion\"))","v":"____Cancelacion"},{"$f":"TEXT($G$44,\"aaaammdd\")","v":""}]
[]
[null,null,null,null,null,null,null,null,null,null,"INSTITUTO NACIONAL DE TRANSPARENCIA, ACCESO A LA INFORMACIÓN Y PROTECCIÓN DE DATOS PERSONALES"]
[null,null,null,null,null,null,null,null,null,null,{"$f":"IF('1.- Oficio de comision'!K4=\"\",\"\",'1.- Oficio de comision'!K4)","v":"\"2024, Año de Felipe Carrillo Puerto, Benemérito del Proletariado, Revolucionario y Defensor del Mayab\""},null,null,null,null,null,null,null,{"$f":"+IF(K4=\"\",\"Indicar Leyenda del ejercicio\",\"\")","v":""}]
[null,{"$f":"IF($K$44=\"\",\"\",IF(TODAY()<=WORKDAY($K$44,Dias_Inhabiles!$C$3,Dias_Inhabiles),CONCATENATE(\"Fecha límite para presentar comprobación de gastos:\",CHAR(10),CHAR(10),\" --   \",TEXT(WORKDAY($K$44,Dias_Inhabiles!$C$3,Dias_Inhabiles),\"dddd\"),\", \",TEXT(WORKDAY($K$44,Dias_Inhabiles!$C$3,Dias_Inhabiles),\"dd\"),\" de \",TEXT(WORKDAY($K$44,Dias_Inhabiles!$C$3,Dias_Inhabiles),\"mmmm\"),\" de \",TEXT(WORKDAY($K$44,Dias_Inhabiles!$C$3,Dias_Inhabiles),\"aaaa\"),\"    -- \"),CONCATENATE(\"El plazo para presentar la comprobación venció el:\",CHAR(10),CHAR(10),\" --   \",TEXT(WORKDAY($K$44,Dias_Inhabiles!$C$3,Dias_Inhabiles),\"dddd\"),\", \",TEXT(WORKDAY($K$44,Dias_Inhabiles!$C$3,Dias_Inhabiles),\"dd\"),\" de \",TEXT(WORKDAY($K$44,Dias_Inhabiles!$C$3,Dias_Inhabiles),\"mmmm\"),\" de \",TEXT(WORKDAY($K$44,Dias_Inhabiles!$C$3,Dias_Inhabiles),\"aaaa\"),\"   -- \")))","v":""},null,null,null,null,null,null,null,null,{"$f":"IF(Encabezado_UA=\"\",\"\",Encabezado_UA)","v":""},null,null,null,null,null,null,null,{"$f":"+IF(K5=\"\",\"Indicar Unidad Administrativa\",\"\")","v":"Indicar Unidad Administrativa"}]
[null,null,null,null,null,null,null,null,null,null,null,null,null,null,null,null,null,null,{"$f":"+IF(K6=\"\",\"Indicar No. de Oficio\",IF(ISERROR(SEARCH(\"oficio\",#REF!,1)),\"\",\"Omite la palabra 'Oficio'\"))","v":"Indicar No. de Oficio"}]
[null,null,null,null,null,null,null,null,null,null,"Cancelación de comisión ",null,null,null,null,null,null,null,{"$f":"+IF(K7=\"\",\"Indicar asunto\",IF(ISERROR(SEARCH(\"asunto\",#REF!,1)),\"\",\"Omite la palabra 'Asunto'\"))","v":""}]
[null,null,null,null,null,null,null,null,null,null,null,null,null,null,null,null,null,null,{"$f":"+IF(K8=\"\",\"Fecha (dd/mm/aa)\",\"\")","v":"Fecha (dd/mm/aa)"}]
[]
[null,null,null,"OFICIO DE CANCELACIÓN"]
[null,null,null,{"$f":"+CONCATENATE(\"Oficio relacionado: \",'1.- Oficio de comision'!K6)","v":"Oficio relacionado: "}]
[]
[null,{"$f":"IF(SUBSTITUTE(SUBSTITUTE(SUBSTITUTE(UPPER(AjustarEspacios(MID($D$11,21,30))),\"/\",\"\"),\"-\",\"\"),\"_\",\"\")=SUBSTITUTE(SUBSTITUTE(SUBSTITUTE(UPPER(AjustarEspacios(MID($K$6,1,30))),\"/\",\"\"),\"-\",\"\"),\"_\",\"\"),1,0)","v":1},null,null,{"$f":"+IF('1.- Oficio de comision'!E12=\"\",\"\",'1.- Oficio de comision'!E12)","v":"Mtra. Mónica López Sandoval"}]
[null,null,null,null,{"$f":"+'1.- Oficio de comision'!E13","v":"Directora General de Administración"}]
[null,null,null,null,"P r e s e n t e"]
[]
[null,null,null,null,"Me permito informarle que la comisión oficial que se detalla a continuación ha sido cancelada:"]
[]
[null,null,null,null,"Datos de la persona servidora pública comisionada",null,null,null,{"$f":"+IF(OR(G21=\"\",G23=\"\",O23=\"\",G25=\"\",O25=\"\",G27=\"\",O27=\"\"),\".: Favor de llenar los espacios indicados en esta sección :.\",\"\")","v":".: Favor de llenar los espacios indicados en esta sección :."}]
[]
[null,null,null,null,"Nombre",null,{"$f":"IF('1.- Oficio de comision'!G20=\"\",\"\",'1.- Oficio de comision'!G20)","v":""}]
[]
[null,null,null,null,"Puesto",null,{"$f":"IF('1.- Oficio de comision'!G22=\"\",\"\",'1.- Oficio de comision'!G22)","v":""},null,null,null,null,null,"No. Empleado",null,{"$f":"IF('1.- Oficio de comision'!O22=\"\",\"\",'1.- Oficio de comision'!O22)","v":""}]
[]
[null,null,null,null,"Área de adscripción",null,{"$f":"IF('1.- Oficio de comision'!G24=\"\",\"\",'1.- Oficio de comision'!G24)","v":""},null,null,null,null,null,"Clave de Área",null,{"$f":"IF('1.- Oficio de comision'!O24=\"\",\"\",'1.- Oficio de comision'!O24)","v":""}]
[]
[null,null,null,null,"Categoría",null,{"$f":"IF('1.- Oficio de comision'!G26=\"\",\"\",'1.- Oficio de comision'!G26)","v":"Titular de Dirección General"},null,null,null,null,null,"Clave de puesto",null,{"$f":"IF('1.- Oficio de comision'!O26=\"\",\"\",'1.- Oficio de comision'!O26)","v":""}]
[]
[]
[null,null,null,null,"Datos de la comisión",null,null,null,{"$f":"+IF(OR(G38=\"\",K38=\"\",G40=\"\",G42=\"\",G44=\"\",K44=\"\"),\".: Favor de llenar los espacios indicados en esta sección :.\",IF(AND(G38=\"Nacional\",OR(G40<>\"México\",G42<>\"México\")),\".: El tipo de comisión no corresponde al país de origen o de destino :.\",IF(AND(G38=\"Internacional\",G40=\"México\",G42=\"México\"),\".: El tipo de comisión no corresponde al país de origen o de destino :.\",\"\")))","v":".: Favor de llenar los espacios indicados en esta sección :."}]
[]
[null,null,null,null,{"$f":"+'1.- Oficio de comision'!E31","v":"Evento o motivo"},null,{"$f":"IF('1.- Oficio de comision'!G31=\"\",\"\",'1.- Oficio de comision'!G31)","v":""}]
[]
[null,null,null,null,"Organizador",null,{"$f":"IF('1.- Oficio de comision'!G33=\"\",\"\",'1.- Oficio de comision'!G33)","v":""}]
[]
[null,null,null,null,"Sitio web del evento",null,{"$f":"IF('1.- Oficio de comision'!G35=\"\",\"\",'1.- Oficio de comision'!G35)","v":""}]
[]
[null,null,null,null,"Tipo de comisión",null,{"$f":"+IF(AND(G40=\"México\",G42=\"México\"),\"Nacional\",\"Internacional\")","v":"Internacional"},null,"Tipo de representación",null,{"$f":"IF('1.- Oficio de comision'!K37=\"\",\"\",'1.- Oficio de comision'!K37)","v":""},null,"No. Acuerdo",null,{"$f":"IF('1.- Oficio de comision'!O37=\"\",\"\",'1.- Oficio de comision'!O37)","v":""}]
[]
[null,null,null,null,"País de origen",null,{"$f":"IF('1.- Oficio de comision'!G39=\"\",\"\",'1.- Oficio de comision'!G39)","v":""},null,"Estado de origen",null,{"$f":"IF('1.- Oficio de comision'!K39=\"\",\"\",'1.- Oficio de comision'!K39)","v":""},null,"Ciudad de origen",null,{"$f":"IF('1.- Oficio de comision'!O39=\"\",\"\",'1.- Oficio de comision'!O39)","v":""}]
[]
[null,null,null,null,"País de destino",null,{"$f":"IF('1.- Oficio de comision'!G41=\"\",\"\",'1.- Oficio de comision'!G41)","v":""},null,"Estado de destino",null,{"$f":"IF('1.- Oficio de comision'!K41=\"\",\"\",'1.- Oficio de comision'!K41)","v":""},null,"Ciudad de destino",null,{"$f":"IF('1.- Oficio de comision'!O41=\"\",\"\",'1.- Oficio de comision'!O41)","v":""}]
[]
[null,null,null,null,"Fecha y hora de salida",null,{"$f":"IF('1.- Oficio de comision'!G43=\"\",\"\",'1.- Oficio de comision'!G43)","v":""},null,"Fecha y hora de regreso",null,{"$f":"IF('1.- Oficio de comision'!K43=\"\",\"\",'1.- Oficio de comision'!K43)","v":""}]
[]
[null,null,null,null,"Observaciones",null,{"$f":"IF('1.- Oficio de comision'!G45=\"\",\"\",'1.- Oficio de comision'!G45)","v":""}]
[]
[null,null,null,null,null,"Motivo de cancelación"]
[]
[]
[null,null,null,null,"Datos de viáticos solicitados",null,null,null,{"$f":"IFERROR(IF(P61>L61,\".: El importe solicitado es mayor al Importe máximo autorizado :.\",IF(OR(G53=\"\",G57=\"\",L57=\"\",P57=\"\",G59=\"\",L59=\"\",P59=\"\",G61=\"\",L61=\"\",P61=\"\",AND(K53=\"Si\",OR(O53=\"\",G55=\"\"))),\".: Favor de llenar los espacios indicados en esta sección :.\",IF(OR(AND($G$38=\"Internacional\",DIVISA=\"MXN\"),AND($G$38=\"Nacional\",DIVISA=\"USD\"),AND($G$38=\"Nacional\",DIVISA=\"EUR\")),\".: Divisa incorrecta para tipo de comisión :.\",\"\"))),\".: Favor de llenar los espacios indicados en esta sección :.\")","v":".: El importe solicitado es mayor al Importe máximo autorizado :."}]
[]
[null,null,null,null,"Tipo de viáticos",null,{"$f":"IF('1.- Oficio de comision'!G50=\"\",\"\",'1.- Oficio de comision'!G50)","v":""},null,null,"Homologar tarifa",{"$f":"IF('1.- Oficio de comision'!K50=\"\",\"\",'1.- Oficio de comision'!K50)","v":""},null,null,"Nivel de homologación",{"$f":"IF('1.- Oficio de comision'!O50=\"\",\"\",'1.- Oficio de comision'!O50)","v":""},null,null,null,null,false]
[]
[null,null,null,null,"Motivo de homologación",null,{"$f":"IF('1.- Oficio de comision'!G52=\"\",\"\",'1.- Oficio de comision'!G52)","v":""}]
[]
[null,null,null,null,"Días sin pernocta",null,{"$f":"IF('1.- Oficio de comision'!G54=\"\",\"\",'1.- Oficio de comision'!G54)","v":0},null,"Tarifa máxima",null,{"$f":"+IF(DIVISA=\"\",\"\",IF(DIVISA=\"MXN\",\"$\",DIVISA))","v":""},{"$f":"IF('1.- Oficio de comision'!L54=\"\",\"\",'1.- Oficio de comision'!L54)","v":0},"Importe máximo",null,{"$f":"+IF(DIVISA=\"\",\"\",IF(DIVISA=\"MXN\",\"$\",DIVISA))","v":""},{"$f":"IF('1.- Oficio de comision'!P54=\"\",\"\",'1.- Oficio de comision'!P54)","v":0}]
[]
[null,null,null,null,"Días con pernocta",null,{"$f":"IF('1.- Oficio de comision'!G56=\"\",\"\",'1.- Oficio de comision'!G56)","v":0},null,"Tarifa máxima",null,{"$f":"+IF(DIVISA=\"\",\"\",IF(DIVISA=\"MXN\",\"$\",DIVISA))","v":""},{"$f":"IF('1.- Oficio de comision'!L56=\"\",\"\",'1.- Oficio de comision'!L56)","v":0},"Importe máximo",null,{"$f":"+IF(DIVISA=\"\",\"\",IF(DIVISA=\"MXN\",\"$\",DIVISA))","v":""},{"$f":"IF('1.- Oficio de comision'!P56=\"\",\"\",'1.- Oficio de comision'!P56)","v":0}]
[]
[null,null,null,null,"Divisa",null,{"$f":"IF('1.- Oficio de comision'!G58=\"\",\"\",'1.- Oficio de comision'!G58)","v":""},null,"Importe máximo a solicitar",null,{"$f":"+IF(DIVISA=\"\",\"\",IF(DIVISA=\"MXN\",\"$\",DIVISA))","v":""},{"$f":"IF('1.- Oficio de comision'!L58=\"\",\"\",'1.- Oficio de comision'!L58)","v":0},"Importe anticipado solicitado",null,{"$f":"+IF(DIVISA=\"\",\"\",IF(DIVISA=\"MXN\",\"$\",DIVISA))","v":""},{"$f":"IF('1.- Oficio de comision'!P58=\"\",\"\",'1.- Oficio de comision'!P58)","v":""},null,null,{"$f":"+IF(P61=\"\",\"Indicar Importe a solicitar\",IF(P61>L61,\"Importe no válido\",\"\"))","v":"Indicar Importe a solicitar"}]
[]
[null,null,null,null,"Importe en letra a viaticar ",null,{"$f":"IF('1.- Oficio de comision'!G60=\"\",\"\",'1.- Oficio de comision'!G60)","v":"Favor de indicar divisa"}]
[]
[null,null,null,null,"Observaciones",null,{"$f":"IF('1.- Oficio de comision'!G62=\"\",\"\",'1.- Oficio de comision'!G62)","v":""}]
[]
[]
[null,null,null,null,"Datos de la Unidad Administrativa responsable del gasto",null,null,null,null,{"$f":"+IF(OR(G70=\"\",G72=\"\",G74=\"\"),\".: Favor de llenar los espacios indicados en esta sección :.\",\"\")","v":".: Favor de llenar los espacios indicados en esta sección :."}]
[]
[null,null,null,null,"Nombre  U. Administrativa",null,{"$f":"IF('1.- Oficio de comision'!G67=\"\",\"\",'1.- Oficio de comision'!G67)","v":""},null,null,null,null,null,null,"Clave  U. Administrativa",{"$f":"IF('1.- Oficio de comision'!O67=\"\",\"\",'1.- Oficio de comision'!O67)","v":""}]
[]
[null,null,null,null,"Programa presupuestal",null,{"$f":"IF('1.- Oficio de comision'!G69=\"\",\"\",'1.- Oficio de comision'!G69)","v":""},null,null,null,null,null,null,"Clave P. Presupuestal",{"$f":"IF('1.- Oficio de comision'!O69=\"\",\"\",'1.- Oficio de comision'!O69)","v":""}]
[]
[null,null,null,null,"Proyecto estratégico",null,{"$f":"IF('1.- Oficio de comision'!G71=\"\",\"\",'1.- Oficio de comision'!G71)","v":""},null,null,null,null,null,null,"Clave P. Estratégico",{"$f":"IF('1.- Oficio de comision'!O71=\"\",\"\",'1.- Oficio de comision'!O71)","v":""}]
[]
[null,null,null,null,"Observaciones",null,{"$f":"IF('1.- Oficio de comision'!G73=\"\",\"\",'1.- Oficio de comision'!G73)","v":""}]
[]
[]
[null,null,null,null,"Sin otro particular, reciba un cordial saludo."]
[]
[null,null,null,null,"Atentamente",null,null,null,null,null,null,"Vo. Bo."]
[]
[null,null,null,null,{"$f":"IF('1.- Oficio de comision'!E80=\"\",\"\",'1.- Oficio de comision'!E80)","v":""},null,null,null,null,null,null,{"$f":"IF('1.- Oficio de comision'!L80=\"\",\"\",'1.- Oficio de comision'!L80)","v":"Mtra. Mónica López Sandoval"}]
[null,null,null,null,{"$f":"IF('1.- Oficio de comision'!E81=\"\",\"\",'1.- Oficio de comision'!E81)","v":"Jefe de Ponencia"},null,null,null,null,null,null,{"$f":"IF('1.- Oficio de comision'!L81=\"\",\"\",'1.- Oficio de comision'!L81)","v":"Directora General de Administración"}]
[null,"C.c.p.",null,null,{"$f":"IF('1.- Oficio de comision'!E82=\"\",\"\",'1.- Oficio de comision'!E82)","v":""}]
[null,"C.c.p.",null,null,{"$f":"IF('1.- Oficio de comision'!E83=\"\",\"\",'1.- Oficio de comision'!E83)","v":""}]
[null,"C.c.p.",null,null,{"$f":"IF('1.- Oficio de comision'!E84=\"\",\"\",'1.- Oficio de comision'!E84)","v":""}]
[null,"C.c.p.",null,null,{"$f":"IF('1.- Oficio de comision'!E85=\"\",\"\",'1.- Oficio de comision'!E85)","v":""}]
[null,"C.c.p.",null,null,{"$f":"IF('1.- Oficio de comision'!E86=\"\",\"\",'1.- Oficio de comision'!E86)","v":""}]

{"sheet":"Matriz","index":4,"n_rows":280,"n_cols":8,"rows_kept":280,"cut":false,"hidden":true,"merged":[]}
["UA","PP","PE","PRS",null,"PP","PE","PRS"]
["Dirección General de Administración - DRM","Actividades de Apoyo Administrativo"," Atención de los requerimientos de recursos humanos, financieros y administrativos que realizan las Unidades Administrativas del INAI, para el desarrollo de sus funciones.","GOA01.03",null,{"$f":"_xlfn._xlws.SORT(_xlfn.UNIQUE(_xlfn._xlws.FILTER(Tabla1[PP],Tabla1[UA]=UA,\"\"),0,0))","v":""},{"$f":"_xlfn._xlws.SORT(_xlfn.UNIQUE(_xlfn._xlws.FILTER(Tabla1[PE],(Tabla1[UA]=UA)*(Tabla1[PP]=PP),\"\"),0,0))","v":""},{"$f":"_xlfn._xlws.SORT(_xlfn.UNIQUE(_xlfn._xlws.FILTER(Tabla1[PRS],(Tabla1[UA]=UA)*(Tabla1[PP]=PP)*(Tabla1[PE]=PE),\"\"),0,0))","v":""}]
["Dirección General de Administración - DRM","Actividades de Apoyo Administrativo","AAM - Atención de los requerimientos de recursos humanos, financieros y administrativos que realizan las Unidades Administrativas del INAI, para el desarrollo de sus funciones.","GOA01.04"]
["Dirección General de Administración - DRM","Actividades de Apoyo Administrativo","BLIC - Atención de los requerimientos de recursos humanos, financieros y administrativos que realizan las Unidades Administrativas del INAI, para el desarrollo de sus funciones.","GOA01.05"]
["Dirección General de Administración - DRM","Actividades de Apoyo Administrativo","NJRV - Atención de los requerimientos de recursos humanos, financieros y administrativos que realizan las Unidades Administrativas del INAI, para el desarrollo de sus funciones.","GOA01.06"]
["Dirección General de Administración - DRM","Actividades de Apoyo Administrativo","JRV - Atención de los requerimientos de recursos humanos, financieros y administrativos que realizan las Unidades Administrativas del INAI, para el desarrollo de sus funciones.","GOA01.07"]
["Dirección General de Asuntos Internacionales","Promover el pleno ejercicio de los derechos de acceso a la información pública y de protección de datos personales.","Trabajo en redes para cumplimiento de la Agenda Internacional.","GOA01.01"]
["Dirección General de Asuntos Internacionales","Promover el pleno ejercicio de los derechos de acceso a la información pública y de protección de datos personales.","Trabajo en redes para cumplimiento de la Agenda Internacional.","GOA01.02"]
["Dirección General de Asuntos Internacionales","Promover el pleno ejercicio de los derechos de acceso a la información pública y de protección de datos personales.","Trabajo en redes para cumplimiento de la Agenda Internacional.","GOA01.03"]
["Dirección General de Asuntos Internacionales","Promover el pleno ejercicio de los derechos de acceso a la información pública y de protección de datos personales.","Trabajo en redes para cumplimiento de la Agenda Internacional.","GOA01.04"]
["Dirección General de Asuntos Internacionales","Promover el pleno ejercicio de los derechos de acceso a la información pública y de protección de datos personales.","Coordinación de participación de personas servidoras públicas del INAI en foros internacionales y de eventos con componente internacional","GOA02.01"]
["Dirección General de Asuntos Internacionales","Promover el pleno ejercicio de los derechos de acceso a la información pública y de protección de datos personales.","Coordinación de participación de personas servidoras públicas del INAI en foros internacionales y de eventos con componente internacional","GOA02.02"]
["Dirección General de Asuntos Internacionales","Promover el pleno ejercicio de los derechos de acceso a la información pública y de protección de datos personales.","Coordinación de participación de personas servidoras públicas del INAI en foros internacionales y de eventos con componente internacional","GOA02.03"]
["Dirección General de Asuntos Internacionales","Promover el pleno ejercicio de los derechos de acceso a la información pública y de protección de datos personales.","Coordinación de participación de personas servidoras públicas del INAI en foros internacionales y de eventos con componente internacional","GOA02.04"]
["Dirección General de Asuntos Internacionales","Promover el pleno ejercicio de los derechos de acceso a la información pública y de protección de datos personales.","Coordinación de participación de personas servidoras públicas del INAI en foros internacionales y de eventos con componente internacional","GOA02.05"]
["Dirección General de Asuntos Internacionales","Promover el pleno ejercicio de los derechos de acceso a la información pública y de protección de datos personales.","Coordinación de participación de personas servidoras públicas del INAI en foros internacionales y de eventos con componente internacional","GOA02.06"]
["Dirección General de Asuntos Internacionales","Promover el pleno ejercicio de los derechos de acceso a la información pública y de protección de datos personales.","Desahogo de esquemas de asistencia técnica. ","GOA03.01"]
["Dirección General de Asuntos Jurídicos","Desempeño organizacional y modelo institucional orientado a resultados con enfoque de derechos humanos y perspectiva de género.","Atención de juicios que son notificados por el Poder Judicial de la Federación, en los que es parte el Instituto.","GOA01.01"]
["Dirección General de Asuntos Jurídicos","Desempeño organizacional y modelo institucional orientado a resultados con enfoque de derechos humanos y perspectiva de género.","Atención a consultas y asesorías realizadas por unidades administrativas del Instituto (incluyendo convenios, procesos de licitación, la consultoría jurídica de despachos externos especializados, y demás relacionados). ","GOA02.01"]
["Dirección General de Asuntos Jurídicos","Desempeño organizacional y modelo institucional orientado a resultados con enfoque de derechos humanos y perspectiva de género.","Atención de asuntos que requieren compilación, sistematización y publicación en el Diario Oficial de la Federación.","GOA03.01"]
["Dirección General de Asuntos Jurídicos","Desempeño organizacional y modelo institucional orientado a resultados con enfoque de derechos humanos y perspectiva de género.","Atención a las solicitudes de acceso a lainformación y derechos de Acceso, Rectificación, Cancelación, Oposición y Portabilidad de datos personales. ","GOA04.01"]
["Dirección General de Asuntos Jurídicos","Desempeño organizacional y modelo institucional orientado a resultados con enfoque de derechos humanos y perspectiva de género.","Acciones para observar obligaciones y principios en materia de transparencia, acceso a la información y protección de datos personales. ","GOA05.01"]
["Dirección General de Atención al Pleno","Garantizar el óptimo cumplimiento de los derechos de acceso a la información pública y la protección de datos personales.","Notificación de las resoluciones a medios de impugnación en materia de acceso a la información y protección de datos personales en posesión de sujetos obligados","GOA02.01"]
["Dirección General de Atención al Pleno","Garantizar el óptimo cumplimiento de los derechos de acceso a la información pública y la protección de datos personales.","Notificación de las resoluciones a medios de impugnación en materia de acceso a la información y protección de datos personales en posesión de sujetos obligados","GOA02.02"]
["Dirección General de Atención al Pleno","Garantizar el óptimo cumplimiento de los derechos de acceso a la información pública y la protección de datos personales.","Notificación de las resoluciones a medios de impugnación en materia de acceso a la información y protección de datos personales en posesión de sujetos obligados","GOA02.06"]
["Dirección General de Atención al Pleno","Garantizar el óptimo cumplimiento de los derechos de acceso a la información pública y la protección de datos personales.","Difusión de las sesiones públicas que lleva a cabo el Pleno del Instituto","GOA03.01"]
["Dirección General de Atención al Pleno","Garantizar el óptimo cumplimiento de los derechos de acceso a la información pública y la protección de datos personales.","Difusión de las sesiones públicas que lleva a cabo el Pleno del Instituto","GOA03.02"]
["Dirección General de Atención al Pleno","Garantizar el óptimo cumplimiento de los derechos de acceso a la información pública y la protección de datos personales.","Difusión de las sesiones públicas que lleva a cabo el Pleno del Instituto","GOA03.03"]
["Dirección General de Capacitación","Promover el pleno ejercicio de los derechos de acceso a la información pública y de protección de datos personales.","Realización de acciones de capacitación básica y especializada, presenciales y/o en línea síncrona con enfoque de derechos humanos, perspectiva de género y el uso del lenguaje incluyente, en materia de protección de datos personales y temas relacionados d","GOA01.01"]
["Dirección General de Capacitación","Promover el pleno ejercicio de los derechos de acceso a la información pública y de protección de datos personales.","Realización de acciones de capacitación básica y especializada, presenciales y/o en línea síncrona con enfoque de derechos humanos, perspectiva de género y el uso del lenguaje incluyente, en materia de protección de datos personales y temas relacionados d","GOA01.02"]
["Dirección General de Capacitación","Promover el pleno ejercicio de los derechos de acceso a la información pública y de protección de datos personales.","Realización de acciones de capacitación básica y especializada, presenciales y/o en línea síncrona con enfoque de derechos humanos, perspectiva de género y el uso del lenguaje incluyente, en materia de protección de datos personales y temas relacionados d","GOA01.03"]
["Dirección General de Capacitación","Promover el pleno ejercicio de los derechos de acceso a la información pública y de protección de datos personales.","Realización de acciones de capacitación básica y especializada, presenciales y/o en línea síncrona con enfoque de derechos humanos, perspectiva de género y el uso del lenguaje incluyente, en materia de protección de datos personales y temas relacionados d","GOA01.04"]
["Dirección General de Capacitación","Promover el pleno ejercicio de los derechos de acceso a la información pública y de protección de datos personales.","Realización de acciones de capacitación básica, especializada y talleres de la Red en el ámbito Federal, considerando el enfoque de derechos humanos y perspectiva de género, cuando el caso lo amerite, en la modalidad presencial y/o en línea síncrona en ma","GOA02.01"]
["Dirección General de Capacitación","Promover el pleno ejercicio de los derechos de acceso a la información pública y de protección de datos personales.","Realización de acciones de capacitación básica, especializada y talleres de la Red en el ámbito Federal, considerando el enfoque de derechos humanos y perspectiva de género, cuando el caso lo amerite, en la modalidad presencial y/o en línea síncrona en ma","GOA02.02"]
["Dirección General de Capacitación","Promover el pleno ejercicio de los derechos de acceso a la información pública y de protección de datos personales.","Realización de acciones de capacitación básica, especializada y talleres de la Red en el ámbito Federal, considerando el enfoque de derechos humanos y perspectiva de género, cuando el caso lo amerite, en la modalidad presencial y/o en línea síncrona en ma","GOA02.03"]
["Dirección General de Capacitación","Promover el pleno ejercicio de los derechos de acceso a la información pública y de protección de datos personales.","Realización de acciones de capacitación básica, especializada y talleres de la Red en el ámbito Federal, considerando el enfoque de derechos humanos y perspectiva de género, cuando el caso lo amerite, en la modalidad presencial y/o en línea síncrona en ma","GOA02.04"]
["Dirección General de Capacitación","Promover el pleno ejercicio de los derechos de acceso a la información pública y de protección de datos personales.","Realización de acciones de capacitación básica, especializada y talleres de la Red en el ámbito Federal, considerando el enfoque de derechos humanos y perspectiva de género, cuando el caso lo amerite, en la modalidad presencial y/o en línea síncrona en ma","GOA02.05"]
["Dirección General de Capacitación","Promover el pleno ejercicio de los derechos de acceso a la información pública y de protección de datos personales.","Realización de acciones de capacitación básica, especializada y talleres de la Red en el ámbito Federal, considerando el enfoque de derechos humanos y perspectiva de género, cuando el caso lo amerite, en la modalidad presencial y/o en línea síncrona en ma","GOA02.06"]
["Dirección General de Capacitación","Promover el pleno ejercicio de los derechos de acceso a la información pública y de protección de datos personales.","Realización de acciones de capacitación, considerando el enfoque de derechos humanos y perspectiva de género, cuando el caso lo amerite, impartidas en los estados en el marco del Sistema Nacional de Transparencia.","GOA03.01"]
["Dirección General de Capacitación","Promover el pleno ejercicio de los derechos de acceso a la información pública y de protección de datos personales.","Realización de acciones de capacitación, considerando el enfoque de derechos humanos y perspectiva de género, cuando el caso lo amerite, impartidas en los estados en el marco del Sistema Nacional de Transparencia.","GOA03.02"]
["Dirección General de Capacitación","Promover el pleno ejercicio de los derechos de acceso a la información pública y de protección de datos personales.","Realización de acciones de capacitación, considerando el enfoque de derechos humanos y perspectiva de género, cuando el caso lo amerite, impartidas en los estados en el marco del Sistema Nacional de Transparencia.","GOA03.03"]
["Dirección General de Capacitación","Promover el pleno ejercicio de los derechos de acceso a la información pública y de protección de datos personales.","Actualización y desarrollo de herramientas tecnológicas y cursos en línea síncrona y asíncrona, con enfoque de Derechos Humanos y perspectiva de género, cuando el caso lo amerite, para el fortalecimiento de las acciones de capacitación.","GOA04.01"]
["Dirección General de Capacitación","Promover el pleno ejercicio de los derechos de acceso a la información pública y de protección de datos personales.","Actualización y desarrollo de herramientas tecnológicas y cursos en línea síncrona y asíncrona, con enfoque de Derechos Humanos y perspectiva de género, cuando el caso lo amerite, para el fortalecimiento de las acciones de capacitación.","GOA04.02"]
["Dirección General de Capacitación","Promover el pleno ejercicio de los derechos de acceso a la información pública y de protección de datos personales.","Implementación, desarrollo y promoción de acciones de formación educativa con enfoque de derechos humanos y perspectiva de género en materia de los derechos de acceso a la información, protección de datos personales y temas transversales.","GOA05.01"]
["Dirección General de Capacitación","Promover el pleno ejercicio de los derechos de acceso a la información pública y de protección de datos personales.","Implementación, desarrollo y promoción de acciones de formación educativa con enfoque de derechos humanos y perspectiva de género en materia de los derechos de acceso a la información, protección de datos personales y temas transversales.","GOA05.02"]
["Dirección General de Capacitación","Promover el pleno ejercicio de los derechos de acceso a la información pública y de protección de datos personales.","Implementación, desarrollo y promoción de acciones de formación educativa con enfoque de derechos humanos y perspectiva de género en materia de los derechos de acceso a la información, protección de datos personales y temas transversales.","GOA05.03"]
["Dirección General de Capacitación","Promover el pleno ejercicio de los derechos de acceso a la información pública y de protección de datos personales.","Implementación, desarrollo y promoción de acciones de formación educativa con enfoque de derechos humanos y perspectiva de género en materia de los derechos de acceso a la información, protección de datos personales y temas transversales.","GOA05.04"]
["Dirección General de Capacitación","Promover el pleno ejercicio de los derechos de acceso a la información pública y de protección de datos personales.","Implementación, desarrollo y promoción de acciones de formación educativa con enfoque de derechos humanos y perspectiva de género en materia de los derechos de acceso a la información, protección de datos personales y temas transversales.","GOA05.05"]
["Dirección General de Capacitación","Promover el pleno ejercicio de los derechos de acceso a la información pública y de protección de datos personales.","Certificación de competencias a las personas que demuestren por medio de evidencias, que cuentan con los conocimientos, habilidades y destrezas necesarias para cumplir una función, todo lo anterior en torno a los estándares de competencia registrados por ","GOA07.01"]
["Dirección General de Comunicación Social y Difusión","Promover el pleno ejercicio de los derechos de acceso a la información pública y de protección de datos personales.","Ejecución de campaña institucional en medios para posicionar las atribuciones e identidad gráfica del Instituto.","GOA01.01"]
["Dirección General de Comunicación Social y Difusión","Promover el pleno ejercicio de los derechos de acceso a la información pública y de protección de datos personales.","Aplicación de instrumentos de investigación para conocer la percepción ciudadana y de los medios de comunicación acerca del quehacer y la identidad institucional, así como de los derechos tutelados por el INAI.","GOA02.01"]
["Dirección General de Comunicación Social y Difusión","Promover el pleno ejercicio de los derechos de acceso a la información pública y de protección de datos personales.","Producción de campañas de sensibilización de los derechos que tutela el Instituto contempladas en la Política General de Comunicación Social del año con lenguaje incluyente y no sexista.","GOA03.01"]
["Dirección General de Comunicación Social y Difusión","Promover el pleno ejercicio de los derechos de acceso a la información pública y de protección de datos personales.","Producción de campañas de sensibilización de los derechos que tutela el Instituto contempladas en la Política General de Comunicación Social del año con lenguaje incluyente y no sexista.","GOA03.02"]
["Dirección General de Comunicación Social y Difusión","Promover el pleno ejercicio de los derechos de acceso a la información pública y de protección de datos personales.","Medición de impacto en los medios a partir de las diversas comunicaciones generadas por el Instituto.","GOA04.01"]
["Dirección General de Comunicación Social y Difusión","Promover el pleno ejercicio de los derechos de acceso a la información pública y de protección de datos personales.","Medición de impacto en los medios a partir de las diversas comunicaciones generadas por el Instituto.","GOA04.02"]
["Dirección General de Comunicación Social y Difusión","Promover el pleno ejercicio de los derechos de acceso a la información pública y de protección de datos personales.","Medición de impacto en los medios a partir de las diversas comunicaciones generadas por el Instituto.","GOA04.03"]
["Dirección General de Comunicación Social y Difusión","Promover el pleno ejercicio de los derechos de acceso a la información pública y de protección de datos personales.","Medición de impacto en los medios a partir de las diversas comunicaciones generadas por el Instituto.","GOA04.04"]
["Dirección General de Comunicación Social y Difusión","Promover el pleno ejercicio de los derechos de acceso a la información pública y de protección de datos personales.","Medición de impacto en los medios a partir de las diversas comunicaciones generadas por el Instituto.","GOA04.05"]
["Dirección General de Comunicación Social y Difusión","Promover el pleno ejercicio de los derechos de acceso a la información pública y de protección de datos personales.","Medición de impacto en los medios a partir de las diversas comunicaciones generadas por el Instituto.","GOA04.06"]
["Dirección General de Comunicación Social y Difusión","Promover el pleno ejercicio de los derechos de acceso a la información pública y de protección de datos personales.","Medición de impacto en los medios a partir de las diversas comunicaciones generadas por el Instituto.","GOA04.07"]
["Dirección General de Comunicación Social y Difusión","Promover el pleno ejercicio de los derechos de acceso a la información pública y de protección de datos personales.","Medición de impacto en los medios a partir de las diversas comunicaciones generadas por el Instituto.","GOA04.08"]
["Dirección General de Cumplimientos y Responsabilidades","Garantizar el óptimo cumplimiento de los derechos de acceso a la información pública y la protección de datos personales.","Sustanciación de los procedimientos sancionatorios en contra de presuntos infractores de sujetos obligados que no cuenten con el carácter de personas servidoras públicas ni sean partidos políticos.","GOA04.01"]
["Dirección General de Cumplimientos y Responsabilidades","Garantizar el óptimo cumplimiento de los derechos de acceso a la información pública y la protección de datos personales.","Sustanciación de los procedimientos sancionatorios en contra de presuntos infractores de sujetos obligados que no cuenten con el carácter de personas servidoras públicas ni sean partidos políticos.","GOA04.02"]
["Dirección General de Cumplimientos y Responsabilidades","Garantizar el óptimo cumplimiento de los derechos de acceso a la información pública y la protección de datos personales.","Sustanciación de los procedimientos sancionatorios en contra de presuntos infractores de sujetos obligados que no cuenten con el carácter de personas servidoras públicas ni sean partidos políticos.","GOA04.03"]
["Dirección General de Cumplimientos y Responsabilidades","Garantizar el óptimo cumplimiento de los derechos de acceso a la información pública y la protección de datos personales.","Sustanciación de los procedimientos sancionatorios en contra de presuntos infractores de sujetos obligados que no cuenten con el carácter de personas servidoras públicas ni sean partidos políticos.","GOA04.04"]
["Dirección General de Cumplimientos y Responsabilidades","Garantizar el óptimo cumplimiento de los derechos de acceso a la información pública y la protección de datos personales.","Sustanciación de los procedimientos sancionatorios en contra de presuntos infractores de sujetos obligados que no cuenten con el carácter de personas servidoras públicas ni sean partidos políticos.","GOA04.05"]
["Dirección General de Cumplimientos y Responsabilidades","Garantizar el óptimo cumplimiento de los derechos de acceso a la información pública y la protección de datos personales.","Sustanciación de los procedimientos sancionatorios en contra de presuntos infractores de sujetos obligados que no cuenten con el carácter de personas servidoras públicas ni sean partidos políticos.","GOA04.06"]
["Dirección General de Cumplimientos y Responsabilidades","Garantizar el óptimo cumplimiento de los derechos de acceso a la información pública y la protección de datos personales.","Sustanciación de los procedimientos sancionatorios en contra de presuntos infractores de sujetos obligados que no cuenten con el carácter de personas servidoras públicas ni sean partidos políticos.","GOA04.07"]
["Dirección General de Cumplimientos y Responsabilidades","Garantizar el óptimo cumplimiento de los derechos de acceso a la información pública y la protección de datos personales.","Sustanciación de los procedimientos sancionatorios en contra de presuntos infractores de sujetos obligados que no cuenten con el carácter de personas servidoras públicas ni sean partidos políticos.","GOA04.09"]
["Dirección General de Enlace con Autoridades Laborales, Sindicatos, Universidades, Personas Físicas y Morales","Garantizar el óptimo cumplimiento de los derechos de acceso a la información pública y la protección de datos personales.","Actualización permanente de sujetos obligados (Autoridades Laborales, Sindicatos, Universidades, Personas Físicas y Morales), que causen alta, baja o deban modificarse en el padrón de sujetos obligados del ámbito federal.","GOA02.01"]
["Dirección General de Enlace con Autoridades Laborales, Sindicatos, Universidades, Personas Físicas y Morales","Garantizar el óptimo cumplimiento de los derechos de acceso a la información pública y la protección de datos personales.","Actualización del Padrón de Personas Físicas y Morales que reciben recursos públicos o ejercen actos de autoridad.","GOA03.01"]
["Dirección General de Enlace con Autoridades Laborales, Sindicatos, Universidades, Personas Físicas y Morales","Garantizar el óptimo cumplimiento de los derechos de acceso a la información pública y la protección de datos personales.","Realización de actividades de acompañamiento para el cumplimiento de las obligaciones de transparencia a los sujetos obligados de los sectores de Autoridades Laborales, Sindicatos Universidades, Personas Físicas y Morales, considerando el enfoque de derec","GOA04.01"]
["Dirección General de Enlace con Autoridades Laborales, Sindicatos, Universidades, Personas Físicas y Morales","Garantizar el óptimo cumplimiento de los derechos de acceso a la información pública y la protección de datos personales.","Realización de actividades de acompañamiento para el cumplimiento de las obligaciones de transparencia a los sujetos obligados de los sectores de Autoridades Laborales, Sindicatos Universidades, Personas Físicas y Morales, considerando el enfoque de derec","GOA04.02"]
["Dirección General de Enlace con Autoridades Laborales, Sindicatos, Universidades, Personas Físicas y Morales","Garantizar el óptimo cumplimiento de los derechos de acceso a la información pública y la protección de datos personales.","Realización de actividades específicas para promover una cultura de transparencia en Autoridades Laborales, Sindicatos, Universidades, Personas Físicas y Morales, considerando el enfoque de derechos humanos y la perspectiva de género.","GOA05.01"]
["Dirección General de Enlace con la Administración Pública Centralizada y Tribunales Administrativos","Garantizar el óptimo cumplimiento de los derechos de acceso a la información pública y la protección de datos personales.","GOA01.01.- 1.1 Verificación de cumplimiento a las dimensiones de portales de obligaciones de transparencia, análisis de los atributos de la respuesta a las solicitudes de acceso a la información y capacidades de las Unidades de Transparencia.","GOA01.01"]
["Dirección General de Enlace con la Administración Pública Centralizada y Tribunales Administrativos","Garantizar el óptimo cumplimiento de los derechos de acceso a la información pública y la protección de datos personales.","GOA05.01.- 2.2 Realización de actividades especificas para promover la cultura de transparencia con perspectiva de género y lenguaje incluyente en la Administración Pública Centralizada y Tribunales Administrativos","GOA05.01"]
["Dirección General de Enlace con los Poderes Legislativo y Judicial","Garantizar el óptimo cumplimiento de los derechos de acceso a la información pública y la protección de datos personales.","Verificación de cumplimiento a las dimensiones de portales de obligaciones de transparencia, análisis de los atributos de la respuesta a las solicitudes de acceso a la información y capacidades de las Unidades de Transparencia; considerando el enfoque de ","GOA01.01"]
["Dirección General de Enlace con los Poderes Legislativo y Judicial","Garantizar el óptimo cumplimiento de los derechos de acceso a la información pública y la protección de datos personales.","Realización de actividades especificas para promover la cultura de transparencia en los sujetos obligados de los poderes legislativo y judicial, considerando el enfoque de derechos humanos y la perspectiva de género.","GOA05.01"]
["Dirección General de Enlace con los Poderes Legislativo y Judicial","Garantizar el óptimo cumplimiento de los derechos de acceso a la información pública y la protección de datos personales.","Realización de actividades especificas para promover la cultura de transparencia en los sujetos obligados de los poderes legislativo y judicial, considerando el enfoque de derechos humanos y la perspectiva de género.","GOA05.02"]
["Dirección General de Enlace con los Poderes Legislativo y Judicial","Garantizar el óptimo cumplimiento de los derechos de acceso a la información pública y la protección de datos personales.","Realización de actividades en el marco de un Observatorio especializado que considerará como parte de su objeto de estudio y resultados, en su caso, el enfoque de derechos humanos y la perspectiva de género.","GOA06.01"]
["Dirección General de Enlace con Organismos Públicos Autónomos, Empresas Paraestatales, Entidades Financieras, Fondos y Fideicomisos","Garantizar el óptimo cumplimiento de los derechos de acceso a la información pública y la protección de datos personales.","Verificación del cumplimiento de los criterios de las obligaciones de transparencia de los sujetos obligados de los sectores organismos públicos autónomos, empresas paraestatales, entidades financieras, fondos y fideicomisos","GOA01.01"]
["Dirección General de Enlace con Organismos Públicos Autónomos, Empresas Paraestatales, Entidades Financieras, Fondos y Fideicomisos","Garantizar el óptimo cumplimiento de los derechos de acceso a la información pública y la protección de datos personales.","Realización de actividades especificas para promover la cultura de transparencia en los sujetos obligados de los sectores organismos públicos autónomos, empresas paraestatales, entidades financieras, fondos y fideicomisos","GOA09.01"]
["Dirección General de Enlace con Organismos Públicos Autónomos, Empresas Paraestatales, Entidades Financieras, Fondos y Fideicomisos","Garantizar el óptimo cumplimiento de los derechos de acceso a la información pública y la protección de datos personales.","Impartición de asesorías especializadas a los SO de los sectores organismos públicos autónomos empresas paraestatales entidades financieras fondos y fideicomisos para el cumplimiento de sus obligaciones de transparencia y acceso a la información","GOA10.01"]
["Dirección General de Enlace con Organismos Públicos Autónomos, Empresas Paraestatales, Entidades Financieras, Fondos y Fideicomisos","Garantizar el óptimo cumplimiento de los derechos de acceso a la información pública y la protección de datos personales.","Impartición de asesorías especializadas a los SO de los sectores organismos públicos autónomos empresas paraestatales entidades financieras fondos y fideicomisos para el cumplimiento de sus obligaciones de transparencia y acceso a la información","GOA10.02"]
["Dirección General de Enlace con Partidos Políticos, Organismos Electorales y Descentralizados","Garantizar el óptimo cumplimiento de los derechos de acceso a la información pública y la protección de datos personales.","Verificación de cumplimiento a las dimensiones de portales de obligaciones de transparencia, análisis de los atributos de la respuesta a las solicitudes de acceso a la información y capacidades de las Unidades de Transparencia; considerando el enfoque de ","GOA01.01"]
["Dirección General de Enlace con Partidos Políticos, Organismos Electorales y Descentralizados","Garantizar el óptimo cumplimiento de los derechos de acceso a la información pública y la protección de datos personales.","Realización de actividades de acompañamiento para el cumplimiento de la obligaciones de transparencia en los sujetos obligados de los Partidos Políticos, Organismos Descentralizados y el Instituto Nacional Electoral, considerando el enfoque de derechos hu","GOA04.01"]
["Dirección General de Enlace con Partidos Políticos, Organismos Electorales y Descentralizados","Garantizar el óptimo cumplimiento de los derechos de acceso a la información pública y la protección de datos personales.","Realización de actividades de acompañamiento para el cumplimiento de la obligaciones de transparencia en los sujetos obligados de los Partidos Políticos, Organismos Descentralizados y el Instituto Nacional Electoral, considerando el enfoque de derechos hu","GOA04.02"]
["Dirección General de Enlace con Partidos Políticos, Organismos Electorales y Descentralizados","Garantizar el óptimo cumplimiento de los derechos de acceso a la información pública y la protección de datos personales.","Realización de actividades específicas para promover la cultura de transparencia, considerando el enfoque de derechos humanos y la perspectiva de género.","GOA05.01"]
["Dirección General de Evaluación","Garantizar el óptimo cumplimiento de los derechos de acceso a la información pública y la protección de datos personales.","Dudas o consultas que formulan los organismos garantes respecto al cumplimiento de las obligaciones que emanan de la LGTAIP atendidas","GOA08.01"]
["Dirección General de Evaluación, Investigación y Verificación del Sector Público","Garantizar el óptimo cumplimiento de los derechos de acceso a la información pública y la protección de datos personales.","Realización de notificaciones.","GOA01.01"]
["Dirección General de Evaluación, Investigación y Verificación del Sector Público","Garantizar el óptimo cumplimiento de los derechos de acceso a la información pública y la protección de datos personales.","Realización de notificaciones.","GOA01.02"]
["Dirección General de Evaluación, Investigación y Verificación del Sector Público","Garantizar el óptimo cumplimiento de los derechos de acceso a la información pública y la protección de datos personales.","Realización de notificaciones.","GOA01.03"]
["Dirección General de Evaluación, Investigación y Verificación del Sector Público","Garantizar el óptimo cumplimiento de los derechos de acceso a la información pública y la protección de datos personales.","Realización de notificaciones.","GOA01.04"]
["Dirección General de Evaluación, Investigación y Verificación del Sector Público","Garantizar el óptimo cumplimiento de los derechos de acceso a la información pública y la protección de datos personales.","Atención de asesorías técnicas, privilegiando el enfoque de derechos humanos.","GOA02.01"]
["Dirección General de Evaluación, Investigación y Verificación del Sector Público","Garantizar el óptimo cumplimiento de los derechos de acceso a la información pública y la protección de datos personales.","Atención de asesorías técnicas, privilegiando el enfoque de derechos humanos.","GOA02.02"]
["Dirección General de Evaluación, Investigación y Verificación del Sector Público","Garantizar el óptimo cumplimiento de los derechos de acceso a la información pública y la protección de datos personales.","Atención de asesorías técnicas, privilegiando el enfoque de derechos humanos.","GOA02.03"]
["Dirección General de Evaluación, Investigación y Verificación del Sector Público","Garantizar el óptimo cumplimiento de los derechos de acceso a la información pública y la protección de datos personales.","Atención de asesorías técnicas, privilegiando el enfoque de derechos humanos.","GOA02.04"]
["Dirección General de Evaluación, Investigación y Verificación del Sector Público","Garantizar el óptimo cumplimiento de los derechos de acceso a la información pública y la protección de datos personales.","Elaboración del Programa de Evaluación Anual, considerando un enfoque de derechos humanos.","GOA03.01"]
["Dirección General de Gestión de Información y Estudios","Promover el pleno ejercicio de los derechos de acceso a la información pública y de protección de datos personales.","Organización y participación en foros y eventos de gestión documental y archivos, en su caso, con perspectiva de género.","GOA01.01"]
["Dirección General de Gestión de Información y Estudios","Promover el pleno ejercicio de los derechos de acceso a la información pública y de protección de datos personales.","Organización y participación en foros y eventos de gestión documental y archivos, en su caso, con perspectiva de género.","GOA01.02"]
["Dirección General de Gestión de Información y Estudios","Promover el pleno ejercicio de los derechos de acceso a la información pública y de protección de datos personales.","Organización y participación en foros y eventos de gestión documental y archivos, en su caso, con perspectiva de género.","GOA01.03"]
["Dirección General de Gestión de Información y Estudios","Promover el pleno ejercicio de los derechos de acceso a la información pública y de protección de datos personales.","Organización y participación en foros y eventos de gestión documental y archivos, en su caso, con perspectiva de género.","GOA01.04"]
["Dirección General de Gestión de Información y Estudios","Promover el pleno ejercicio de los derechos de acceso a la información pública y de protección de datos personales.","Organización y participación en foros y eventos de gestión documental y archivos, en su caso, con perspectiva de género.","GOA01.05"]
["Dirección General de Gestión de Información y Estudios","Promover el pleno ejercicio de los derechos de acceso a la información pública y de protección de datos personales.","Organización y participación en foros y eventos de gestión documental y archivos, en su caso, con perspectiva de género.","GOA01.06"]
["Dirección General de Gestión de Información y Estudios","Promover el pleno ejercicio de los derechos de acceso a la información pública y de protección de datos personales.","Organización y participación en foros y eventos de gestión documental y archivos, en su caso, con perspectiva de género.","GOA01.07"]
["Dirección General de Gestión de Información y Estudios","Promover el pleno ejercicio de los derechos de acceso a la información pública y de protección de datos personales.","Realización de actividades derivadas de las adhesiones, colaboraciones  y convenios establecidos entre el INAI y organismos nacionales e internacionales, e instituciones académicas en el ámbito de la gestión documental y archivos, y cuando así se requiera","GOA02.01"]
["Dirección General de Gestión de Información y Estudios","Promover el pleno ejercicio de los derechos de acceso a la información pública y de protección de datos personales.","Realización de actividades derivadas de las adhesiones, colaboraciones  y convenios establecidos entre el INAI y organismos nacionales e internacionales, e instituciones académicas en el ámbito de la gestión documental y archivos, y cuando así se requiera","GOA02.02"]
["Dirección General de Gestión de Información y Estudios","Promover el pleno ejercicio de los derechos de acceso a la información pública y de protección de datos personales.","Realización de actividades derivadas de las adhesiones, colaboraciones  y convenios establecidos entre el INAI y organismos nacionales e internacionales, e instituciones académicas en el ámbito de la gestión documental y archivos, y cuando así se requiera","GOA02.03"]
["Dirección General de Gestión de Información y Estudios","Promover el pleno ejercicio de los derechos de acceso a la información pública y de protección de datos personales.","Realización de actividades derivadas de la Ley General de Archivos hacia los organismos garantes estatales y sujetos obligados.","GOA03.01"]
["Dirección General de Gestión de Información y Estudios","Promover el pleno ejercicio de los derechos de acceso a la información pública y de protección de datos personales.","Realización de actividades derivadas de la Ley General de Archivos hacia los organismos garantes estatales y sujetos obligados.","GOA03.02"]
["Dirección General de Gestión de Información y Estudios","Promover el pleno ejercicio de los derechos de acceso a la información pública y de protección de datos personales.","Realización de actividades derivadas de la Ley General de Archivos hacia los organismos garantes estatales y sujetos obligados.","GOA03.03"]
["Dirección General de Gestión de Información y Estudios","Promover el pleno ejercicio de los derechos de acceso a la información pública y de protección de datos personales.","Realización de actividades derivadas de la Ley General de Archivos hacia los organismos garantes estatales y sujetos obligados.","GOA03.04"]
["Dirección General de Gestión de Información y Estudios","Promover el pleno ejercicio de los derechos de acceso a la información pública y de protección de datos personales.","Realización de actividades derivadas de la Ley General de Archivos hacia los organismos garantes estatales y sujetos obligados.","GOA03.05"]
["Dirección General de Gestión de Información y Estudios","Promover el pleno ejercicio de los derechos de acceso a la información pública y de protección de datos personales.","Realización de actividades derivadas de la Ley General de Archivos hacia los organismos garantes estatales y sujetos obligados.","GOA03.06"]
["Dirección General de Gestión de Información y Estudios","Promover el pleno ejercicio de los derechos de acceso a la información pública y de protección de datos personales.","Organización y conservación de Archivos del INAI.","GOA04.01"]
["Dirección General de Gestión de Información y Estudios","Promover el pleno ejercicio de los derechos de acceso a la información pública y de protección de datos personales.","Organización y conservación de Archivos del INAI.","GOA04.02"]
["Dirección General de Gestión de Información y Estudios","Promover el pleno ejercicio de los derechos de acceso a la información pública y de protección de datos personales.","Organización y conservación de Archivos del INAI.","GOA04.03"]
["Dirección General de Gestión de Información y Estudios","Promover el pleno ejercicio de los derechos de acceso a la información pública y de protección de datos personales.","Organización y conservación de Archivos del INAI.","GOA04.04"]
["Dirección General de Gestión de Información y Estudios","Promover el pleno ejercicio de los derechos de acceso a la información pública y de protección de datos personales.","Organización y conservación de Archivos del INAI.","GOA04.05"]
["Dirección General de Gestión de Información y Estudios","Promover el pleno ejercicio de los derechos de acceso a la información pública y de protección de datos personales.","Organización y conservación de Archivos del INAI.","GOA04.06"]
["Dirección General de Gestión de Información y Estudios","Promover el pleno ejercicio de los derechos de acceso a la información pública y de protección de datos personales.","Realización de actividades para la  operación del Centro de Documentación Especializado en Transparencia, Acceso a la Información y Protección de Datos Personales.","GOA05.01"]
["Dirección General de Gestión de Información y Estudios","Promover el pleno ejercicio de los derechos de acceso a la información pública y de protección de datos personales.","Realización de actividades para la  operación del Centro de Documentación Especializado en Transparencia, Acceso a la Información y Protección de Datos Personales.","GOA05.02"]
["Dirección General de Gestión de Información y Estudios","Promover el pleno ejercicio de los derechos de acceso a la información pública y de protección de datos personales.","Realización de actividades para la  operación del Centro de Documentación Especializado en Transparencia, Acceso a la Información y Protección de Datos Personales.","GOA05.03"]
["Dirección General de Gobierno Abierto y Transparencia","Promover el pleno ejercicio de los derechos de acceso a la información pública y de protección de datos personales.","Sensibilización sobre Gobierno Abierto y Transparencia Proactiva","GOA01.01"]
["Dirección General de Gobierno Abierto y Transparencia","Promover el pleno ejercicio de los derechos de acceso a la información pública y de protección de datos personales.","Sensibilización sobre Gobierno Abierto y Transparencia Proactiva","GOA01.02"]
["Dirección General de Gobierno Abierto y Transparencia","Promover el pleno ejercicio de los derechos de acceso a la información pública y de protección de datos personales.","Sensibilización sobre Gobierno Abierto y Transparencia Proactiva","GOA01.03"]
["Dirección General de Gobierno Abierto y Transparencia","Promover el pleno ejercicio de los derechos de acceso a la información pública y de protección de datos personales.","Sensibilización sobre Gobierno Abierto y Transparencia Proactiva","GOA01.04"]
["Dirección General de Gobierno Abierto y Transparencia","Promover el pleno ejercicio de los derechos de acceso a la información pública y de protección de datos personales.","Promoción y acompañamiento de las acciones realizadas por organismos garantes y sujetos obligados en materia de gobierno abierto y transparencia proactiva","GOA03.01"]
["Dirección General de Gobierno Abierto y Transparencia","Promover el pleno ejercicio de los derechos de acceso a la información pública y de protección de datos personales.","Promoción y acompañamiento de las acciones realizadas por organismos garantes y sujetos obligados en materia de gobierno abierto y transparencia proactiva","GOA03.02"]
["Dirección General de Gobierno Abierto y Transparencia","Promover el pleno ejercicio de los derechos de acceso a la información pública y de protección de datos personales.","Promoción y acompañamiento de las acciones realizadas por organismos garantes y sujetos obligados en materia de gobierno abierto y transparencia proactiva","GOA03.03"]
["Dirección General de Gobierno Abierto y Transparencia","Promover el pleno ejercicio de los derechos de acceso a la información pública y de protección de datos personales.","Promoción y acompañamiento de las acciones realizadas por organismos garantes y sujetos obligados en materia de gobierno abierto y transparencia proactiva","GOA03.04"]
["Dirección General de Gobierno Abierto y Transparencia","Promover el pleno ejercicio de los derechos de acceso a la información pública y de protección de datos personales.","Elaboración de reportes, guías y herramientas en materia de Gobierno Abierto y Transparencia Proactiva","GOA04.01"]
["Dirección General de Gobierno Abierto y Transparencia","Promover el pleno ejercicio de los derechos de acceso a la información pública y de protección de datos personales.","Participación del INAI en la Alianza para el Gobierno Abierto (AGA)","GOA05.01"]
["Dirección General de Investigación y Verificación del Sector Privado","Garantizar el óptimo cumplimiento de los derechos de acceso a la información pública y la protección de datos personales.","Admisión y orientación de denuncias.","GOA01.01"]
["Dirección General de Investigación y Verificación del Sector Privado","Garantizar el óptimo cumplimiento de los derechos de acceso a la información pública y la protección de datos personales.","Admisión y orientación de denuncias.","GOA01.02"]
["Dirección General de Investigación y Verificación del Sector Privado","Garantizar el óptimo cumplimiento de los derechos de acceso a la información pública y la protección de datos personales.","Admisión y orientación de denuncias.","GOA01.03"]
["Dirección General de Investigación y Verificación del Sector Privado","Garantizar el óptimo cumplimiento de los derechos de acceso a la información pública y la protección de datos personales.","Admisión y orientación de denuncias.","GOA01.04"]
["Dirección General de Investigación y Verificación del Sector Privado","Garantizar el óptimo cumplimiento de los derechos de acceso a la información pública y la protección de datos personales.","Admisión y orientación de denuncias.","GOA01.05"]
["Dirección General de Investigación y Verificación del Sector Privado","Garantizar el óptimo cumplimiento de los derechos de acceso a la información pública y la protección de datos personales.","Admisión y orientación de denuncias.","GOA01.06"]
["Dirección General de Investigación y Verificación del Sector Privado","Garantizar el óptimo cumplimiento de los derechos de acceso a la información pública y la protección de datos personales.","Monitoreo y Forensia Digital","GOA02.01"]
["Dirección General de Investigación y Verificación del Sector Privado","Garantizar el óptimo cumplimiento de los derechos de acceso a la información pública y la protección de datos personales.","Monitoreo y Forensia Digital","GOA02.02"]
["Dirección General de Normatividad y Consulta","Garantizar el óptimo cumplimiento de los derechos de acceso a la información pública y la protección de datos personales.","Emisión de opiniones técnicas o proyectos de dictámenes de las evaluaciones de impacto en la protección de datos personales respecto de tratamientos intensivos o relevantes de datos personales, incluyendo aquéllos que involucren datos personales sensibles","GOA02.01"]
["Dirección General de Normatividad y Consulta","Garantizar el óptimo cumplimiento de los derechos de acceso a la información pública y la protección de datos personales.","Revisión de resoluciones emitidas por el Pleno del Instituto en materia de protección de datos personales, para identificar criterios de interpretación, incorporando perspectiva de género, el enfoque de Derechos Humanos conforme a las políticas emitidas p","GOA04.01"]
["Dirección General de Normatividad y Consulta","Garantizar el óptimo cumplimiento de los derechos de acceso a la información pública y la protección de datos personales.","Elaboración de estudios y estándares de competencia en materia de protección de datos personales realizados, Incorporando apartados o secciones específicas en materia de derechos humanos, enfoque de género, y el principio de no  discriminación cuando su o","GOA05.01"]
["Dirección General de Normatividad y Consulta","Garantizar el óptimo cumplimiento de los derechos de acceso a la información pública y la protección de datos personales.","Elaboración de estudios y estándares de competencia en materia de protección de datos personales realizados, Incorporando apartados o secciones específicas en materia de derechos humanos, enfoque de género, y el principio de no  discriminación cuando su o","GOA05.02"]
["Dirección General de Normatividad y Consulta","Garantizar el óptimo cumplimiento de los derechos de acceso a la información pública y la protección de datos personales.","Elaboración de propuestas de opinión para una adecuada instrumentación internacional en materia de protección de datos personales, conforme a los parámetros constitucionales y convencionales adoptados en materia de derechos humanos, tomando en cuenta la t","GOA06.01"]
["Dirección General de Planeación y Desempeño Institucional","Desempeño organizacional y modelo institucional orientado a resultados con enfoque de derechos humanos y perspectiva de género.","Implementación del proceso de  planeación y seguimiento institucional.","GOA01.01"]
["Dirección General de Planeación y Desempeño Institucional","Desempeño organizacional y modelo institucional orientado a resultados con enfoque de derechos humanos y perspectiva de género.","Ejecución de la estrategia de transversalización de derechos humanos, igualdad, perspectiva de género, inclusión y No Discriminación al interior y exterior del INAI.","GOA03.01"]
["Dirección General de Políticas de Acceso","Promover el pleno ejercicio de los derechos de acceso a la información pública y de protección de datos personales.","Generación de espacios de participación ciudadana para fomentar publicación y uso de datos abiertos, considerando el enfoque de Derechos Humanos, perspectiva de género y no discriminación.","GOA01.01"]
["Dirección General de Políticas de Acceso","Promover el pleno ejercicio de los derechos de acceso a la información pública y de protección de datos personales.","Generación de espacios de participación ciudadana para fomentar publicación y uso de datos abiertos, considerando el enfoque de Derechos Humanos, perspectiva de género y no discriminación.","GOA01.02"]
["Dirección General de Políticas de Acceso","Promover el pleno ejercicio de los derechos de acceso a la información pública y de protección de datos personales.","Generación de espacios de participación ciudadana para fomentar publicación y uso de datos abiertos, considerando el enfoque de Derechos Humanos, perspectiva de género y no discriminación.","GOA01.03"]
["Dirección General de Políticas de Acceso","Promover el pleno ejercicio de los derechos de acceso a la información pública y de protección de datos personales.","Sensibilización y asistencia técnica a los sujetos obligados para la implementación de herramientas de datos abiertos y la definición de la apertura de datos relevantes.","GOA02.01"]
["Dirección General de Políticas de Acceso","Promover el pleno ejercicio de los derechos de acceso a la información pública y de protección de datos personales.","Sensibilización y asistencia técnica a los sujetos obligados para la implementación de herramientas de datos abiertos y la definición de la apertura de datos relevantes.","GOA02.02"]
["Dirección General de Políticas de Acceso","Promover el pleno ejercicio de los derechos de acceso a la información pública y de protección de datos personales.","Publicación y difusión de diagnósticos en materia de acceso a la información y protección de datos personales.","GOA03.01"]
["Dirección General de Políticas de Acceso","Promover el pleno ejercicio de los derechos de acceso a la información pública y de protección de datos personales.","Análisis y detección de mejoras e incidencias, y desarrollo de funcionalidades y mantenimiento a las herramientas tecnológicas de datos abiertos.","GOA04.01"]
["Dirección General de Políticas de Acceso","Promover el pleno ejercicio de los derechos de acceso a la información pública y de protección de datos personales.","Cumplimiento de las etapas de implementación y supervisión del PlanDAI a nivel nacional.","GOA05.01"]
["Dirección General de Políticas de Acceso","Promover el pleno ejercicio de los derechos de acceso a la información pública y de protección de datos personales.","Cumplimiento de las etapas de implementación y supervisión del PlanDAI a nivel nacional.","GOA05.02"]
["Dirección General de Políticas de Acceso","Promover el pleno ejercicio de los derechos de acceso a la información pública y de protección de datos personales.","Cumplimiento de las etapas de implementación y supervisión del PlanDAI a nivel nacional.","GOA05.03"]
["Dirección General de Políticas de Acceso","Promover el pleno ejercicio de los derechos de acceso a la información pública y de protección de datos personales.","Cumplimiento de las etapas de implementación y supervisión del PlanDAI a nivel nacional.","GOA05.04"]
["Dirección General de Prevención y Autorregulación","Promover el pleno ejercicio de los derechos de acceso a la información pública y de protección de datos personales.","Realización de acciones para impulsar la autorregulación en el sector privado y las mejores prácticas en el sector público, considerando la perspectiva de género, transversalización y con enfoque de derechos humanos.","GOA01.01"]
["Dirección General de Prevención y Autorregulación","Promover el pleno ejercicio de los derechos de acceso a la información pública y de protección de datos personales.","Realización de acciones para impulsar la autorregulación en el sector privado y las mejores prácticas en el sector público, considerando la perspectiva de género, transversalización y con enfoque de derechos humanos.","GOA01.02"]
["Dirección General de Prevención y Autorregulación","Promover el pleno ejercicio de los derechos de acceso a la información pública y de protección de datos personales.","Realización de acciones para impulsar la autorregulación en el sector privado y las mejores prácticas en el sector público, considerando la perspectiva de género, transversalización y con enfoque de derechos humanos.","GOA01.03"]
["Dirección General de Prevención y Autorregulación","Promover el pleno ejercicio de los derechos de acceso a la información pública y de protección de datos personales.","Realización de acciones para impulsar la autorregulación en el sector privado y las mejores prácticas en el sector público, considerando la perspectiva de género, transversalización y con enfoque de derechos humanos.","GOA01.04"]
["Dirección General de Prevención y Autorregulación","Promover el pleno ejercicio de los derechos de acceso a la información pública y de protección de datos personales.","Realización de acciones para impulsar la autorregulación en el sector privado y las mejores prácticas en el sector público, considerando la perspectiva de género, transversalización y con enfoque de derechos humanos.","GOA01.05"]
["Dirección General de Prevención y Autorregulación","Promover el pleno ejercicio de los derechos de acceso a la información pública y de protección de datos personales.","Realización de acciones para impulsar la autorregulación en el sector privado y las mejores prácticas en el sector público, considerando la perspectiva de género, transversalización y con enfoque de derechos humanos.","GOA01.06"]
["Dirección General de Prevención y Autorregulación","Promover el pleno ejercicio de los derechos de acceso a la información pública y de protección de datos personales.","Realización de acciones para impulsar la autorregulación en el sector privado y las mejores prácticas en el sector público, considerando la perspectiva de género, transversalización y con enfoque de derechos humanos.","GOA01.07"]
["Dirección General de Prevención y Autorregulación","Promover el pleno ejercicio de los derechos de acceso a la información pública y de protección de datos personales.","Elaboración de material con perspectiva de género, enfoque de derechos humanos e interseccionalidad, para orientar a quienes son las personas responsables y encargadas en el cumplimiento de sus obligaciones en materia de protección de datos personales.","GOA02.01"]
["Dirección General de Prevención y Autorregulación","Promover el pleno ejercicio de los derechos de acceso a la información pública y de protección de datos personales.","Elaboración de material con perspectiva de género, enfoque de derechos humanos e interseccionalidad, para orientar a quienes son las personas responsables y encargadas en el cumplimiento de sus obligaciones en materia de protección de datos personales.","GOA02.02"]
["Dirección General de Prevención y Autorregulación","Promover el pleno ejercicio de los derechos de acceso a la información pública y de protección de datos personales.","Elaboración de material con perspectiva de género, enfoque de derechos humanos e interseccionalidad, para orientar a quienes son las personas responsables y encargadas en el cumplimiento de sus obligaciones en materia de protección de datos personales.","GOA02.03"]
["Dirección General de Prevención y Autorregulación","Promover el pleno ejercicio de los derechos de acceso a la información pública y de protección de datos personales.","Promoción de la educación cívica y cultura desde una perspectiva de género y con enfoque de derechos humanos para el ejercicio del derecho de protección de datos personales entre quienes son titulares.","GOA03.01"]
["Dirección General de Prevención y Autorregulación","Promover el pleno ejercicio de los derechos de acceso a la información pública y de protección de datos personales.","Promoción de la educación cívica y cultura desde una perspectiva de género y con enfoque de derechos humanos para el ejercicio del derecho de protección de datos personales entre quienes son titulares.","GOA03.02"]
["Dirección General de Prevención y Autorregulación","Promover el pleno ejercicio de los derechos de acceso a la información pública y de protección de datos personales.","Promoción de la educación cívica y cultura desde una perspectiva de género y con enfoque de derechos humanos para el ejercicio del derecho de protección de datos personales entre quienes son titulares.","GOA03.03"]
["Dirección General de Prevención y Autorregulación","Promover el pleno ejercicio de los derechos de acceso a la información pública y de protección de datos personales.","Promoción de la educación cívica y cultura desde una perspectiva de género y con enfoque de derechos humanos para el ejercicio del derecho de protección de datos personales entre quienes son titulares.","GOA03.04"]
["Dirección General de Prevención y Autorregulación","Promover el pleno ejercicio de los derechos de acceso a la información pública y de protección de datos personales.","Promoción de la educación cívica y cultura desde una perspectiva de género y con enfoque de derechos humanos para el ejercicio del derecho de protección de datos personales entre quienes son titulares.","GOA03.05"]
["Dirección General de Prevención y Autorregulación","Promover el pleno ejercicio de los derechos de acceso a la información pública y de protección de datos personales.","Promoción de la educación cívica y cultura desde una perspectiva de género y con enfoque de derechos humanos para el ejercicio del derecho de protección de datos personales entre quienes son titulares.","GOA03.06"]
["Dirección General de Prevención y Autorregulación","Promover el pleno ejercicio de los derechos de acceso a la información pública y de protección de datos personales.","Promoción de la educación cívica y cultura desde una perspectiva de género y con enfoque de derechos humanos para el ejercicio del derecho de protección de datos personales entre quienes son titulares.","GOA03.07"]
["Dirección General de Prevención y Autorregulación","Promover el pleno ejercicio de los derechos de acceso a la información pública y de protección de datos personales.","Promoción de la educación cívica y cultura desde una perspectiva de género y con enfoque de derechos humanos para el ejercicio del derecho de protección de datos personales entre quienes son titulares.","GOA03.08"]
["Dirección General de Prevención y Autorregulación","Promover el pleno ejercicio de los derechos de acceso a la información pública y de protección de datos personales.","Promoción de la educación cívica y cultura desde una perspectiva de género y con enfoque de derechos humanos para el ejercicio del derecho de protección de datos personales entre quienes son titulares.","GOA03.09"]
["Dirección General de Promoción y Vinculación con la Sociedad","Promover el pleno ejercicio de los derechos de acceso a la información pública y de protección de datos personales.","Desarrollo de certámenes para la promoción de los derechos en sectores específicos de la población.","GOA01.01"]
["Dirección General de Promoción y Vinculación con la Sociedad","Promover el pleno ejercicio de los derechos de acceso a la información pública y de protección de datos personales.","Desarrollo de certámenes para la promoción de los derechos en sectores específicos de la población.","GOA01.02"]
["Dirección General de Promoción y Vinculación con la Sociedad","Promover el pleno ejercicio de los derechos de acceso a la información pública y de protección de datos personales.","Desarrollo de certámenes para la promoción de los derechos en sectores específicos de la población.","GOA01.03"]
["Dirección General de Promoción y Vinculación con la Sociedad","Promover el pleno ejercicio de los derechos de acceso a la información pública y de protección de datos personales.","Desarrollo de certámenes para la promoción de los derechos en sectores específicos de la población.","GOA01.04"]
["Dirección General de Promoción y Vinculación con la Sociedad","Promover el pleno ejercicio de los derechos de acceso a la información pública y de protección de datos personales.","Desarrollo de certámenes para la promoción de los derechos en sectores específicos de la población.","GOA01.05"]
["Dirección General de Promoción y Vinculación con la Sociedad","Promover el pleno ejercicio de los derechos de acceso a la información pública y de protección de datos personales.","Desarrollo de certámenes para la promoción de los derechos en sectores específicos de la población.","GOA01.06"]
["Dirección General de Promoción y Vinculación con la Sociedad","Promover el pleno ejercicio de los derechos de acceso a la información pública y de protección de datos personales.","Desarrollo de certámenes para la promoción de los derechos en sectores específicos de la población.","GOA01.07"]
["Dirección General de Promoción y Vinculación con la Sociedad","Promover el pleno ejercicio de los derechos de acceso a la información pública y de protección de datos personales.","Presencia institucional en ferias para la promoción de los derechos de acceso a la información y protección de datos personales.","GOA02.01"]
["Dirección General de Promoción y Vinculación con la Sociedad","Promover el pleno ejercicio de los derechos de acceso a la información pública y de protección de datos personales.","Presencia institucional en ferias para la promoción de los derechos de acceso a la información y protección de datos personales.","GOA02.02"]
["Dirección General de Promoción y Vinculación con la Sociedad","Promover el pleno ejercicio de los derechos de acceso a la información pública y de protección de datos personales.","Presencia institucional en ferias para la promoción de los derechos de acceso a la información y protección de datos personales.","GOA02.03"]
["Dirección General de Promoción y Vinculación con la Sociedad","Promover el pleno ejercicio de los derechos de acceso a la información pública y de protección de datos personales.","Presencia institucional en ferias para la promoción de los derechos de acceso a la información y protección de datos personales.","GOA02.04"]
["Dirección General de Promoción y Vinculación con la Sociedad","Promover el pleno ejercicio de los derechos de acceso a la información pública y de protección de datos personales.","Presencia institucional en ferias para la promoción de los derechos de acceso a la información y protección de datos personales.","GOA02.05"]
["Dirección General de Promoción y Vinculación con la Sociedad","Promover el pleno ejercicio de los derechos de acceso a la información pública y de protección de datos personales.","Presencia institucional en ferias para la promoción de los derechos de acceso a la información y protección de datos personales.","GOA02.06"]
["Dirección General de Promoción y Vinculación con la Sociedad","Promover el pleno ejercicio de los derechos de acceso a la información pública y de protección de datos personales.","Cumplimiento del Programa Editorial","GOA03.01"]
["Dirección General de Promoción y Vinculación con la Sociedad","Promover el pleno ejercicio de los derechos de acceso a la información pública y de protección de datos personales.","Cumplimiento del Programa Editorial","GOA03.02"]
["Dirección General de Promoción y Vinculación con la Sociedad","Promover el pleno ejercicio de los derechos de acceso a la información pública y de protección de datos personales.","Cumplimiento del Programa Editorial","GOA03.03"]
["Dirección General de Promoción y Vinculación con la Sociedad","Promover el pleno ejercicio de los derechos de acceso a la información pública y de protección de datos personales.","Presentación de publicaciones.","GOA04.01"]
["Dirección General de Promoción y Vinculación con la Sociedad","Promover el pleno ejercicio de los derechos de acceso a la información pública y de protección de datos personales.","Presentación de publicaciones.","GOA04.02"]
["Dirección General de Promoción y Vinculación con la Sociedad","Promover el pleno ejercicio de los derechos de acceso a la información pública y de protección de datos personales.","Presentación de publicaciones.","GOA04.03"]
["Dirección General de Promoción y Vinculación con la Sociedad","Promover el pleno ejercicio de los derechos de acceso a la información pública y de protección de datos personales.","Presentación de publicaciones.","GOA04.04"]
["Dirección General de Promoción y Vinculación con la Sociedad","Promover el pleno ejercicio de los derechos de acceso a la información pública y de protección de datos personales.","Presentación de publicaciones.","GOA04.05"]
["Dirección General de Promoción y Vinculación con la Sociedad","Promover el pleno ejercicio de los derechos de acceso a la información pública y de protección de datos personales.","Presentación de publicaciones.","GOA04.06"]
["Dirección General de Promoción y Vinculación con la Sociedad","Promover el pleno ejercicio de los derechos de acceso a la información pública y de protección de datos personales.","Presentación de publicaciones.","GOA04.07"]
["Dirección General de Promoción y Vinculación con la Sociedad","Promover el pleno ejercicio de los derechos de acceso a la información pública y de protección de datos personales.","Implementación y coordinación del Programa de Sensibilidad de los Derechos (PROSEDE-INAI).","GOA05.01"]
["Dirección General de Promoción y Vinculación con la Sociedad","Promover el pleno ejercicio de los derechos de acceso a la información pública y de protección de datos personales.","Realización del Certamen a la Innovación en Transparencia.","GOA06.01"]
["Dirección General de Promoción y Vinculación con la Sociedad","Promover el pleno ejercicio de los derechos de acceso a la información pública y de protección de datos personales.","Realización del Certamen a la Innovación en Transparencia.","GOA06.02"]
["Dirección General de Promoción y Vinculación con la Sociedad","Promover el pleno ejercicio de los derechos de acceso a la información pública y de protección de datos personales.","Realización del Certamen a la Innovación en Transparencia.","GOA06.03"]
["Dirección General de Promoción y Vinculación con la Sociedad","Promover el pleno ejercicio de los derechos de acceso a la información pública y de protección de datos personales.","Realización del Certamen a la Innovación en Transparencia.","GOA06.04"]
["Dirección General de Promoción y Vinculación con la Sociedad","Promover el pleno ejercicio de los derechos de acceso a la información pública y de protección de datos personales.","Caravana por la Transparencia y la Privacidad \"Mi CAS\".","GOA07.01"]
["Dirección General de Promoción y Vinculación con la Sociedad","Promover el pleno ejercicio de los derechos de acceso a la información pública y de protección de datos personales.","Caravana por la Transparencia y la Privacidad \"Mi CAS\".","GOA07.02"]
["Dirección General de Promoción y Vinculación con la Sociedad","Promover el pleno ejercicio de los derechos de acceso a la información pública y de protección de datos personales.","Caravana por la Transparencia y la Privacidad \"Mi CAS\".","GOA07.03"]
["Dirección General de Promoción y Vinculación con la Sociedad","Promover el pleno ejercicio de los derechos de acceso a la información pública y de protección de datos personales.","Caravana por la Transparencia y la Privacidad \"Mi CAS\".","GOA07.04"]
["Dirección General de Promoción y Vinculación con la Sociedad","Promover el pleno ejercicio de los derechos de acceso a la información pública y de protección de datos personales.","Caravana por la Transparencia y la Privacidad \"Mi CAS\".","GOA07.05"]
["Dirección General de Promoción y Vinculación con la Sociedad","Promover el pleno ejercicio de los derechos de acceso a la información pública y de protección de datos personales.","Fiesta de la Verdad","GOA08.01"]
["Dirección General de Promoción y Vinculación con la Sociedad","Promover el pleno ejercicio de los derechos de acceso a la información pública y de protección de datos personales.","Fiesta de la Verdad","GOA08.02"]
["Dirección General de Promoción y Vinculación con la Sociedad","Promover el pleno ejercicio de los derechos de acceso a la información pública y de protección de datos personales.","Fiesta de la Verdad","GOA08.03"]
["Dirección General de Promoción y Vinculación con la Sociedad","Promover el pleno ejercicio de los derechos de acceso a la información pública y de protección de datos personales.","Fiesta de la Verdad","GOA08.04"]
["Dirección General de Promoción y Vinculación con la Sociedad","Promover el pleno ejercicio de los derechos de acceso a la información pública y de protección de datos personales.","Fiesta de la Verdad","GOA08.05"]
["Dirección General de Promoción y Vinculación con la Sociedad","Promover el pleno ejercicio de los derechos de acceso a la información pública y de protección de datos personales.","Fortalecimiento de la Red para la Utilidad Social de los Derechos Tutelados por el INAI.","GOA09.01"]
["Dirección General de Promoción y Vinculación con la Sociedad","Promover el pleno ejercicio de los derechos de acceso a la información pública y de protección de datos personales.","Fortalecimiento de la Red para la Utilidad Social de los Derechos Tutelados por el INAI.","GOA09.02"]
["Dirección General de Promoción y Vinculación con la Sociedad","Promover el pleno ejercicio de los derechos de acceso a la información pública y de protección de datos personales.","Fortalecimiento de la Red para la Utilidad Social de los Derechos Tutelados por el INAI.","GOA09.03"]
["Dirección General de Promoción y Vinculación con la Sociedad","Promover el pleno ejercicio de los derechos de acceso a la información pública y de protección de datos personales.","Fortalecimiento de la Red para la Utilidad Social de los Derechos Tutelados por el INAI.","GOA09.04"]
["Dirección General de Promoción y Vinculación con la Sociedad","Promover el pleno ejercicio de los derechos de acceso a la información pública y de protección de datos personales.","Realización de la Semana Nacional de Transparencia.","GOA10.01"]
["Dirección General de Promoción y Vinculación con la Sociedad","Promover el pleno ejercicio de los derechos de acceso a la información pública y de protección de datos personales.","Talleres y pláticas de sensibilización","GOA11.01"]
["Dirección General de Promoción y Vinculación con la Sociedad","Promover el pleno ejercicio de los derechos de acceso a la información pública y de protección de datos personales.","Talleres y pláticas de sensibilización","GOA11.02"]
["Dirección General de Promoción y Vinculación con la Sociedad","Promover el pleno ejercicio de los derechos de acceso a la información pública y de protección de datos personales.","Talleres y pláticas de sensibilización","GOA11.03"]
["Dirección General de Promoción y Vinculación con la Sociedad","Promover el pleno ejercicio de los derechos de acceso a la información pública y de protección de datos personales.","Talleres y pláticas de sensibilización","GOA11.04"]
["Dirección General de Promoción y Vinculación con la Sociedad","Promover el pleno ejercicio de los derechos de acceso a la información pública y de protección de datos personales.","Capacitación al CAS","GOA12.01"]
["Dirección General de Protección de Derechos y Sanción","Garantizar el óptimo cumplimiento de los derechos de acceso a la información pública y la protección de datos personales.","Atención a todos los asuntos que recibe la Dirección General.","GOA01.01"]
["Dirección General de Protección de Derechos y Sanción","Garantizar el óptimo cumplimiento de los derechos de acceso a la información pública y la protección de datos personales.","Atención a todos los asuntos que recibe la Dirección General.","GOA01.02"]
["Dirección General de Protección de Derechos y Sanción","Garantizar el óptimo cumplimiento de los derechos de acceso a la información pública y la protección de datos personales.","Atención a todos los asuntos que recibe la Dirección General.","GOA01.03"]
["Dirección General de Protección de Derechos y Sanción","Garantizar el óptimo cumplimiento de los derechos de acceso a la información pública y la protección de datos personales.","Atención a todos los asuntos que recibe la Dirección General.","GOA01.04"]
["Dirección General de Protección de Derechos y Sanción","Garantizar el óptimo cumplimiento de los derechos de acceso a la información pública y la protección de datos personales.","Atención a todos los asuntos que recibe la Dirección General.","GOA01.05"]
["Dirección General de Protección de Derechos y Sanción","Garantizar el óptimo cumplimiento de los derechos de acceso a la información pública y la protección de datos personales.","Atención a todos los asuntos que recibe la Dirección General.","GOA01.06"]
["Dirección General de Protección de Derechos y Sanción","Garantizar el óptimo cumplimiento de los derechos de acceso a la información pública y la protección de datos personales.","Atención a todos los asuntos que recibe la Dirección General.","GOA01.07"]
["Dirección General de Tecnologías de la Información","Coordinar el Sistema Nacional de Transparencia y Protección de Datos personales, así como, ser miembro del Sistema Nacional Anticorrupción, del Sistema Nacional de Archivos y demás colegiados que establezcan las normas vigentes.","Atención de requerimientos de desarrollo y/o mantenimiento de aplicaciones de software.","GOA02.01"]
["Dirección General de Tecnologías de la Información","Coordinar el Sistema Nacional de Transparencia y Protección de Datos personales, así como, ser miembro del Sistema Nacional Anticorrupción, del Sistema Nacional de Archivos y demás colegiados que establezcan las normas vigentes.","Preservación de seguridad de Tecnologías de la Información","GOA03.01"]
["Dirección General de Tecnologías de la Información","Coordinar el Sistema Nacional de Transparencia y Protección de Datos personales, así como, ser miembro del Sistema Nacional Anticorrupción, del Sistema Nacional de Archivos y demás colegiados que establezcan las normas vigentes.","Preservación de seguridad de Tecnologías de la Información","GOA03.02"]
["Dirección General de Tecnologías de la Información","Coordinar el Sistema Nacional de Transparencia y Protección de Datos personales, así como, ser miembro del Sistema Nacional Anticorrupción, del Sistema Nacional de Archivos y demás colegiados que establezcan las normas vigentes.","Preservación de seguridad de Tecnologías de la Información","GOA03.03"]
["Dirección General de Tecnologías de la Información","Coordinar el Sistema Nacional de Transparencia y Protección de Datos personales, así como, ser miembro del Sistema Nacional Anticorrupción, del Sistema Nacional de Archivos y demás colegiados que establezcan las normas vigentes.","Habilitación de servicios y provisión de soporte y mantenimiento a la operación e infraestructura de Tecnologías de la Información","GOA04.01"]
["Dirección General de Tecnologías de la Información","Coordinar el Sistema Nacional de Transparencia y Protección de Datos personales, así como, ser miembro del Sistema Nacional Anticorrupción, del Sistema Nacional de Archivos y demás colegiados que establezcan las normas vigentes.","Habilitación de servicios y provisión de soporte y mantenimiento a la operación e infraestructura de Tecnologías de la Información","GOA04.02"]
["Dirección General de Tecnologías de la Información","Coordinar el Sistema Nacional de Transparencia y Protección de Datos personales, así como, ser miembro del Sistema Nacional Anticorrupción, del Sistema Nacional de Archivos y demás colegiados que establezcan las normas vigentes.","Habilitación de servicios y provisión de soporte y mantenimiento a la operación e infraestructura de Tecnologías de la Información","GOA04.03"]
["Dirección General de Tecnologías de la Información","Coordinar el Sistema Nacional de Transparencia y Protección de Datos personales, así como, ser miembro del Sistema Nacional Anticorrupción, del Sistema Nacional de Archivos y demás colegiados que establezcan las normas vigentes.","Habilitación de servicios y provisión de soporte y mantenimiento a la operación e infraestructura de Tecnologías de la Información","GOA04.04"]
["Dirección General de Tecnologías de la Información","Coordinar el Sistema Nacional de Transparencia y Protección de Datos personales, así como, ser miembro del Sistema Nacional Anticorrupción, del Sistema Nacional de Archivos y demás colegiados que establezcan las normas vigentes.","Habilitación de servicios y provisión de soporte y mantenimiento a la operación e infraestructura de Tecnologías de la Información","GOA04.05"]
["Dirección General de Tecnologías de la Información","Coordinar el Sistema Nacional de Transparencia y Protección de Datos personales, así como, ser miembro del Sistema Nacional Anticorrupción, del Sistema Nacional de Archivos y demás colegiados que establezcan las normas vigentes.","Habilitación de servicios y provisión de soporte y mantenimiento a la operación e infraestructura de Tecnologías de la Información","GOA04.06"]
["Dirección General de Tecnologías de la Información","Coordinar el Sistema Nacional de Transparencia y Protección de Datos personales, así como, ser miembro del Sistema Nacional Anticorrupción, del Sistema Nacional de Archivos y demás colegiados que establezcan las normas vigentes.","Habilitación de servicios y provisión de soporte y mantenimiento a la operación e infraestructura de Tecnologías de la Información","GOA04.07"]
["Dirección General de Tecnologías de la Información","Coordinar el Sistema Nacional de Transparencia y Protección de Datos personales, así como, ser miembro del Sistema Nacional Anticorrupción, del Sistema Nacional de Archivos y demás colegiados que establezcan las normas vigentes.","Habilitación de servicios y provisión de soporte y mantenimiento a la operación e infraestructura de Tecnologías de la Información","GOA04.08"]
["Dirección General de Tecnologías de la Información","Coordinar el Sistema Nacional de Transparencia y Protección de Datos personales, así como, ser miembro del Sistema Nacional Anticorrupción, del Sistema Nacional de Archivos y demás colegiados que establezcan las normas vigentes.","Habilitación de servicios y provisión de soporte y mantenimiento a la operación e infraestructura de Tecnologías de la Información","GOA04.09"]
["Dirección General de Tecnologías de la Información","Coordinar el Sistema Nacional de Transparencia y Protección de Datos personales, así como, ser miembro del Sistema Nacional Anticorrupción, del Sistema Nacional de Archivos y demás colegiados que establezcan las normas vigentes.","Habilitación de servicios y provisión de soporte y mantenimiento a la operación e infraestructura de Tecnologías de la Información","GOA04.10"]
["Dirección General de Tecnologías de la Información","Coordinar el Sistema Nacional de Transparencia y Protección de Datos personales, así como, ser miembro del Sistema Nacional Anticorrupción, del Sistema Nacional de Archivos y demás colegiados que establezcan las normas vigentes.","Habilitación de servicios y provisión de soporte y mantenimiento a la operación e infraestructura de Tecnologías de la Información","GOA04.11"]
["Dirección General de Tecnologías de la Información","Coordinar el Sistema Nacional de Transparencia y Protección de Datos personales, así como, ser miembro del Sistema Nacional Anticorrupción, del Sistema Nacional de Archivos y demás colegiados que establezcan las normas vigentes.","Habilitación de servicios y provisión de soporte y mantenimiento a la operación e infraestructura de Tecnologías de la Información","GOA04.12"]
["Dirección General de Tecnologías de la Información","Coordinar el Sistema Nacional de Transparencia y Protección de Datos personales, así como, ser miembro del Sistema Nacional Anticorrupción, del Sistema Nacional de Archivos y demás colegiados que establezcan las normas vigentes.","Habilitación de servicios y provisión de soporte y mantenimiento a la operación e infraestructura de Tecnologías de la Información","GOA04.13"]
["Dirección General de Tecnologías de la Información","Coordinar el Sistema Nacional de Transparencia y Protección de Datos personales, así como, ser miembro del Sistema Nacional Anticorrupción, del Sistema Nacional de Archivos y demás colegiados que establezcan las normas vigentes.","Habilitación de servicios y provisión de soporte y mantenimiento a la operación e infraestructura de Tecnologías de la Información","GOA04.14"]
["Dirección General de Tecnologías de la Información","Coordinar el Sistema Nacional de Transparencia y Protección de Datos personales, así como, ser miembro del Sistema Nacional Anticorrupción, del Sistema Nacional de Archivos y demás colegiados que establezcan las normas vigentes.","Habilitación de servicios y provisión de soporte y mantenimiento a la operación e infraestructura de Tecnologías de la Información","GOA04.15"]
["Dirección General de Tecnologías de la Información","Coordinar el Sistema Nacional de Transparencia y Protección de Datos personales, así como, ser miembro del Sistema Nacional Anticorrupción, del Sistema Nacional de Archivos y demás colegiados que establezcan las normas vigentes.","Habilitación de servicios y provisión de soporte y mantenimiento a la operación e infraestructura de Tecnologías de la Información","GOA04.16"]
["Dirección General de Tecnologías de la Información","Coordinar el Sistema Nacional de Transparencia y Protección de Datos personales, así como, ser miembro del Sistema Nacional Anticorrupción, del Sistema Nacional de Archivos y demás colegiados que establezcan las normas vigentes.","Habilitación de servicios y provisión de soporte y mantenimiento a la operación e infraestructura de Tecnologías de la Información","GOA04.17"]
["Dirección General de Tecnologías de la Información","Coordinar el Sistema Nacional de Transparencia y Protección de Datos personales, así como, ser miembro del Sistema Nacional Anticorrupción, del Sistema Nacional de Archivos y demás colegiados que establezcan las normas vigentes.","Habilitación de servicios y provisión de soporte y mantenimiento a la operación e infraestructura de Tecnologías de la Información","GOA04.18"]
["Dirección General de Tecnologías de la Información","Coordinar el Sistema Nacional de Transparencia y Protección de Datos personales, así como, ser miembro del Sistema Nacional Anticorrupción, del Sistema Nacional de Archivos y demás colegiados que establezcan las normas vigentes.","Habilitación de servicios y provisión de soporte y mantenimiento a la operación e infraestructura de Tecnologías de la Información","GOA04.19"]
["Dirección General de Tecnologías de la Información","Coordinar el Sistema Nacional de Transparencia y Protección de Datos personales, así como, ser miembro del Sistema Nacional Anticorrupción, del Sistema Nacional de Archivos y demás colegiados que establezcan las normas vigentes.","Habilitación de servicios y provisión de soporte y mantenimiento a la operación e infraestructura de Tecnologías de la Información","GOA04.20"]
["Dirección General de Tecnologías de la Información","Coordinar el Sistema Nacional de Transparencia y Protección de Datos personales, así como, ser miembro del Sistema Nacional Anticorrupción, del Sistema Nacional de Archivos y demás colegiados que establezcan las normas vigentes.","Habilitación de servicios y provisión de soporte y mantenimiento a la operación e infraestructura de Tecnologías de la Información","GOA04.21"]
["Dirección General de Tecnologías de la Información","Coordinar el Sistema Nacional de Transparencia y Protección de Datos personales, así como, ser miembro del Sistema Nacional Anticorrupción, del Sistema Nacional de Archivos y demás colegiados que establezcan las normas vigentes.","Habilitación de servicios y provisión de soporte y mantenimiento a la operación e infraestructura de Tecnologías de la Información","GOA04.22"]
["Dirección General de Tecnologías de la Información","Coordinar el Sistema Nacional de Transparencia y Protección de Datos personales, así como, ser miembro del Sistema Nacional Anticorrupción, del Sistema Nacional de Archivos y demás colegiados que establezcan las normas vigentes.","Habilitación de servicios y provisión de soporte y mantenimiento a la operación e infraestructura de Tecnologías de la Información","GOA04.23"]
["Dirección General de Tecnologías de la Información","Coordinar el Sistema Nacional de Transparencia y Protección de Datos personales, así como, ser miembro del Sistema Nacional Anticorrupción, del Sistema Nacional de Archivos y demás colegiados que establezcan las normas vigentes.","Habilitación de servicios y provisión de soporte y mantenimiento a la operación e infraestructura de Tecnologías de la Información","GOA04.24"]
["Dirección General de Tecnologías de la Información","Coordinar el Sistema Nacional de Transparencia y Protección de Datos personales, así como, ser miembro del Sistema Nacional Anticorrupción, del Sistema Nacional de Archivos y demás colegiados que establezcan las normas vigentes.","Habilitación de servicios y provisión de soporte y mantenimiento a la operación e infraestructura de Tecnologías de la Información","GOA04.25"]
["Dirección General de Vinculación, Coordinación y Colaboración con Entidades Federativas","Coordinar el Sistema Nacional de Transparencia y Protección de Datos personales, así como, ser miembro del Sistema Nacional Anticorrupción, del Sistema Nacional de Archivos y demás colegiados que establezcan las normas vigentes.","Organización y/o realización de eventos de promoción, tomando en cuenta la perspectiva de género, el enfoque de derechos humanos, con especial énfasis del reconocimiento de los derechos de los  grupos en situación de vulnerabilidad, en coordinación con lo","GOA04.01"]
["Dirección General de Vinculación, Coordinación y Colaboración con Entidades Federativas","Coordinar el Sistema Nacional de Transparencia y Protección de Datos personales, así como, ser miembro del Sistema Nacional Anticorrupción, del Sistema Nacional de Archivos y demás colegiados que establezcan las normas vigentes.","Organización de Concursos Nacionales en materia de transparencia, acceso a la información, protección de datos personales, gestión documental y archivos, en coordinación con los Organismos garantes de las entidades federativas y/o las Instancias del Siste","GOA05.01"]
["Dirección General de Vinculación, Coordinación y Colaboración con Entidades Federativas","Coordinar el Sistema Nacional de Transparencia y Protección de Datos personales, así como, ser miembro del Sistema Nacional Anticorrupción, del Sistema Nacional de Archivos y demás colegiados que establezcan las normas vigentes.","Organización de Concursos Nacionales en materia de transparencia, acceso a la información, protección de datos personales, gestión documental y archivos, en coordinación con los Organismos garantes de las entidades federativas y/o las Instancias del Siste","GOA05.02"]
["Dirección General de Vinculación, Coordinación y Colaboración con Entidades Federativas","Coordinar el Sistema Nacional de Transparencia y Protección de Datos personales, así como, ser miembro del Sistema Nacional Anticorrupción, del Sistema Nacional de Archivos y demás colegiados que establezcan las normas vigentes.","Implementación de proyectos específicos de promoción en materia de transparencia, acceso a la información, protección de datos personales, gobierno abierto, gestión documental y archivos en coordinación con los Organismos garantes de las entidades federat","GOA06.01"]
["Dirección General de Vinculación, Coordinación y Colaboración con Entidades Federativas","Coordinar el Sistema Nacional de Transparencia y Protección de Datos personales, así como, ser miembro del Sistema Nacional Anticorrupción, del Sistema Nacional de Archivos y demás colegiados que establezcan las normas vigentes.","Representación institucional del INAI en coordinación con los Organismos garantes de las entidades federativas y/o las Instancias del Sistema Nacional de Transparencia","GOA07.01"]
["Dirección General de Vinculación, Coordinación y Colaboración con Entidades Federativas","Coordinar el Sistema Nacional de Transparencia y Protección de Datos personales, así como, ser miembro del Sistema Nacional Anticorrupción, del Sistema Nacional de Archivos y demás colegiados que establezcan las normas vigentes.","Organización de talleres nacionales, regionales y locales (virtuales o presenciales), en materia de transparencia, acceso a la información, protección de datos personales, gestión documental, archivos y temas relacionados en coordinación con los Organismo","GOA08.01"]
["Dirección General Técnica, Seguimiento y Normatividad del SNT","Coordinar el Sistema Nacional de Transparencia y Protección de Datos personales, así como, ser miembro del Sistema Nacional Anticorrupción, del Sistema Nacional de Archivos y demás colegiados que establezcan las normas vigentes.","Implementación de los Programas Nacionales de Transparencia y Acceso a la Información y de Protección de Datos Personales (PROTAI-PRONADATOS, 2022-2026) del Sistema Nacional de Transparencia, que incluyan perspectiva de género, enfoque de derechos humanos","GOA01.01"]
["Dirección General Técnica, Seguimiento y Normatividad del SNT","Coordinar el Sistema Nacional de Transparencia y Protección de Datos personales, así como, ser miembro del Sistema Nacional Anticorrupción, del Sistema Nacional de Archivos y demás colegiados que establezcan las normas vigentes.","Evaluación de los Programas Nacionales del Sistema Nacional de Transparencia con perspectiva de género, lenguaje incluyente y no sexista desde un enfoque de derechos humanos.","GOA03.01"]
["Dirección General Técnica, Seguimiento y Normatividad del SNT","Coordinar el Sistema Nacional de Transparencia y Protección de Datos personales, así como, ser miembro del Sistema Nacional Anticorrupción, del Sistema Nacional de Archivos y demás colegiados que establezcan las normas vigentes.","Desarrollo de las sesiones de las Coordinaciones, Comisiones y Regiones del SNT y del Colegio Electoral","GOA04.01"]
["Dirección General Técnica, Seguimiento y Normatividad del SNT","Coordinar el Sistema Nacional de Transparencia y Protección de Datos personales, así como, ser miembro del Sistema Nacional Anticorrupción, del Sistema Nacional de Archivos y demás colegiados que establezcan las normas vigentes.","Desarrollo de las sesiones de las Coordinaciones, Comisiones y Regiones del SNT y del Colegio Electoral","GOA04.02"]
["Dirección General Técnica, Seguimiento y Normatividad del SNT","Coordinar el Sistema Nacional de Transparencia y Protección de Datos personales, así como, ser miembro del Sistema Nacional Anticorrupción, del Sistema Nacional de Archivos y demás colegiados que establezcan las normas vigentes.","Desarrollo de las sesiones de las Coordinaciones, Comisiones y Regiones del SNT y del Colegio Electoral","GOA04.03"]
["Dirección General Técnica, Seguimiento y Normatividad del SNT","Coordinar el Sistema Nacional de Transparencia y Protección de Datos personales, así como, ser miembro del Sistema Nacional Anticorrupción, del Sistema Nacional de Archivos y demás colegiados que establezcan las normas vigentes.","Desarrollo de las sesiones de las Coordinaciones, Comisiones y Regiones del SNT y del Colegio Electoral","GOA04.04"]
["Dirección General Técnica, Seguimiento y Normatividad del SNT","Coordinar el Sistema Nacional de Transparencia y Protección de Datos personales, así como, ser miembro del Sistema Nacional Anticorrupción, del Sistema Nacional de Archivos y demás colegiados que establezcan las normas vigentes.","Desarrollo de las sesiones de las Coordinaciones, Comisiones y Regiones del SNT y del Colegio Electoral","GOA04.05"]
["Dirección General Técnica, Seguimiento y Normatividad del SNT","Coordinar el Sistema Nacional de Transparencia y Protección de Datos personales, así como, ser miembro del Sistema Nacional Anticorrupción, del Sistema Nacional de Archivos y demás colegiados que establezcan las normas vigentes.","Publicación de los acuerdos aprobados en el Consejo Nacional del SNT en el Diario Oficial de la Federación.","GOA07.01"]
["Órgano Interno de Control","Actividades de Apoyo a la Función Pública y Buen Gobierno","Cubrir actividades de capacitación para el personal del Órgano Interno de Control","GOA01.01"]
["Órgano Interno de Control","Actividades de Apoyo a la Función Pública y Buen Gobierno","Pasajes para visitas de inspección necesarias relacionadas con la aplicación de la normatividad aplicable ","GOA02.01"]
["Órgano Interno de Control","Actividades de Apoyo a la Función Pública y Buen Gobierno","Pasajes para trámites del Órgano Interno de Control","GOA03.01"]
["Órgano Interno de Control","Actividades de Apoyo a la Función Pública y Buen Gobierno","Homologación de la imagen institucional de los Servidores Públicos  del Órgano Interno de Control","GOA04.01"]

{"sheet":"GOA","index":5,"n_rows":2,"n_cols":4,"rows_kept":2,"cut":false,"hidden":true,"merged":[]}
["UA","PP","PE","PRS"]
[{"$f":"_xlfn._xlws.SORT(_xlfn._xlws.FILTER(Tabla1[],(Tabla1[UA]=UA)*(Tabla1[PP]=PP)*(Tabla1[PE]=PE),\"\"),4,1)","v":{"$error":"#VALUE!"}}]

{"sheet":"Proyecto_Estrategico","index":6,"n_rows":107,"n_cols":4,"rows_kept":107,"cut":false,"hidden":true,"merged":[]}
["Proyecto estrategico"]
["AAM - Atención de los requerimientos de recursos humanos, financieros y administrativos que realizan las Unidades Administrativas del INAI, para el desarrollo de sus funciones."]
["Acciones para observar obligaciones y principios en materia de transparencia, acceso a la información y protección de datos personales."]
["Acompañamiento, monitoreo y capacitación a las unidades administrativas en su proceso de planeación y seguimiento institucional."]
["Actualización permanente de sujetos obligados (Autoridades Laborales, Sindicatos, Universidades, Personas Físicas y Morales), que causen alta, baja o deban modificarse en el padrón de sujetos obligados del ámbito federal."]
["Actualización y desarrollo de herramientas tecnológicas y cursos en línea síncrona y asíncrona, con enfoque de Derechos Humanos y perspectiva de género, cuando el caso lo amerite, para el fortalecimiento de las acciones de capacitación."]
["Admisión y orientación de denuncias"]
["Aplicación de instrumentos de investigación para conocer la percepción ciudadana y de los medios de comunicación acerca del quehacer y la identidad institucional, así como de los derechos tutelados por el INAI."]
["Atención a consultas realizadas por unidades administrativas del Instituto, hasta el punto de poder emitir una respuesta (incluyendo la consultoría jurídica de despachos externos especializados)."]
["Atención a las solicitudes de información."]
["Atención a los asuntos relacionados con la elaboración de convenios"]
["Atención a todos los asuntos que recibe la Dirección General."]
["Atención de asesorías técnicas, privilegiando el enfoque de derechos humanos."]
["Atención de asuntos que requieren compilación, sistematización y publicación en el Diario Oficial de la Federación."]
["Atención de juicios de amparo que son notificados por el Poder Judicial de la Federación, en los que es parte el Instituto."]
["Atención de los requerimientos de recursos humanos, financieros y administrativos que realizan las Unidades Administrativas del INAI, para el desarrollo de sus funciones."]
["Atención de requerimientos de desarrollo y/o mantenimiento de aplicaciones de software."]
["BLIC - Atención de los requerimientos de recursos humanos, financieros y administrativos que realizan las Unidades Administrativas del INAI, para el desarrollo de sus funciones."]
["Capacitación al CAS"]
["Caravana por la Transparencia y la Privacidad \"Mi CAS\"."]
["Coordinación de participación de personas servidoras públicas del INAI en foros internacionales y de eventos con componente internacional"]
["Cubrir actividades de capacitación para el personal del Órgano Interno de Control"]
["Cumplimiento del Programa Editorial"]
["Desahogo de esquemas de asistencia técnica."]
["Desarrollo de certámenes para la promoción de los derechos en sectores específicos de la población."]
["Desarrollo de funcionalidades y mantenimiento a las herramientas tecnológicas de datos abiertos"]
["Desarrollo de las sesiones de las Coordinaciones, Comisiones y Regiones del SNT y del Colegio Electoral"]
["Difusión de las sesiones públicas que lleva a cabo el Pleno del Instituto"]
["Dudas o consultas que formulan los organismos garantes respecto al cumplimiento de las obligaciones que emanan de la LGTAIP atendidas"]
["Ejecución de campaña institucional en medios para posicionar las atribuciones e identidad gráfica del Instituto."]
["Ejecución de la estrategia de transversalización de derechos humanos, igualdad, perspectiva de género, inclusión y No Discriminación al interior y exterior del INAI."]
["Elaboración de estudios y estándares de competencia en materia de protección de datos personales realizados, Incorporando apartados o secciones específicas en materia de derechos humanos, enfoque de género, y el principio de no  discriminación cuando su o"]
["Elaboración de material con perspectiva de género, enfoque de derechos humanos e interseccionalidad, para orientar a quienes son las personas responsables y encargadas en el cumplimiento de sus obligaciones en materia de protección de datos personales."]
["Elaboración de propuestas de opinión para una adecuada instrumentación internacional en materia de protección de datos personales, conforme a los parámetros constitucionales y convencionales adoptados en materia de derechos humanos, tomando en cuenta la t"]
["Elaboración de reportes, guías y herramientas en materia de Gobierno Abierto y Transparencia Proactiva"]
["Elaboración del Programa de Evaluación Anual, considerando un enfoque de derechos humanos."]
["Emisión de opiniones técnicas o proyectos de dictámenes de las evaluaciones de impacto en la protección de datos personales respecto de tratamientos intensivos o relevantes de datos personales, incluyendo aquéllos que involucren datos personales sensibles"]
["Evaluación de los Programas Nacionales del Sistema Nacional de Transparencia con perspectiva de género, lenguaje incluyente y no sexista desde un enfoque de derechos humanos."]
["Fiesta de la Verdad"]
["Fortalecimiento de la Red para la Utilidad Social de los Derechos Tutelados por el INAI."]
["Generación de espacios de participación ciudadana para fomentar publicación y uso de datos abiertos."]
["Gestión de la Firma Electrónica del  Instituto Nacional de Transparencia, Acceso a la Información y Protección de Datos Personales (FELINAI)"]
["Habilitación de servicios y provisión de soporte y mantenimiento a la operación e infraestructura de Tecnologías de la Información"]
["Homologación de la imagen institucional de los Servidores Públicos  del Órgano Interno de Control"]
["Impartición de asesorías especializadas a los SO de los sectores organismos públicos autónomos empresas paraestatales entidades financieras fondos y fideicomisos para el cumplimiento de sus obligaciones de transparencia y acceso a la información"]
["Implementación de los Programas Nacionales de Transparencia y Acceso a la Información y de Protección de Datos Personales (PROTAI-PRONADATOS, 2022-2026) del Sistema Nacional de Transparencia, que incluyan perspectiva de género, enfoque de derechos humanos",null,null,"AAM - Atención de los requerimientos de recursos humanos, financieros y administrativos que realizan las Unidades Administrativas del INAI, para el desarrollo de sus funciones."]
["Implementación de proyectos específicos de promoción en materia de transparencia, acceso a la información, protección de datos personales, gobierno abierto, gestión documental y archivos en coordinación con los Organismos garantes de las entidades federat",null,null,{"$f":"+VLOOKUP(D46,PY_PG,2,0)","v":{"$error":"#REF!"}}]
["Implementación del Servicio Profesional (SP) del INAI, con perspectiva de genero."]
["Implementación y coordinación del Programa de Sensibilidad de los Derechos (PROSEDE-INAI)."]
["Implementacioón, desarrollo y promoción de acciones de formación educativa con enfoque de derechos humanos y perspectiva de género en materia de los derechos de acceso a la información, protección de datos personales y temas transversales."]
["JRV - Atención de los requerimientos de recursos humanos, financieros y administrativos que realizan las Unidades Administrativas del INAI, para el desarrollo de sus funciones."]
["La generación de propuestas o actualización de instrumentos normativos en materia de protección de datos personales son desarrollados y dictaminados de forma interna incorporando una perspectiva de derechos humanos, el enfoque de derechos humanos  y el pr"]
["Levantamiento de la Cuarta Edición de la Métrica de Gobierno Abierto"]
["Lograr etapas de implementación y supervisión del PlanDAI a nivel nacional."]
["Medición de impacto en los medios a partir de las diversas comunicaciones generadas por el Instituto."]
["Monitoreo y Forensia Digital"]
["NJRV - Atención de los requerimientos de recursos humanos, financieros y administrativos que realizan las Unidades Administrativas del INAI, para el desarrollo de sus funciones."]
["Notificación de las resoluciones a medios de impugnación en materia de acceso a la información y protección de datos personales en posesión de sujetos obligados"]
["Organización de Concursos Nacionales en materia de transparencia, acceso a la información, protección de datos personales, gestión documental y archivos, en coordinación con los Organismos garantes de las entidades federativas y/o las Instancias del Siste"]
["Organización de talleres nacionales, regionales y locales (virtuales o presenciales), en materia de transparencia, acceso a la información, protección de datos personales, gestión documental, archivos y temas relacionados en coordinación con los Organismo"]
["Organización y conservación de Archivos del INAI."]
["Organización y participación en foros y eventos de gestión documental y archivos, en su caso, con perspectiva de género."]
["Organización y/o realización de eventos de promoción, tomando en cuenta la perspectiva de género, el enfoque de derechos humanos, con especial énfasis del reconocimiento de los derechos de los  grupos en situación de vulnerabilidad, en coordinación con lo"]
["Participación del INAI en la Alianza para el Gobierno Abierto (AGA)"]
["Pasajes para trámites del Órgano Interno de Control"]
["Pasajes para visitas de inspección necesarias relacionadas con la aplicación de la normatividad aplicable"]
["Presencia institucional en ferias para la promoción de los derechos de acceso a la información y protección de datos personales."]
["Presentación de publicaciones."]
["Preservación de seguridad de Tecnologías de la Información"]
["Producción de campañas de sensibilización de los derechos que tutela el Instituto contempladas en la Política General de Comunicación Social del año con lenguaje incluyente y no sexista."]
["Promoción de la educación cívica y cultura desde una perspectiva de género y con enfoque de derechos humanos para el ejercicio del derecho de protección de datos personales entre quienes son titulares."]
["Promoción y acompañamiento de las acciones realizadas por organismos garantes y sujetos obligados en materia de gobierno abierto y transparencia proactiva"]
["Publicación de los acuerdos aprobados en el Consejo Nacional del SNT en el Diario Oficial de la Federación."]
["Publicación y difusión de diagnósticos en materia de acceso a la información y protección de datos personales."]
["Realización de acciones de capacitación básica y especializada, presenciales y/o en línea síncrona con enfoque de derechos humanos, perspectiva de género y el uso del lenguaje incluyente, en materia de protección de datos personales y temas relacionados d"]
["Realización de acciones de capacitación básica, especializada y tallers de la Red en el ámbito federal, considerando el enfoque de Derechs Humanos y perspectiva de género, cuando el caso lo amerite, en la modalidad presencial y/o en línea síncrona, en mat"]
["Realización de acciones de capacitación, considerando el enfoque de Derechos humanos y perspectiva de género, cuando el caso lo amerite, impartidas en los estados en el marco del Sistema Nacional de Transparencia."]
["Realización de acciones para impulsar la autorregulación en el sector privado y las mejores prácticas en el sector público, considerando la perspectiva de género, transversalización y con enfoque de derechos humanos."]
["Realización de actividades de acompañamiento para el cumplimiento de la obligaciones de transparencia en los sujetos obligados de los Partidos Políticos, Organismos Descentralizados y el Instituto Nacional Electoral, considerando el enfoque de derechos hu"]
["Realización de actividades de acompañamiento para el cumplimiento de las obligaciones de transparencia, considerando el enfoque de derechos humanos y la perspectiva de género."]
["Realización de actividades derivadas de la Ley General de Archivos hacia los organismos garantes estatales y sujetos obligados."]
["Realización de actividades derivadas de las adhesiones, colaboraciones  y convenios establecidos entre el INAI y organismos nacionales e internacionales, e instituciones académicas en el ámbito de la gestión documental y archivos, y cuando así se requiera"]
["Realización de actividades en el marco de un Observatorio especializado que considerará como parte de su objeto de estudio y resultados, en su caso, el enfoque de derechos humanos y la perspectiva de género."]
["Realización de actividades especificas para promover la cultura de transparencia con perspectiva de género y lenguaje incluyente en la Administración Pública Centralizada y Tribunales Administrativos"]
["Realización de actividades especificas para promover la cultura de transparencia en los sujetos obligados de los poderes legislativo y judicial, considerando el enfoque de derechos humanos y la perspectiva de género."]
["Realización de actividades especificas para promover la cultura de transparencia en los sujetos obligados de los sectores organismos públicos autónomos, empresas paraestatales, entidades financieras, fondos y fideicomisos"]
["Realización de actividades específicas para promover la cultura de transparencia, considerando el enfoque de derechos humanos y la perspectiva de género."]
["Realización de actividades específicas para promover una cultura de transparencia en Autoridades Laborales, Sindicatos, Universidades, Personas Físicas y Morales, considerando el enfoque de derechos humanos y la perspectiva de género."]
["Realización de actividades para la conformación del Archivo Histórico del INAI y operación del Centro de Documentación Especializado en Transparencia, Acceso a la Información y Protección de Datos Personales."]
["Realización de coberturas informativas de actividades institucionales."]
["Realización de la Semana Nacional de Transparencia."]
["Realización de notificaciones."]
["Realización del Certamen a la Innovación en Transparencia."]
["Representación institucional del INAI en coordinación con los Organismos garantes de las entidades federativas y/o las Instancias del Sistema Nacional de Transparencia"]
["Revisión de resoluciones emitidas por el Pleno del Instituto en materia de protección de datos personales, para identificar criterios de interpretación, incorporando perspectiva de género, el enfoque de Derechos Humanos conforme a las políticas emitidas p"]
["Seguimiento a las vistas ordenadas por el Pleno del Instituto, en las resoluciones emitidas en los medios de impugnación a través de la atención de los requerimientos formulados por los órganos internos de control en los sujetos obligados y demás autorida"]
["Seguimiento de los Programas Nacionales de Transparencia y Acceso a la Información y de Protección de Datos Personales (PROTAI - PRONADATOS. 2022-2026), privilegiando la pespectiva de género, el enfoque de derechos humanos y la transversalización."]
["Sensibilización sobre Gobierno Abierto y Transparencia Proactiva"]
["Sensibilización y asistencia técnica a los sujetos obligados para la implementación de herramientas de datos abiertos y la definición de la apertura de datos relevantes."]
["Socialización del Modelo de Gestión Documental de la Red de Transparencia y Acceso a la Información (MGD-RTA) entre los sujetos obligados."]
["Sustanciación de los procedimientos sancionatorios en contra de presuntos infractores de sujetos obligados que no cuenten con el carácter de personas servidoras públicas ni sean partidos políticos."]
["Talleres y pláticas de sensibilización"]
["Trabajo en redes para cumplimiento de la Agenda Internacional."]
["Verificación de cumplimiento a las dimensiones de portales de obligaciones de transparencia, análisis de los atributos de la respuesta a las solicitudes de acceso a la información y capacidades de las Unidades de Transparencia."]
["Verificación de cumplimiento a las dimensiones de portales de obligaciones de transparencia, análisis de los atributos de la respuesta a las solicitudes de acceso a la información y capacidades de las Unidades de Transparencia; considerando el enfoque de"]
["Verificación del cumplimiento de las resoluciones en los medios de impugnación en materia de acceso a la información pública y protección de datos personales en posesión de sujetos obligados."]
["Verificación del cumplimiento de los criterios de las obligaciones de transparencia de los sujetos obligados de los sectores organismos públicos autónomos, empresas paraestatales, entidades financieras, fondos y fideicomisos"]

{"sheet":"PRS","index":7,"n_rows":84,"n_cols":1,"rows_kept":84,"cut":false,"hidden":true,"merged":[]}
["PRS"]
["GOA01.01"]
["GOA01.02"]
["GOA01.03"]
["GOA01.04"]
["GOA01.05"]
["GOA01.06"]
["GOA01.07"]
["GOA02.01"]
["GOA02.02"]
["GOA02.03"]
["GOA02.04"]
["GOA02.05"]
["GOA02.06"]
["GOA02.07"]
["GOA03.01"]
["GOA03.02"]
["GOA03.03"]
["GOA03.04"]
["GOA03.05"]
["GOA03.06"]
["GOA03.07"]
["GOA03.08"]
["GOA03.09"]
["GOA04.01"]
["GOA04.02"]
["GOA04.03"]
["GOA04.04"]
["GOA04.05"]
["GOA04.06"]
["GOA04.07"]
["GOA04.08"]
["GOA04.09"]
["GOA04.10"]
["GOA04.11"]
["GOA04.12"]
["GOA04.13"]
["GOA04.14"]
["GOA04.15"]
["GOA04.16"]
["GOA04.17"]
["GOA04.18"]
["GOA04.19"]
["GOA04.20"]
["GOA04.21"]
["GOA04.22"]
["GOA04.23"]
["GOA04.24"]
["GOA04.25"]
["GOA05.01"]
["GOA05.02"]
["GOA05.03"]
["GOA05.04"]
["GOA05.05"]
["GOA05.06"]
["GOA06.01"]
["GOA06.02"]
["GOA06.03"]
["GOA06.04"]
["GOA06.05"]
["GOA07.01"]
["GOA07.02"]
["GOA07.03"]
["GOA07.04"]
["GOA07.05"]
["GOA08.01"]
["GOA08.02"]
["GOA08.03"]
["GOA08.04"]
["GOA09.01"]
["GOA09.02"]
["GOA09.03"]
["GOA09.04"]
["GOA09.05"]
["GOA09.06"]
["GOA09.07"]
["GOA10.01"]
["GOA10.02"]
["GOA11.01"]
["GOA11.02"]
["GOA11.03"]
["GOA11.04"]
["GOA12.01"]
["PE01.01"]

{"sheet":"QR","index":8,"n_rows":9,"n_cols":61,"rows_kept":9,"cut":false,"hidden":true,"merged":[]}
[]
[null,"Unidad_Administrativa","Oficio","Asunto","Fecha","Destinatario","Viaticante","Puesto","No_Empleado","Area_Adscripcion","Clave_Area","Categoria","Clave_Puesto","Evento","Organizador","Hipervinculo","Tipo_comision","Tipo_Representacion","No_Acuerdo","Pais_Origen","Estado_Origen","Ciudad_Origen","Pais_Destino","Estado_Destino","Ciudad_Destino","Fecha_Hora_Salida","Fecha_Hora_Regreso","Observaciones_Comision","Tipo_Viaticos","Homologacion","Categoria_Homologacion","Motivo_Homologacion","Dias_Sin_Pernocta","Tarifa_Sin_Pernocta","Importe_Max_Sin_Pernocta","Dias_Pernocta","Tarifa_Pernocta","Importe_Max_Pernocta","Divisa","Tarifa_Max_Solicitar","Importe_Solicitado","Importe_Letra","Observaciones_Viaticos","UA","Clave_UA","PP","Clave_PP","PE","Clave_PE","Observaciones_UA","Firmante_Oficio","Puesto_Firmante","Ccp1","Ccp2","Ccp3","Ccp4","Ccp5","QR_Oficio","QR_Cancelacion","-QR","Longitud"]
[null,{"$f":"IF('1.- Oficio de comision'!$K5=\"\",\"\",'1.- Oficio de comision'!$K5)","v":""},{"$f":"IF('1.- Oficio de comision'!$K6=\"\",\"\",'1.- Oficio de comision'!$K6)","v":""},{"$f":"IF('1.- Oficio de comision'!$K7=\"\",\"\",'1.- Oficio de comision'!$K7)","v":""},{"$f":"IF('1.- Oficio de comision'!$K8=\"\",\"\",'1.- Oficio de comision'!$K8)","v":""},{"$f":"IF('1.- Oficio de comision'!E12=\"\",\"\",'1.- Oficio de comision'!E12)","v":"Mtra. Mónica López Sandoval"},{"$f":"IF('1.- Oficio de comision'!G20=\"\",\"\",'1.- Oficio de comision'!G20)","v":""},{"$f":"IF('1.- Oficio de comision'!G22=\"\",\"\",'1.- Oficio de comision'!G22)","v":""},{"$f":"IF('1.- Oficio de comision'!O22=\"\",\"\",'1.- Oficio de comision'!O22)","v":""},{"$f":"IF('1.- Oficio de comision'!G24=\"\",\"\",'1.- Oficio de comision'!G24)","v":""},{"$f":"IF('1.- Oficio de comision'!O24=\"\",\"\",'1.- Oficio de comision'!O24)","v":""},{"$f":"IF('1.- Oficio de comision'!G26=\"\",\"\",'1.- Oficio de comision'!G26)","v":"Titular de Dirección General"},{"$f":"IF('1.- Oficio de comision'!O26=\"\",\"\",'1.- Oficio de comision'!O26)","v":""},{"$f":"IF('1.- Oficio de comision'!G31=\"\",\"\",'1.- Oficio de comision'!G31)","v":""},{"$f":"IF('1.- Oficio de comision'!G33=\"\",\"\",'1.- Oficio de comision'!G33)","v":""},{"$f":"IF('1.- Oficio de comision'!G35=\"\",\"\",'1.- Oficio de comision'!G35)","v":""},{"$f":"IF('1.- Oficio de comision'!G37=\"\",\"\",'1.- Oficio de comision'!G37)","v":""},{"$f":"IF('1.- Oficio de comision'!K37=\"\",\"\",'1.- Oficio de comision'!K37)","v":""},{"$f":"IF('1.- Oficio de comision'!O37=\"\",\"\",'1.- Oficio de comision'!O37)","v":""},{"$f":"IF('1.- Oficio de comision'!G39=\"\",\"\",'1.- Oficio de comision'!G39)","v":""},{"$f":"IF('1.- Oficio de comision'!K39=\"\",\"\",'1.- Oficio de comision'!K39)","v":""},{"$f":"IF('1.- Oficio de comision'!O39=\"\",\"\",'1.- Oficio de comision'!O39)","v":""},{"$f":"IF('1.- Oficio de comision'!G41=\"\",\"\",'1.- Oficio de comision'!G41)","v":""},{"$f":"IF('1.- Oficio de comision'!H41=\"\",\"\",'1.- Oficio de comision'!H41)","v":""},{"$f":"IF('1.- Oficio de comision'!O41=\"\",\"\",'1.- Oficio de comision'!O41)","v":""},{"$f":"IF('1.- Oficio de comision'!G43=\"\",\"\",'1.- Oficio de comision'!G43)","v":""},{"$f":"IF('1.- Oficio de comision'!K43=\"\",\"\",'1.- Oficio de comision'!K43)","v":""},{"$f":"IF('1.- Oficio de comision'!G45=\"\",\"\",'1.- Oficio de comision'!G45)","v":""},{"$f":"IF('1.- Oficio de comision'!G50=\"\",\"\",'1.- Oficio de comision'!G50)","v":""},{"$f":"IF(Homo=\"\",\"\",Homo)","v":""},{"$f":"IF('1.- Oficio de comision'!O50=\"\",\"\",'1.- Oficio de comision'!O50)","v":""},{"$f":"IF('1.- Oficio de comision'!G52=\"\",\"\",'1.- Oficio de comision'!G52)","v":""},{"$f":"IF('1.- Oficio de comision'!H54=\"\",\"\",'1.- Oficio de comision'!H54)","v":""},{"$f":"IF('1.- Oficio de comision'!L54=\"\",\"\",'1.- Oficio de comision'!L54)","v":0},{"$f":"IF('1.- Oficio de comision'!P54=\"\",\"\",'1.- Oficio de comision'!P54)","v":0},{"$f":"IF('1.- Oficio de comision'!Q56=\"\",\"\",'1.- Oficio de comision'!Q56)","v":""},{"$f":"IF('1.- Oficio de comision'!L56=\"\",\"\",'1.- Oficio de comision'!L56)","v":0},{"$f":"IF('1.- Oficio de comision'!P56=\"\",\"\",'1.- Oficio de comision'!P56)","v":0},{"$f":"IF(DIVISA=\"\",\"\",DIVISA)","v":""},{"$f":"IF('1.- Oficio de comision'!L58=\"\",\"\",'1.- Oficio de comision'!L58)","v":0},{"$f":"IF('1.- Oficio de comision'!P58=\"\",\"\",'1.- Oficio de comision'!P58)","v":""},{"$f":"IF('1.- Oficio de comision'!G60=\"\",\"\",'1.- Oficio de comision'!G60)","v":"Favor de indicar divisa"},{"$f":"IF('1.- Oficio de comision'!H62=\"\",\"\",'1.- Oficio de comision'!H62)","v":""},{"$f":"IF('1.- Oficio de comision'!G67=\"\",\"\",'1.- Oficio de comision'!G67)","v":""},{"$f":"IF('1.- Oficio de comision'!O67=\"\",\"\",'1.- Oficio de comision'!O67)","v":""},{"$f":"IF('1.- Oficio de comision'!G69=\"\",\"\",'1.- Oficio de comision'!G69)","v":""},{"$f":"IF('1.- Oficio de comision'!O69=\"\",\"\",'1.- Oficio de comision'!O69)","v":""},{"$f":"IF('1.- Oficio de comision'!G71=\"\",\"\",'1.- Oficio de comision'!G71)","v":""},{"$f":"IF('1.- Oficio de comision'!O71=\"\",\"\",'1.- Oficio de comision'!O71)","v":""},{"$f":"IF('1.- Oficio de comision'!H73=\"\",\"\",'1.- Oficio de comision'!H73)","v":""},{"$f":"IF('1.- Oficio de comision'!E80=\"\",\"\",'1.- Oficio de comision'!E80)","v":""},{"$f":"IF('1.- Oficio de comision'!I81=\"\",\"\",'1.- Oficio de comision'!I81)","v":""},{"$f":"IF('1.- Oficio de comision'!E82=\"\",\"\",'1.- Oficio de comision'!E82)","v":""},{"$f":"IF('1.- Oficio de comision'!E84=\"\",\"\",'1.- Oficio de comision'!E84)","v":""},{"$f":"IF('1.- Oficio de comision'!#REF!=\"\",\"\",'1.- Oficio de comision'!#REF!)","v":{"$error":"#REF!"}},{"$f":"IF('1.- Oficio de comision'!E86=\"\",\"\",'1.- Oficio de comision'!E86)","v":""},{"$f":"IF('1.- Oficio de comision'!E87=\"\",\"\",'1.- Oficio de comision'!E87)","v":""},{"$f":"SUBSTITUTE(SUBSTITUTE(CONCATENATE(\"CO01.42|OC|\",Tabla27[[#This Row],[Oficio]],\"|\",Tabla27[[#This Row],[Unidad_Administrativa]],\"|\",Tabla27[[#This Row],[Asunto]],\"|\",Tabla27[[#This Row],[Fecha]],\"|\",Tabla27[[#This Row],[Destinatario]],\"|\",Tabla27[[#This Row],[Viaticante]],\"|\",Tabla27[[#This Row],[Puesto]],\"|\",Tabla27[[#This Row],[No_Empleado]],\"|\",Tabla27[[#This Row],[Area_Adscripcion]],\"|\",Tabla27[[#This Row],[Clave_Area]],\"|\",Tabla27[[#This Row],[Categoria]],\"|\",Tabla27[[#This Row],[Clave_Puesto]],\"|\",Tabla27[[#This Row],[Evento]],\"|\",Tabla27[[#This Row],[Organizador]],\"|\",Tabla27[[#This Row],[Hipervinculo]],\"|\",Tabla27[[#This Row],[Tipo_comision]],\"|\",Tabla27[[#This Row],[Tipo_Representacion]],\"|\",Tabla27[[#This Row],[No_Acuerdo]],\"|\",Tabla27[[#This Row],[Pais_Origen]],\"|\",Tabla27[[#This Row],[Estado_Origen]],\"|\",Tabla27[[#This Row],[Ciudad_Origen]],\"|\",Tabla27[[#This Row],[Pais_Destino]],\"|\",Tabla27[[#This Row],[Estado_Destino]],\"|\",Tabla27[[#This Row],[Ciudad_Destino]],\"|\",Tabla27[[#This Row],[Fecha_Hora_Salida]],\"|\",Tabla27[[#This Row],[Fecha_Hora_Regreso]],\"|\",Tabla27[[#This Row],[Observaciones_Comision]],\"|\",Tabla27[[#This Row],[Tipo_Viaticos]],\"|\",Tabla27[[#This Row],[Homologacion]],\"|\",Tabla27[[#This Row],[Categoria_Homologacion]],\"|\",Tabla27[[#This Row],[Motivo_Homologacion]],\"|\",Tabla27[[#This Row],[Dias_Sin_Pernocta]],\"|\",Tabla27[[#This Row],[Tarifa_Sin_Pernocta]],\"|\",Tabla27[[#This Row],[Importe_Max_Sin_Pernocta]],\"|\",Tabla27[[#This Row],[Dias_Pernocta]],\"|\",Tabla27[[#This Row],[Tarifa_Pernocta]],\"|\",Tabla27[[#This Row],[Importe_Max_Pernocta]],\"|\",Tabla27[[#This Row],[Divisa]],\"|\",Tabla27[[#This Row],[Tarifa_Max_Solicitar]],\"|\",Tabla27[[#This Row],[Importe_Solicitado]],\"|\",Tabla27[[#This Row],[Importe_Letra]],\"|\",Tabla27[[#This Row],[Observaciones_Viaticos]],\"|\",Tabla27[[#This Row],[UA]],\"|\",Tabla27[[#This Row],[Clave_UA]],\"|\",Tabla27[[#This Row],[PP]],\"|\",Tabla27[[#This Row],[Clave_PP]],\"|\",Tabla27[[#This Row],[PE]],\"|\",Tabla27[[#This Row],[Clave_PE]],\"|\",Tabla27[[#This Row],[Observaciones_UA]],\"|\",Tabla27[[#This Row],[Firmante_Oficio]],\"|\",Tabla27[[#This Row],[Puesto_Firmante]],\"|\",Tabla27[[#This Row],[Ccp1]],\"|\",Tabla27[[#This Row],[Ccp2]],\"|\",Tabla27[[#This Row],[Ccp3]],\"|\",Tabla27[[#This Row],[Ccp4]],\"|\",Tabla27[[#This Row],[Ccp5]]),\"\"\"\",\"\"),\":\",\"\")","v":{"$error":"#REF!"}},{"$f":"SUBSTITUTE(SUBSTITUTE(CONCATENATE(\"CO01.42|OCa|\",Tabla27[[#This Row],[Oficio]],\"|\",Tabla27[[#This Row],[Unidad_Administrativa]],\"|\",Tabla27[[#This Row],[Asunto]],\"|\",Tabla27[[#This Row],[Fecha]],\"|\",Tabla27[[#This Row],[Destinatario]],\"|\",Tabla27[[#This Row],[Viaticante]],\"|\",Tabla27[[#This Row],[Puesto]],\"|\",Tabla27[[#This Row],[No_Empleado]],\"|\",Tabla27[[#This Row],[Area_Adscripcion]],\"|\",Tabla27[[#This Row],[Clave_Area]],\"|\",Tabla27[[#This Row],[Categoria]],\"|\",Tabla27[[#This Row],[Clave_Puesto]],\"|\",Tabla27[[#This Row],[Evento]],\"|\",Tabla27[[#This Row],[Organizador]],\"|\",Tabla27[[#This Row],[Hipervinculo]],\"|\",Tabla27[[#This Row],[Tipo_comision]],\"|\",Tabla27[[#This Row],[Tipo_Representacion]],\"|\",Tabla27[[#This Row],[No_Acuerdo]],\"|\",Tabla27[[#This Row],[Pais_Origen]],\"|\",Tabla27[[#This Row],[Estado_Origen]],\"|\",Tabla27[[#This Row],[Ciudad_Origen]],\"|\",Tabla27[[#This Row],[Pais_Destino]],\"|\",Tabla27[[#This Row],[Estado_Destino]],\"|\",Tabla27[[#This Row],[Ciudad_Destino]],\"|\",Tabla27[[#This Row],[Fecha_Hora_Salida]],\"|\",Tabla27[[#This Row],[Fecha_Hora_Regreso]],\"|\",Tabla27[[#This Row],[Observaciones_Comision]],\"|\",Tabla27[[#This Row],[Tipo_Viaticos]],\"|\",Tabla27[[#This Row],[Homologacion]],\"|\",Tabla27[[#This Row],[Categoria_Homologacion]],\"|\",Tabla27[[#This Row],[Motivo_Homologacion]],\"|\",Tabla27[[#This Row],[Dias_Sin_Pernocta]],\"|\",Tabla27[[#This Row],[Tarifa_Sin_Pernocta]],\"|\",Tabla27[[#This Row],[Importe_Max_Sin_Pernocta]],\"|\",Tabla27[[#This Row],[Dias_Pernocta]],\"|\",Tabla27[[#This Row],[Tarifa_Pernocta]],\"|\",Tabla27[[#This Row],[Importe_Max_Pernocta]],\"|\",Tabla27[[#This Row],[Divisa]],\"|\",Tabla27[[#This Row],[Tarifa_Max_Solicitar]],\"|\",Tabla27[[#This Row],[Importe_Solicitado]],\"|\",Tabla27[[#This Row],[Importe_Letra]],\"|\",Tabla27[[#This Row],[Observaciones_Viaticos]],\"|\",Tabla27[[#This Row],[UA]],\"|\",Tabla27[[#This Row],[Clave_UA]],\"|\",Tabla27[[#This Row],[PP]],\"|\",Tabla27[[#This Row],[Clave_PP]],\"|\",Tabla27[[#This Row],[PE]],\"|\",Tabla27[[#This Row],[Clave_PE]],\"|\",Tabla27[[#This Row],[Observaciones_UA]],\"|\",Tabla27[[#This Row],[Firmante_Oficio]],\"|\",Tabla27[[#This Row],[Puesto_Firmante]],\"|\",Tabla27[[#This Row],[Ccp1]],\"|\",Tabla27[[#This Row],[Ccp2]],\"|\",Tabla27[[#This Row],[Ccp3]],\"|\",Tabla27[[#This Row],[Ccp4]],\"|\",Tabla27[[#This Row],[Ccp5]]),\"\"\"\",\"\"),\":\",\"\")","v":{"$error":"#REF!"}},"–—y\u007fsT\u007f|˜ÅÂÂœ†¡q‹‡TtÅ¬´µ¶®º¯Å—“a˜}d \u0090„d•˜p\u0090ŽOv|½\u0090¾»­Æ±=¼e\u0081o¡‰Ç¶¶\u0090¸Ä½Ž\u008dYv€½\u008f´¼®´µ7¼egÄ·ŒÅ´Ç\u008d²r‰ÃÅŒd–¢Æ¾À¥¿Ä­´Á\u0081Ë¯œºË¶œ†º°À¾’©¼¢m|n‡»·¯³·œž\u0090SÕËÑœ‘³¤ÃÈŽ¥µ½\u009d¾¼©Á¼®ÊÁaµµ\u0081Ç¸È”%À½ÖÕa°«¢»¸¯ÀÏÄ}‚~R†|RŽË‰UuŠyÖÕa²½ª°¸¾¥··¼Ê›e¡’a\u009d”§o¿\u009d‚ŽÕœÀ{v‚\u007fÊvˆ}yÊÁT…~PÕ€‹Uy‚qŠÕe™›½~…ƒ|ˆ}yÊÁœË’‰Ë´¸ƒ¬F¯z …²®³®»n¨¸hŠ²²‰½·“ÍÁ¶ƒ¬F¯zÕRuy½‘´Á©À¸®@´@¾À‡º½¾š¤µªÉÇ\u0081°iºm¼½¨¸´¸n®ŽÂÂ‰ÍÄ¸‰²À¢Æy\u008f¶²¦»Ã¯¨Âhªn·…ÂÃŒÍ°¹\u008f¶r¤ÉÇ@©·§¼ÀÃ©s¬®n©…Á³ƒÁ¾È@«Ç®»Ç\u008f·iºm¿³¶Æ¸®±¹‰Å¯@½´u‡-À¦ÌÈœ‰yq\u0081ËÊÀ¡·»»¦@™ÃŒÂ´É\u0081c¨¦È¾‡¥¼a±´ºd¥6¸ÊÁv¸±”ÈÁua¯´¦ÌÍ\u008fdŒ¢º°À©Á©i‘¦\u008d¿½“y|u„ªº¨Ä¿‡¬³¬³·¶«»°¯¸Áv¸±”ÈÁua¯´¦ÌÍ\u008fdŒ¢º°À©Á©i‘¦\u008d¿½“y|u„ªº¨Ä¿‡¬³¬³·¶«»°¯¸Áv¸±”ÈÁua¯´¦ÌÍ\u008fdŒ¢º°À©Á©i‘¦\u008d¿½“y|u„ªº¨Ä¿‡¬³¬³·¶«»°¯¸Áv¸±”ÈÁua¯´¦ÌÍ\u008fdŒ¢º°À©Á©i‘¦\u008d¿½“y|u„ªº¨Ä¿‡¬³¬³·¶«",{"$f":"+LEN(Tabla27[[#This Row],[-QR]])","v":676}]
[]
[null,"Oficio","Fecha_Desglose","Divisa","Importe_Solicitado","Importe_Otorgado","Tipo_Cambio","Viaticos_Devengados","Observaciones_Viaticos","Tipo_Pasajes","Oficio_Relacionado","Vehiculo_Utilizado","Importe_Pasajes","Observaciones_Pasajes","Comprobados_Efectivo","Comprobados_TCC","Comprobados_TDD","Comprobados_TDE","Comprobados_TDC","Comprobados_Total","No Comprobados_Efectivo","No Comprobados_TCC","No Comprobados_TDD","No Comprobados_TDE","No Comprobados_TDC","No Comprobados_Total","Pasajes_Efectivo","Pasajes_TCC","Pasajes_TDD","Pasajes_TDE","Pasajes_TDC","Pasajes_Total","Total_Efectivo","Total_TCC","Total_TDD","Total_TDE","Total_TDC","Total_Totales","Total_Viaticos","Reintegro_Reembolso","Folio_Reintegro","Firmante","Puesto_firmante","Gastos","QR_Desglose","-QR_Desglose","Longitud"]
[null,{"$f":"IF(Encabezado_Oficio=\"\",\"\",Encabezado_Oficio)","v":""},{"$f":"IF(Fecha_Comprobacion=\"\",\"\",Fecha_Comprobacion)","v":""},{"$f":"IF(DIVISA=\"\",\"\",DIVISA)","v":""},{"$f":"IF('2.- Desglose de gastos'!H42=\"\",\"\",'2.- Desglose de gastos'!H42)","v":0},{"$f":"IF('2.- Desglose de gastos'!H44=\"\",\"\",'2.- Desglose de gastos'!H44)","v":""},{"$f":"IF('2.- Desglose de gastos'!H46=\"\",\"\",'2.- Desglose de gastos'!H46)","v":1},{"$f":"IF('2.- Desglose de gastos'!H48=\"\",\"\",'2.- Desglose de gastos'!H48)","v":0},{"$f":"IF('2.- Desglose de gastos'!G50=\"\",\"\",'2.- Desglose de gastos'!G50)","v":""},{"$f":"IF('2.- Desglose de gastos'!G55=\"\",\"\",'2.- Desglose de gastos'!G55)","v":""},{"$f":"IF('2.- Desglose de gastos'!K55=\"\",\"\",'2.- Desglose de gastos'!K55)","v":""},{"$f":"IF('2.- Desglose de gastos'!O55=\"\",\"\",'2.- Desglose de gastos'!O55)","v":""},{"$f":"IF('2.- Desglose de gastos'!H57=\"\",\"\",'2.- Desglose de gastos'!H57)","v":""},{"$f":"IF('2.- Desglose de gastos'!G59=\"\",\"\",'2.- Desglose de gastos'!G59)","v":""},{"$f":"IF('2.- Desglose de gastos'!G73=\"\",\"\",'2.- Desglose de gastos'!G73)","v":0},{"$f":"IF('2.- Desglose de gastos'!G75=\"\",\"\",'2.- Desglose de gastos'!G75)","v":0},{"$f":"IF('2.- Desglose de gastos'!G77=\"\",\"\",'2.- Desglose de gastos'!G77)","v":0},{"$f":"IF('2.- Desglose de gastos'!G79=\"\",\"\",'2.- Desglose de gastos'!G79)","v":0},{"$f":"IF('2.- Desglose de gastos'!G81=\"\",\"\",'2.- Desglose de gastos'!G81)","v":0},{"$f":"IF('2.- Desglose de gastos'!G85=\"\",\"\",'2.- Desglose de gastos'!G85)","v":0},{"$f":"IF('2.- Desglose de gastos'!J73=\"\",\"\",'2.- Desglose de gastos'!J73)","v":0},{"$f":"IF('2.- Desglose de gastos'!J75=\"\",\"\",'2.- Desglose de gastos'!J75)","v":0},{"$f":"IF('2.- Desglose de gastos'!J77=\"\",\"\",'2.- Desglose de gastos'!J77)","v":0},{"$f":"IF('2.- Desglose de gastos'!J79=\"\",\"\",'2.- Desglose de gastos'!J79)","v":0},{"$f":"IF('2.- Desglose de gastos'!J81=\"\",\"\",'2.- Desglose de gastos'!J81)","v":0},{"$f":"IF('2.- Desglose de gastos'!J85=\"\",\"\",'2.- Desglose de gastos'!J85)","v":0},{"$f":"IF('2.- Desglose de gastos'!M73=\"\",\"\",'2.- Desglose de gastos'!M73)","v":0},{"$f":"IF('2.- Desglose de gastos'!M75=\"\",\"\",'2.- Desglose de gastos'!M75)","v":0},{"$f":"IF('2.- Desglose de gastos'!M77=\"\",\"\",'2.- Desglose de gastos'!M77)","v":0},{"$f":"IF('2.- Desglose de gastos'!M79=\"\",\"\",'2.- Desglose de gastos'!M79)","v":0},{"$f":"IF('2.- Desglose de gastos'!M81=\"\",\"\",'2.- Desglose de gastos'!M81)","v":0},{"$f":"+IF('2.- Desglose de gastos'!M85=\"\",\"\",'2.- Desglose de gastos'!M85)","v":0},{"$f":"IF('2.- Desglose de gastos'!P73=\"\",\"\",'2.- Desglose de gastos'!P73)","v":0},{"$f":"IF('2.- Desglose de gastos'!P75=\"\",\"\",'2.- Desglose de gastos'!P75)","v":0},{"$f":"IF('2.- Desglose de gastos'!P77=\"\",\"\",'2.- Desglose de gastos'!P77)","v":0},{"$f":"IF('2.- Desglose de gastos'!P79=\"\",\"\",'2.- Desglose de gastos'!P79)","v":0},{"$f":"+IF('2.- Desglose de gastos'!P81=\"\",\"\",'2.- Desglose de gastos'!P81)","v":0},{"$f":"+IF('2.- Desglose de gastos'!P85=\"\",\"\",'2.- Desglose de gastos'!P85)","v":0},{"$f":"IF('2.- Desglose de gastos'!G87=\"\",\"\",'2.- Desglose de gastos'!G87)","v":0},{"$f":"IF('2.- Desglose de gastos'!G98=\"\",\"\",'2.- Desglose de gastos'!G98)","v":0},{"$f":"IF(No_Reintegro=\"\",\"\",No_Reintegro)","v":""},{"$f":"IF('2.- Desglose de gastos'!E108=\"\",\"\",'2.- Desglose de gastos'!E108)","v":""},{"$f":"IF('2.- Desglose de gastos'!E109=\"\",\"\",'2.- Desglose de gastos'!E109)","v":""},"01/01/2023|Otros viáticos|E|Si|Factura||USD|1500456|0.01|15004.56||01/01/2023|Alimentos|TCC|Si|Factura||AED|154245|0.0102|1573.299||",{"$f":"SUBSTITUTE(SUBSTITUTE(CONCATENATE(\"CO01.42|DG|\",Tabla57[[#This Row],[Oficio]],\"|\",Tabla57[[#This Row],[Fecha_Desglose]],\"|\",Tabla57[[#This Row],[Divisa]],\"|\",Tabla57[[#This Row],[Importe_Solicitado]],\"|\",Tabla57[[#This Row],[Tipo_Cambio]],\"|\",Tabla57[[#This Row],[Viaticos_Devengados]],\"|\",Tabla57[[#This Row],[Observaciones_Viaticos]],\"|\",Tabla57[[#This Row],[Tipo_Pasajes]],\"|\",Tabla57[[#This Row],[Oficio_Relacionado]],\"|\",Tabla57[[#This Row],[Vehiculo_Utilizado]],\"|\",Tabla57[[#This Row],[Importe_Pasajes]],\"|\",Tabla57[[#This Row],[Observaciones_Pasajes]],\"|\",Tabla57[[#This Row],[Comprobados_Efectivo]],\"|\",Tabla57[[#This Row],[Comprobados_TCC]],\"|\",Tabla57[[#This Row],[Comprobados_TDD]],\"|\",Tabla57[[#This Row],[Comprobados_TDE]],\"|\",Tabla57[[#This Row],[Comprobados_TDC]],\"|\",Tabla57[[#This Row],[Comprobados_Total]],\"|\",Tabla57[[#This Row],[No Comprobados_Efectivo]],\"|\",Tabla57[[#This Row],[No Comprobados_TCC]],\"|\",Tabla57[[#This Row],[No Comprobados_TDD]],\"|\",Tabla57[[#This Row],[No Comprobados_TDE]],\"|\",Tabla57[[#This Row],[No Comprobados_TDC]],\"|\",Tabla57[[#This Row],[No Comprobados_Total]],\"|\",Tabla57[[#This Row],[Pasajes_Efectivo]],\"|\",Tabla57[[#This Row],[Pasajes_TCC]],\"|\",Tabla57[[#This Row],[Pasajes_TDD]],\"|\",Tabla57[[#This Row],[Pasajes_TDE]],\"|\",Tabla57[[#This Row],[Pasajes_TDC]],\"|\",Tabla57[[#This Row],[Pasajes_Total]],\"|\",Tabla57[[#This Row],[Total_Efectivo]],\"|\",Tabla57[[#This Row],[Total_TCC]],\"|\",Tabla57[[#This Row],[Total_TDD]],\"|\",Tabla57[[#This Row],[Total_TDE]],\"|\",Tabla57[[#This Row],[Total_TDC]],\"|\",Tabla57[[#This Row],[Total_Totales]],\"|\",Tabla57[[#This Row],[Total_Viaticos]],\"|\",Tabla57[[#This Row],[Reintegro_Reembolso]],\"|\",Tabla57[[#This Row],[Folio_Reintegro]],\"|\",Tabla57[[#This Row],[Firmante]],\"|\",Tabla57[[#This Row],[Puesto_firmante]],\"|\",Tabla57[[#This Row],[Gastos]]),\"\"\"\",\"\"),\":\",\"\")","v":"CO01.42|DG||||0|1|0|||||||0|0|0|0|0|0|0|0|0|0|0|0|0|0|0|0|0|0|0|0|0|0|0|0|0|0||||01/01/2023|Otros viáticos|E|Si|Factura||USD|1500456|0.01|15004.56||01/01/2023|Alimentos|TCC|Si|Factura||AED|154245|0.0102|1573.299||"},null,{"$f":"+LEN(Tabla57[[#This Row],[QR_Desglose]])","v":213},null,null,null,null,null,null,null,null,{"$f":"+REPT(\"A\",BD5)","v":""}]
[]
[null,"Oficio","Fecha_Informe","Obj_Estrategico","Obj_Especifico","Tema","Motivo","Actividades","Contribuciones","Conclusiones","Vinculos","Documentos","Servidor_Publico","Puesto","QR_Informe",null,null,null,null,null,null,null,null,null,null,null,null,null,null,null,null,null,null,null,null,null,null,null,null,null,null,null,null,null,null,null,null,null,null,null,null,{"$f":"+URL_QRCode_SERIES(\"A\",\"5566056617\",,,1)","v":{"$error":"#VALUE!"}}]
[null,{"$f":"+Encabezado_Oficio","v":0},{"$f":"+'3.- Informe de comision'!Fecha_Comprobacion","v":""},{"$f":"IF('3.- Informe de comision'!G42=\"\",\"\",'3.- Informe de comision'!G42)","v":""},{"$f":"IF('3.- Informe de comision'!G44=\"\",\"\",'3.- Informe de comision'!G44)","v":""},{"$f":"IF('3.- Informe de comision'!G46=\"\",\"\",'3.- Informe de comision'!G46)","v":""},{"$f":"IF('3.- Informe de comision'!G48=\"\",\"\",'3.- Informe de comision'!G48)","v":""},{"$f":"IF('3.- Informe de comision'!G53=\"\",\"\",'3.- Informe de comision'!G53)","v":""},{"$f":"IF('3.- Informe de comision'!G55=\"\",\"\",'3.- Informe de comision'!G55)","v":""},{"$f":"IF('3.- Informe de comision'!G57=\"\",\"\",'3.- Informe de comision'!G57)","v":""},{"$f":"IF('3.- Informe de comision'!G59=\"\",\"\",'3.- Informe de comision'!G59)","v":""},{"$f":"IF('3.- Informe de comision'!G61=\"\",\"\",'3.- Informe de comision'!G61)","v":""},{"$f":"IF('3.- Informe de comision'!H65=\"\",\"\",'3.- Informe de comision'!H65)","v":""},{"$f":"IF('3.- Informe de comision'!H66=\"\",\"\",'3.- Informe de comision'!H66)","v":""},{"$f":"SUBSTITUTE(SUBSTITUTE(CONCATENATE(\"CO01.42|IC|\",Tabla64[[#This Row],[Oficio]],\"|\",Tabla64[[#This Row],[Fecha_Informe]],\"|\",Tabla64[[#This Row],[Obj_Estrategico]],\"|\",Tabla64[[#This Row],[Obj_Especifico]],\"|\",Tabla64[[#This Row],[Tema]],\"|\",Tabla64[[#This Row],[Motivo]],\"|\",Tabla64[[#This Row],[Actividades]],\"|\",Tabla64[[#This Row],[Contribuciones]],\"|\",Tabla64[[#This Row],[Conclusiones]],\"|\",Tabla64[[#This Row],[Vinculos]],\"|\",Tabla64[[#This Row],[Documentos]],\"|\",Tabla64[[#This Row],[Servidor_Publico]],\"|\",Tabla64[[#This Row],[Puesto]]),\"\"\"\",\"\"),\":\",\"\")","v":"CO01.42|IC|0||||||||||||"}]

{"sheet":"Nacionales","index":9,"n_rows":32,"n_cols":50,"rows_kept":32,"cut":false,"hidden":true,"merged":[]}
[]
[null,"Tipo"]
[null,"Factura"]
[null,"Ticket"]
[null,"Nota"]
[null,"Edo. Cuenta"]
[null,"No aplica"]
[]
[null,"Tipo","TCC","TDD","TDE","TDC","E","Transfer. INAI","Por tercero","Suma",null,"Tipo","TCC","TDD","TDE","TDC","E","Transfer. INAI","Por tercero","Suma",null,"Tipo","TCC","TDD","TDE","TDC","E","Transfer. INAI","Por tercero","Suma",null,"Tipo","TCC","TDD","TDE","TDC","E","Transfer. INAI","Por tercero","Suma",null,"Tipo","TCC","TDD","TDE","TDC","E","Transfer. INAI","Por tercero","Suma"]
[null,"Alimentos",{"$f":"+SUMIFS(Tabla33[Importe en\npesos],Tabla33[Presenta\ncomprobante],\"Si\",Tabla33[Forma\nde pago],Tabla41[[#Headers],[TCC]],Tabla33[Concepto],Tabla41[[#This Row],[Tipo]],Tabla33[Tipo\ncomprobante],Nacionales!$B$3)","v":0},{"$f":"+SUMIFS(Tabla33[Importe en\npesos],Tabla33[Presenta\ncomprobante],\"Si\",Tabla33[Forma\nde pago],Tabla41[[#Headers],[TDD]],Tabla33[Concepto],Tabla41[[#This Row],[Tipo]],Tabla33[Tipo\ncomprobante],Nacionales!$B$3)","v":0},{"$f":"+SUMIFS(Tabla33[Importe en\npesos],Tabla33[Presenta\ncomprobante],\"Si\",Tabla33[Forma\nde pago],Tabla41[[#Headers],[TDE]],Tabla33[Concepto],Tabla41[[#This Row],[Tipo]],Tabla33[Tipo\ncomprobante],Nacionales!$B$3)","v":0},{"$f":"+SUMIFS(Tabla33[Importe en\npesos],Tabla33[Presenta\ncomprobante],\"Si\",Tabla33[Forma\nde pago],Tabla41[[#Headers],[TDC]],Tabla33[Concepto],Tabla41[[#This Row],[Tipo]],Tabla33[Tipo\ncomprobante],Nacionales!$B$3)","v":0},{"$f":"+SUMIFS(Tabla33[Importe en\npesos],Tabla33[Presenta\ncomprobante],\"Si\",Tabla33[Forma\nde pago],Tabla41[[#Headers],[E]],Tabla33[Concepto],Tabla41[[#This Row],[Tipo]],Tabla33[Tipo\ncomprobante],Nacionales!$B$3)","v":0},{"$f":"+SUMIFS(Tabla33[Importe en\npesos],Tabla33[Presenta\ncomprobante],\"Si\",Tabla33[Forma\nde pago],Tabla41[[#Headers],[Transfer. INAI]],Tabla33[Concepto],Tabla41[[#This Row],[Tipo]],Tabla33[Tipo\ncomprobante],Nacionales!$B$3)","v":0},{"$f":"+SUMIFS(Tabla33[Importe en\npesos],Tabla33[Presenta\ncomprobante],\"Si\",Tabla33[Forma\nde pago],Tabla41[[#Headers],[Por tercero]],Tabla33[Concepto],Tabla41[[#This Row],[Tipo]],Tabla33[Tipo\ncomprobante],Nacionales!$B$3)","v":0},{"$f":"+SUM(Tabla41[[#This Row],[TCC]:[E]])","v":0},null,"Alimentos",{"$f":"+SUMIFS(Tabla33[Importe en\npesos],Tabla33[Forma\nde pago],Tabla4144[[#Headers],[TCC]],Tabla33[Concepto],Tabla4144[[#This Row],[Tipo]],Tabla33[Tipo\ncomprobante],Nacionales!$B$4)","v":0},{"$f":"+SUMIFS(Tabla33[Importe en\npesos],Tabla33[Forma\nde pago],Tabla4144[[#Headers],[TDD]],Tabla33[Concepto],Tabla4144[[#This Row],[Tipo]],Tabla33[Tipo\ncomprobante],Nacionales!$B$4)","v":0},{"$f":"+SUMIFS(Tabla33[Importe en\npesos],Tabla33[Forma\nde pago],Tabla4144[[#Headers],[TDE]],Tabla33[Concepto],Tabla4144[[#This Row],[Tipo]],Tabla33[Tipo\ncomprobante],Nacionales!$B$4)","v":0},{"$f":"+SUMIFS(Tabla33[Importe en\npesos],Tabla33[Forma\nde pago],Tabla4144[[#Headers],[TDC]],Tabla33[Concepto],Tabla4144[[#This Row],[Tipo]],Tabla33[Tipo\ncomprobante],Nacionales!$B$4)","v":0},{"$f":"+SUMIFS(Tabla33[Importe en\npesos],Tabla33[Forma\nde pago],Tabla4144[[#Headers],[E]],Tabla33[Concepto],Tabla4144[[#This Row],[Tipo]],Tabla33[Tipo\ncomprobante],Nacionales!$B$4)","v":0},{"$f":"+SUMIFS(Tabla33[Importe en\npesos],Tabla33[Forma\nde pago],Tabla4144[[#Headers],[Transfer. INAI]],Tabla33[Concepto],Tabla4144[[#This Row],[Tipo]],Tabla33[Tipo\ncomprobante],Nacionales!$B$4)","v":0},{"$f":"+SUMIFS(Tabla33[Importe en\npesos],Tabla33[Forma\nde pago],Tabla4144[[#Headers],[Por tercero]],Tabla33[Concepto],Tabla4144[[#This Row],[Tipo]],Tabla33[Tipo\ncomprobante],Nacionales!$B$4)","v":0},{"$f":"+SUM(Tabla4144[[#This Row],[TCC]:[E]])","v":0},null,"Alimentos",{"$f":"+SUMIFS(Tabla33[Importe en\npesos],Tabla33[Forma\nde pago],Tabla4146[[#Headers],[TCC]],Tabla33[Concepto],Tabla4146[[#This Row],[Tipo]],Tabla33[Tipo\ncomprobante],Nacionales!$B$5)","v":0},{"$f":"+SUMIFS(Tabla33[Importe en\npesos],Tabla33[Forma\nde pago],Tabla4146[[#Headers],[TDD]],Tabla33[Concepto],Tabla4146[[#This Row],[Tipo]],Tabla33[Tipo\ncomprobante],Nacionales!$B$5)","v":0},{"$f":"+SUMIFS(Tabla33[Importe en\npesos],Tabla33[Forma\nde pago],Tabla4146[[#Headers],[TDE]],Tabla33[Concepto],Tabla4146[[#This Row],[Tipo]],Tabla33[Tipo\ncomprobante],Nacionales!$B$5)","v":0},{"$f":"+SUMIFS(Tabla33[Importe en\npesos],Tabla33[Forma\nde pago],Tabla4146[[#Headers],[TDC]],Tabla33[Concepto],Tabla4146[[#This Row],[Tipo]],Tabla33[Tipo\ncomprobante],Nacionales!$B$5)","v":0},{"$f":"+SUMIFS(Tabla33[Importe en\npesos],Tabla33[Forma\nde pago],Tabla4146[[#Headers],[E]],Tabla33[Concepto],Tabla4146[[#This Row],[Tipo]],Tabla33[Tipo\ncomprobante],Nacionales!$B$5)","v":0},{"$f":"+SUMIFS(Tabla33[Importe en\npesos],Tabla33[Forma\nde pago],Tabla4146[[#Headers],[Transfer. INAI]],Tabla33[Concepto],Tabla4146[[#This Row],[Tipo]],Tabla33[Tipo\ncomprobante],Nacionales!$B$5)","v":0},{"$f":"+SUMIFS(Tabla33[Importe en\npesos],Tabla33[Forma\nde pago],Tabla4146[[#Headers],[Por tercero]],Tabla33[Concepto],Tabla4146[[#This Row],[Tipo]],Tabla33[Tipo\ncomprobante],Nacionales!$B$5)","v":0},{"$f":"+SUM(Tabla4146[[#This Row],[TCC]:[E]])","v":0},null,"Alimentos",{"$f":"+SUMIFS(Tabla33[Importe en\npesos],Tabla33[Forma\nde pago],Tabla4148[[#Headers],[TCC]],Tabla33[Concepto],Tabla4148[[#This Row],[Tipo]],Tabla33[Tipo\ncomprobante],Nacionales!$B$6)","v":0},{"$f":"+SUMIFS(Tabla33[Importe en\npesos],Tabla33[Forma\nde pago],Tabla4148[[#Headers],[TDD]],Tabla33[Concepto],Tabla4148[[#This Row],[Tipo]],Tabla33[Tipo\ncomprobante],Nacionales!$B$6)","v":0},{"$f":"+SUMIFS(Tabla33[Importe en\npesos],Tabla33[Forma\nde pago],Tabla4148[[#Headers],[TDE]],Tabla33[Concepto],Tabla4148[[#This Row],[Tipo]],Tabla33[Tipo\ncomprobante],Nacionales!$B$6)","v":0},{"$f":"+SUMIFS(Tabla33[Importe en\npesos],Tabla33[Forma\nde pago],Tabla4148[[#Headers],[TDC]],Tabla33[Concepto],Tabla4148[[#This Row],[Tipo]],Tabla33[Tipo\ncomprobante],Nacionales!$B$6)","v":0},{"$f":"+SUMIFS(Tabla33[Importe en\npesos],Tabla33[Forma\nde pago],Tabla4148[[#Headers],[E]],Tabla33[Concepto],Tabla4148[[#This Row],[Tipo]],Tabla33[Tipo\ncomprobante],Nacionales!$B$6)","v":0},{"$f":"+SUMIFS(Tabla33[Importe en\npesos],Tabla33[Forma\nde pago],Tabla4148[[#Headers],[Transfer. INAI]],Tabla33[Concepto],Tabla4148[[#This Row],[Tipo]],Tabla33[Tipo\ncomprobante],Nacionales!$B$6)","v":0},{"$f":"+SUMIFS(Tabla33[Importe en\npesos],Tabla33[Forma\nde pago],Tabla4148[[#Headers],[Por tercero]],Tabla33[Concepto],Tabla4148[[#This Row],[Tipo]],Tabla33[Tipo\ncomprobante],Nacionales!$B$6)","v":0},{"$f":"+SUM(Tabla4148[[#This Row],[TCC]:[E]])","v":0},null,"Alimentos",{"$f":"+SUMIFS(Tabla33[Importe en\npesos],Tabla33[Forma\nde pago],Tabla4150[[#Headers],[TCC]],Tabla33[Concepto],Tabla4150[[#This Row],[Tipo]],Tabla33[Tipo\ncomprobante],Nacionales!$B$7)","v":0},{"$f":"+SUMIFS(Tabla33[Importe en\npesos],Tabla33[Forma\nde pago],Tabla4150[[#Headers],[TDD]],Tabla33[Concepto],Tabla4150[[#This Row],[Tipo]],Tabla33[Tipo\ncomprobante],Nacionales!$B$7)","v":0},{"$f":"+SUMIFS(Tabla33[Importe en\npesos],Tabla33[Forma\nde pago],Tabla4150[[#Headers],[TDE]],Tabla33[Concepto],Tabla4150[[#This Row],[Tipo]],Tabla33[Tipo\ncomprobante],Nacionales!$B$7)","v":0},{"$f":"+SUMIFS(Tabla33[Importe en\npesos],Tabla33[Forma\nde pago],Tabla4150[[#Headers],[TDC]],Tabla33[Concepto],Tabla4150[[#This Row],[Tipo]],Tabla33[Tipo\ncomprobante],Nacionales!$B$7)","v":0},{"$f":"+SUMIFS(Tabla33[Importe en\npesos],Tabla33[Forma\nde pago],Tabla4150[[#Headers],[E]],Tabla33[Concepto],Tabla4150[[#This Row],[Tipo]],Tabla33[Tipo\ncomprobante],Nacionales!$B$7)","v":0},{"$f":"+SUMIFS(Tabla33[Importe en\npesos],Tabla33[Forma\nde pago],Tabla4150[[#Headers],[Transfer. INAI]],Tabla33[Concepto],Tabla4150[[#This Row],[Tipo]],Tabla33[Tipo\ncomprobante],Nacionales!$B$7)","v":0},{"$f":"+SUMIFS(Tabla33[Importe en\npesos],Tabla33[Forma\nde pago],Tabla4150[[#Headers],[Por tercero]],Tabla33[Concepto],Tabla4150[[#This Row],[Tipo]],Tabla33[Tipo\ncomprobante],Nacionales!$B$7)","v":0},{"$f":"+SUM(Tabla4150[[#This Row],[TCC]:[E]])","v":0}]
[null,"Hospedaje",{"$f":"+SUMIFS(Tabla33[Importe en\npesos],Tabla33[Presenta\ncomprobante],\"Si\",Tabla33[Forma\nde pago],Tabla41[[#Headers],[TCC]],Tabla33[Concepto],Tabla41[[#This Row],[Tipo]],Tabla33[Tipo\ncomprobante],Nacionales!$B$3)","v":0},{"$f":"+SUMIFS(Tabla33[Importe en\npesos],Tabla33[Presenta\ncomprobante],\"Si\",Tabla33[Forma\nde pago],Tabla41[[#Headers],[TDD]],Tabla33[Concepto],Tabla41[[#This Row],[Tipo]],Tabla33[Tipo\ncomprobante],Nacionales!$B$3)","v":0},{"$f":"+SUMIFS(Tabla33[Importe en\npesos],Tabla33[Presenta\ncomprobante],\"Si\",Tabla33[Forma\nde pago],Tabla41[[#Headers],[TDE]],Tabla33[Concepto],Tabla41[[#This Row],[Tipo]],Tabla33[Tipo\ncomprobante],Nacionales!$B$3)","v":0},{"$f":"+SUMIFS(Tabla33[Importe en\npesos],Tabla33[Presenta\ncomprobante],\"Si\",Tabla33[Forma\nde pago],Tabla41[[#Headers],[TDC]],Tabla33[Concepto],Tabla41[[#This Row],[Tipo]],Tabla33[Tipo\ncomprobante],Nacionales!$B$3)","v":0},{"$f":"+SUMIFS(Tabla33[Importe en\npesos],Tabla33[Presenta\ncomprobante],\"Si\",Tabla33[Forma\nde pago],Tabla41[[#Headers],[E]],Tabla33[Concepto],Tabla41[[#This Row],[Tipo]],Tabla33[Tipo\ncomprobante],Nacionales!$B$3)","v":0},{"$f":"+SUMIFS(Tabla33[Importe en\npesos],Tabla33[Presenta\ncomprobante],\"Si\",Tabla33[Forma\nde pago],Tabla41[[#Headers],[Transfer. INAI]],Tabla33[Concepto],Tabla41[[#This Row],[Tipo]],Tabla33[Tipo\ncomprobante],Nacionales!$B$3)","v":0},{"$f":"+SUMIFS(Tabla33[Importe en\npesos],Tabla33[Presenta\ncomprobante],\"Si\",Tabla33[Forma\nde pago],Tabla41[[#Headers],[Por tercero]],Tabla33[Concepto],Tabla41[[#This Row],[Tipo]],Tabla33[Tipo\ncomprobante],Nacionales!$B$3)","v":0},{"$f":"+SUM(Tabla41[[#This Row],[TCC]:[E]])","v":0},null,"Hospedaje",{"$f":"+SUMIFS(Tabla33[Importe en\npesos],Tabla33[Forma\nde pago],Tabla4144[[#Headers],[TCC]],Tabla33[Concepto],Tabla4144[[#This Row],[Tipo]],Tabla33[Tipo\ncomprobante],Nacionales!$B$4)","v":0},{"$f":"+SUMIFS(Tabla33[Importe en\npesos],Tabla33[Forma\nde pago],Tabla4144[[#Headers],[TDD]],Tabla33[Concepto],Tabla4144[[#This Row],[Tipo]],Tabla33[Tipo\ncomprobante],Nacionales!$B$4)","v":0},{"$f":"+SUMIFS(Tabla33[Importe en\npesos],Tabla33[Forma\nde pago],Tabla4144[[#Headers],[TDE]],Tabla33[Concepto],Tabla4144[[#This Row],[Tipo]],Tabla33[Tipo\ncomprobante],Nacionales!$B$4)","v":0},{"$f":"+SUMIFS(Tabla33[Importe en\npesos],Tabla33[Forma\nde pago],Tabla4144[[#Headers],[TDC]],Tabla33[Concepto],Tabla4144[[#This Row],[Tipo]],Tabla33[Tipo\ncomprobante],Nacionales!$B$4)","v":0},{"$f":"+SUMIFS(Tabla33[Importe en\npesos],Tabla33[Forma\nde pago],Tabla4144[[#Headers],[E]],Tabla33[Concepto],Tabla4144[[#This Row],[Tipo]],Tabla33[Tipo\ncomprobante],Nacionales!$B$4)","v":0},{"$f":"+SUMIFS(Tabla33[Importe en\npesos],Tabla33[Forma\nde pago],Tabla4144[[#Headers],[Transfer. INAI]],Tabla33[Concepto],Tabla4144[[#This Row],[Tipo]],Tabla33[Tipo\ncomprobante],Nacionales!$B$4)","v":0},{"$f":"+SUMIFS(Tabla33[Importe en\npesos],Tabla33[Forma\nde pago],Tabla4144[[#Headers],[Por tercero]],Tabla33[Concepto],Tabla4144[[#This Row],[Tipo]],Tabla33[Tipo\ncomprobante],Nacionales!$B$4)","v":0},{"$f":"+SUM(Tabla4144[[#This Row],[TCC]:[E]])","v":0},null,"Hospedaje",{"$f":"+SUMIFS(Tabla33[Importe en\npesos],Tabla33[Forma\nde pago],Tabla4146[[#Headers],[TCC]],Tabla33[Concepto],Tabla4146[[#This Row],[Tipo]],Tabla33[Tipo\ncomprobante],Nacionales!$B$5)","v":0},{"$f":"+SUMIFS(Tabla33[Importe en\npesos],Tabla33[Forma\nde pago],Tabla4146[[#Headers],[TDD]],Tabla33[Concepto],Tabla4146[[#This Row],[Tipo]],Tabla33[Tipo\ncomprobante],Nacionales!$B$5)","v":0},{"$f":"+SUMIFS(Tabla33[Importe en\npesos],Tabla33[Forma\nde pago],Tabla4146[[#Headers],[TDE]],Tabla33[Concepto],Tabla4146[[#This Row],[Tipo]],Tabla33[Tipo\ncomprobante],Nacionales!$B$5)","v":0},{"$f":"+SUMIFS(Tabla33[Importe en\npesos],Tabla33[Forma\nde pago],Tabla4146[[#Headers],[TDC]],Tabla33[Concepto],Tabla4146[[#This Row],[Tipo]],Tabla33[Tipo\ncomprobante],Nacionales!$B$5)","v":0},{"$f":"+SUMIFS(Tabla33[Importe en\npesos],Tabla33[Forma\nde pago],Tabla4146[[#Headers],[E]],Tabla33[Concepto],Tabla4146[[#This Row],[Tipo]],Tabla33[Tipo\ncomprobante],Nacionales!$B$5)","v":0},{"$f":"+SUMIFS(Tabla33[Importe en\npesos],Tabla33[Forma\nde pago],Tabla4146[[#Headers],[Transfer. INAI]],Tabla33[Concepto],Tabla4146[[#This Row],[Tipo]],Tabla33[Tipo\ncomprobante],Nacionales!$B$5)","v":0},{"$f":"+SUMIFS(Tabla33[Importe en\npesos],Tabla33[Forma\nde pago],Tabla4146[[#Headers],[Por tercero]],Tabla33[Concepto],Tabla4146[[#This Row],[Tipo]],Tabla33[Tipo\ncomprobante],Nacionales!$B$5)","v":0},{"$f":"+SUM(Tabla4146[[#This Row],[TCC]:[E]])","v":0},null,"Hospedaje",{"$f":"+SUMIFS(Tabla33[Importe en\npesos],Tabla33[Forma\nde pago],Tabla4148[[#Headers],[TCC]],Tabla33[Concepto],Tabla4148[[#This Row],[Tipo]],Tabla33[Tipo\ncomprobante],Nacionales!$B$6)","v":0},{"$f":"+SUMIFS(Tabla33[Importe en\npesos],Tabla33[Forma\nde pago],Tabla4148[[#Headers],[TDD]],Tabla33[Concepto],Tabla4148[[#This Row],[Tipo]],Tabla33[Tipo\ncomprobante],Nacionales!$B$6)","v":0},{"$f":"+SUMIFS(Tabla33[Importe en\npesos],Tabla33[Forma\nde pago],Tabla4148[[#Headers],[TDE]],Tabla33[Concepto],Tabla4148[[#This Row],[Tipo]],Tabla33[Tipo\ncomprobante],Nacionales!$B$6)","v":0},{"$f":"+SUMIFS(Tabla33[Importe en\npesos],Tabla33[Forma\nde pago],Tabla4148[[#Headers],[TDC]],Tabla33[Concepto],Tabla4148[[#This Row],[Tipo]],Tabla33[Tipo\ncomprobante],Nacionales!$B$6)","v":0},{"$f":"+SUMIFS(Tabla33[Importe en\npesos],Tabla33[Forma\nde pago],Tabla4148[[#Headers],[E]],Tabla33[Concepto],Tabla4148[[#This Row],[Tipo]],Tabla33[Tipo\ncomprobante],Nacionales!$B$6)","v":0},{"$f":"+SUMIFS(Tabla33[Importe en\npesos],Tabla33[Forma\nde pago],Tabla4148[[#Headers],[Transfer. INAI]],Tabla33[Concepto],Tabla4148[[#This Row],[Tipo]],Tabla33[Tipo\ncomprobante],Nacionales!$B$6)","v":0},{"$f":"+SUMIFS(Tabla33[Importe en\npesos],Tabla33[Forma\nde pago],Tabla4148[[#Headers],[Por tercero]],Tabla33[Concepto],Tabla4148[[#This Row],[Tipo]],Tabla33[Tipo\ncomprobante],Nacionales!$B$6)","v":0},{"$f":"+SUM(Tabla4148[[#This Row],[TCC]:[E]])","v":0},null,"Hospedaje",{"$f":"+SUMIFS(Tabla33[Importe en\npesos],Tabla33[Forma\nde pago],Tabla4150[[#Headers],[TCC]],Tabla33[Concepto],Tabla4150[[#This Row],[Tipo]],Tabla33[Tipo\ncomprobante],Nacionales!$B$7)","v":0},{"$f":"+SUMIFS(Tabla33[Importe en\npesos],Tabla33[Forma\nde pago],Tabla4150[[#Headers],[TDD]],Tabla33[Concepto],Tabla4150[[#This Row],[Tipo]],Tabla33[Tipo\ncomprobante],Nacionales!$B$7)","v":0},{"$f":"+SUMIFS(Tabla33[Importe en\npesos],Tabla33[Forma\nde pago],Tabla4150[[#Headers],[TDE]],Tabla33[Concepto],Tabla4150[[#This Row],[Tipo]],Tabla33[Tipo\ncomprobante],Nacionales!$B$7)","v":0},{"$f":"+SUMIFS(Tabla33[Importe en\npesos],Tabla33[Forma\nde pago],Tabla4150[[#Headers],[TDC]],Tabla33[Concepto],Tabla4150[[#This Row],[Tipo]],Tabla33[Tipo\ncomprobante],Nacionales!$B$7)","v":0},{"$f":"+SUMIFS(Tabla33[Importe en\npesos],Tabla33[Forma\nde pago],Tabla4150[[#Headers],[E]],Tabla33[Concepto],Tabla4150[[#This Row],[Tipo]],Tabla33[Tipo\ncomprobante],Nacionales!$B$7)","v":0},{"$f":"+SUMIFS(Tabla33[Importe en\npesos],Tabla33[Forma\nde pago],Tabla4150[[#Headers],[Transfer. INAI]],Tabla33[Concepto],Tabla4150[[#This Row],[Tipo]],Tabla33[Tipo\ncomprobante],Nacionales!$B$7)","v":0},{"$f":"+SUMIFS(Tabla33[Importe en\npesos],Tabla33[Forma\nde pago],Tabla4150[[#Headers],[Por tercero]],Tabla33[Concepto],Tabla4150[[#This Row],[Tipo]],Tabla33[Tipo\ncomprobante],Nacionales!$B$7)","v":0},{"$f":"+SUM(Tabla4150[[#This Row],[TCC]:[E]])","v":0}]
[null,"Alimentos y hospedaje",{"$f":"+SUMIFS(Tabla33[Importe en\npesos],Tabla33[Presenta\ncomprobante],\"Si\",Tabla33[Forma\nde pago],Tabla41[[#Headers],[TCC]],Tabla33[Concepto],Tabla41[[#This Row],[Tipo]],Tabla33[Tipo\ncomprobante],Nacionales!$B$3)","v":0},{"$f":"+SUMIFS(Tabla33[Importe en\npesos],Tabla33[Presenta\ncomprobante],\"Si\",Tabla33[Forma\nde pago],Tabla41[[#Headers],[TDD]],Tabla33[Concepto],Tabla41[[#This Row],[Tipo]],Tabla33[Tipo\ncomprobante],Nacionales!$B$3)","v":0},{"$f":"+SUMIFS(Tabla33[Importe en\npesos],Tabla33[Presenta\ncomprobante],\"Si\",Tabla33[Forma\nde pago],Tabla41[[#Headers],[TDE]],Tabla33[Concepto],Tabla41[[#This Row],[Tipo]],Tabla33[Tipo\ncomprobante],Nacionales!$B$3)","v":0},{"$f":"+SUMIFS(Tabla33[Importe en\npesos],Tabla33[Presenta\ncomprobante],\"Si\",Tabla33[Forma\nde pago],Tabla41[[#Headers],[TDC]],Tabla33[Concepto],Tabla41[[#This Row],[Tipo]],Tabla33[Tipo\ncomprobante],Nacionales!$B$3)","v":0},{"$f":"+SUMIFS(Tabla33[Importe en\npesos],Tabla33[Presenta\ncomprobante],\"Si\",Tabla33[Forma\nde pago],Tabla41[[#Headers],[E]],Tabla33[Concepto],Tabla41[[#This Row],[Tipo]],Tabla33[Tipo\ncomprobante],Nacionales!$B$3)","v":0},{"$f":"+SUMIFS(Tabla33[Importe en\npesos],Tabla33[Presenta\ncomprobante],\"Si\",Tabla33[Forma\nde pago],Tabla41[[#Headers],[Transfer. INAI]],Tabla33[Concepto],Tabla41[[#This Row],[Tipo]],Tabla33[Tipo\ncomprobante],Nacionales!$B$3)","v":0},{"$f":"+SUMIFS(Tabla33[Importe en\npesos],Tabla33[Presenta\ncomprobante],\"Si\",Tabla33[Forma\nde pago],Tabla41[[#Headers],[Por tercero]],Tabla33[Concepto],Tabla41[[#This Row],[Tipo]],Tabla33[Tipo\ncomprobante],Nacionales!$B$3)","v":0},{"$f":"+SUM(Tabla41[[#This Row],[TCC]:[E]])","v":0},null,"Alimentos y hospedaje",{"$f":"+SUMIFS(Tabla33[Importe en\npesos],Tabla33[Forma\nde pago],Tabla4144[[#Headers],[TCC]],Tabla33[Concepto],Tabla4144[[#This Row],[Tipo]],Tabla33[Tipo\ncomprobante],Nacionales!$B$4)","v":0},{"$f":"+SUMIFS(Tabla33[Importe en\npesos],Tabla33[Forma\nde pago],Tabla4144[[#Headers],[TDD]],Tabla33[Concepto],Tabla4144[[#This Row],[Tipo]],Tabla33[Tipo\ncomprobante],Nacionales!$B$4)","v":0},{"$f":"+SUMIFS(Tabla33[Importe en\npesos],Tabla33[Forma\nde pago],Tabla4144[[#Headers],[TDE]],Tabla33[Concepto],Tabla4144[[#This Row],[Tipo]],Tabla33[Tipo\ncomprobante],Nacionales!$B$4)","v":0},{"$f":"+SUMIFS(Tabla33[Importe en\npesos],Tabla33[Forma\nde pago],Tabla4144[[#Headers],[TDC]],Tabla33[Concepto],Tabla4144[[#This Row],[Tipo]],Tabla33[Tipo\ncomprobante],Nacionales!$B$4)","v":0},{"$f":"+SUMIFS(Tabla33[Importe en\npesos],Tabla33[Forma\nde pago],Tabla4144[[#Headers],[E]],Tabla33[Concepto],Tabla4144[[#This Row],[Tipo]],Tabla33[Tipo\ncomprobante],Nacionales!$B$4)","v":0},{"$f":"+SUMIFS(Tabla33[Importe en\npesos],Tabla33[Forma\nde pago],Tabla4144[[#Headers],[Transfer. INAI]],Tabla33[Concepto],Tabla4144[[#This Row],[Tipo]],Tabla33[Tipo\ncomprobante],Nacionales!$B$4)","v":0},{"$f":"+SUMIFS(Tabla33[Importe en\npesos],Tabla33[Forma\nde pago],Tabla4144[[#Headers],[Por tercero]],Tabla33[Concepto],Tabla4144[[#This Row],[Tipo]],Tabla33[Tipo\ncomprobante],Nacionales!$B$4)","v":0},{"$f":"+SUM(Tabla4144[[#This Row],[TCC]:[E]])","v":0},null,"Alimentos y hospedaje",{"$f":"+SUMIFS(Tabla33[Importe en\npesos],Tabla33[Forma\nde pago],Tabla4146[[#Headers],[TCC]],Tabla33[Concepto],Tabla4146[[#This Row],[Tipo]],Tabla33[Tipo\ncomprobante],Nacionales!$B$5)","v":0},{"$f":"+SUMIFS(Tabla33[Importe en\npesos],Tabla33[Forma\nde pago],Tabla4146[[#Headers],[TDD]],Tabla33[Concepto],Tabla4146[[#This Row],[Tipo]],Tabla33[Tipo\ncomprobante],Nacionales!$B$5)","v":0},{"$f":"+SUMIFS(Tabla33[Importe en\npesos],Tabla33[Forma\nde pago],Tabla4146[[#Headers],[TDE]],Tabla33[Concepto],Tabla4146[[#This Row],[Tipo]],Tabla33[Tipo\ncomprobante],Nacionales!$B$5)","v":0},{"$f":"+SUMIFS(Tabla33[Importe en\npesos],Tabla33[Forma\nde pago],Tabla4146[[#Headers],[TDC]],Tabla33[Concepto],Tabla4146[[#This Row],[Tipo]],Tabla33[Tipo\ncomprobante],Nacionales!$B$5)","v":0},{"$f":"+SUMIFS(Tabla33[Importe en\npesos],Tabla33[Forma\nde pago],Tabla4146[[#Headers],[E]],Tabla33[Concepto],Tabla4146[[#This Row],[Tipo]],Tabla33[Tipo\ncomprobante],Nacionales!$B$5)","v":0},{"$f":"+SUMIFS(Tabla33[Importe en\npesos],Tabla33[Forma\nde pago],Tabla4146[[#Headers],[Transfer. INAI]],Tabla33[Concepto],Tabla4146[[#This Row],[Tipo]],Tabla33[Tipo\ncomprobante],Nacionales!$B$5)","v":0},{"$f":"+SUMIFS(Tabla33[Importe en\npesos],Tabla33[Forma\nde pago],Tabla4146[[#Headers],[Por tercero]],Tabla33[Concepto],Tabla4146[[#This Row],[Tipo]],Tabla33[Tipo\ncomprobante],Nacionales!$B$5)","v":0},{"$f":"+SUM(Tabla4146[[#This Row],[TCC]:[E]])","v":0},null,"Alimentos y hospedaje",{"$f":"+SUMIFS(Tabla33[Importe en\npesos],Tabla33[Forma\nde pago],Tabla4148[[#Headers],[TCC]],Tabla33[Concepto],Tabla4148[[#This Row],[Tipo]],Tabla33[Tipo\ncomprobante],Nacionales!$B$6)","v":0},{"$f":"+SUMIFS(Tabla33[Importe en\npesos],Tabla33[Forma\nde pago],Tabla4148[[#Headers],[TDD]],Tabla33[Concepto],Tabla4148[[#This Row],[Tipo]],Tabla33[Tipo\ncomprobante],Nacionales!$B$6)","v":0},{"$f":"+SUMIFS(Tabla33[Importe en\npesos],Tabla33[Forma\nde pago],Tabla4148[[#Headers],[TDE]],Tabla33[Concepto],Tabla4148[[#This Row],[Tipo]],Tabla33[Tipo\ncomprobante],Nacionales!$B$6)","v":0},{"$f":"+SUMIFS(Tabla33[Importe en\npesos],Tabla33[Forma\nde pago],Tabla4148[[#Headers],[TDC]],Tabla33[Concepto],Tabla4148[[#This Row],[Tipo]],Tabla33[Tipo\ncomprobante],Nacionales!$B$6)","v":0},{"$f":"+SUMIFS(Tabla33[Importe en\npesos],Tabla33[Forma\nde pago],Tabla4148[[#Headers],[E]],Tabla33[Concepto],Tabla4148[[#This Row],[Tipo]],Tabla33[Tipo\ncomprobante],Nacionales!$B$6)","v":0},{"$f":"+SUMIFS(Tabla33[Importe en\npesos],Tabla33[Forma\nde pago],Tabla4148[[#Headers],[Transfer. INAI]],Tabla33[Concepto],Tabla4148[[#This Row],[Tipo]],Tabla33[Tipo\ncomprobante],Nacionales!$B$6)","v":0},{"$f":"+SUMIFS(Tabla33[Importe en\npesos],Tabla33[Forma\nde pago],Tabla4148[[#Headers],[Por tercero]],Tabla33[Concepto],Tabla4148[[#This Row],[Tipo]],Tabla33[Tipo\ncomprobante],Nacionales!$B$6)","v":0},{"$f":"+SUM(Tabla4148[[#This Row],[TCC]:[E]])","v":0},null,"Alimentos y hospedaje",{"$f":"+SUMIFS(Tabla33[Importe en\npesos],Tabla33[Forma\nde pago],Tabla4150[[#Headers],[TCC]],Tabla33[Concepto],Tabla4150[[#This Row],[Tipo]],Tabla33[Tipo\ncomprobante],Nacionales!$B$7)","v":0},{"$f":"+SUMIFS(Tabla33[Importe en\npesos],Tabla33[Forma\nde pago],Tabla4150[[#Headers],[TDD]],Tabla33[Concepto],Tabla4150[[#This Row],[Tipo]],Tabla33[Tipo\ncomprobante],Nacionales!$B$7)","v":0},{"$f":"+SUMIFS(Tabla33[Importe en\npesos],Tabla33[Forma\nde pago],Tabla4150[[#Headers],[TDE]],Tabla33[Concepto],Tabla4150[[#This Row],[Tipo]],Tabla33[Tipo\ncomprobante],Nacionales!$B$7)","v":0},{"$f":"+SUMIFS(Tabla33[Importe en\npesos],Tabla33[Forma\nde pago],Tabla4150[[#Headers],[TDC]],Tabla33[Concepto],Tabla4150[[#This Row],[Tipo]],Tabla33[Tipo\ncomprobante],Nacionales!$B$7)","v":0},{"$f":"+SUMIFS(Tabla33[Importe en\npesos],Tabla33[Forma\nde pago],Tabla4150[[#Headers],[E]],Tabla33[Concepto],Tabla4150[[#This Row],[Tipo]],Tabla33[Tipo\ncomprobante],Nacionales!$B$7)","v":0},{"$f":"+SUMIFS(Tabla33[Importe en\npesos],Tabla33[Forma\nde pago],Tabla4150[[#Headers],[Transfer. INAI]],Tabla33[Concepto],Tabla4150[[#This Row],[Tipo]],Tabla33[Tipo\ncomprobante],Nacionales!$B$7)","v":0},{"$f":"+SUMIFS(Tabla33[Importe en\npesos],Tabla33[Forma\nde pago],Tabla4150[[#Headers],[Por tercero]],Tabla33[Concepto],Tabla4150[[#This Row],[Tipo]],Tabla33[Tipo\ncomprobante],Nacionales!$B$7)","v":0},{"$f":"+SUM(Tabla4150[[#This Row],[TCC]:[E]])","v":0}]
[null,"Propinas",{"$f":"+SUMIFS(Tabla33[Importe en\npesos],Tabla33[Presenta\ncomprobante],\"Si\",Tabla33[Forma\nde pago],Tabla41[[#Headers],[TCC]],Tabla33[Concepto],Tabla41[[#This Row],[Tipo]],Tabla33[Tipo\ncomprobante],Nacionales!$B$3)","v":0},{"$f":"+SUMIFS(Tabla33[Importe en\npesos],Tabla33[Presenta\ncomprobante],\"Si\",Tabla33[Forma\nde pago],Tabla41[[#Headers],[TDD]],Tabla33[Concepto],Tabla41[[#This Row],[Tipo]],Tabla33[Tipo\ncomprobante],Nacionales!$B$3)","v":0},{"$f":"+SUMIFS(Tabla33[Importe en\npesos],Tabla33[Presenta\ncomprobante],\"Si\",Tabla33[Forma\nde pago],Tabla41[[#Headers],[TDE]],Tabla33[Concepto],Tabla41[[#This Row],[Tipo]],Tabla33[Tipo\ncomprobante],Nacionales!$B$3)","v":0},{"$f":"+SUMIFS(Tabla33[Importe en\npesos],Tabla33[Presenta\ncomprobante],\"Si\",Tabla33[Forma\nde pago],Tabla41[[#Headers],[TDC]],Tabla33[Concepto],Tabla41[[#This Row],[Tipo]],Tabla33[Tipo\ncomprobante],Nacionales!$B$3)","v":0},{"$f":"+SUMIFS(Tabla33[Importe en\npesos],Tabla33[Presenta\ncomprobante],\"Si\",Tabla33[Forma\nde pago],Tabla41[[#Headers],[E]],Tabla33[Concepto],Tabla41[[#This Row],[Tipo]],Tabla33[Tipo\ncomprobante],Nacionales!$B$3)","v":0},{"$f":"+SUMIFS(Tabla33[Importe en\npesos],Tabla33[Presenta\ncomprobante],\"Si\",Tabla33[Forma\nde pago],Tabla41[[#Headers],[Transfer. INAI]],Tabla33[Concepto],Tabla41[[#This Row],[Tipo]],Tabla33[Tipo\ncomprobante],Nacionales!$B$3)","v":0},{"$f":"+SUMIFS(Tabla33[Importe en\npesos],Tabla33[Presenta\ncomprobante],\"Si\",Tabla33[Forma\nde pago],Tabla41[[#Headers],[Por tercero]],Tabla33[Concepto],Tabla41[[#This Row],[Tipo]],Tabla33[Tipo\ncomprobante],Nacionales!$B$3)","v":0},{"$f":"+SUM(Tabla41[[#This Row],[TCC]:[E]])","v":0},null,"Propinas",{"$f":"+SUMIFS(Tabla33[Importe en\npesos],Tabla33[Forma\nde pago],Tabla4144[[#Headers],[TCC]],Tabla33[Concepto],Tabla4144[[#This Row],[Tipo]],Tabla33[Tipo\ncomprobante],Nacionales!$B$4)","v":0},{"$f":"+SUMIFS(Tabla33[Importe en\npesos],Tabla33[Forma\nde pago],Tabla4144[[#Headers],[TDD]],Tabla33[Concepto],Tabla4144[[#This Row],[Tipo]],Tabla33[Tipo\ncomprobante],Nacionales!$B$4)","v":0},{"$f":"+SUMIFS(Tabla33[Importe en\npesos],Tabla33[Forma\nde pago],Tabla4144[[#Headers],[TDE]],Tabla33[Concepto],Tabla4144[[#This Row],[Tipo]],Tabla33[Tipo\ncomprobante],Nacionales!$B$4)","v":0},{"$f":"+SUMIFS(Tabla33[Importe en\npesos],Tabla33[Forma\nde pago],Tabla4144[[#Headers],[TDC]],Tabla33[Concepto],Tabla4144[[#This Row],[Tipo]],Tabla33[Tipo\ncomprobante],Nacionales!$B$4)","v":0},{"$f":"+SUMIFS(Tabla33[Importe en\npesos],Tabla33[Forma\nde pago],Tabla4144[[#Headers],[E]],Tabla33[Concepto],Tabla4144[[#This Row],[Tipo]],Tabla33[Tipo\ncomprobante],Nacionales!$B$4)","v":0},{"$f":"+SUMIFS(Tabla33[Importe en\npesos],Tabla33[Forma\nde pago],Tabla4144[[#Headers],[Transfer. INAI]],Tabla33[Concepto],Tabla4144[[#This Row],[Tipo]],Tabla33[Tipo\ncomprobante],Nacionales!$B$4)","v":0},{"$f":"+SUMIFS(Tabla33[Importe en\npesos],Tabla33[Forma\nde pago],Tabla4144[[#Headers],[Por tercero]],Tabla33[Concepto],Tabla4144[[#This Row],[Tipo]],Tabla33[Tipo\ncomprobante],Nacionales!$B$4)","v":0},{"$f":"+SUM(Tabla4144[[#This Row],[TCC]:[E]])","v":0},null,"Propinas",{"$f":"+SUMIFS(Tabla33[Importe en\npesos],Tabla33[Forma\nde pago],Tabla4146[[#Headers],[TCC]],Tabla33[Concepto],Tabla4146[[#This Row],[Tipo]],Tabla33[Tipo\ncomprobante],Nacionales!$B$5)","v":0},{"$f":"+SUMIFS(Tabla33[Importe en\npesos],Tabla33[Forma\nde pago],Tabla4146[[#Headers],[TDD]],Tabla33[Concepto],Tabla4146[[#This Row],[Tipo]],Tabla33[Tipo\ncomprobante],Nacionales!$B$5)","v":0},{"$f":"+SUMIFS(Tabla33[Importe en\npesos],Tabla33[Forma\nde pago],Tabla4146[[#Headers],[TDE]],Tabla33[Concepto],Tabla4146[[#This Row],[Tipo]],Tabla33[Tipo\ncomprobante],Nacionales!$B$5)","v":0},{"$f":"+SUMIFS(Tabla33[Importe en\npesos],Tabla33[Forma\nde pago],Tabla4146[[#Headers],[TDC]],Tabla33[Concepto],Tabla4146[[#This Row],[Tipo]],Tabla33[Tipo\ncomprobante],Nacionales!$B$5)","v":0},{"$f":"+SUMIFS(Tabla33[Importe en\npesos],Tabla33[Forma\nde pago],Tabla4146[[#Headers],[E]],Tabla33[Concepto],Tabla4146[[#This Row],[Tipo]],Tabla33[Tipo\ncomprobante],Nacionales!$B$5)","v":0},{"$f":"+SUMIFS(Tabla33[Importe en\npesos],Tabla33[Forma\nde pago],Tabla4146[[#Headers],[Transfer. INAI]],Tabla33[Concepto],Tabla4146[[#This Row],[Tipo]],Tabla33[Tipo\ncomprobante],Nacionales!$B$5)","v":0},{"$f":"+SUMIFS(Tabla33[Importe en\npesos],Tabla33[Forma\nde pago],Tabla4146[[#Headers],[Por tercero]],Tabla33[Concepto],Tabla4146[[#This Row],[Tipo]],Tabla33[Tipo\ncomprobante],Nacionales!$B$5)","v":0},{"$f":"+SUM(Tabla4146[[#This Row],[TCC]:[E]])","v":0},null,"Propinas",{"$f":"+SUMIFS(Tabla33[Importe en\npesos],Tabla33[Forma\nde pago],Tabla4148[[#Headers],[TCC]],Tabla33[Concepto],Tabla4148[[#This Row],[Tipo]],Tabla33[Tipo\ncomprobante],Nacionales!$B$6)","v":0},{"$f":"+SUMIFS(Tabla33[Importe en\npesos],Tabla33[Forma\nde pago],Tabla4148[[#Headers],[TDD]],Tabla33[Concepto],Tabla4148[[#This Row],[Tipo]],Tabla33[Tipo\ncomprobante],Nacionales!$B$6)","v":0},{"$f":"+SUMIFS(Tabla33[Importe en\npesos],Tabla33[Forma\nde pago],Tabla4148[[#Headers],[TDE]],Tabla33[Concepto],Tabla4148[[#This Row],[Tipo]],Tabla33[Tipo\ncomprobante],Nacionales!$B$6)","v":0},{"$f":"+SUMIFS(Tabla33[Importe en\npesos],Tabla33[Forma\nde pago],Tabla4148[[#Headers],[TDC]],Tabla33[Concepto],Tabla4148[[#This Row],[Tipo]],Tabla33[Tipo\ncomprobante],Nacionales!$B$6)","v":0},{"$f":"+SUMIFS(Tabla33[Importe en\npesos],Tabla33[Forma\nde pago],Tabla4148[[#Headers],[E]],Tabla33[Concepto],Tabla4148[[#This Row],[Tipo]],Tabla33[Tipo\ncomprobante],Nacionales!$B$6)","v":0},{"$f":"+SUMIFS(Tabla33[Importe en\npesos],Tabla33[Forma\nde pago],Tabla4148[[#Headers],[Transfer. INAI]],Tabla33[Concepto],Tabla4148[[#This Row],[Tipo]],Tabla33[Tipo\ncomprobante],Nacionales!$B$6)","v":0},{"$f":"+SUMIFS(Tabla33[Importe en\npesos],Tabla33[Forma\nde pago],Tabla4148[[#Headers],[Por tercero]],Tabla33[Concepto],Tabla4148[[#This Row],[Tipo]],Tabla33[Tipo\ncomprobante],Nacionales!$B$6)","v":0},{"$f":"+SUM(Tabla4148[[#This Row],[TCC]:[E]])","v":0},null,"Propinas",{"$f":"+SUMIFS(Tabla33[Importe en\npesos],Tabla33[Forma\nde pago],Tabla4150[[#Headers],[TCC]],Tabla33[Concepto],Tabla4150[[#This Row],[Tipo]],Tabla33[Tipo\ncomprobante],Nacionales!$B$7)","v":0},{"$f":"+SUMIFS(Tabla33[Importe en\npesos],Tabla33[Forma\nde pago],Tabla4150[[#Headers],[TDD]],Tabla33[Concepto],Tabla4150[[#This Row],[Tipo]],Tabla33[Tipo\ncomprobante],Nacionales!$B$7)","v":0},{"$f":"+SUMIFS(Tabla33[Importe en\npesos],Tabla33[Forma\nde pago],Tabla4150[[#Headers],[TDE]],Tabla33[Concepto],Tabla4150[[#This Row],[Tipo]],Tabla33[Tipo\ncomprobante],Nacionales!$B$7)","v":0},{"$f":"+SUMIFS(Tabla33[Importe en\npesos],Tabla33[Forma\nde pago],Tabla4150[[#Headers],[TDC]],Tabla33[Concepto],Tabla4150[[#This Row],[Tipo]],Tabla33[Tipo\ncomprobante],Nacionales!$B$7)","v":0},{"$f":"+SUMIFS(Tabla33[Importe en\npesos],Tabla33[Forma\nde pago],Tabla4150[[#Headers],[E]],Tabla33[Concepto],Tabla4150[[#This Row],[Tipo]],Tabla33[Tipo\ncomprobante],Nacionales!$B$7)","v":0},{"$f":"+SUMIFS(Tabla33[Importe en\npesos],Tabla33[Forma\nde pago],Tabla4150[[#Headers],[Transfer. INAI]],Tabla33[Concepto],Tabla4150[[#This Row],[Tipo]],Tabla33[Tipo\ncomprobante],Nacionales!$B$7)","v":0},{"$f":"+SUMIFS(Tabla33[Importe en\npesos],Tabla33[Forma\nde pago],Tabla4150[[#Headers],[Por tercero]],Tabla33[Concepto],Tabla4150[[#This Row],[Tipo]],Tabla33[Tipo\ncomprobante],Nacionales!$B$7)","v":0},{"$f":"+SUM(Tabla4150[[#This Row],[TCC]:[E]])","v":0}]
[null,"Transporte local",{"$f":"+SUMIFS(Tabla33[Importe en\npesos],Tabla33[Presenta\ncomprobante],\"Si\",Tabla33[Forma\nde pago],Tabla41[[#Headers],[TCC]],Tabla33[Concepto],Tabla41[[#This Row],[Tipo]],Tabla33[Tipo\ncomprobante],Nacionales!$B$3)","v":0},{"$f":"+SUMIFS(Tabla33[Importe en\npesos],Tabla33[Presenta\ncomprobante],\"Si\",Tabla33[Forma\nde pago],Tabla41[[#Headers],[TDD]],Tabla33[Concepto],Tabla41[[#This Row],[Tipo]],Tabla33[Tipo\ncomprobante],Nacionales!$B$3)","v":0},{"$f":"+SUMIFS(Tabla33[Importe en\npesos],Tabla33[Presenta\ncomprobante],\"Si\",Tabla33[Forma\nde pago],Tabla41[[#Headers],[TDE]],Tabla33[Concepto],Tabla41[[#This Row],[Tipo]],Tabla33[Tipo\ncomprobante],Nacionales!$B$3)","v":0},{"$f":"+SUMIFS(Tabla33[Importe en\npesos],Tabla33[Presenta\ncomprobante],\"Si\",Tabla33[Forma\nde pago],Tabla41[[#Headers],[TDC]],Tabla33[Concepto],Tabla41[[#This Row],[Tipo]],Tabla33[Tipo\ncomprobante],Nacionales!$B$3)","v":0},{"$f":"+SUMIFS(Tabla33[Importe en\npesos],Tabla33[Presenta\ncomprobante],\"Si\",Tabla33[Forma\nde pago],Tabla41[[#Headers],[E]],Tabla33[Concepto],Tabla41[[#This Row],[Tipo]],Tabla33[Tipo\ncomprobante],Nacionales!$B$3)","v":0},{"$f":"+SUMIFS(Tabla33[Importe en\npesos],Tabla33[Presenta\ncomprobante],\"Si\",Tabla33[Forma\nde pago],Tabla41[[#Headers],[Transfer. INAI]],Tabla33[Concepto],Tabla41[[#This Row],[Tipo]],Tabla33[Tipo\ncomprobante],Nacionales!$B$3)","v":0},{"$f":"+SUMIFS(Tabla33[Importe en\npesos],Tabla33[Presenta\ncomprobante],\"Si\",Tabla33[Forma\nde pago],Tabla41[[#Headers],[Por tercero]],Tabla33[Concepto],Tabla41[[#This Row],[Tipo]],Tabla33[Tipo\ncomprobante],Nacionales!$B$3)","v":0},{"$f":"+SUM(Tabla41[[#This Row],[TCC]:[E]])","v":0},null,"Transporte local",{"$f":"+SUMIFS(Tabla33[Importe en\npesos],Tabla33[Forma\nde pago],Tabla4144[[#Headers],[TCC]],Tabla33[Concepto],Tabla4144[[#This Row],[Tipo]],Tabla33[Tipo\ncomprobante],Nacionales!$B$4)","v":0},{"$f":"+SUMIFS(Tabla33[Importe en\npesos],Tabla33[Forma\nde pago],Tabla4144[[#Headers],[TDD]],Tabla33[Concepto],Tabla4144[[#This Row],[Tipo]],Tabla33[Tipo\ncomprobante],Nacionales!$B$4)","v":0},{"$f":"+SUMIFS(Tabla33[Importe en\npesos],Tabla33[Forma\nde pago],Tabla4144[[#Headers],[TDE]],Tabla33[Concepto],Tabla4144[[#This Row],[Tipo]],Tabla33[Tipo\ncomprobante],Nacionales!$B$4)","v":0},{"$f":"+SUMIFS(Tabla33[Importe en\npesos],Tabla33[Forma\nde pago],Tabla4144[[#Headers],[TDC]],Tabla33[Concepto],Tabla4144[[#This Row],[Tipo]],Tabla33[Tipo\ncomprobante],Nacionales!$B$4)","v":0},{"$f":"+SUMIFS(Tabla33[Importe en\npesos],Tabla33[Forma\nde pago],Tabla4144[[#Headers],[E]],Tabla33[Concepto],Tabla4144[[#This Row],[Tipo]],Tabla33[Tipo\ncomprobante],Nacionales!$B$4)","v":0},{"$f":"+SUMIFS(Tabla33[Importe en\npesos],Tabla33[Forma\nde pago],Tabla4144[[#Headers],[Transfer. INAI]],Tabla33[Concepto],Tabla4144[[#This Row],[Tipo]],Tabla33[Tipo\ncomprobante],Nacionales!$B$4)","v":0},{"$f":"+SUMIFS(Tabla33[Importe en\npesos],Tabla33[Forma\nde pago],Tabla4144[[#Headers],[Por tercero]],Tabla33[Concepto],Tabla4144[[#This Row],[Tipo]],Tabla33[Tipo\ncomprobante],Nacionales!$B$4)","v":0},{"$f":"+SUM(Tabla4144[[#This Row],[TCC]:[E]])","v":0},null,"Transporte local",{"$f":"+SUMIFS(Tabla33[Importe en\npesos],Tabla33[Forma\nde pago],Tabla4146[[#Headers],[TCC]],Tabla33[Concepto],Tabla4146[[#This Row],[Tipo]],Tabla33[Tipo\ncomprobante],Nacionales!$B$5)","v":0},{"$f":"+SUMIFS(Tabla33[Importe en\npesos],Tabla33[Forma\nde pago],Tabla4146[[#Headers],[TDD]],Tabla33[Concepto],Tabla4146[[#This Row],[Tipo]],Tabla33[Tipo\ncomprobante],Nacionales!$B$5)","v":0},{"$f":"+SUMIFS(Tabla33[Importe en\npesos],Tabla33[Forma\nde pago],Tabla4146[[#Headers],[TDE]],Tabla33[Concepto],Tabla4146[[#This Row],[Tipo]],Tabla33[Tipo\ncomprobante],Nacionales!$B$5)","v":0},{"$f":"+SUMIFS(Tabla33[Importe en\npesos],Tabla33[Forma\nde pago],Tabla4146[[#Headers],[TDC]],Tabla33[Concepto],Tabla4146[[#This Row],[Tipo]],Tabla33[Tipo\ncomprobante],Nacionales!$B$5)","v":0},{"$f":"+SUMIFS(Tabla33[Importe en\npesos],Tabla33[Forma\nde pago],Tabla4146[[#Headers],[E]],Tabla33[Concepto],Tabla4146[[#This Row],[Tipo]],Tabla33[Tipo\ncomprobante],Nacionales!$B$5)","v":0},{"$f":"+SUMIFS(Tabla33[Importe en\npesos],Tabla33[Forma\nde pago],Tabla4146[[#Headers],[Transfer. INAI]],Tabla33[Concepto],Tabla4146[[#This Row],[Tipo]],Tabla33[Tipo\ncomprobante],Nacionales!$B$5)","v":0},{"$f":"+SUMIFS(Tabla33[Importe en\npesos],Tabla33[Forma\nde pago],Tabla4146[[#Headers],[Por tercero]],Tabla33[Concepto],Tabla4146[[#This Row],[Tipo]],Tabla33[Tipo\ncomprobante],Nacionales!$B$5)","v":0},{"$f":"+SUM(Tabla4146[[#This Row],[TCC]:[E]])","v":0},null,"Transporte local",{"$f":"+SUMIFS(Tabla33[Importe en\npesos],Tabla33[Forma\nde pago],Tabla4148[[#Headers],[TCC]],Tabla33[Concepto],Tabla4148[[#This Row],[Tipo]],Tabla33[Tipo\ncomprobante],Nacionales!$B$6)","v":0},{"$f":"+SUMIFS(Tabla33[Importe en\npesos],Tabla33[Forma\nde pago],Tabla4148[[#Headers],[TDD]],Tabla33[Concepto],Tabla4148[[#This Row],[Tipo]],Tabla33[Tipo\ncomprobante],Nacionales!$B$6)","v":0},{"$f":"+SUMIFS(Tabla33[Importe en\npesos],Tabla33[Forma\nde pago],Tabla4148[[#Headers],[TDE]],Tabla33[Concepto],Tabla4148[[#This Row],[Tipo]],Tabla33[Tipo\ncomprobante],Nacionales!$B$6)","v":0},{"$f":"+SUMIFS(Tabla33[Importe en\npesos],Tabla33[Forma\nde pago],Tabla4148[[#Headers],[TDC]],Tabla33[Concepto],Tabla4148[[#This Row],[Tipo]],Tabla33[Tipo\ncomprobante],Nacionales!$B$6)","v":0},{"$f":"+SUMIFS(Tabla33[Importe en\npesos],Tabla33[Forma\nde pago],Tabla4148[[#Headers],[E]],Tabla33[Concepto],Tabla4148[[#This Row],[Tipo]],Tabla33[Tipo\ncomprobante],Nacionales!$B$6)","v":0},{"$f":"+SUMIFS(Tabla33[Importe en\npesos],Tabla33[Forma\nde pago],Tabla4148[[#Headers],[Transfer. INAI]],Tabla33[Concepto],Tabla4148[[#This Row],[Tipo]],Tabla33[Tipo\ncomprobante],Nacionales!$B$6)","v":0},{"$f":"+SUMIFS(Tabla33[Importe en\npesos],Tabla33[Forma\nde pago],Tabla4148[[#Headers],[Por tercero]],Tabla33[Concepto],Tabla4148[[#This Row],[Tipo]],Tabla33[Tipo\ncomprobante],Nacionales!$B$6)","v":0},{"$f":"+SUM(Tabla4148[[#This Row],[TCC]:[E]])","v":0},null,"Transporte local",{"$f":"+SUMIFS(Tabla33[Importe en\npesos],Tabla33[Forma\nde pago],Tabla4150[[#Headers],[TCC]],Tabla33[Concepto],Tabla4150[[#This Row],[Tipo]],Tabla33[Tipo\ncomprobante],Nacionales!$B$7)","v":0},{"$f":"+SUMIFS(Tabla33[Importe en\npesos],Tabla33[Forma\nde pago],Tabla4150[[#Headers],[TDD]],Tabla33[Concepto],Tabla4150[[#This Row],[Tipo]],Tabla33[Tipo\ncomprobante],Nacionales!$B$7)","v":0},{"$f":"+SUMIFS(Tabla33[Importe en\npesos],Tabla33[Forma\nde pago],Tabla4150[[#Headers],[TDE]],Tabla33[Concepto],Tabla4150[[#This Row],[Tipo]],Tabla33[Tipo\ncomprobante],Nacionales!$B$7)","v":0},{"$f":"+SUMIFS(Tabla33[Importe en\npesos],Tabla33[Forma\nde pago],Tabla4150[[#Headers],[TDC]],Tabla33[Concepto],Tabla4150[[#This Row],[Tipo]],Tabla33[Tipo\ncomprobante],Nacionales!$B$7)","v":0},{"$f":"+SUMIFS(Tabla33[Importe en\npesos],Tabla33[Forma\nde pago],Tabla4150[[#Headers],[E]],Tabla33[Concepto],Tabla4150[[#This Row],[Tipo]],Tabla33[Tipo\ncomprobante],Nacionales!$B$7)","v":0},{"$f":"+SUMIFS(Tabla33[Importe en\npesos],Tabla33[Forma\nde pago],Tabla4150[[#Headers],[Transfer. INAI]],Tabla33[Concepto],Tabla4150[[#This Row],[Tipo]],Tabla33[Tipo\ncomprobante],Nacionales!$B$7)","v":0},{"$f":"+SUMIFS(Tabla33[Importe en\npesos],Tabla33[Forma\nde pago],Tabla4150[[#Headers],[Por tercero]],Tabla33[Concepto],Tabla4150[[#This Row],[Tipo]],Tabla33[Tipo\ncomprobante],Nacionales!$B$7)","v":0},{"$f":"+SUM(Tabla4150[[#This Row],[TCC]:[E]])","v":0}]
[null,"Prueba COVID-19",{"$f":"+SUMIFS(Tabla33[Importe en\npesos],Tabla33[Presenta\ncomprobante],\"Si\",Tabla33[Forma\nde pago],Tabla41[[#Headers],[TCC]],Tabla33[Concepto],Tabla41[[#This Row],[Tipo]],Tabla33[Tipo\ncomprobante],Nacionales!$B$3)","v":0},{"$f":"+SUMIFS(Tabla33[Importe en\npesos],Tabla33[Presenta\ncomprobante],\"Si\",Tabla33[Forma\nde pago],Tabla41[[#Headers],[TDD]],Tabla33[Concepto],Tabla41[[#This Row],[Tipo]],Tabla33[Tipo\ncomprobante],Nacionales!$B$3)","v":0},{"$f":"+SUMIFS(Tabla33[Importe en\npesos],Tabla33[Presenta\ncomprobante],\"Si\",Tabla33[Forma\nde pago],Tabla41[[#Headers],[TDE]],Tabla33[Concepto],Tabla41[[#This Row],[Tipo]],Tabla33[Tipo\ncomprobante],Nacionales!$B$3)","v":0},{"$f":"+SUMIFS(Tabla33[Importe en\npesos],Tabla33[Presenta\ncomprobante],\"Si\",Tabla33[Forma\nde pago],Tabla41[[#Headers],[TDC]],Tabla33[Concepto],Tabla41[[#This Row],[Tipo]],Tabla33[Tipo\ncomprobante],Nacionales!$B$3)","v":0},{"$f":"+SUMIFS(Tabla33[Importe en\npesos],Tabla33[Presenta\ncomprobante],\"Si\",Tabla33[Forma\nde pago],Tabla41[[#Headers],[E]],Tabla33[Concepto],Tabla41[[#This Row],[Tipo]],Tabla33[Tipo\ncomprobante],Nacionales!$B$3)","v":0},{"$f":"+SUMIFS(Tabla33[Importe en\npesos],Tabla33[Presenta\ncomprobante],\"Si\",Tabla33[Forma\nde pago],Tabla41[[#Headers],[Transfer. INAI]],Tabla33[Concepto],Tabla41[[#This Row],[Tipo]],Tabla33[Tipo\ncomprobante],Nacionales!$B$3)","v":0},{"$f":"+SUMIFS(Tabla33[Importe en\npesos],Tabla33[Presenta\ncomprobante],\"Si\",Tabla33[Forma\nde pago],Tabla41[[#Headers],[Por tercero]],Tabla33[Concepto],Tabla41[[#This Row],[Tipo]],Tabla33[Tipo\ncomprobante],Nacionales!$B$3)","v":0},{"$f":"+SUM(Tabla41[[#This Row],[TCC]:[E]])","v":0},null,"Prueba COVID-19",{"$f":"+SUMIFS(Tabla33[Importe en\npesos],Tabla33[Forma\nde pago],Tabla4144[[#Headers],[TCC]],Tabla33[Concepto],Tabla4144[[#This Row],[Tipo]],Tabla33[Tipo\ncomprobante],Nacionales!$B$4)","v":0},{"$f":"+SUMIFS(Tabla33[Importe en\npesos],Tabla33[Forma\nde pago],Tabla4144[[#Headers],[TDD]],Tabla33[Concepto],Tabla4144[[#This Row],[Tipo]],Tabla33[Tipo\ncomprobante],Nacionales!$B$4)","v":0},{"$f":"+SUMIFS(Tabla33[Importe en\npesos],Tabla33[Forma\nde pago],Tabla4144[[#Headers],[TDE]],Tabla33[Concepto],Tabla4144[[#This Row],[Tipo]],Tabla33[Tipo\ncomprobante],Nacionales!$B$4)","v":0},{"$f":"+SUMIFS(Tabla33[Importe en\npesos],Tabla33[Forma\nde pago],Tabla4144[[#Headers],[TDC]],Tabla33[Concepto],Tabla4144[[#This Row],[Tipo]],Tabla33[Tipo\ncomprobante],Nacionales!$B$4)","v":0},{"$f":"+SUMIFS(Tabla33[Importe en\npesos],Tabla33[Forma\nde pago],Tabla4144[[#Headers],[E]],Tabla33[Concepto],Tabla4144[[#This Row],[Tipo]],Tabla33[Tipo\ncomprobante],Nacionales!$B$4)","v":0},{"$f":"+SUMIFS(Tabla33[Importe en\npesos],Tabla33[Forma\nde pago],Tabla4144[[#Headers],[Transfer. INAI]],Tabla33[Concepto],Tabla4144[[#This Row],[Tipo]],Tabla33[Tipo\ncomprobante],Nacionales!$B$4)","v":0},{"$f":"+SUMIFS(Tabla33[Importe en\npesos],Tabla33[Forma\nde pago],Tabla4144[[#Headers],[Por tercero]],Tabla33[Concepto],Tabla4144[[#This Row],[Tipo]],Tabla33[Tipo\ncomprobante],Nacionales!$B$4)","v":0},{"$f":"+SUM(Tabla4144[[#This Row],[TCC]:[E]])","v":0},null,"Prueba COVID-19",{"$f":"+SUMIFS(Tabla33[Importe en\npesos],Tabla33[Forma\nde pago],Tabla4146[[#Headers],[TCC]],Tabla33[Concepto],Tabla4146[[#This Row],[Tipo]],Tabla33[Tipo\ncomprobante],Nacionales!$B$5)","v":0},{"$f":"+SUMIFS(Tabla33[Importe en\npesos],Tabla33[Forma\nde pago],Tabla4146[[#Headers],[TDD]],Tabla33[Concepto],Tabla4146[[#This Row],[Tipo]],Tabla33[Tipo\ncomprobante],Nacionales!$B$5)","v":0},{"$f":"+SUMIFS(Tabla33[Importe en\npesos],Tabla33[Forma\nde pago],Tabla4146[[#Headers],[TDE]],Tabla33[Concepto],Tabla4146[[#This Row],[Tipo]],Tabla33[Tipo\ncomprobante],Nacionales!$B$5)","v":0},{"$f":"+SUMIFS(Tabla33[Importe en\npesos],Tabla33[Forma\nde pago],Tabla4146[[#Headers],[TDC]],Tabla33[Concepto],Tabla4146[[#This Row],[Tipo]],Tabla33[Tipo\ncomprobante],Nacionales!$B$5)","v":0},{"$f":"+SUMIFS(Tabla33[Importe en\npesos],Tabla33[Forma\nde pago],Tabla4146[[#Headers],[E]],Tabla33[Concepto],Tabla4146[[#This Row],[Tipo]],Tabla33[Tipo\ncomprobante],Nacionales!$B$5)","v":0},{"$f":"+SUMIFS(Tabla33[Importe en\npesos],Tabla33[Forma\nde pago],Tabla4146[[#Headers],[Transfer. INAI]],Tabla33[Concepto],Tabla4146[[#This Row],[Tipo]],Tabla33[Tipo\ncomprobante],Nacionales!$B$5)","v":0},{"$f":"+SUMIFS(Tabla33[Importe en\npesos],Tabla33[Forma\nde pago],Tabla4146[[#Headers],[Por tercero]],Tabla33[Concepto],Tabla4146[[#This Row],[Tipo]],Tabla33[Tipo\ncomprobante],Nacionales!$B$5)","v":0},{"$f":"+SUM(Tabla4146[[#This Row],[TCC]:[E]])","v":0},null,"Prueba COVID-19",{"$f":"+SUMIFS(Tabla33[Importe en\npesos],Tabla33[Forma\nde pago],Tabla4148[[#Headers],[TCC]],Tabla33[Concepto],Tabla4148[[#This Row],[Tipo]],Tabla33[Tipo\ncomprobante],Nacionales!$B$6)","v":0},{"$f":"+SUMIFS(Tabla33[Importe en\npesos],Tabla33[Forma\nde pago],Tabla4148[[#Headers],[TDD]],Tabla33[Concepto],Tabla4148[[#This Row],[Tipo]],Tabla33[Tipo\ncomprobante],Nacionales!$B$6)","v":0},{"$f":"+SUMIFS(Tabla33[Importe en\npesos],Tabla33[Forma\nde pago],Tabla4148[[#Headers],[TDE]],Tabla33[Concepto],Tabla4148[[#This Row],[Tipo]],Tabla33[Tipo\ncomprobante],Nacionales!$B$6)","v":0},{"$f":"+SUMIFS(Tabla33[Importe en\npesos],Tabla33[Forma\nde pago],Tabla4148[[#Headers],[TDC]],Tabla33[Concepto],Tabla4148[[#This Row],[Tipo]],Tabla33[Tipo\ncomprobante],Nacionales!$B$6)","v":0},{"$f":"+SUMIFS(Tabla33[Importe en\npesos],Tabla33[Forma\nde pago],Tabla4148[[#Headers],[E]],Tabla33[Concepto],Tabla4148[[#This Row],[Tipo]],Tabla33[Tipo\ncomprobante],Nacionales!$B$6)","v":0},{"$f":"+SUMIFS(Tabla33[Importe en\npesos],Tabla33[Forma\nde pago],Tabla4148[[#Headers],[Transfer. INAI]],Tabla33[Concepto],Tabla4148[[#This Row],[Tipo]],Tabla33[Tipo\ncomprobante],Nacionales!$B$6)","v":0},{"$f":"+SUMIFS(Tabla33[Importe en\npesos],Tabla33[Forma\nde pago],Tabla4148[[#Headers],[Por tercero]],Tabla33[Concepto],Tabla4148[[#This Row],[Tipo]],Tabla33[Tipo\ncomprobante],Nacionales!$B$6)","v":0},{"$f":"+SUM(Tabla4148[[#This Row],[TCC]:[E]])","v":0},null,"Prueba COVID-19",{"$f":"+SUMIFS(Tabla33[Importe en\npesos],Tabla33[Forma\nde pago],Tabla4150[[#Headers],[TCC]],Tabla33[Concepto],Tabla4150[[#This Row],[Tipo]],Tabla33[Tipo\ncomprobante],Nacionales!$B$7)","v":0},{"$f":"+SUMIFS(Tabla33[Importe en\npesos],Tabla33[Forma\nde pago],Tabla4150[[#Headers],[TDD]],Tabla33[Concepto],Tabla4150[[#This Row],[Tipo]],Tabla33[Tipo\ncomprobante],Nacionales!$B$7)","v":0},{"$f":"+SUMIFS(Tabla33[Importe en\npesos],Tabla33[Forma\nde pago],Tabla4150[[#Headers],[TDE]],Tabla33[Concepto],Tabla4150[[#This Row],[Tipo]],Tabla33[Tipo\ncomprobante],Nacionales!$B$7)","v":0},{"$f":"+SUMIFS(Tabla33[Importe en\npesos],Tabla33[Forma\nde pago],Tabla4150[[#Headers],[TDC]],Tabla33[Concepto],Tabla4150[[#This Row],[Tipo]],Tabla33[Tipo\ncomprobante],Nacionales!$B$7)","v":0},{"$f":"+SUMIFS(Tabla33[Importe en\npesos],Tabla33[Forma\nde pago],Tabla4150[[#Headers],[E]],Tabla33[Concepto],Tabla4150[[#This Row],[Tipo]],Tabla33[Tipo\ncomprobante],Nacionales!$B$7)","v":0},{"$f":"+SUMIFS(Tabla33[Importe en\npesos],Tabla33[Forma\nde pago],Tabla4150[[#Headers],[Transfer. INAI]],Tabla33[Concepto],Tabla4150[[#This Row],[Tipo]],Tabla33[Tipo\ncomprobante],Nacionales!$B$7)","v":0},{"$f":"+SUMIFS(Tabla33[Importe en\npesos],Tabla33[Forma\nde pago],Tabla4150[[#Headers],[Por tercero]],Tabla33[Concepto],Tabla4150[[#This Row],[Tipo]],Tabla33[Tipo\ncomprobante],Nacionales!$B$7)","v":0},{"$f":"+SUM(Tabla4150[[#This Row],[TCC]:[E]])","v":0}]
[null,"Lavandería",{"$f":"+SUMIFS(Tabla33[Importe en\npesos],Tabla33[Presenta\ncomprobante],\"Si\",Tabla33[Forma\nde pago],Tabla41[[#Headers],[TCC]],Tabla33[Concepto],Tabla41[[#This Row],[Tipo]],Tabla33[Tipo\ncomprobante],Nacionales!$B$3)","v":0},{"$f":"+SUMIFS(Tabla33[Importe en\npesos],Tabla33[Presenta\ncomprobante],\"Si\",Tabla33[Forma\nde pago],Tabla41[[#Headers],[TDD]],Tabla33[Concepto],Tabla41[[#This Row],[Tipo]],Tabla33[Tipo\ncomprobante],Nacionales!$B$3)","v":0},{"$f":"+SUMIFS(Tabla33[Importe en\npesos],Tabla33[Presenta\ncomprobante],\"Si\",Tabla33[Forma\nde pago],Tabla41[[#Headers],[TDE]],Tabla33[Concepto],Tabla41[[#This Row],[Tipo]],Tabla33[Tipo\ncomprobante],Nacionales!$B$3)","v":0},{"$f":"+SUMIFS(Tabla33[Importe en\npesos],Tabla33[Presenta\ncomprobante],\"Si\",Tabla33[Forma\nde pago],Tabla41[[#Headers],[TDC]],Tabla33[Concepto],Tabla41[[#This Row],[Tipo]],Tabla33[Tipo\ncomprobante],Nacionales!$B$3)","v":0},{"$f":"+SUMIFS(Tabla33[Importe en\npesos],Tabla33[Presenta\ncomprobante],\"Si\",Tabla33[Forma\nde pago],Tabla41[[#Headers],[E]],Tabla33[Concepto],Tabla41[[#This Row],[Tipo]],Tabla33[Tipo\ncomprobante],Nacionales!$B$3)","v":0},{"$f":"+SUMIFS(Tabla33[Importe en\npesos],Tabla33[Presenta\ncomprobante],\"Si\",Tabla33[Forma\nde pago],Tabla41[[#Headers],[Transfer. INAI]],Tabla33[Concepto],Tabla41[[#This Row],[Tipo]],Tabla33[Tipo\ncomprobante],Nacionales!$B$3)","v":0},{"$f":"+SUMIFS(Tabla33[Importe en\npesos],Tabla33[Presenta\ncomprobante],\"Si\",Tabla33[Forma\nde pago],Tabla41[[#Headers],[Por tercero]],Tabla33[Concepto],Tabla41[[#This Row],[Tipo]],Tabla33[Tipo\ncomprobante],Nacionales!$B$3)","v":0},{"$f":"+SUM(Tabla41[[#This Row],[TCC]:[E]])","v":0},null,"Lavandería",{"$f":"+SUMIFS(Tabla33[Importe en\npesos],Tabla33[Forma\nde pago],Tabla4144[[#Headers],[TCC]],Tabla33[Concepto],Tabla4144[[#This Row],[Tipo]],Tabla33[Tipo\ncomprobante],Nacionales!$B$4)","v":0},{"$f":"+SUMIFS(Tabla33[Importe en\npesos],Tabla33[Forma\nde pago],Tabla4144[[#Headers],[TDD]],Tabla33[Concepto],Tabla4144[[#This Row],[Tipo]],Tabla33[Tipo\ncomprobante],Nacionales!$B$4)","v":0},{"$f":"+SUMIFS(Tabla33[Importe en\npesos],Tabla33[Forma\nde pago],Tabla4144[[#Headers],[TDE]],Tabla33[Concepto],Tabla4144[[#This Row],[Tipo]],Tabla33[Tipo\ncomprobante],Nacionales!$B$4)","v":0},{"$f":"+SUMIFS(Tabla33[Importe en\npesos],Tabla33[Forma\nde pago],Tabla4144[[#Headers],[TDC]],Tabla33[Concepto],Tabla4144[[#This Row],[Tipo]],Tabla33[Tipo\ncomprobante],Nacionales!$B$4)","v":0},{"$f":"+SUMIFS(Tabla33[Importe en\npesos],Tabla33[Forma\nde pago],Tabla4144[[#Headers],[E]],Tabla33[Concepto],Tabla4144[[#This Row],[Tipo]],Tabla33[Tipo\ncomprobante],Nacionales!$B$4)","v":0},{"$f":"+SUMIFS(Tabla33[Importe en\npesos],Tabla33[Forma\nde pago],Tabla4144[[#Headers],[Transfer. INAI]],Tabla33[Concepto],Tabla4144[[#This Row],[Tipo]],Tabla33[Tipo\ncomprobante],Nacionales!$B$4)","v":0},{"$f":"+SUMIFS(Tabla33[Importe en\npesos],Tabla33[Forma\nde pago],Tabla4144[[#Headers],[Por tercero]],Tabla33[Concepto],Tabla4144[[#This Row],[Tipo]],Tabla33[Tipo\ncomprobante],Nacionales!$B$4)","v":0},{"$f":"+SUM(Tabla4144[[#This Row],[TCC]:[E]])","v":0},null,"Lavandería",{"$f":"+SUMIFS(Tabla33[Importe en\npesos],Tabla33[Forma\nde pago],Tabla4146[[#Headers],[TCC]],Tabla33[Concepto],Tabla4146[[#This Row],[Tipo]],Tabla33[Tipo\ncomprobante],Nacionales!$B$5)","v":0},{"$f":"+SUMIFS(Tabla33[Importe en\npesos],Tabla33[Forma\nde pago],Tabla4146[[#Headers],[TDD]],Tabla33[Concepto],Tabla4146[[#This Row],[Tipo]],Tabla33[Tipo\ncomprobante],Nacionales!$B$5)","v":0},{"$f":"+SUMIFS(Tabla33[Importe en\npesos],Tabla33[Forma\nde pago],Tabla4146[[#Headers],[TDE]],Tabla33[Concepto],Tabla4146[[#This Row],[Tipo]],Tabla33[Tipo\ncomprobante],Nacionales!$B$5)","v":0},{"$f":"+SUMIFS(Tabla33[Importe en\npesos],Tabla33[Forma\nde pago],Tabla4146[[#Headers],[TDC]],Tabla33[Concepto],Tabla4146[[#This Row],[Tipo]],Tabla33[Tipo\ncomprobante],Nacionales!$B$5)","v":0},{"$f":"+SUMIFS(Tabla33[Importe en\npesos],Tabla33[Forma\nde pago],Tabla4146[[#Headers],[E]],Tabla33[Concepto],Tabla4146[[#This Row],[Tipo]],Tabla33[Tipo\ncomprobante],Nacionales!$B$5)","v":0},{"$f":"+SUMIFS(Tabla33[Importe en\npesos],Tabla33[Forma\nde pago],Tabla4146[[#Headers],[Transfer. INAI]],Tabla33[Concepto],Tabla4146[[#This Row],[Tipo]],Tabla33[Tipo\ncomprobante],Nacionales!$B$5)","v":0},{"$f":"+SUMIFS(Tabla33[Importe en\npesos],Tabla33[Forma\nde pago],Tabla4146[[#Headers],[Por tercero]],Tabla33[Concepto],Tabla4146[[#This Row],[Tipo]],Tabla33[Tipo\ncomprobante],Nacionales!$B$5)","v":0},{"$f":"+SUM(Tabla4146[[#This Row],[TCC]:[E]])","v":0},null,"Lavandería",{"$f":"+SUMIFS(Tabla33[Importe en\npesos],Tabla33[Forma\nde pago],Tabla4148[[#Headers],[TCC]],Tabla33[Concepto],Tabla4148[[#This Row],[Tipo]],Tabla33[Tipo\ncomprobante],Nacionales!$B$6)","v":0},{"$f":"+SUMIFS(Tabla33[Importe en\npesos],Tabla33[Forma\nde pago],Tabla4148[[#Headers],[TDD]],Tabla33[Concepto],Tabla4148[[#This Row],[Tipo]],Tabla33[Tipo\ncomprobante],Nacionales!$B$6)","v":0},{"$f":"+SUMIFS(Tabla33[Importe en\npesos],Tabla33[Forma\nde pago],Tabla4148[[#Headers],[TDE]],Tabla33[Concepto],Tabla4148[[#This Row],[Tipo]],Tabla33[Tipo\ncomprobante],Nacionales!$B$6)","v":0},{"$f":"+SUMIFS(Tabla33[Importe en\npesos],Tabla33[Forma\nde pago],Tabla4148[[#Headers],[TDC]],Tabla33[Concepto],Tabla4148[[#This Row],[Tipo]],Tabla33[Tipo\ncomprobante],Nacionales!$B$6)","v":0},{"$f":"+SUMIFS(Tabla33[Importe en\npesos],Tabla33[Forma\nde pago],Tabla4148[[#Headers],[E]],Tabla33[Concepto],Tabla4148[[#This Row],[Tipo]],Tabla33[Tipo\ncomprobante],Nacionales!$B$6)","v":0},{"$f":"+SUMIFS(Tabla33[Importe en\npesos],Tabla33[Forma\nde pago],Tabla4148[[#Headers],[Transfer. INAI]],Tabla33[Concepto],Tabla4148[[#This Row],[Tipo]],Tabla33[Tipo\ncomprobante],Nacionales!$B$6)","v":0},{"$f":"+SUMIFS(Tabla33[Importe en\npesos],Tabla33[Forma\nde pago],Tabla4148[[#Headers],[Por tercero]],Tabla33[Concepto],Tabla4148[[#This Row],[Tipo]],Tabla33[Tipo\ncomprobante],Nacionales!$B$6)","v":0},{"$f":"+SUM(Tabla4148[[#This Row],[TCC]:[E]])","v":0},null,"Lavandería",{"$f":"+SUMIFS(Tabla33[Importe en\npesos],Tabla33[Forma\nde pago],Tabla4150[[#Headers],[TCC]],Tabla33[Concepto],Tabla4150[[#This Row],[Tipo]],Tabla33[Tipo\ncomprobante],Nacionales!$B$7)","v":0},{"$f":"+SUMIFS(Tabla33[Importe en\npesos],Tabla33[Forma\nde pago],Tabla4150[[#Headers],[TDD]],Tabla33[Concepto],Tabla4150[[#This Row],[Tipo]],Tabla33[Tipo\ncomprobante],Nacionales!$B$7)","v":0},{"$f":"+SUMIFS(Tabla33[Importe en\npesos],Tabla33[Forma\nde pago],Tabla4150[[#Headers],[TDE]],Tabla33[Concepto],Tabla4150[[#This Row],[Tipo]],Tabla33[Tipo\ncomprobante],Nacionales!$B$7)","v":0},{"$f":"+SUMIFS(Tabla33[Importe en\npesos],Tabla33[Forma\nde pago],Tabla4150[[#Headers],[TDC]],Tabla33[Concepto],Tabla4150[[#This Row],[Tipo]],Tabla33[Tipo\ncomprobante],Nacionales!$B$7)","v":0},{"$f":"+SUMIFS(Tabla33[Importe en\npesos],Tabla33[Forma\nde pago],Tabla4150[[#Headers],[E]],Tabla33[Concepto],Tabla4150[[#This Row],[Tipo]],Tabla33[Tipo\ncomprobante],Nacionales!$B$7)","v":0},{"$f":"+SUMIFS(Tabla33[Importe en\npesos],Tabla33[Forma\nde pago],Tabla4150[[#Headers],[Transfer. INAI]],Tabla33[Concepto],Tabla4150[[#This Row],[Tipo]],Tabla33[Tipo\ncomprobante],Nacionales!$B$7)","v":0},{"$f":"+SUMIFS(Tabla33[Importe en\npesos],Tabla33[Forma\nde pago],Tabla4150[[#Headers],[Por tercero]],Tabla33[Concepto],Tabla4150[[#This Row],[Tipo]],Tabla33[Tipo\ncomprobante],Nacionales!$B$7)","v":0},{"$f":"+SUM(Tabla4150[[#This Row],[TCC]:[E]])","v":0}]
[null,"Servicio de internet",{"$f":"+SUMIFS(Tabla33[Importe en\npesos],Tabla33[Presenta\ncomprobante],\"Si\",Tabla33[Forma\nde pago],Tabla41[[#Headers],[TCC]],Tabla33[Concepto],Tabla41[[#This Row],[Tipo]],Tabla33[Tipo\ncomprobante],Nacionales!$B$3)","v":0},{"$f":"+SUMIFS(Tabla33[Importe en\npesos],Tabla33[Presenta\ncomprobante],\"Si\",Tabla33[Forma\nde pago],Tabla41[[#Headers],[TDD]],Tabla33[Concepto],Tabla41[[#This Row],[Tipo]],Tabla33[Tipo\ncomprobante],Nacionales!$B$3)","v":0},{"$f":"+SUMIFS(Tabla33[Importe en\npesos],Tabla33[Presenta\ncomprobante],\"Si\",Tabla33[Forma\nde pago],Tabla41[[#Headers],[TDE]],Tabla33[Concepto],Tabla41[[#This Row],[Tipo]],Tabla33[Tipo\ncomprobante],Nacionales!$B$3)","v":0},{"$f":"+SUMIFS(Tabla33[Importe en\npesos],Tabla33[Presenta\ncomprobante],\"Si\",Tabla33[Forma\nde pago],Tabla41[[#Headers],[TDC]],Tabla33[Concepto],Tabla41[[#This Row],[Tipo]],Tabla33[Tipo\ncomprobante],Nacionales!$B$3)","v":0},{"$f":"+SUMIFS(Tabla33[Importe en\npesos],Tabla33[Presenta\ncomprobante],\"Si\",Tabla33[Forma\nde pago],Tabla41[[#Headers],[E]],Tabla33[Concepto],Tabla41[[#This Row],[Tipo]],Tabla33[Tipo\ncomprobante],Nacionales!$B$3)","v":0},{"$f":"+SUMIFS(Tabla33[Importe en\npesos],Tabla33[Presenta\ncomprobante],\"Si\",Tabla33[Forma\nde pago],Tabla41[[#Headers],[Transfer. INAI]],Tabla33[Concepto],Tabla41[[#This Row],[Tipo]],Tabla33[Tipo\ncomprobante],Nacionales!$B$3)","v":0},{"$f":"+SUMIFS(Tabla33[Importe en\npesos],Tabla33[Presenta\ncomprobante],\"Si\",Tabla33[Forma\nde pago],Tabla41[[#Headers],[Por tercero]],Tabla33[Concepto],Tabla41[[#This Row],[Tipo]],Tabla33[Tipo\ncomprobante],Nacionales!$B$3)","v":0},{"$f":"+SUM(Tabla41[[#This Row],[TCC]:[E]])","v":0},null,"Servicio de internet",{"$f":"+SUMIFS(Tabla33[Importe en\npesos],Tabla33[Forma\nde pago],Tabla4144[[#Headers],[TCC]],Tabla33[Concepto],Tabla4144[[#This Row],[Tipo]],Tabla33[Tipo\ncomprobante],Nacionales!$B$4)","v":0},{"$f":"+SUMIFS(Tabla33[Importe en\npesos],Tabla33[Forma\nde pago],Tabla4144[[#Headers],[TDD]],Tabla33[Concepto],Tabla4144[[#This Row],[Tipo]],Tabla33[Tipo\ncomprobante],Nacionales!$B$4)","v":0},{"$f":"+SUMIFS(Tabla33[Importe en\npesos],Tabla33[Forma\nde pago],Tabla4144[[#Headers],[TDE]],Tabla33[Concepto],Tabla4144[[#This Row],[Tipo]],Tabla33[Tipo\ncomprobante],Nacionales!$B$4)","v":0},{"$f":"+SUMIFS(Tabla33[Importe en\npesos],Tabla33[Forma\nde pago],Tabla4144[[#Headers],[TDC]],Tabla33[Concepto],Tabla4144[[#This Row],[Tipo]],Tabla33[Tipo\ncomprobante],Nacionales!$B$4)","v":0},{"$f":"+SUMIFS(Tabla33[Importe en\npesos],Tabla33[Forma\nde pago],Tabla4144[[#Headers],[E]],Tabla33[Concepto],Tabla4144[[#This Row],[Tipo]],Tabla33[Tipo\ncomprobante],Nacionales!$B$4)","v":0},{"$f":"+SUMIFS(Tabla33[Importe en\npesos],Tabla33[Forma\nde pago],Tabla4144[[#Headers],[Transfer. INAI]],Tabla33[Concepto],Tabla4144[[#This Row],[Tipo]],Tabla33[Tipo\ncomprobante],Nacionales!$B$4)","v":0},{"$f":"+SUMIFS(Tabla33[Importe en\npesos],Tabla33[Forma\nde pago],Tabla4144[[#Headers],[Por tercero]],Tabla33[Concepto],Tabla4144[[#This Row],[Tipo]],Tabla33[Tipo\ncomprobante],Nacionales!$B$4)","v":0},{"$f":"+SUM(Tabla4144[[#This Row],[TCC]:[E]])","v":0},null,"Servicio de internet",{"$f":"+SUMIFS(Tabla33[Importe en\npesos],Tabla33[Forma\nde pago],Tabla4146[[#Headers],[TCC]],Tabla33[Concepto],Tabla4146[[#This Row],[Tipo]],Tabla33[Tipo\ncomprobante],Nacionales!$B$5)","v":0},{"$f":"+SUMIFS(Tabla33[Importe en\npesos],Tabla33[Forma\nde pago],Tabla4146[[#Headers],[TDD]],Tabla33[Concepto],Tabla4146[[#This Row],[Tipo]],Tabla33[Tipo\ncomprobante],Nacionales!$B$5)","v":0},{"$f":"+SUMIFS(Tabla33[Importe en\npesos],Tabla33[Forma\nde pago],Tabla4146[[#Headers],[TDE]],Tabla33[Concepto],Tabla4146[[#This Row],[Tipo]],Tabla33[Tipo\ncomprobante],Nacionales!$B$5)","v":0},{"$f":"+SUMIFS(Tabla33[Importe en\npesos],Tabla33[Forma\nde pago],Tabla4146[[#Headers],[TDC]],Tabla33[Concepto],Tabla4146[[#This Row],[Tipo]],Tabla33[Tipo\ncomprobante],Nacionales!$B$5)","v":0},{"$f":"+SUMIFS(Tabla33[Importe en\npesos],Tabla33[Forma\nde pago],Tabla4146[[#Headers],[E]],Tabla33[Concepto],Tabla4146[[#This Row],[Tipo]],Tabla33[Tipo\ncomprobante],Nacionales!$B$5)","v":0},{"$f":"+SUMIFS(Tabla33[Importe en\npesos],Tabla33[Forma\nde pago],Tabla4146[[#Headers],[Transfer. INAI]],Tabla33[Concepto],Tabla4146[[#This Row],[Tipo]],Tabla33[Tipo\ncomprobante],Nacionales!$B$5)","v":0},{"$f":"+SUMIFS(Tabla33[Importe en\npesos],Tabla33[Forma\nde pago],Tabla4146[[#Headers],[Por tercero]],Tabla33[Concepto],Tabla4146[[#This Row],[Tipo]],Tabla33[Tipo\ncomprobante],Nacionales!$B$5)","v":0},{"$f":"+SUM(Tabla4146[[#This Row],[TCC]:[E]])","v":0},null,"Servicio de internet",{"$f":"+SUMIFS(Tabla33[Importe en\npesos],Tabla33[Forma\nde pago],Tabla4148[[#Headers],[TCC]],Tabla33[Concepto],Tabla4148[[#This Row],[Tipo]],Tabla33[Tipo\ncomprobante],Nacionales!$B$6)","v":0},{"$f":"+SUMIFS(Tabla33[Importe en\npesos],Tabla33[Forma\nde pago],Tabla4148[[#Headers],[TDD]],Tabla33[Concepto],Tabla4148[[#This Row],[Tipo]],Tabla33[Tipo\ncomprobante],Nacionales!$B$6)","v":0},{"$f":"+SUMIFS(Tabla33[Importe en\npesos],Tabla33[Forma\nde pago],Tabla4148[[#Headers],[TDE]],Tabla33[Concepto],Tabla4148[[#This Row],[Tipo]],Tabla33[Tipo\ncomprobante],Nacionales!$B$6)","v":0},{"$f":"+SUMIFS(Tabla33[Importe en\npesos],Tabla33[Forma\nde pago],Tabla4148[[#Headers],[TDC]],Tabla33[Concepto],Tabla4148[[#This Row],[Tipo]],Tabla33[Tipo\ncomprobante],Nacionales!$B$6)","v":0},{"$f":"+SUMIFS(Tabla33[Importe en\npesos],Tabla33[Forma\nde pago],Tabla4148[[#Headers],[E]],Tabla33[Concepto],Tabla4148[[#This Row],[Tipo]],Tabla33[Tipo\ncomprobante],Nacionales!$B$6)","v":0},{"$f":"+SUMIFS(Tabla33[Importe en\npesos],Tabla33[Forma\nde pago],Tabla4148[[#Headers],[Transfer. INAI]],Tabla33[Concepto],Tabla4148[[#This Row],[Tipo]],Tabla33[Tipo\ncomprobante],Nacionales!$B$6)","v":0},{"$f":"+SUMIFS(Tabla33[Importe en\npesos],Tabla33[Forma\nde pago],Tabla4148[[#Headers],[Por tercero]],Tabla33[Concepto],Tabla4148[[#This Row],[Tipo]],Tabla33[Tipo\ncomprobante],Nacionales!$B$6)","v":0},{"$f":"+SUM(Tabla4148[[#This Row],[TCC]:[E]])","v":0},null,"Servicio de internet",{"$f":"+SUMIFS(Tabla33[Importe en\npesos],Tabla33[Forma\nde pago],Tabla4150[[#Headers],[TCC]],Tabla33[Concepto],Tabla4150[[#This Row],[Tipo]],Tabla33[Tipo\ncomprobante],Nacionales!$B$7)","v":0},{"$f":"+SUMIFS(Tabla33[Importe en\npesos],Tabla33[Forma\nde pago],Tabla4150[[#Headers],[TDD]],Tabla33[Concepto],Tabla4150[[#This Row],[Tipo]],Tabla33[Tipo\ncomprobante],Nacionales!$B$7)","v":0},{"$f":"+SUMIFS(Tabla33[Importe en\npesos],Tabla33[Forma\nde pago],Tabla4150[[#Headers],[TDE]],Tabla33[Concepto],Tabla4150[[#This Row],[Tipo]],Tabla33[Tipo\ncomprobante],Nacionales!$B$7)","v":0},{"$f":"+SUMIFS(Tabla33[Importe en\npesos],Tabla33[Forma\nde pago],Tabla4150[[#Headers],[TDC]],Tabla33[Concepto],Tabla4150[[#This Row],[Tipo]],Tabla33[Tipo\ncomprobante],Nacionales!$B$7)","v":0},{"$f":"+SUMIFS(Tabla33[Importe en\npesos],Tabla33[Forma\nde pago],Tabla4150[[#Headers],[E]],Tabla33[Concepto],Tabla4150[[#This Row],[Tipo]],Tabla33[Tipo\ncomprobante],Nacionales!$B$7)","v":0},{"$f":"+SUMIFS(Tabla33[Importe en\npesos],Tabla33[Forma\nde pago],Tabla4150[[#Headers],[Transfer. INAI]],Tabla33[Concepto],Tabla4150[[#This Row],[Tipo]],Tabla33[Tipo\ncomprobante],Nacionales!$B$7)","v":0},{"$f":"+SUMIFS(Tabla33[Importe en\npesos],Tabla33[Forma\nde pago],Tabla4150[[#Headers],[Por tercero]],Tabla33[Concepto],Tabla4150[[#This Row],[Tipo]],Tabla33[Tipo\ncomprobante],Nacionales!$B$7)","v":0},{"$f":"+SUM(Tabla4150[[#This Row],[TCC]:[E]])","v":0}]
[null,"Llamadas telefónicas oficiales",{"$f":"+SUMIFS(Tabla33[Importe en\npesos],Tabla33[Presenta\ncomprobante],\"Si\",Tabla33[Forma\nde pago],Tabla41[[#Headers],[TCC]],Tabla33[Concepto],Tabla41[[#This Row],[Tipo]],Tabla33[Tipo\ncomprobante],Nacionales!$B$3)","v":0},{"$f":"+SUMIFS(Tabla33[Importe en\npesos],Tabla33[Presenta\ncomprobante],\"Si\",Tabla33[Forma\nde pago],Tabla41[[#Headers],[TDD]],Tabla33[Concepto],Tabla41[[#This Row],[Tipo]],Tabla33[Tipo\ncomprobante],Nacionales!$B$3)","v":0},{"$f":"+SUMIFS(Tabla33[Importe en\npesos],Tabla33[Presenta\ncomprobante],\"Si\",Tabla33[Forma\nde pago],Tabla41[[#Headers],[TDE]],Tabla33[Concepto],Tabla41[[#This Row],[Tipo]],Tabla33[Tipo\ncomprobante],Nacionales!$B$3)","v":0},{"$f":"+SUMIFS(Tabla33[Importe en\npesos],Tabla33[Presenta\ncomprobante],\"Si\",Tabla33[Forma\nde pago],Tabla41[[#Headers],[TDC]],Tabla33[Concepto],Tabla41[[#This Row],[Tipo]],Tabla33[Tipo\ncomprobante],Nacionales!$B$3)","v":0},{"$f":"+SUMIFS(Tabla33[Importe en\npesos],Tabla33[Presenta\ncomprobante],\"Si\",Tabla33[Forma\nde pago],Tabla41[[#Headers],[E]],Tabla33[Concepto],Tabla41[[#This Row],[Tipo]],Tabla33[Tipo\ncomprobante],Nacionales!$B$3)","v":0},{"$f":"+SUMIFS(Tabla33[Importe en\npesos],Tabla33[Presenta\ncomprobante],\"Si\",Tabla33[Forma\nde pago],Tabla41[[#Headers],[Transfer. INAI]],Tabla33[Concepto],Tabla41[[#This Row],[Tipo]],Tabla33[Tipo\ncomprobante],Nacionales!$B$3)","v":0},{"$f":"+SUMIFS(Tabla33[Importe en\npesos],Tabla33[Presenta\ncomprobante],\"Si\",Tabla33[Forma\nde pago],Tabla41[[#Headers],[Por tercero]],Tabla33[Concepto],Tabla41[[#This Row],[Tipo]],Tabla33[Tipo\ncomprobante],Nacionales!$B$3)","v":0},{"$f":"+SUM(Tabla41[[#This Row],[TCC]:[E]])","v":0},null,"Llamadas telefónicas oficiales",{"$f":"+SUMIFS(Tabla33[Importe en\npesos],Tabla33[Forma\nde pago],Tabla4144[[#Headers],[TCC]],Tabla33[Concepto],Tabla4144[[#This Row],[Tipo]],Tabla33[Tipo\ncomprobante],Nacionales!$B$4)","v":0},{"$f":"+SUMIFS(Tabla33[Importe en\npesos],Tabla33[Forma\nde pago],Tabla4144[[#Headers],[TDD]],Tabla33[Concepto],Tabla4144[[#This Row],[Tipo]],Tabla33[Tipo\ncomprobante],Nacionales!$B$4)","v":0},{"$f":"+SUMIFS(Tabla33[Importe en\npesos],Tabla33[Forma\nde pago],Tabla4144[[#Headers],[TDE]],Tabla33[Concepto],Tabla4144[[#This Row],[Tipo]],Tabla33[Tipo\ncomprobante],Nacionales!$B$4)","v":0},{"$f":"+SUMIFS(Tabla33[Importe en\npesos],Tabla33[Forma\nde pago],Tabla4144[[#Headers],[TDC]],Tabla33[Concepto],Tabla4144[[#This Row],[Tipo]],Tabla33[Tipo\ncomprobante],Nacionales!$B$4)","v":0},{"$f":"+SUMIFS(Tabla33[Importe en\npesos],Tabla33[Forma\nde pago],Tabla4144[[#Headers],[E]],Tabla33[Concepto],Tabla4144[[#This Row],[Tipo]],Tabla33[Tipo\ncomprobante],Nacionales!$B$4)","v":0},{"$f":"+SUMIFS(Tabla33[Importe en\npesos],Tabla33[Forma\nde pago],Tabla4144[[#Headers],[Transfer. INAI]],Tabla33[Concepto],Tabla4144[[#This Row],[Tipo]],Tabla33[Tipo\ncomprobante],Nacionales!$B$4)","v":0},{"$f":"+SUMIFS(Tabla33[Importe en\npesos],Tabla33[Forma\nde pago],Tabla4144[[#Headers],[Por tercero]],Tabla33[Concepto],Tabla4144[[#This Row],[Tipo]],Tabla33[Tipo\ncomprobante],Nacionales!$B$4)","v":0},{"$f":"+SUM(Tabla4144[[#This Row],[TCC]:[E]])","v":0},null,"Llamadas telefónicas oficiales",{"$f":"+SUMIFS(Tabla33[Importe en\npesos],Tabla33[Forma\nde pago],Tabla4146[[#Headers],[TCC]],Tabla33[Concepto],Tabla4146[[#This Row],[Tipo]],Tabla33[Tipo\ncomprobante],Nacionales!$B$5)","v":0},{"$f":"+SUMIFS(Tabla33[Importe en\npesos],Tabla33[Forma\nde pago],Tabla4146[[#Headers],[TDD]],Tabla33[Concepto],Tabla4146[[#This Row],[Tipo]],Tabla33[Tipo\ncomprobante],Nacionales!$B$5)","v":0},{"$f":"+SUMIFS(Tabla33[Importe en\npesos],Tabla33[Forma\nde pago],Tabla4146[[#Headers],[TDE]],Tabla33[Concepto],Tabla4146[[#This Row],[Tipo]],Tabla33[Tipo\ncomprobante],Nacionales!$B$5)","v":0},{"$f":"+SUMIFS(Tabla33[Importe en\npesos],Tabla33[Forma\nde pago],Tabla4146[[#Headers],[TDC]],Tabla33[Concepto],Tabla4146[[#This Row],[Tipo]],Tabla33[Tipo\ncomprobante],Nacionales!$B$5)","v":0},{"$f":"+SUMIFS(Tabla33[Importe en\npesos],Tabla33[Forma\nde pago],Tabla4146[[#Headers],[E]],Tabla33[Concepto],Tabla4146[[#This Row],[Tipo]],Tabla33[Tipo\ncomprobante],Nacionales!$B$5)","v":0},{"$f":"+SUMIFS(Tabla33[Importe en\npesos],Tabla33[Forma\nde pago],Tabla4146[[#Headers],[Transfer. INAI]],Tabla33[Concepto],Tabla4146[[#This Row],[Tipo]],Tabla33[Tipo\ncomprobante],Nacionales!$B$5)","v":0},{"$f":"+SUMIFS(Tabla33[Importe en\npesos],Tabla33[Forma\nde pago],Tabla4146[[#Headers],[Por tercero]],Tabla33[Concepto],Tabla4146[[#This Row],[Tipo]],Tabla33[Tipo\ncomprobante],Nacionales!$B$5)","v":0},{"$f":"+SUM(Tabla4146[[#This Row],[TCC]:[E]])","v":0},null,"Llamadas telefónicas oficiales",{"$f":"+SUMIFS(Tabla33[Importe en\npesos],Tabla33[Forma\nde pago],Tabla4148[[#Headers],[TCC]],Tabla33[Concepto],Tabla4148[[#This Row],[Tipo]],Tabla33[Tipo\ncomprobante],Nacionales!$B$6)","v":0},{"$f":"+SUMIFS(Tabla33[Importe en\npesos],Tabla33[Forma\nde pago],Tabla4148[[#Headers],[TDD]],Tabla33[Concepto],Tabla4148[[#This Row],[Tipo]],Tabla33[Tipo\ncomprobante],Nacionales!$B$6)","v":0},{"$f":"+SUMIFS(Tabla33[Importe en\npesos],Tabla33[Forma\nde pago],Tabla4148[[#Headers],[TDE]],Tabla33[Concepto],Tabla4148[[#This Row],[Tipo]],Tabla33[Tipo\ncomprobante],Nacionales!$B$6)","v":0},{"$f":"+SUMIFS(Tabla33[Importe en\npesos],Tabla33[Forma\nde pago],Tabla4148[[#Headers],[TDC]],Tabla33[Concepto],Tabla4148[[#This Row],[Tipo]],Tabla33[Tipo\ncomprobante],Nacionales!$B$6)","v":0},{"$f":"+SUMIFS(Tabla33[Importe en\npesos],Tabla33[Forma\nde pago],Tabla4148[[#Headers],[E]],Tabla33[Concepto],Tabla4148[[#This Row],[Tipo]],Tabla33[Tipo\ncomprobante],Nacionales!$B$6)","v":0},{"$f":"+SUMIFS(Tabla33[Importe en\npesos],Tabla33[Forma\nde pago],Tabla4148[[#Headers],[Transfer. INAI]],Tabla33[Concepto],Tabla4148[[#This Row],[Tipo]],Tabla33[Tipo\ncomprobante],Nacionales!$B$6)","v":0},{"$f":"+SUMIFS(Tabla33[Importe en\npesos],Tabla33[Forma\nde pago],Tabla4148[[#Headers],[Por tercero]],Tabla33[Concepto],Tabla4148[[#This Row],[Tipo]],Tabla33[Tipo\ncomprobante],Nacionales!$B$6)","v":0},{"$f":"+SUM(Tabla4148[[#This Row],[TCC]:[E]])","v":0},null,"Llamadas telefónicas oficiales",{"$f":"+SUMIFS(Tabla33[Importe en\npesos],Tabla33[Forma\nde pago],Tabla4150[[#Headers],[TCC]],Tabla33[Concepto],Tabla4150[[#This Row],[Tipo]],Tabla33[Tipo\ncomprobante],Nacionales!$B$7)","v":0},{"$f":"+SUMIFS(Tabla33[Importe en\npesos],Tabla33[Forma\nde pago],Tabla4150[[#Headers],[TDD]],Tabla33[Concepto],Tabla4150[[#This Row],[Tipo]],Tabla33[Tipo\ncomprobante],Nacionales!$B$7)","v":0},{"$f":"+SUMIFS(Tabla33[Importe en\npesos],Tabla33[Forma\nde pago],Tabla4150[[#Headers],[TDE]],Tabla33[Concepto],Tabla4150[[#This Row],[Tipo]],Tabla33[Tipo\ncomprobante],Nacionales!$B$7)","v":0},{"$f":"+SUMIFS(Tabla33[Importe en\npesos],Tabla33[Forma\nde pago],Tabla4150[[#Headers],[TDC]],Tabla33[Concepto],Tabla4150[[#This Row],[Tipo]],Tabla33[Tipo\ncomprobante],Nacionales!$B$7)","v":0},{"$f":"+SUMIFS(Tabla33[Importe en\npesos],Tabla33[Forma\nde pago],Tabla4150[[#Headers],[E]],Tabla33[Concepto],Tabla4150[[#This Row],[Tipo]],Tabla33[Tipo\ncomprobante],Nacionales!$B$7)","v":0},{"$f":"+SUMIFS(Tabla33[Importe en\npesos],Tabla33[Forma\nde pago],Tabla4150[[#Headers],[Transfer. INAI]],Tabla33[Concepto],Tabla4150[[#This Row],[Tipo]],Tabla33[Tipo\ncomprobante],Nacionales!$B$7)","v":0},{"$f":"+SUMIFS(Tabla33[Importe en\npesos],Tabla33[Forma\nde pago],Tabla4150[[#Headers],[Por tercero]],Tabla33[Concepto],Tabla4150[[#This Row],[Tipo]],Tabla33[Tipo\ncomprobante],Nacionales!$B$7)","v":0},{"$f":"+SUM(Tabla4150[[#This Row],[TCC]:[E]])","v":0}]
[null,"Tarjeta telefónica prepagada",{"$f":"+SUMIFS(Tabla33[Importe en\npesos],Tabla33[Presenta\ncomprobante],\"Si\",Tabla33[Forma\nde pago],Tabla41[[#Headers],[TCC]],Tabla33[Concepto],Tabla41[[#This Row],[Tipo]],Tabla33[Tipo\ncomprobante],Nacionales!$B$3)","v":0},{"$f":"+SUMIFS(Tabla33[Importe en\npesos],Tabla33[Presenta\ncomprobante],\"Si\",Tabla33[Forma\nde pago],Tabla41[[#Headers],[TDD]],Tabla33[Concepto],Tabla41[[#This Row],[Tipo]],Tabla33[Tipo\ncomprobante],Nacionales!$B$3)","v":0},{"$f":"+SUMIFS(Tabla33[Importe en\npesos],Tabla33[Presenta\ncomprobante],\"Si\",Tabla33[Forma\nde pago],Tabla41[[#Headers],[TDE]],Tabla33[Concepto],Tabla41[[#This Row],[Tipo]],Tabla33[Tipo\ncomprobante],Nacionales!$B$3)","v":0},{"$f":"+SUMIFS(Tabla33[Importe en\npesos],Tabla33[Presenta\ncomprobante],\"Si\",Tabla33[Forma\nde pago],Tabla41[[#Headers],[TDC]],Tabla33[Concepto],Tabla41[[#This Row],[Tipo]],Tabla33[Tipo\ncomprobante],Nacionales!$B$3)","v":0},{"$f":"+SUMIFS(Tabla33[Importe en\npesos],Tabla33[Presenta\ncomprobante],\"Si\",Tabla33[Forma\nde pago],Tabla41[[#Headers],[E]],Tabla33[Concepto],Tabla41[[#This Row],[Tipo]],Tabla33[Tipo\ncomprobante],Nacionales!$B$3)","v":0},{"$f":"+SUMIFS(Tabla33[Importe en\npesos],Tabla33[Presenta\ncomprobante],\"Si\",Tabla33[Forma\nde pago],Tabla41[[#Headers],[Transfer. INAI]],Tabla33[Concepto],Tabla41[[#This Row],[Tipo]],Tabla33[Tipo\ncomprobante],Nacionales!$B$3)","v":0},{"$f":"+SUMIFS(Tabla33[Importe en\npesos],Tabla33[Presenta\ncomprobante],\"Si\",Tabla33[Forma\nde pago],Tabla41[[#Headers],[Por tercero]],Tabla33[Concepto],Tabla41[[#This Row],[Tipo]],Tabla33[Tipo\ncomprobante],Nacionales!$B$3)","v":0},{"$f":"+SUM(Tabla41[[#This Row],[TCC]:[E]])","v":0},null,"Tarjeta telefónica prepagada",{"$f":"+SUMIFS(Tabla33[Importe en\npesos],Tabla33[Forma\nde pago],Tabla4144[[#Headers],[TCC]],Tabla33[Concepto],Tabla4144[[#This Row],[Tipo]],Tabla33[Tipo\ncomprobante],Nacionales!$B$4)","v":0},{"$f":"+SUMIFS(Tabla33[Importe en\npesos],Tabla33[Forma\nde pago],Tabla4144[[#Headers],[TDD]],Tabla33[Concepto],Tabla4144[[#This Row],[Tipo]],Tabla33[Tipo\ncomprobante],Nacionales!$B$4)","v":0},{"$f":"+SUMIFS(Tabla33[Importe en\npesos],Tabla33[Forma\nde pago],Tabla4144[[#Headers],[TDE]],Tabla33[Concepto],Tabla4144[[#This Row],[Tipo]],Tabla33[Tipo\ncomprobante],Nacionales!$B$4)","v":0},{"$f":"+SUMIFS(Tabla33[Importe en\npesos],Tabla33[Forma\nde pago],Tabla4144[[#Headers],[TDC]],Tabla33[Concepto],Tabla4144[[#This Row],[Tipo]],Tabla33[Tipo\ncomprobante],Nacionales!$B$4)","v":0},{"$f":"+SUMIFS(Tabla33[Importe en\npesos],Tabla33[Forma\nde pago],Tabla4144[[#Headers],[E]],Tabla33[Concepto],Tabla4144[[#This Row],[Tipo]],Tabla33[Tipo\ncomprobante],Nacionales!$B$4)","v":0},{"$f":"+SUMIFS(Tabla33[Importe en\npesos],Tabla33[Forma\nde pago],Tabla4144[[#Headers],[Transfer. INAI]],Tabla33[Concepto],Tabla4144[[#This Row],[Tipo]],Tabla33[Tipo\ncomprobante],Nacionales!$B$4)","v":0},{"$f":"+SUMIFS(Tabla33[Importe en\npesos],Tabla33[Forma\nde pago],Tabla4144[[#Headers],[Por tercero]],Tabla33[Concepto],Tabla4144[[#This Row],[Tipo]],Tabla33[Tipo\ncomprobante],Nacionales!$B$4)","v":0},{"$f":"+SUM(Tabla4144[[#This Row],[TCC]:[E]])","v":0},null,"Tarjeta telefónica prepagada",{"$f":"+SUMIFS(Tabla33[Importe en\npesos],Tabla33[Forma\nde pago],Tabla4146[[#Headers],[TCC]],Tabla33[Concepto],Tabla4146[[#This Row],[Tipo]],Tabla33[Tipo\ncomprobante],Nacionales!$B$5)","v":0},{"$f":"+SUMIFS(Tabla33[Importe en\npesos],Tabla33[Forma\nde pago],Tabla4146[[#Headers],[TDD]],Tabla33[Concepto],Tabla4146[[#This Row],[Tipo]],Tabla33[Tipo\ncomprobante],Nacionales!$B$5)","v":0},{"$f":"+SUMIFS(Tabla33[Importe en\npesos],Tabla33[Forma\nde pago],Tabla4146[[#Headers],[TDE]],Tabla33[Concepto],Tabla4146[[#This Row],[Tipo]],Tabla33[Tipo\ncomprobante],Nacionales!$B$5)","v":0},{"$f":"+SUMIFS(Tabla33[Importe en\npesos],Tabla33[Forma\nde pago],Tabla4146[[#Headers],[TDC]],Tabla33[Concepto],Tabla4146[[#This Row],[Tipo]],Tabla33[Tipo\ncomprobante],Nacionales!$B$5)","v":0},{"$f":"+SUMIFS(Tabla33[Importe en\npesos],Tabla33[Forma\nde pago],Tabla4146[[#Headers],[E]],Tabla33[Concepto],Tabla4146[[#This Row],[Tipo]],Tabla33[Tipo\ncomprobante],Nacionales!$B$5)","v":0},{"$f":"+SUMIFS(Tabla33[Importe en\npesos],Tabla33[Forma\nde pago],Tabla4146[[#Headers],[Transfer. INAI]],Tabla33[Concepto],Tabla4146[[#This Row],[Tipo]],Tabla33[Tipo\ncomprobante],Nacionales!$B$5)","v":0},{"$f":"+SUMIFS(Tabla33[Importe en\npesos],Tabla33[Forma\nde pago],Tabla4146[[#Headers],[Por tercero]],Tabla33[Concepto],Tabla4146[[#This Row],[Tipo]],Tabla33[Tipo\ncomprobante],Nacionales!$B$5)","v":0},{"$f":"+SUM(Tabla4146[[#This Row],[TCC]:[E]])","v":0},null,"Tarjeta telefónica prepagada",{"$f":"+SUMIFS(Tabla33[Importe en\npesos],Tabla33[Forma\nde pago],Tabla4148[[#Headers],[TCC]],Tabla33[Concepto],Tabla4148[[#This Row],[Tipo]],Tabla33[Tipo\ncomprobante],Nacionales!$B$6)","v":0},{"$f":"+SUMIFS(Tabla33[Importe en\npesos],Tabla33[Forma\nde pago],Tabla4148[[#Headers],[TDD]],Tabla33[Concepto],Tabla4148[[#This Row],[Tipo]],Tabla33[Tipo\ncomprobante],Nacionales!$B$6)","v":0},{"$f":"+SUMIFS(Tabla33[Importe en\npesos],Tabla33[Forma\nde pago],Tabla4148[[#Headers],[TDE]],Tabla33[Concepto],Tabla4148[[#This Row],[Tipo]],Tabla33[Tipo\ncomprobante],Nacionales!$B$6)","v":0},{"$f":"+SUMIFS(Tabla33[Importe en\npesos],Tabla33[Forma\nde pago],Tabla4148[[#Headers],[TDC]],Tabla33[Concepto],Tabla4148[[#This Row],[Tipo]],Tabla33[Tipo\ncomprobante],Nacionales!$B$6)","v":0},{"$f":"+SUMIFS(Tabla33[Importe en\npesos],Tabla33[Forma\nde pago],Tabla4148[[#Headers],[E]],Tabla33[Concepto],Tabla4148[[#This Row],[Tipo]],Tabla33[Tipo\ncomprobante],Nacionales!$B$6)","v":0},{"$f":"+SUMIFS(Tabla33[Importe en\npesos],Tabla33[Forma\nde pago],Tabla4148[[#Headers],[Transfer. INAI]],Tabla33[Concepto],Tabla4148[[#This Row],[Tipo]],Tabla33[Tipo\ncomprobante],Nacionales!$B$6)","v":0},{"$f":"+SUMIFS(Tabla33[Importe en\npesos],Tabla33[Forma\nde pago],Tabla4148[[#Headers],[Por tercero]],Tabla33[Concepto],Tabla4148[[#This Row],[Tipo]],Tabla33[Tipo\ncomprobante],Nacionales!$B$6)","v":0},{"$f":"+SUM(Tabla4148[[#This Row],[TCC]:[E]])","v":0},null,"Tarjeta telefónica prepagada",{"$f":"+SUMIFS(Tabla33[Importe en\npesos],Tabla33[Forma\nde pago],Tabla4150[[#Headers],[TCC]],Tabla33[Concepto],Tabla4150[[#This Row],[Tipo]],Tabla33[Tipo\ncomprobante],Nacionales!$B$7)","v":0},{"$f":"+SUMIFS(Tabla33[Importe en\npesos],Tabla33[Forma\nde pago],Tabla4150[[#Headers],[TDD]],Tabla33[Concepto],Tabla4150[[#This Row],[Tipo]],Tabla33[Tipo\ncomprobante],Nacionales!$B$7)","v":0},{"$f":"+SUMIFS(Tabla33[Importe en\npesos],Tabla33[Forma\nde pago],Tabla4150[[#Headers],[TDE]],Tabla33[Concepto],Tabla4150[[#This Row],[Tipo]],Tabla33[Tipo\ncomprobante],Nacionales!$B$7)","v":0},{"$f":"+SUMIFS(Tabla33[Importe en\npesos],Tabla33[Forma\nde pago],Tabla4150[[#Headers],[TDC]],Tabla33[Concepto],Tabla4150[[#This Row],[Tipo]],Tabla33[Tipo\ncomprobante],Nacionales!$B$7)","v":0},{"$f":"+SUMIFS(Tabla33[Importe en\npesos],Tabla33[Forma\nde pago],Tabla4150[[#Headers],[E]],Tabla33[Concepto],Tabla4150[[#This Row],[Tipo]],Tabla33[Tipo\ncomprobante],Nacionales!$B$7)","v":0},{"$f":"+SUMIFS(Tabla33[Importe en\npesos],Tabla33[Forma\nde pago],Tabla4150[[#Headers],[Transfer. INAI]],Tabla33[Concepto],Tabla4150[[#This Row],[Tipo]],Tabla33[Tipo\ncomprobante],Nacionales!$B$7)","v":0},{"$f":"+SUMIFS(Tabla33[Importe en\npesos],Tabla33[Forma\nde pago],Tabla4150[[#Headers],[Por tercero]],Tabla33[Concepto],Tabla4150[[#This Row],[Tipo]],Tabla33[Tipo\ncomprobante],Nacionales!$B$7)","v":0},{"$f":"+SUM(Tabla4150[[#This Row],[TCC]:[E]])","v":0}]
[null,"Fotocopiado",{"$f":"+SUMIFS(Tabla33[Importe en\npesos],Tabla33[Presenta\ncomprobante],\"Si\",Tabla33[Forma\nde pago],Tabla41[[#Headers],[TCC]],Tabla33[Concepto],Tabla41[[#This Row],[Tipo]],Tabla33[Tipo\ncomprobante],Nacionales!$B$3)","v":0},{"$f":"+SUMIFS(Tabla33[Importe en\npesos],Tabla33[Presenta\ncomprobante],\"Si\",Tabla33[Forma\nde pago],Tabla41[[#Headers],[TDD]],Tabla33[Concepto],Tabla41[[#This Row],[Tipo]],Tabla33[Tipo\ncomprobante],Nacionales!$B$3)","v":0},{"$f":"+SUMIFS(Tabla33[Importe en\npesos],Tabla33[Presenta\ncomprobante],\"Si\",Tabla33[Forma\nde pago],Tabla41[[#Headers],[TDE]],Tabla33[Concepto],Tabla41[[#This Row],[Tipo]],Tabla33[Tipo\ncomprobante],Nacionales!$B$3)","v":0},{"$f":"+SUMIFS(Tabla33[Importe en\npesos],Tabla33[Presenta\ncomprobante],\"Si\",Tabla33[Forma\nde pago],Tabla41[[#Headers],[TDC]],Tabla33[Concepto],Tabla41[[#This Row],[Tipo]],Tabla33[Tipo\ncomprobante],Nacionales!$B$3)","v":0},{"$f":"+SUMIFS(Tabla33[Importe en\npesos],Tabla33[Presenta\ncomprobante],\"Si\",Tabla33[Forma\nde pago],Tabla41[[#Headers],[E]],Tabla33[Concepto],Tabla41[[#This Row],[Tipo]],Tabla33[Tipo\ncomprobante],Nacionales!$B$3)","v":0},{"$f":"+SUMIFS(Tabla33[Importe en\npesos],Tabla33[Presenta\ncomprobante],\"Si\",Tabla33[Forma\nde pago],Tabla41[[#Headers],[Transfer. INAI]],Tabla33[Concepto],Tabla41[[#This Row],[Tipo]],Tabla33[Tipo\ncomprobante],Nacionales!$B$3)","v":0},{"$f":"+SUMIFS(Tabla33[Importe en\npesos],Tabla33[Presenta\ncomprobante],\"Si\",Tabla33[Forma\nde pago],Tabla41[[#Headers],[Por tercero]],Tabla33[Concepto],Tabla41[[#This Row],[Tipo]],Tabla33[Tipo\ncomprobante],Nacionales!$B$3)","v":0},{"$f":"+SUM(Tabla41[[#This Row],[TCC]:[E]])","v":0},null,"Fotocopiado",{"$f":"+SUMIFS(Tabla33[Importe en\npesos],Tabla33[Forma\nde pago],Tabla4144[[#Headers],[TCC]],Tabla33[Concepto],Tabla4144[[#This Row],[Tipo]],Tabla33[Tipo\ncomprobante],Nacionales!$B$4)","v":0},{"$f":"+SUMIFS(Tabla33[Importe en\npesos],Tabla33[Forma\nde pago],Tabla4144[[#Headers],[TDD]],Tabla33[Concepto],Tabla4144[[#This Row],[Tipo]],Tabla33[Tipo\ncomprobante],Nacionales!$B$4)","v":0},{"$f":"+SUMIFS(Tabla33[Importe en\npesos],Tabla33[Forma\nde pago],Tabla4144[[#Headers],[TDE]],Tabla33[Concepto],Tabla4144[[#This Row],[Tipo]],Tabla33[Tipo\ncomprobante],Nacionales!$B$4)","v":0},{"$f":"+SUMIFS(Tabla33[Importe en\npesos],Tabla33[Forma\nde pago],Tabla4144[[#Headers],[TDC]],Tabla33[Concepto],Tabla4144[[#This Row],[Tipo]],Tabla33[Tipo\ncomprobante],Nacionales!$B$4)","v":0},{"$f":"+SUMIFS(Tabla33[Importe en\npesos],Tabla33[Forma\nde pago],Tabla4144[[#Headers],[E]],Tabla33[Concepto],Tabla4144[[#This Row],[Tipo]],Tabla33[Tipo\ncomprobante],Nacionales!$B$4)","v":0},{"$f":"+SUMIFS(Tabla33[Importe en\npesos],Tabla33[Forma\nde pago],Tabla4144[[#Headers],[Transfer. INAI]],Tabla33[Concepto],Tabla4144[[#This Row],[Tipo]],Tabla33[Tipo\ncomprobante],Nacionales!$B$4)","v":0},{"$f":"+SUMIFS(Tabla33[Importe en\npesos],Tabla33[Forma\nde pago],Tabla4144[[#Headers],[Por tercero]],Tabla33[Concepto],Tabla4144[[#This Row],[Tipo]],Tabla33[Tipo\ncomprobante],Nacionales!$B$4)","v":0},{"$f":"+SUM(Tabla4144[[#This Row],[TCC]:[E]])","v":0},null,"Fotocopiado",{"$f":"+SUMIFS(Tabla33[Importe en\npesos],Tabla33[Forma\nde pago],Tabla4146[[#Headers],[TCC]],Tabla33[Concepto],Tabla4146[[#This Row],[Tipo]],Tabla33[Tipo\ncomprobante],Nacionales!$B$5)","v":0},{"$f":"+SUMIFS(Tabla33[Importe en\npesos],Tabla33[Forma\nde pago],Tabla4146[[#Headers],[TDD]],Tabla33[Concepto],Tabla4146[[#This Row],[Tipo]],Tabla33[Tipo\ncomprobante],Nacionales!$B$5)","v":0},{"$f":"+SUMIFS(Tabla33[Importe en\npesos],Tabla33[Forma\nde pago],Tabla4146[[#Headers],[TDE]],Tabla33[Concepto],Tabla4146[[#This Row],[Tipo]],Tabla33[Tipo\ncomprobante],Nacionales!$B$5)","v":0},{"$f":"+SUMIFS(Tabla33[Importe en\npesos],Tabla33[Forma\nde pago],Tabla4146[[#Headers],[TDC]],Tabla33[Concepto],Tabla4146[[#This Row],[Tipo]],Tabla33[Tipo\ncomprobante],Nacionales!$B$5)","v":0},{"$f":"+SUMIFS(Tabla33[Importe en\npesos],Tabla33[Forma\nde pago],Tabla4146[[#Headers],[E]],Tabla33[Concepto],Tabla4146[[#This Row],[Tipo]],Tabla33[Tipo\ncomprobante],Nacionales!$B$5)","v":0},{"$f":"+SUMIFS(Tabla33[Importe en\npesos],Tabla33[Forma\nde pago],Tabla4146[[#Headers],[Transfer. INAI]],Tabla33[Concepto],Tabla4146[[#This Row],[Tipo]],Tabla33[Tipo\ncomprobante],Nacionales!$B$5)","v":0},{"$f":"+SUMIFS(Tabla33[Importe en\npesos],Tabla33[Forma\nde pago],Tabla4146[[#Headers],[Por tercero]],Tabla33[Concepto],Tabla4146[[#This Row],[Tipo]],Tabla33[Tipo\ncomprobante],Nacionales!$B$5)","v":0},{"$f":"+SUM(Tabla4146[[#This Row],[TCC]:[E]])","v":0},null,"Fotocopiado",{"$f":"+SUMIFS(Tabla33[Importe en\npesos],Tabla33[Forma\nde pago],Tabla4148[[#Headers],[TCC]],Tabla33[Concepto],Tabla4148[[#This Row],[Tipo]],Tabla33[Tipo\ncomprobante],Nacionales!$B$6)","v":0},{"$f":"+SUMIFS(Tabla33[Importe en\npesos],Tabla33[Forma\nde pago],Tabla4148[[#Headers],[TDD]],Tabla33[Concepto],Tabla4148[[#This Row],[Tipo]],Tabla33[Tipo\ncomprobante],Nacionales!$B$6)","v":0},{"$f":"+SUMIFS(Tabla33[Importe en\npesos],Tabla33[Forma\nde pago],Tabla4148[[#Headers],[TDE]],Tabla33[Concepto],Tabla4148[[#This Row],[Tipo]],Tabla33[Tipo\ncomprobante],Nacionales!$B$6)","v":0},{"$f":"+SUMIFS(Tabla33[Importe en\npesos],Tabla33[Forma\nde pago],Tabla4148[[#Headers],[TDC]],Tabla33[Concepto],Tabla4148[[#This Row],[Tipo]],Tabla33[Tipo\ncomprobante],Nacionales!$B$6)","v":0},{"$f":"+SUMIFS(Tabla33[Importe en\npesos],Tabla33[Forma\nde pago],Tabla4148[[#Headers],[E]],Tabla33[Concepto],Tabla4148[[#This Row],[Tipo]],Tabla33[Tipo\ncomprobante],Nacionales!$B$6)","v":0},{"$f":"+SUMIFS(Tabla33[Importe en\npesos],Tabla33[Forma\nde pago],Tabla4148[[#Headers],[Transfer. INAI]],Tabla33[Concepto],Tabla4148[[#This Row],[Tipo]],Tabla33[Tipo\ncomprobante],Nacionales!$B$6)","v":0},{"$f":"+SUMIFS(Tabla33[Importe en\npesos],Tabla33[Forma\nde pago],Tabla4148[[#Headers],[Por tercero]],Tabla33[Concepto],Tabla4148[[#This Row],[Tipo]],Tabla33[Tipo\ncomprobante],Nacionales!$B$6)","v":0},{"$f":"+SUM(Tabla4148[[#This Row],[TCC]:[E]])","v":0},null,"Fotocopiado",{"$f":"+SUMIFS(Tabla33[Importe en\npesos],Tabla33[Forma\nde pago],Tabla4150[[#Headers],[TCC]],Tabla33[Concepto],Tabla4150[[#This Row],[Tipo]],Tabla33[Tipo\ncomprobante],Nacionales!$B$7)","v":0},{"$f":"+SUMIFS(Tabla33[Importe en\npesos],Tabla33[Forma\nde pago],Tabla4150[[#Headers],[TDD]],Tabla33[Concepto],Tabla4150[[#This Row],[Tipo]],Tabla33[Tipo\ncomprobante],Nacionales!$B$7)","v":0},{"$f":"+SUMIFS(Tabla33[Importe en\npesos],Tabla33[Forma\nde pago],Tabla4150[[#Headers],[TDE]],Tabla33[Concepto],Tabla4150[[#This Row],[Tipo]],Tabla33[Tipo\ncomprobante],Nacionales!$B$7)","v":0},{"$f":"+SUMIFS(Tabla33[Importe en\npesos],Tabla33[Forma\nde pago],Tabla4150[[#Headers],[TDC]],Tabla33[Concepto],Tabla4150[[#This Row],[Tipo]],Tabla33[Tipo\ncomprobante],Nacionales!$B$7)","v":0},{"$f":"+SUMIFS(Tabla33[Importe en\npesos],Tabla33[Forma\nde pago],Tabla4150[[#Headers],[E]],Tabla33[Concepto],Tabla4150[[#This Row],[Tipo]],Tabla33[Tipo\ncomprobante],Nacionales!$B$7)","v":0},{"$f":"+SUMIFS(Tabla33[Importe en\npesos],Tabla33[Forma\nde pago],Tabla4150[[#Headers],[Transfer. INAI]],Tabla33[Concepto],Tabla4150[[#This Row],[Tipo]],Tabla33[Tipo\ncomprobante],Nacionales!$B$7)","v":0},{"$f":"+SUMIFS(Tabla33[Importe en\npesos],Tabla33[Forma\nde pago],Tabla4150[[#Headers],[Por tercero]],Tabla33[Concepto],Tabla4150[[#This Row],[Tipo]],Tabla33[Tipo\ncomprobante],Nacionales!$B$7)","v":0},{"$f":"+SUM(Tabla4150[[#This Row],[TCC]:[E]])","v":0}]
[null,"Estacionamiento",{"$f":"+SUMIFS(Tabla33[Importe en\npesos],Tabla33[Presenta\ncomprobante],\"Si\",Tabla33[Forma\nde pago],Tabla41[[#Headers],[TCC]],Tabla33[Concepto],Tabla41[[#This Row],[Tipo]],Tabla33[Tipo\ncomprobante],Nacionales!$B$3)","v":0},{"$f":"+SUMIFS(Tabla33[Importe en\npesos],Tabla33[Presenta\ncomprobante],\"Si\",Tabla33[Forma\nde pago],Tabla41[[#Headers],[TDD]],Tabla33[Concepto],Tabla41[[#This Row],[Tipo]],Tabla33[Tipo\ncomprobante],Nacionales!$B$3)","v":0},{"$f":"+SUMIFS(Tabla33[Importe en\npesos],Tabla33[Presenta\ncomprobante],\"Si\",Tabla33[Forma\nde pago],Tabla41[[#Headers],[TDE]],Tabla33[Concepto],Tabla41[[#This Row],[Tipo]],Tabla33[Tipo\ncomprobante],Nacionales!$B$3)","v":0},{"$f":"+SUMIFS(Tabla33[Importe en\npesos],Tabla33[Presenta\ncomprobante],\"Si\",Tabla33[Forma\nde pago],Tabla41[[#Headers],[TDC]],Tabla33[Concepto],Tabla41[[#This Row],[Tipo]],Tabla33[Tipo\ncomprobante],Nacionales!$B$3)","v":0},{"$f":"+SUMIFS(Tabla33[Importe en\npesos],Tabla33[Presenta\ncomprobante],\"Si\",Tabla33[Forma\nde pago],Tabla41[[#Headers],[E]],Tabla33[Concepto],Tabla41[[#This Row],[Tipo]],Tabla33[Tipo\ncomprobante],Nacionales!$B$3)","v":0},{"$f":"+SUMIFS(Tabla33[Importe en\npesos],Tabla33[Presenta\ncomprobante],\"Si\",Tabla33[Forma\nde pago],Tabla41[[#Headers],[Transfer. INAI]],Tabla33[Concepto],Tabla41[[#This Row],[Tipo]],Tabla33[Tipo\ncomprobante],Nacionales!$B$3)","v":0},{"$f":"+SUMIFS(Tabla33[Importe en\npesos],Tabla33[Presenta\ncomprobante],\"Si\",Tabla33[Forma\nde pago],Tabla41[[#Headers],[Por tercero]],Tabla33[Concepto],Tabla41[[#This Row],[Tipo]],Tabla33[Tipo\ncomprobante],Nacionales!$B$3)","v":0},{"$f":"+SUM(Tabla41[[#This Row],[TCC]:[E]])","v":0},null,"Estacionamiento",{"$f":"+SUMIFS(Tabla33[Importe en\npesos],Tabla33[Forma\nde pago],Tabla4144[[#Headers],[TCC]],Tabla33[Concepto],Tabla4144[[#This Row],[Tipo]],Tabla33[Tipo\ncomprobante],Nacionales!$B$4)","v":0},{"$f":"+SUMIFS(Tabla33[Importe en\npesos],Tabla33[Forma\nde pago],Tabla4144[[#Headers],[TDD]],Tabla33[Concepto],Tabla4144[[#This Row],[Tipo]],Tabla33[Tipo\ncomprobante],Nacionales!$B$4)","v":0},{"$f":"+SUMIFS(Tabla33[Importe en\npesos],Tabla33[Forma\nde pago],Tabla4144[[#Headers],[TDE]],Tabla33[Concepto],Tabla4144[[#This Row],[Tipo]],Tabla33[Tipo\ncomprobante],Nacionales!$B$4)","v":0},{"$f":"+SUMIFS(Tabla33[Importe en\npesos],Tabla33[Forma\nde pago],Tabla4144[[#Headers],[TDC]],Tabla33[Concepto],Tabla4144[[#This Row],[Tipo]],Tabla33[Tipo\ncomprobante],Nacionales!$B$4)","v":0},{"$f":"+SUMIFS(Tabla33[Importe en\npesos],Tabla33[Forma\nde pago],Tabla4144[[#Headers],[E]],Tabla33[Concepto],Tabla4144[[#This Row],[Tipo]],Tabla33[Tipo\ncomprobante],Nacionales!$B$4)","v":0},{"$f":"+SUMIFS(Tabla33[Importe en\npesos],Tabla33[Forma\nde pago],Tabla4144[[#Headers],[Transfer. INAI]],Tabla33[Concepto],Tabla4144[[#This Row],[Tipo]],Tabla33[Tipo\ncomprobante],Nacionales!$B$4)","v":0},{"$f":"+SUMIFS(Tabla33[Importe en\npesos],Tabla33[Forma\nde pago],Tabla4144[[#Headers],[Por tercero]],Tabla33[Concepto],Tabla4144[[#This Row],[Tipo]],Tabla33[Tipo\ncomprobante],Nacionales!$B$4)","v":0},{"$f":"+SUM(Tabla4144[[#This Row],[TCC]:[E]])","v":0},null,"Estacionamiento",{"$f":"+SUMIFS(Tabla33[Importe en\npesos],Tabla33[Forma\nde pago],Tabla4146[[#Headers],[TCC]],Tabla33[Concepto],Tabla4146[[#This Row],[Tipo]],Tabla33[Tipo\ncomprobante],Nacionales!$B$5)","v":0},{"$f":"+SUMIFS(Tabla33[Importe en\npesos],Tabla33[Forma\nde pago],Tabla4146[[#Headers],[TDD]],Tabla33[Concepto],Tabla4146[[#This Row],[Tipo]],Tabla33[Tipo\ncomprobante],Nacionales!$B$5)","v":0},{"$f":"+SUMIFS(Tabla33[Importe en\npesos],Tabla33[Forma\nde pago],Tabla4146[[#Headers],[TDE]],Tabla33[Concepto],Tabla4146[[#This Row],[Tipo]],Tabla33[Tipo\ncomprobante],Nacionales!$B$5)","v":0},{"$f":"+SUMIFS(Tabla33[Importe en\npesos],Tabla33[Forma\nde pago],Tabla4146[[#Headers],[TDC]],Tabla33[Concepto],Tabla4146[[#This Row],[Tipo]],Tabla33[Tipo\ncomprobante],Nacionales!$B$5)","v":0},{"$f":"+SUMIFS(Tabla33[Importe en\npesos],Tabla33[Forma\nde pago],Tabla4146[[#Headers],[E]],Tabla33[Concepto],Tabla4146[[#This Row],[Tipo]],Tabla33[Tipo\ncomprobante],Nacionales!$B$5)","v":0},{"$f":"+SUMIFS(Tabla33[Importe en\npesos],Tabla33[Forma\nde pago],Tabla4146[[#Headers],[Transfer. INAI]],Tabla33[Concepto],Tabla4146[[#This Row],[Tipo]],Tabla33[Tipo\ncomprobante],Nacionales!$B$5)","v":0},{"$f":"+SUMIFS(Tabla33[Importe en\npesos],Tabla33[Forma\nde pago],Tabla4146[[#Headers],[Por tercero]],Tabla33[Concepto],Tabla4146[[#This Row],[Tipo]],Tabla33[Tipo\ncomprobante],Nacionales!$B$5)","v":0},{"$f":"+SUM(Tabla4146[[#This Row],[TCC]:[E]])","v":0},null,"Estacionamiento",{"$f":"+SUMIFS(Tabla33[Importe en\npesos],Tabla33[Forma\nde pago],Tabla4148[[#Headers],[TCC]],Tabla33[Concepto],Tabla4148[[#This Row],[Tipo]],Tabla33[Tipo\ncomprobante],Nacionales!$B$6)","v":0},{"$f":"+SUMIFS(Tabla33[Importe en\npesos],Tabla33[Forma\nde pago],Tabla4148[[#Headers],[TDD]],Tabla33[Concepto],Tabla4148[[#This Row],[Tipo]],Tabla33[Tipo\ncomprobante],Nacionales!$B$6)","v":0},{"$f":"+SUMIFS(Tabla33[Importe en\npesos],Tabla33[Forma\nde pago],Tabla4148[[#Headers],[TDE]],Tabla33[Concepto],Tabla4148[[#This Row],[Tipo]],Tabla33[Tipo\ncomprobante],Nacionales!$B$6)","v":0},{"$f":"+SUMIFS(Tabla33[Importe en\npesos],Tabla33[Forma\nde pago],Tabla4148[[#Headers],[TDC]],Tabla33[Concepto],Tabla4148[[#This Row],[Tipo]],Tabla33[Tipo\ncomprobante],Nacionales!$B$6)","v":0},{"$f":"+SUMIFS(Tabla33[Importe en\npesos],Tabla33[Forma\nde pago],Tabla4148[[#Headers],[E]],Tabla33[Concepto],Tabla4148[[#This Row],[Tipo]],Tabla33[Tipo\ncomprobante],Nacionales!$B$6)","v":0},{"$f":"+SUMIFS(Tabla33[Importe en\npesos],Tabla33[Forma\nde pago],Tabla4148[[#Headers],[Transfer. INAI]],Tabla33[Concepto],Tabla4148[[#This Row],[Tipo]],Tabla33[Tipo\ncomprobante],Nacionales!$B$6)","v":0},{"$f":"+SUMIFS(Tabla33[Importe en\npesos],Tabla33[Forma\nde pago],Tabla4148[[#Headers],[Por tercero]],Tabla33[Concepto],Tabla4148[[#This Row],[Tipo]],Tabla33[Tipo\ncomprobante],Nacionales!$B$6)","v":0},{"$f":"+SUM(Tabla4148[[#This Row],[TCC]:[E]])","v":0},null,"Estacionamiento",{"$f":"+SUMIFS(Tabla33[Importe en\npesos],Tabla33[Forma\nde pago],Tabla4150[[#Headers],[TCC]],Tabla33[Concepto],Tabla4150[[#This Row],[Tipo]],Tabla33[Tipo\ncomprobante],Nacionales!$B$7)","v":0},{"$f":"+SUMIFS(Tabla33[Importe en\npesos],Tabla33[Forma\nde pago],Tabla4150[[#Headers],[TDD]],Tabla33[Concepto],Tabla4150[[#This Row],[Tipo]],Tabla33[Tipo\ncomprobante],Nacionales!$B$7)","v":0},{"$f":"+SUMIFS(Tabla33[Importe en\npesos],Tabla33[Forma\nde pago],Tabla4150[[#Headers],[TDE]],Tabla33[Concepto],Tabla4150[[#This Row],[Tipo]],Tabla33[Tipo\ncomprobante],Nacionales!$B$7)","v":0},{"$f":"+SUMIFS(Tabla33[Importe en\npesos],Tabla33[Forma\nde pago],Tabla4150[[#Headers],[TDC]],Tabla33[Concepto],Tabla4150[[#This Row],[Tipo]],Tabla33[Tipo\ncomprobante],Nacionales!$B$7)","v":0},{"$f":"+SUMIFS(Tabla33[Importe en\npesos],Tabla33[Forma\nde pago],Tabla4150[[#Headers],[E]],Tabla33[Concepto],Tabla4150[[#This Row],[Tipo]],Tabla33[Tipo\ncomprobante],Nacionales!$B$7)","v":0},{"$f":"+SUMIFS(Tabla33[Importe en\npesos],Tabla33[Forma\nde pago],Tabla4150[[#Headers],[Transfer. INAI]],Tabla33[Concepto],Tabla4150[[#This Row],[Tipo]],Tabla33[Tipo\ncomprobante],Nacionales!$B$7)","v":0},{"$f":"+SUMIFS(Tabla33[Importe en\npesos],Tabla33[Forma\nde pago],Tabla4150[[#Headers],[Por tercero]],Tabla33[Concepto],Tabla4150[[#This Row],[Tipo]],Tabla33[Tipo\ncomprobante],Nacionales!$B$7)","v":0},{"$f":"+SUM(Tabla4150[[#This Row],[TCC]:[E]])","v":0}]
[null,"Otros viáticos",{"$f":"+SUMIFS(Tabla33[Importe en\npesos],Tabla33[Presenta\ncomprobante],\"Si\",Tabla33[Forma\nde pago],Tabla41[[#Headers],[TCC]],Tabla33[Concepto],Tabla41[[#This Row],[Tipo]],Tabla33[Tipo\ncomprobante],Nacionales!$B$3)","v":0},{"$f":"+SUMIFS(Tabla33[Importe en\npesos],Tabla33[Presenta\ncomprobante],\"Si\",Tabla33[Forma\nde pago],Tabla41[[#Headers],[TDD]],Tabla33[Concepto],Tabla41[[#This Row],[Tipo]],Tabla33[Tipo\ncomprobante],Nacionales!$B$3)","v":0},{"$f":"+SUMIFS(Tabla33[Importe en\npesos],Tabla33[Presenta\ncomprobante],\"Si\",Tabla33[Forma\nde pago],Tabla41[[#Headers],[TDE]],Tabla33[Concepto],Tabla41[[#This Row],[Tipo]],Tabla33[Tipo\ncomprobante],Nacionales!$B$3)","v":0},{"$f":"+SUMIFS(Tabla33[Importe en\npesos],Tabla33[Presenta\ncomprobante],\"Si\",Tabla33[Forma\nde pago],Tabla41[[#Headers],[TDC]],Tabla33[Concepto],Tabla41[[#This Row],[Tipo]],Tabla33[Tipo\ncomprobante],Nacionales!$B$3)","v":0},{"$f":"+SUMIFS(Tabla33[Importe en\npesos],Tabla33[Presenta\ncomprobante],\"Si\",Tabla33[Forma\nde pago],Tabla41[[#Headers],[E]],Tabla33[Concepto],Tabla41[[#This Row],[Tipo]],Tabla33[Tipo\ncomprobante],Nacionales!$B$3)","v":0},{"$f":"+SUMIFS(Tabla33[Importe en\npesos],Tabla33[Presenta\ncomprobante],\"Si\",Tabla33[Forma\nde pago],Tabla41[[#Headers],[Transfer. INAI]],Tabla33[Concepto],Tabla41[[#This Row],[Tipo]],Tabla33[Tipo\ncomprobante],Nacionales!$B$3)","v":0},{"$f":"+SUMIFS(Tabla33[Importe en\npesos],Tabla33[Presenta\ncomprobante],\"Si\",Tabla33[Forma\nde pago],Tabla41[[#Headers],[Por tercero]],Tabla33[Concepto],Tabla41[[#This Row],[Tipo]],Tabla33[Tipo\ncomprobante],Nacionales!$B$3)","v":0},{"$f":"+SUM(Tabla41[[#This Row],[TCC]:[E]])","v":0},null,"Otros viáticos",{"$f":"+SUMIFS(Tabla33[Importe en\npesos],Tabla33[Forma\nde pago],Tabla4144[[#Headers],[TCC]],Tabla33[Concepto],Tabla4144[[#This Row],[Tipo]],Tabla33[Tipo\ncomprobante],Nacionales!$B$4)","v":0},{"$f":"+SUMIFS(Tabla33[Importe en\npesos],Tabla33[Forma\nde pago],Tabla4144[[#Headers],[TDD]],Tabla33[Concepto],Tabla4144[[#This Row],[Tipo]],Tabla33[Tipo\ncomprobante],Nacionales!$B$4)","v":0},{"$f":"+SUMIFS(Tabla33[Importe en\npesos],Tabla33[Forma\nde pago],Tabla4144[[#Headers],[TDE]],Tabla33[Concepto],Tabla4144[[#This Row],[Tipo]],Tabla33[Tipo\ncomprobante],Nacionales!$B$4)","v":0},{"$f":"+SUMIFS(Tabla33[Importe en\npesos],Tabla33[Forma\nde pago],Tabla4144[[#Headers],[TDC]],Tabla33[Concepto],Tabla4144[[#This Row],[Tipo]],Tabla33[Tipo\ncomprobante],Nacionales!$B$4)","v":0},{"$f":"+SUMIFS(Tabla33[Importe en\npesos],Tabla33[Forma\nde pago],Tabla4144[[#Headers],[E]],Tabla33[Concepto],Tabla4144[[#This Row],[Tipo]],Tabla33[Tipo\ncomprobante],Nacionales!$B$4)","v":0},{"$f":"+SUMIFS(Tabla33[Importe en\npesos],Tabla33[Forma\nde pago],Tabla4144[[#Headers],[Transfer. INAI]],Tabla33[Concepto],Tabla4144[[#This Row],[Tipo]],Tabla33[Tipo\ncomprobante],Nacionales!$B$4)","v":0},{"$f":"+SUMIFS(Tabla33[Importe en\npesos],Tabla33[Forma\nde pago],Tabla4144[[#Headers],[Por tercero]],Tabla33[Concepto],Tabla4144[[#This Row],[Tipo]],Tabla33[Tipo\ncomprobante],Nacionales!$B$4)","v":0},{"$f":"+SUM(Tabla4144[[#This Row],[TCC]:[E]])","v":0},null,"Otros viáticos",{"$f":"+SUMIFS(Tabla33[Importe en\npesos],Tabla33[Forma\nde pago],Tabla4146[[#Headers],[TCC]],Tabla33[Concepto],Tabla4146[[#This Row],[Tipo]],Tabla33[Tipo\ncomprobante],Nacionales!$B$5)","v":0},{"$f":"+SUMIFS(Tabla33[Importe en\npesos],Tabla33[Forma\nde pago],Tabla4146[[#Headers],[TDD]],Tabla33[Concepto],Tabla4146[[#This Row],[Tipo]],Tabla33[Tipo\ncomprobante],Nacionales!$B$5)","v":0},{"$f":"+SUMIFS(Tabla33[Importe en\npesos],Tabla33[Forma\nde pago],Tabla4146[[#Headers],[TDE]],Tabla33[Concepto],Tabla4146[[#This Row],[Tipo]],Tabla33[Tipo\ncomprobante],Nacionales!$B$5)","v":0},{"$f":"+SUMIFS(Tabla33[Importe en\npesos],Tabla33[Forma\nde pago],Tabla4146[[#Headers],[TDC]],Tabla33[Concepto],Tabla4146[[#This Row],[Tipo]],Tabla33[Tipo\ncomprobante],Nacionales!$B$5)","v":0},{"$f":"+SUMIFS(Tabla33[Importe en\npesos],Tabla33[Forma\nde pago],Tabla4146[[#Headers],[E]],Tabla33[Concepto],Tabla4146[[#This Row],[Tipo]],Tabla33[Tipo\ncomprobante],Nacionales!$B$5)","v":0},{"$f":"+SUMIFS(Tabla33[Importe en\npesos],Tabla33[Forma\nde pago],Tabla4146[[#Headers],[Transfer. INAI]],Tabla33[Concepto],Tabla4146[[#This Row],[Tipo]],Tabla33[Tipo\ncomprobante],Nacionales!$B$5)","v":0},{"$f":"+SUMIFS(Tabla33[Importe en\npesos],Tabla33[Forma\nde pago],Tabla4146[[#Headers],[Por tercero]],Tabla33[Concepto],Tabla4146[[#This Row],[Tipo]],Tabla33[Tipo\ncomprobante],Nacionales!$B$5)","v":0},{"$f":"+SUM(Tabla4146[[#This Row],[TCC]:[E]])","v":0},null,"Otros viáticos",{"$f":"+SUMIFS(Tabla33[Importe en\npesos],Tabla33[Forma\nde pago],Tabla4148[[#Headers],[TCC]],Tabla33[Concepto],Tabla4148[[#This Row],[Tipo]],Tabla33[Tipo\ncomprobante],Nacionales!$B$6)","v":0},{"$f":"+SUMIFS(Tabla33[Importe en\npesos],Tabla33[Forma\nde pago],Tabla4148[[#Headers],[TDD]],Tabla33[Concepto],Tabla4148[[#This Row],[Tipo]],Tabla33[Tipo\ncomprobante],Nacionales!$B$6)","v":0},{"$f":"+SUMIFS(Tabla33[Importe en\npesos],Tabla33[Forma\nde pago],Tabla4148[[#Headers],[TDE]],Tabla33[Concepto],Tabla4148[[#This Row],[Tipo]],Tabla33[Tipo\ncomprobante],Nacionales!$B$6)","v":0},{"$f":"+SUMIFS(Tabla33[Importe en\npesos],Tabla33[Forma\nde pago],Tabla4148[[#Headers],[TDC]],Tabla33[Concepto],Tabla4148[[#This Row],[Tipo]],Tabla33[Tipo\ncomprobante],Nacionales!$B$6)","v":0},{"$f":"+SUMIFS(Tabla33[Importe en\npesos],Tabla33[Forma\nde pago],Tabla4148[[#Headers],[E]],Tabla33[Concepto],Tabla4148[[#This Row],[Tipo]],Tabla33[Tipo\ncomprobante],Nacionales!$B$6)","v":0},{"$f":"+SUMIFS(Tabla33[Importe en\npesos],Tabla33[Forma\nde pago],Tabla4148[[#Headers],[Transfer. INAI]],Tabla33[Concepto],Tabla4148[[#This Row],[Tipo]],Tabla33[Tipo\ncomprobante],Nacionales!$B$6)","v":0},{"$f":"+SUMIFS(Tabla33[Importe en\npesos],Tabla33[Forma\nde pago],Tabla4148[[#Headers],[Por tercero]],Tabla33[Concepto],Tabla4148[[#This Row],[Tipo]],Tabla33[Tipo\ncomprobante],Nacionales!$B$6)","v":0},{"$f":"+SUM(Tabla4148[[#This Row],[TCC]:[E]])","v":0},null,"Otros viáticos",{"$f":"+SUMIFS(Tabla33[Importe en\npesos],Tabla33[Forma\nde pago],Tabla4150[[#Headers],[TCC]],Tabla33[Concepto],Tabla4150[[#This Row],[Tipo]],Tabla33[Tipo\ncomprobante],Nacionales!$B$7)","v":0},{"$f":"+SUMIFS(Tabla33[Importe en\npesos],Tabla33[Forma\nde pago],Tabla4150[[#Headers],[TDD]],Tabla33[Concepto],Tabla4150[[#This Row],[Tipo]],Tabla33[Tipo\ncomprobante],Nacionales!$B$7)","v":0},{"$f":"+SUMIFS(Tabla33[Importe en\npesos],Tabla33[Forma\nde pago],Tabla4150[[#Headers],[TDE]],Tabla33[Concepto],Tabla4150[[#This Row],[Tipo]],Tabla33[Tipo\ncomprobante],Nacionales!$B$7)","v":0},{"$f":"+SUMIFS(Tabla33[Importe en\npesos],Tabla33[Forma\nde pago],Tabla4150[[#Headers],[TDC]],Tabla33[Concepto],Tabla4150[[#This Row],[Tipo]],Tabla33[Tipo\ncomprobante],Nacionales!$B$7)","v":0},{"$f":"+SUMIFS(Tabla33[Importe en\npesos],Tabla33[Forma\nde pago],Tabla4150[[#Headers],[E]],Tabla33[Concepto],Tabla4150[[#This Row],[Tipo]],Tabla33[Tipo\ncomprobante],Nacionales!$B$7)","v":0},{"$f":"+SUMIFS(Tabla33[Importe en\npesos],Tabla33[Forma\nde pago],Tabla4150[[#Headers],[Transfer. INAI]],Tabla33[Concepto],Tabla4150[[#This Row],[Tipo]],Tabla33[Tipo\ncomprobante],Nacionales!$B$7)","v":0},{"$f":"+SUMIFS(Tabla33[Importe en\npesos],Tabla33[Forma\nde pago],Tabla4150[[#Headers],[Por tercero]],Tabla33[Concepto],Tabla4150[[#This Row],[Tipo]],Tabla33[Tipo\ncomprobante],Nacionales!$B$7)","v":0},{"$f":"+SUM(Tabla4150[[#This Row],[TCC]:[E]])","v":0}]
[null,"Total",{"$f":"SUBTOTAL(109,Tabla41[TCC])","v":0},{"$f":"SUBTOTAL(109,Tabla41[TDD])","v":0},{"$f":"SUBTOTAL(109,Tabla41[TDE])","v":0},{"$f":"SUBTOTAL(109,Tabla41[TDC])","v":0},{"$f":"SUBTOTAL(109,Tabla41[E])","v":0},{"$f":"SUBTOTAL(109,Tabla41[Transfer. INAI])","v":0},{"$f":"SUBTOTAL(109,Tabla41[Por tercero])","v":0},{"$f":"SUBTOTAL(109,Tabla41[Suma])","v":0},null,"Total",{"$f":"SUBTOTAL(109,Tabla4144[TCC])","v":0},{"$f":"SUBTOTAL(109,Tabla4144[TDD])","v":0},{"$f":"SUBTOTAL(109,Tabla4144[TDE])","v":0},{"$f":"SUBTOTAL(109,Tabla4144[TDC])","v":0},{"$f":"SUBTOTAL(109,Tabla4144[E])","v":0},{"$f":"SUBTOTAL(109,Tabla4144[Transfer. INAI])","v":0},{"$f":"SUBTOTAL(109,Tabla4144[Por tercero])","v":0},{"$f":"SUBTOTAL(109,Tabla4144[Suma])","v":0},null,"Total",{"$f":"SUBTOTAL(109,Tabla4146[TCC])","v":0},{"$f":"SUBTOTAL(109,Tabla4146[TDD])","v":0},{"$f":"SUBTOTAL(109,Tabla4146[TDE])","v":0},{"$f":"SUBTOTAL(109,Tabla4146[TDC])","v":0},{"$f":"SUBTOTAL(109,Tabla4146[E])","v":0},{"$f":"SUBTOTAL(109,Tabla4146[Transfer. INAI])","v":0},{"$f":"SUBTOTAL(109,Tabla4146[Por tercero])","v":0},{"$f":"SUBTOTAL(109,Tabla4146[Suma])","v":0},null,"Total",{"$f":"SUBTOTAL(109,Tabla4148[TCC])","v":0},{"$f":"SUBTOTAL(109,Tabla4148[TDD])","v":0},{"$f":"SUBTOTAL(109,Tabla4148[TDE])","v":0},{"$f":"SUBTOTAL(109,Tabla4148[TDC])","v":0},{"$f":"SUBTOTAL(109,Tabla4148[E])","v":0},{"$f":"SUBTOTAL(109,Tabla4148[Transfer. INAI])","v":0},{"$f":"SUBTOTAL(109,Tabla4148[Por tercero])","v":0},{"$f":"SUBTOTAL(109,Tabla4148[Suma])","v":0},null,"Total",{"$f":"SUBTOTAL(109,Tabla4150[TCC])","v":0},{"$f":"SUBTOTAL(109,Tabla4150[TDD])","v":0},{"$f":"SUBTOTAL(109,Tabla4150[TDE])","v":0},{"$f":"SUBTOTAL(109,Tabla4150[TDC])","v":0},{"$f":"SUBTOTAL(109,Tabla4150[E])","v":0},{"$f":"SUBTOTAL(109,Tabla4150[Transfer. INAI])","v":0},{"$f":"SUBTOTAL(109,Tabla4150[Por tercero])","v":0},{"$f":"SUBTOTAL(109,Tabla4150[Suma])","v":0}]
[]
[null,"Tipo","TCC","TDD","TDE","TDC","E","Transfer. INAI","Por tercero","Sumas",null,"Tipo","TCC","TDD","TDE","TDC","E","Transfer. INAI","Por tercero","Sumas",null,"Tipo","TCC","TDD","TDE","TDC","E","Transfer. INAI","Por tercero","Sumas",null,"Tipo","TCC","TDD","TDE","TDC","E","Transfer. INAI","Por tercero","Sumas",null,"Tipo","TCC","TDD","TDE","TDC","E","Transfer. INAI","Por tercero","Sumas"]
[null,"Vuelo",{"$f":"+SUMIFS(Tabla33[Importe en\npesos],Tabla33[Presenta\ncomprobante],\"Si\",Tabla33[Forma\nde pago],Tabla42[[#Headers],[TCC]],Tabla33[Concepto],Tabla42[[#This Row],[Tipo]],Tabla33[Tipo\ncomprobante],Nacionales!$B$3)","v":0},{"$f":"+SUMIFS(Tabla33[Importe en\npesos],Tabla33[Presenta\ncomprobante],\"Si\",Tabla33[Forma\nde pago],Tabla42[[#Headers],[TDD]],Tabla33[Concepto],Tabla42[[#This Row],[Tipo]],Tabla33[Tipo\ncomprobante],Nacionales!$B$3)","v":0},{"$f":"+SUMIFS(Tabla33[Importe en\npesos],Tabla33[Presenta\ncomprobante],\"Si\",Tabla33[Forma\nde pago],Tabla42[[#Headers],[TDE]],Tabla33[Concepto],Tabla42[[#This Row],[Tipo]],Tabla33[Tipo\ncomprobante],Nacionales!$B$3)","v":0},{"$f":"+SUMIFS(Tabla33[Importe en\npesos],Tabla33[Presenta\ncomprobante],\"Si\",Tabla33[Forma\nde pago],Tabla42[[#Headers],[TDC]],Tabla33[Concepto],Tabla42[[#This Row],[Tipo]],Tabla33[Tipo\ncomprobante],Nacionales!$B$3)","v":0},{"$f":"+SUMIFS(Tabla33[Importe en\npesos],Tabla33[Presenta\ncomprobante],\"Si\",Tabla33[Forma\nde pago],Tabla42[[#Headers],[E]],Tabla33[Concepto],Tabla42[[#This Row],[Tipo]],Tabla33[Tipo\ncomprobante],Nacionales!$B$3)","v":0},{"$f":"+SUMIFS(Tabla33[Importe en\npesos],Tabla33[Presenta\ncomprobante],\"Si\",Tabla33[Forma\nde pago],Tabla42[[#Headers],[Transfer. INAI]],Tabla33[Concepto],Tabla42[[#This Row],[Tipo]],Tabla33[Tipo\ncomprobante],Nacionales!$B$3)","v":0},{"$f":"+SUMIFS(Tabla33[Importe en\npesos],Tabla33[Presenta\ncomprobante],\"Si\",Tabla33[Forma\nde pago],Tabla42[[#Headers],[Por tercero]],Tabla33[Concepto],Tabla42[[#This Row],[Tipo]],Tabla33[Tipo\ncomprobante],Nacionales!$B$3)","v":0},{"$f":"+SUM(Tabla42[[#This Row],[TCC]:[E]])","v":0},null,"Vuelo",{"$f":"+SUMIFS(Tabla33[Importe en\npesos],Tabla33[Presenta\ncomprobante],\"Si\",Tabla33[Forma\nde pago],Tabla4245[[#Headers],[TCC]],Tabla33[Concepto],Tabla4245[[#This Row],[Tipo]],Tabla33[Tipo\ncomprobante],Nacionales!$B$4)","v":0},{"$f":"+SUMIFS(Tabla33[Importe en\npesos],Tabla33[Presenta\ncomprobante],\"Si\",Tabla33[Forma\nde pago],Tabla4245[[#Headers],[TDD]],Tabla33[Concepto],Tabla4245[[#This Row],[Tipo]],Tabla33[Tipo\ncomprobante],Nacionales!$B$4)","v":0},{"$f":"+SUMIFS(Tabla33[Importe en\npesos],Tabla33[Presenta\ncomprobante],\"Si\",Tabla33[Forma\nde pago],Tabla4245[[#Headers],[TDE]],Tabla33[Concepto],Tabla4245[[#This Row],[Tipo]],Tabla33[Tipo\ncomprobante],Nacionales!$B$4)","v":0},{"$f":"+SUMIFS(Tabla33[Importe en\npesos],Tabla33[Presenta\ncomprobante],\"Si\",Tabla33[Forma\nde pago],Tabla4245[[#Headers],[TDC]],Tabla33[Concepto],Tabla4245[[#This Row],[Tipo]],Tabla33[Tipo\ncomprobante],Nacionales!$B$4)","v":0},{"$f":"+SUMIFS(Tabla33[Importe en\npesos],Tabla33[Presenta\ncomprobante],\"Si\",Tabla33[Forma\nde pago],Tabla4245[[#Headers],[E]],Tabla33[Concepto],Tabla4245[[#This Row],[Tipo]],Tabla33[Tipo\ncomprobante],Nacionales!$B$4)","v":0},{"$f":"+SUMIFS(Tabla33[Importe en\npesos],Tabla33[Presenta\ncomprobante],\"Si\",Tabla33[Forma\nde pago],Tabla4245[[#Headers],[Transfer. INAI]],Tabla33[Concepto],Tabla4245[[#This Row],[Tipo]],Tabla33[Tipo\ncomprobante],Nacionales!$B$4)","v":0},{"$f":"+SUMIFS(Tabla33[Importe en\npesos],Tabla33[Presenta\ncomprobante],\"Si\",Tabla33[Forma\nde pago],Tabla4245[[#Headers],[Por tercero]],Tabla33[Concepto],Tabla4245[[#This Row],[Tipo]],Tabla33[Tipo\ncomprobante],Nacionales!$B$4)","v":0},{"$f":"+SUM(Tabla4245[[#This Row],[TCC]:[E]])","v":0},null,"Vuelo",{"$f":"+SUMIFS(Tabla33[Importe en\npesos],Tabla33[Presenta\ncomprobante],\"Si\",Tabla33[Forma\nde pago],Tabla4247[[#Headers],[TCC]],Tabla33[Concepto],Tabla4247[[#This Row],[Tipo]],Tabla33[Tipo\ncomprobante],Nacionales!$B$5)","v":0},{"$f":"+SUMIFS(Tabla33[Importe en\npesos],Tabla33[Presenta\ncomprobante],\"Si\",Tabla33[Forma\nde pago],Tabla4247[[#Headers],[TDD]],Tabla33[Concepto],Tabla4247[[#This Row],[Tipo]],Tabla33[Tipo\ncomprobante],Nacionales!$B$5)","v":0},{"$f":"+SUMIFS(Tabla33[Importe en\npesos],Tabla33[Presenta\ncomprobante],\"Si\",Tabla33[Forma\nde pago],Tabla4247[[#Headers],[TDE]],Tabla33[Concepto],Tabla4247[[#This Row],[Tipo]],Tabla33[Tipo\ncomprobante],Nacionales!$B$5)","v":0},{"$f":"+SUMIFS(Tabla33[Importe en\npesos],Tabla33[Presenta\ncomprobante],\"Si\",Tabla33[Forma\nde pago],Tabla4247[[#Headers],[TDC]],Tabla33[Concepto],Tabla4247[[#This Row],[Tipo]],Tabla33[Tipo\ncomprobante],Nacionales!$B$5)","v":0},{"$f":"+SUMIFS(Tabla33[Importe en\npesos],Tabla33[Presenta\ncomprobante],\"Si\",Tabla33[Forma\nde pago],Tabla4247[[#Headers],[E]],Tabla33[Concepto],Tabla4247[[#This Row],[Tipo]],Tabla33[Tipo\ncomprobante],Nacionales!$B$5)","v":0},{"$f":"+SUMIFS(Tabla33[Importe en\npesos],Tabla33[Presenta\ncomprobante],\"Si\",Tabla33[Forma\nde pago],Tabla4247[[#Headers],[Transfer. INAI]],Tabla33[Concepto],Tabla4247[[#This Row],[Tipo]],Tabla33[Tipo\ncomprobante],Nacionales!$B$5)","v":0},{"$f":"+SUMIFS(Tabla33[Importe en\npesos],Tabla33[Presenta\ncomprobante],\"Si\",Tabla33[Forma\nde pago],Tabla4247[[#Headers],[Por tercero]],Tabla33[Concepto],Tabla4247[[#This Row],[Tipo]],Tabla33[Tipo\ncomprobante],Nacionales!$B$5)","v":0},{"$f":"+SUM(Tabla4247[[#This Row],[TCC]:[E]])","v":0},null,"Vuelo",{"$f":"+SUMIFS(Tabla33[Importe en\npesos],Tabla33[Presenta\ncomprobante],\"Si\",Tabla33[Forma\nde pago],Tabla4249[[#Headers],[TCC]],Tabla33[Concepto],Tabla4249[[#This Row],[Tipo]],Tabla33[Tipo\ncomprobante],Nacionales!$B$6)","v":0},{"$f":"+SUMIFS(Tabla33[Importe en\npesos],Tabla33[Presenta\ncomprobante],\"Si\",Tabla33[Forma\nde pago],Tabla4249[[#Headers],[TDD]],Tabla33[Concepto],Tabla4249[[#This Row],[Tipo]],Tabla33[Tipo\ncomprobante],Nacionales!$B$6)","v":0},{"$f":"+SUMIFS(Tabla33[Importe en\npesos],Tabla33[Presenta\ncomprobante],\"Si\",Tabla33[Forma\nde pago],Tabla4249[[#Headers],[TDE]],Tabla33[Concepto],Tabla4249[[#This Row],[Tipo]],Tabla33[Tipo\ncomprobante],Nacionales!$B$6)","v":0},{"$f":"+SUMIFS(Tabla33[Importe en\npesos],Tabla33[Presenta\ncomprobante],\"Si\",Tabla33[Forma\nde pago],Tabla4249[[#Headers],[TDC]],Tabla33[Concepto],Tabla4249[[#This Row],[Tipo]],Tabla33[Tipo\ncomprobante],Nacionales!$B$6)","v":0},{"$f":"+SUMIFS(Tabla33[Importe en\npesos],Tabla33[Presenta\ncomprobante],\"Si\",Tabla33[Forma\nde pago],Tabla4249[[#Headers],[E]],Tabla33[Concepto],Tabla4249[[#This Row],[Tipo]],Tabla33[Tipo\ncomprobante],Nacionales!$B$6)","v":0},{"$f":"+SUMIFS(Tabla33[Importe en\npesos],Tabla33[Presenta\ncomprobante],\"Si\",Tabla33[Forma\nde pago],Tabla4249[[#Headers],[Transfer. INAI]],Tabla33[Concepto],Tabla4249[[#This Row],[Tipo]],Tabla33[Tipo\ncomprobante],Nacionales!$B$6)","v":0},{"$f":"+SUMIFS(Tabla33[Importe en\npesos],Tabla33[Presenta\ncomprobante],\"Si\",Tabla33[Forma\nde pago],Tabla4249[[#Headers],[Por tercero]],Tabla33[Concepto],Tabla4249[[#This Row],[Tipo]],Tabla33[Tipo\ncomprobante],Nacionales!$B$6)","v":0},{"$f":"+SUM(Tabla4249[[#This Row],[TCC]:[E]])","v":0},null,"Vuelo",{"$f":"+SUMIFS(Tabla33[Importe en\npesos],Tabla33[Presenta\ncomprobante],\"Si\",Tabla33[Forma\nde pago],Tabla4251[[#Headers],[TCC]],Tabla33[Concepto],Tabla4251[[#This Row],[Tipo]],Tabla33[Tipo\ncomprobante],Nacionales!$B$7)","v":0},{"$f":"+SUMIFS(Tabla33[Importe en\npesos],Tabla33[Presenta\ncomprobante],\"Si\",Tabla33[Forma\nde pago],Tabla4251[[#Headers],[TDD]],Tabla33[Concepto],Tabla4251[[#This Row],[Tipo]],Tabla33[Tipo\ncomprobante],Nacionales!$B$7)","v":0},{"$f":"+SUMIFS(Tabla33[Importe en\npesos],Tabla33[Presenta\ncomprobante],\"Si\",Tabla33[Forma\nde pago],Tabla4251[[#Headers],[TDE]],Tabla33[Concepto],Tabla4251[[#This Row],[Tipo]],Tabla33[Tipo\ncomprobante],Nacionales!$B$7)","v":0},{"$f":"+SUMIFS(Tabla33[Importe en\npesos],Tabla33[Presenta\ncomprobante],\"Si\",Tabla33[Forma\nde pago],Tabla4251[[#Headers],[TDC]],Tabla33[Concepto],Tabla4251[[#This Row],[Tipo]],Tabla33[Tipo\ncomprobante],Nacionales!$B$7)","v":0},{"$f":"+SUMIFS(Tabla33[Importe en\npesos],Tabla33[Presenta\ncomprobante],\"Si\",Tabla33[Forma\nde pago],Tabla4251[[#Headers],[E]],Tabla33[Concepto],Tabla4251[[#This Row],[Tipo]],Tabla33[Tipo\ncomprobante],Nacionales!$B$7)","v":0},{"$f":"+SUMIFS(Tabla33[Importe en\npesos],Tabla33[Presenta\ncomprobante],\"Si\",Tabla33[Forma\nde pago],Tabla4251[[#Headers],[Transfer. INAI]],Tabla33[Concepto],Tabla4251[[#This Row],[Tipo]],Tabla33[Tipo\ncomprobante],Nacionales!$B$7)","v":0},{"$f":"+SUMIFS(Tabla33[Importe en\npesos],Tabla33[Presenta\ncomprobante],\"Si\",Tabla33[Forma\nde pago],Tabla4251[[#Headers],[Por tercero]],Tabla33[Concepto],Tabla4251[[#This Row],[Tipo]],Tabla33[Tipo\ncomprobante],Nacionales!$B$7)","v":0},{"$f":"+SUM(Tabla4251[[#This Row],[TCC]:[E]])","v":0}]
[null,"Autobús",{"$f":"+SUMIFS(Tabla33[Importe en\npesos],Tabla33[Presenta\ncomprobante],\"Si\",Tabla33[Forma\nde pago],Tabla42[[#Headers],[TCC]],Tabla33[Concepto],Tabla42[[#This Row],[Tipo]],Tabla33[Tipo\ncomprobante],Nacionales!$B$3)","v":0},{"$f":"+SUMIFS(Tabla33[Importe en\npesos],Tabla33[Presenta\ncomprobante],\"Si\",Tabla33[Forma\nde pago],Tabla42[[#Headers],[TDD]],Tabla33[Concepto],Tabla42[[#This Row],[Tipo]],Tabla33[Tipo\ncomprobante],Nacionales!$B$3)","v":0},{"$f":"+SUMIFS(Tabla33[Importe en\npesos],Tabla33[Presenta\ncomprobante],\"Si\",Tabla33[Forma\nde pago],Tabla42[[#Headers],[TDE]],Tabla33[Concepto],Tabla42[[#This Row],[Tipo]],Tabla33[Tipo\ncomprobante],Nacionales!$B$3)","v":0},{"$f":"+SUMIFS(Tabla33[Importe en\npesos],Tabla33[Presenta\ncomprobante],\"Si\",Tabla33[Forma\nde pago],Tabla42[[#Headers],[TDC]],Tabla33[Concepto],Tabla42[[#This Row],[Tipo]],Tabla33[Tipo\ncomprobante],Nacionales!$B$3)","v":0},{"$f":"+SUMIFS(Tabla33[Importe en\npesos],Tabla33[Presenta\ncomprobante],\"Si\",Tabla33[Forma\nde pago],Tabla42[[#Headers],[E]],Tabla33[Concepto],Tabla42[[#This Row],[Tipo]],Tabla33[Tipo\ncomprobante],Nacionales!$B$3)","v":0},{"$f":"+SUMIFS(Tabla33[Importe en\npesos],Tabla33[Presenta\ncomprobante],\"Si\",Tabla33[Forma\nde pago],Tabla42[[#Headers],[Transfer. INAI]],Tabla33[Concepto],Tabla42[[#This Row],[Tipo]],Tabla33[Tipo\ncomprobante],Nacionales!$B$3)","v":0},{"$f":"+SUMIFS(Tabla33[Importe en\npesos],Tabla33[Presenta\ncomprobante],\"Si\",Tabla33[Forma\nde pago],Tabla42[[#Headers],[Por tercero]],Tabla33[Concepto],Tabla42[[#This Row],[Tipo]],Tabla33[Tipo\ncomprobante],Nacionales!$B$3)","v":0},{"$f":"+SUM(Tabla42[[#This Row],[TCC]:[E]])","v":0},null,"Autobús",{"$f":"+SUMIFS(Tabla33[Importe en\npesos],Tabla33[Presenta\ncomprobante],\"Si\",Tabla33[Forma\nde pago],Tabla4245[[#Headers],[TCC]],Tabla33[Concepto],Tabla4245[[#This Row],[Tipo]],Tabla33[Tipo\ncomprobante],Nacionales!$B$4)","v":0},{"$f":"+SUMIFS(Tabla33[Importe en\npesos],Tabla33[Presenta\ncomprobante],\"Si\",Tabla33[Forma\nde pago],Tabla4245[[#Headers],[TDD]],Tabla33[Concepto],Tabla4245[[#This Row],[Tipo]],Tabla33[Tipo\ncomprobante],Nacionales!$B$4)","v":0},{"$f":"+SUMIFS(Tabla33[Importe en\npesos],Tabla33[Presenta\ncomprobante],\"Si\",Tabla33[Forma\nde pago],Tabla4245[[#Headers],[TDE]],Tabla33[Concepto],Tabla4245[[#This Row],[Tipo]],Tabla33[Tipo\ncomprobante],Nacionales!$B$4)","v":0},{"$f":"+SUMIFS(Tabla33[Importe en\npesos],Tabla33[Presenta\ncomprobante],\"Si\",Tabla33[Forma\nde pago],Tabla4245[[#Headers],[TDC]],Tabla33[Concepto],Tabla4245[[#This Row],[Tipo]],Tabla33[Tipo\ncomprobante],Nacionales!$B$4)","v":0},{"$f":"+SUMIFS(Tabla33[Importe en\npesos],Tabla33[Presenta\ncomprobante],\"Si\",Tabla33[Forma\nde pago],Tabla4245[[#Headers],[E]],Tabla33[Concepto],Tabla4245[[#This Row],[Tipo]],Tabla33[Tipo\ncomprobante],Nacionales!$B$4)","v":0},{"$f":"+SUMIFS(Tabla33[Importe en\npesos],Tabla33[Presenta\ncomprobante],\"Si\",Tabla33[Forma\nde pago],Tabla4245[[#Headers],[Transfer. INAI]],Tabla33[Concepto],Tabla4245[[#This Row],[Tipo]],Tabla33[Tipo\ncomprobante],Nacionales!$B$4)","v":0},{"$f":"+SUMIFS(Tabla33[Importe en\npesos],Tabla33[Presenta\ncomprobante],\"Si\",Tabla33[Forma\nde pago],Tabla4245[[#Headers],[Por tercero]],Tabla33[Concepto],Tabla4245[[#This Row],[Tipo]],Tabla33[Tipo\ncomprobante],Nacionales!$B$4)","v":0},{"$f":"+SUM(Tabla4245[[#This Row],[TCC]:[E]])","v":0},null,"Autobús",{"$f":"+SUMIFS(Tabla33[Importe en\npesos],Tabla33[Presenta\ncomprobante],\"Si\",Tabla33[Forma\nde pago],Tabla4247[[#Headers],[TCC]],Tabla33[Concepto],Tabla4247[[#This Row],[Tipo]],Tabla33[Tipo\ncomprobante],Nacionales!$B$5)","v":0},{"$f":"+SUMIFS(Tabla33[Importe en\npesos],Tabla33[Presenta\ncomprobante],\"Si\",Tabla33[Forma\nde pago],Tabla4247[[#Headers],[TDD]],Tabla33[Concepto],Tabla4247[[#This Row],[Tipo]],Tabla33[Tipo\ncomprobante],Nacionales!$B$5)","v":0},{"$f":"+SUMIFS(Tabla33[Importe en\npesos],Tabla33[Presenta\ncomprobante],\"Si\",Tabla33[Forma\nde pago],Tabla4247[[#Headers],[TDE]],Tabla33[Concepto],Tabla4247[[#This Row],[Tipo]],Tabla33[Tipo\ncomprobante],Nacionales!$B$5)","v":0},{"$f":"+SUMIFS(Tabla33[Importe en\npesos],Tabla33[Presenta\ncomprobante],\"Si\",Tabla33[Forma\nde pago],Tabla4247[[#Headers],[TDC]],Tabla33[Concepto],Tabla4247[[#This Row],[Tipo]],Tabla33[Tipo\ncomprobante],Nacionales!$B$5)","v":0},{"$f":"+SUMIFS(Tabla33[Importe en\npesos],Tabla33[Presenta\ncomprobante],\"Si\",Tabla33[Forma\nde pago],Tabla4247[[#Headers],[E]],Tabla33[Concepto],Tabla4247[[#This Row],[Tipo]],Tabla33[Tipo\ncomprobante],Nacionales!$B$5)","v":0},{"$f":"+SUMIFS(Tabla33[Importe en\npesos],Tabla33[Presenta\ncomprobante],\"Si\",Tabla33[Forma\nde pago],Tabla4247[[#Headers],[Transfer. INAI]],Tabla33[Concepto],Tabla4247[[#This Row],[Tipo]],Tabla33[Tipo\ncomprobante],Nacionales!$B$5)","v":0},{"$f":"+SUMIFS(Tabla33[Importe en\npesos],Tabla33[Presenta\ncomprobante],\"Si\",Tabla33[Forma\nde pago],Tabla4247[[#Headers],[Por tercero]],Tabla33[Concepto],Tabla4247[[#This Row],[Tipo]],Tabla33[Tipo\ncomprobante],Nacionales!$B$5)","v":0},{"$f":"+SUM(Tabla4247[[#This Row],[TCC]:[E]])","v":0},null,"Autobús",{"$f":"+SUMIFS(Tabla33[Importe en\npesos],Tabla33[Presenta\ncomprobante],\"Si\",Tabla33[Forma\nde pago],Tabla4249[[#Headers],[TCC]],Tabla33[Concepto],Tabla4249[[#This Row],[Tipo]],Tabla33[Tipo\ncomprobante],Nacionales!$B$6)","v":0},{"$f":"+SUMIFS(Tabla33[Importe en\npesos],Tabla33[Presenta\ncomprobante],\"Si\",Tabla33[Forma\nde pago],Tabla4249[[#Headers],[TDD]],Tabla33[Concepto],Tabla4249[[#This Row],[Tipo]],Tabla33[Tipo\ncomprobante],Nacionales!$B$6)","v":0},{"$f":"+SUMIFS(Tabla33[Importe en\npesos],Tabla33[Presenta\ncomprobante],\"Si\",Tabla33[Forma\nde pago],Tabla4249[[#Headers],[TDE]],Tabla33[Concepto],Tabla4249[[#This Row],[Tipo]],Tabla33[Tipo\ncomprobante],Nacionales!$B$6)","v":0},{"$f":"+SUMIFS(Tabla33[Importe en\npesos],Tabla33[Presenta\ncomprobante],\"Si\",Tabla33[Forma\nde pago],Tabla4249[[#Headers],[TDC]],Tabla33[Concepto],Tabla4249[[#This Row],[Tipo]],Tabla33[Tipo\ncomprobante],Nacionales!$B$6)","v":0},{"$f":"+SUMIFS(Tabla33[Importe en\npesos],Tabla33[Presenta\ncomprobante],\"Si\",Tabla33[Forma\nde pago],Tabla4249[[#Headers],[E]],Tabla33[Concepto],Tabla4249[[#This Row],[Tipo]],Tabla33[Tipo\ncomprobante],Nacionales!$B$6)","v":0},{"$f":"+SUMIFS(Tabla33[Importe en\npesos],Tabla33[Presenta\ncomprobante],\"Si\",Tabla33[Forma\nde pago],Tabla4249[[#Headers],[Transfer. INAI]],Tabla33[Concepto],Tabla4249[[#This Row],[Tipo]],Tabla33[Tipo\ncomprobante],Nacionales!$B$6)","v":0},{"$f":"+SUMIFS(Tabla33[Importe en\npesos],Tabla33[Presenta\ncomprobante],\"Si\",Tabla33[Forma\nde pago],Tabla4249[[#Headers],[Por tercero]],Tabla33[Concepto],Tabla4249[[#This Row],[Tipo]],Tabla33[Tipo\ncomprobante],Nacionales!$B$6)","v":0},{"$f":"+SUM(Tabla4249[[#This Row],[TCC]:[E]])","v":0},null,"Autobús",{"$f":"+SUMIFS(Tabla33[Importe en\npesos],Tabla33[Presenta\ncomprobante],\"Si\",Tabla33[Forma\nde pago],Tabla4251[[#Headers],[TCC]],Tabla33[Concepto],Tabla4251[[#This Row],[Tipo]],Tabla33[Tipo\ncomprobante],Nacionales!$B$7)","v":0},{"$f":"+SUMIFS(Tabla33[Importe en\npesos],Tabla33[Presenta\ncomprobante],\"Si\",Tabla33[Forma\nde pago],Tabla4251[[#Headers],[TDD]],Tabla33[Concepto],Tabla4251[[#This Row],[Tipo]],Tabla33[Tipo\ncomprobante],Nacionales!$B$7)","v":0},{"$f":"+SUMIFS(Tabla33[Importe en\npesos],Tabla33[Presenta\ncomprobante],\"Si\",Tabla33[Forma\nde pago],Tabla4251[[#Headers],[TDE]],Tabla33[Concepto],Tabla4251[[#This Row],[Tipo]],Tabla33[Tipo\ncomprobante],Nacionales!$B$7)","v":0},{"$f":"+SUMIFS(Tabla33[Importe en\npesos],Tabla33[Presenta\ncomprobante],\"Si\",Tabla33[Forma\nde pago],Tabla4251[[#Headers],[TDC]],Tabla33[Concepto],Tabla4251[[#This Row],[Tipo]],Tabla33[Tipo\ncomprobante],Nacionales!$B$7)","v":0},{"$f":"+SUMIFS(Tabla33[Importe en\npesos],Tabla33[Presenta\ncomprobante],\"Si\",Tabla33[Forma\nde pago],Tabla4251[[#Headers],[E]],Tabla33[Concepto],Tabla4251[[#This Row],[Tipo]],Tabla33[Tipo\ncomprobante],Nacionales!$B$7)","v":0},{"$f":"+SUMIFS(Tabla33[Importe en\npesos],Tabla33[Presenta\ncomprobante],\"Si\",Tabla33[Forma\nde pago],Tabla4251[[#Headers],[Transfer. INAI]],Tabla33[Concepto],Tabla4251[[#This Row],[Tipo]],Tabla33[Tipo\ncomprobante],Nacionales!$B$7)","v":0},{"$f":"+SUMIFS(Tabla33[Importe en\npesos],Tabla33[Presenta\ncomprobante],\"Si\",Tabla33[Forma\nde pago],Tabla4251[[#Headers],[Por tercero]],Tabla33[Concepto],Tabla4251[[#This Row],[Tipo]],Tabla33[Tipo\ncomprobante],Nacionales!$B$7)","v":0},{"$f":"+SUM(Tabla4251[[#This Row],[TCC]:[E]])","v":0}]
[null,"Pasajes",{"$f":"+SUMIFS(Tabla33[Importe en\npesos],Tabla33[Presenta\ncomprobante],\"Si\",Tabla33[Forma\nde pago],Tabla42[[#Headers],[TCC]],Tabla33[Concepto],Tabla42[[#This Row],[Tipo]],Tabla33[Tipo\ncomprobante],Nacionales!$B$3)","v":0},{"$f":"+SUMIFS(Tabla33[Importe en\npesos],Tabla33[Presenta\ncomprobante],\"Si\",Tabla33[Forma\nde pago],Tabla42[[#Headers],[TDD]],Tabla33[Concepto],Tabla42[[#This Row],[Tipo]],Tabla33[Tipo\ncomprobante],Nacionales!$B$3)","v":0},{"$f":"+SUMIFS(Tabla33[Importe en\npesos],Tabla33[Presenta\ncomprobante],\"Si\",Tabla33[Forma\nde pago],Tabla42[[#Headers],[TDE]],Tabla33[Concepto],Tabla42[[#This Row],[Tipo]],Tabla33[Tipo\ncomprobante],Nacionales!$B$3)","v":0},{"$f":"+SUMIFS(Tabla33[Importe en\npesos],Tabla33[Presenta\ncomprobante],\"Si\",Tabla33[Forma\nde pago],Tabla42[[#Headers],[TDC]],Tabla33[Concepto],Tabla42[[#This Row],[Tipo]],Tabla33[Tipo\ncomprobante],Nacionales!$B$3)","v":0},{"$f":"+SUMIFS(Tabla33[Importe en\npesos],Tabla33[Presenta\ncomprobante],\"Si\",Tabla33[Forma\nde pago],Tabla42[[#Headers],[E]],Tabla33[Concepto],Tabla42[[#This Row],[Tipo]],Tabla33[Tipo\ncomprobante],Nacionales!$B$3)","v":0},{"$f":"+SUMIFS(Tabla33[Importe en\npesos],Tabla33[Presenta\ncomprobante],\"Si\",Tabla33[Forma\nde pago],Tabla42[[#Headers],[Transfer. INAI]],Tabla33[Concepto],Tabla42[[#This Row],[Tipo]],Tabla33[Tipo\ncomprobante],Nacionales!$B$3)","v":0},{"$f":"+SUMIFS(Tabla33[Importe en\npesos],Tabla33[Presenta\ncomprobante],\"Si\",Tabla33[Forma\nde pago],Tabla42[[#Headers],[Por tercero]],Tabla33[Concepto],Tabla42[[#This Row],[Tipo]],Tabla33[Tipo\ncomprobante],Nacionales!$B$3)","v":0},{"$f":"+SUM(Tabla42[[#This Row],[TCC]:[E]])","v":0},null,"Pasajes",{"$f":"+SUMIFS(Tabla33[Importe en\npesos],Tabla33[Presenta\ncomprobante],\"Si\",Tabla33[Forma\nde pago],Tabla4245[[#Headers],[TCC]],Tabla33[Concepto],Tabla4245[[#This Row],[Tipo]],Tabla33[Tipo\ncomprobante],Nacionales!$B$4)","v":0},{"$f":"+SUMIFS(Tabla33[Importe en\npesos],Tabla33[Presenta\ncomprobante],\"Si\",Tabla33[Forma\nde pago],Tabla4245[[#Headers],[TDD]],Tabla33[Concepto],Tabla4245[[#This Row],[Tipo]],Tabla33[Tipo\ncomprobante],Nacionales!$B$4)","v":0},{"$f":"+SUMIFS(Tabla33[Importe en\npesos],Tabla33[Presenta\ncomprobante],\"Si\",Tabla33[Forma\nde pago],Tabla4245[[#Headers],[TDE]],Tabla33[Concepto],Tabla4245[[#This Row],[Tipo]],Tabla33[Tipo\ncomprobante],Nacionales!$B$4)","v":0},{"$f":"+SUMIFS(Tabla33[Importe en\npesos],Tabla33[Presenta\ncomprobante],\"Si\",Tabla33[Forma\nde pago],Tabla4245[[#Headers],[TDC]],Tabla33[Concepto],Tabla4245[[#This Row],[Tipo]],Tabla33[Tipo\ncomprobante],Nacionales!$B$4)","v":0},{"$f":"+SUMIFS(Tabla33[Importe en\npesos],Tabla33[Presenta\ncomprobante],\"Si\",Tabla33[Forma\nde pago],Tabla4245[[#Headers],[E]],Tabla33[Concepto],Tabla4245[[#This Row],[Tipo]],Tabla33[Tipo\ncomprobante],Nacionales!$B$4)","v":0},{"$f":"+SUMIFS(Tabla33[Importe en\npesos],Tabla33[Presenta\ncomprobante],\"Si\",Tabla33[Forma\nde pago],Tabla4245[[#Headers],[Transfer. INAI]],Tabla33[Concepto],Tabla4245[[#This Row],[Tipo]],Tabla33[Tipo\ncomprobante],Nacionales!$B$4)","v":0},{"$f":"+SUMIFS(Tabla33[Importe en\npesos],Tabla33[Presenta\ncomprobante],\"Si\",Tabla33[Forma\nde pago],Tabla4245[[#Headers],[Por tercero]],Tabla33[Concepto],Tabla4245[[#This Row],[Tipo]],Tabla33[Tipo\ncomprobante],Nacionales!$B$4)","v":0},{"$f":"+SUM(Tabla4245[[#This Row],[TCC]:[E]])","v":0},null,"Pasajes",{"$f":"+SUMIFS(Tabla33[Importe en\npesos],Tabla33[Presenta\ncomprobante],\"Si\",Tabla33[Forma\nde pago],Tabla4247[[#Headers],[TCC]],Tabla33[Concepto],Tabla4247[[#This Row],[Tipo]],Tabla33[Tipo\ncomprobante],Nacionales!$B$5)","v":0},{"$f":"+SUMIFS(Tabla33[Importe en\npesos],Tabla33[Presenta\ncomprobante],\"Si\",Tabla33[Forma\nde pago],Tabla4247[[#Headers],[TDD]],Tabla33[Concepto],Tabla4247[[#This Row],[Tipo]],Tabla33[Tipo\ncomprobante],Nacionales!$B$5)","v":0},{"$f":"+SUMIFS(Tabla33[Importe en\npesos],Tabla33[Presenta\ncomprobante],\"Si\",Tabla33[Forma\nde pago],Tabla4247[[#Headers],[TDE]],Tabla33[Concepto],Tabla4247[[#This Row],[Tipo]],Tabla33[Tipo\ncomprobante],Nacionales!$B$5)","v":0},{"$f":"+SUMIFS(Tabla33[Importe en\npesos],Tabla33[Presenta\ncomprobante],\"Si\",Tabla33[Forma\nde pago],Tabla4247[[#Headers],[TDC]],Tabla33[Concepto],Tabla4247[[#This Row],[Tipo]],Tabla33[Tipo\ncomprobante],Nacionales!$B$5)","v":0},{"$f":"+SUMIFS(Tabla33[Importe en\npesos],Tabla33[Presenta\ncomprobante],\"Si\",Tabla33[Forma\nde pago],Tabla4247[[#Headers],[E]],Tabla33[Concepto],Tabla4247[[#This Row],[Tipo]],Tabla33[Tipo\ncomprobante],Nacionales!$B$5)","v":0},{"$f":"+SUMIFS(Tabla33[Importe en\npesos],Tabla33[Presenta\ncomprobante],\"Si\",Tabla33[Forma\nde pago],Tabla4247[[#Headers],[Transfer. INAI]],Tabla33[Concepto],Tabla4247[[#This Row],[Tipo]],Tabla33[Tipo\ncomprobante],Nacionales!$B$5)","v":0},{"$f":"+SUMIFS(Tabla33[Importe en\npesos],Tabla33[Presenta\ncomprobante],\"Si\",Tabla33[Forma\nde pago],Tabla4247[[#Headers],[Por tercero]],Tabla33[Concepto],Tabla4247[[#This Row],[Tipo]],Tabla33[Tipo\ncomprobante],Nacionales!$B$5)","v":0},{"$f":"+SUM(Tabla4247[[#This Row],[TCC]:[E]])","v":0},null,"Pasajes",{"$f":"+SUMIFS(Tabla33[Importe en\npesos],Tabla33[Presenta\ncomprobante],\"Si\",Tabla33[Forma\nde pago],Tabla4249[[#Headers],[TCC]],Tabla33[Concepto],Tabla4249[[#This Row],[Tipo]],Tabla33[Tipo\ncomprobante],Nacionales!$B$6)","v":0},{"$f":"+SUMIFS(Tabla33[Importe en\npesos],Tabla33[Presenta\ncomprobante],\"Si\",Tabla33[Forma\nde pago],Tabla4249[[#Headers],[TDD]],Tabla33[Concepto],Tabla4249[[#This Row],[Tipo]],Tabla33[Tipo\ncomprobante],Nacionales!$B$6)","v":0},{"$f":"+SUMIFS(Tabla33[Importe en\npesos],Tabla33[Presenta\ncomprobante],\"Si\",Tabla33[Forma\nde pago],Tabla4249[[#Headers],[TDE]],Tabla33[Concepto],Tabla4249[[#This Row],[Tipo]],Tabla33[Tipo\ncomprobante],Nacionales!$B$6)","v":0},{"$f":"+SUMIFS(Tabla33[Importe en\npesos],Tabla33[Presenta\ncomprobante],\"Si\",Tabla33[Forma\nde pago],Tabla4249[[#Headers],[TDC]],Tabla33[Concepto],Tabla4249[[#This Row],[Tipo]],Tabla33[Tipo\ncomprobante],Nacionales!$B$6)","v":0},{"$f":"+SUMIFS(Tabla33[Importe en\npesos],Tabla33[Presenta\ncomprobante],\"Si\",Tabla33[Forma\nde pago],Tabla4249[[#Headers],[E]],Tabla33[Concepto],Tabla4249[[#This Row],[Tipo]],Tabla33[Tipo\ncomprobante],Nacionales!$B$6)","v":0},{"$f":"+SUMIFS(Tabla33[Importe en\npesos],Tabla33[Presenta\ncomprobante],\"Si\",Tabla33[Forma\nde pago],Tabla4249[[#Headers],[Transfer. INAI]],Tabla33[Concepto],Tabla4249[[#This Row],[Tipo]],Tabla33[Tipo\ncomprobante],Nacionales!$B$6)","v":0},{"$f":"+SUMIFS(Tabla33[Importe en\npesos],Tabla33[Presenta\ncomprobante],\"Si\",Tabla33[Forma\nde pago],Tabla4249[[#Headers],[Por tercero]],Tabla33[Concepto],Tabla4249[[#This Row],[Tipo]],Tabla33[Tipo\ncomprobante],Nacionales!$B$6)","v":0},{"$f":"+SUM(Tabla4249[[#This Row],[TCC]:[E]])","v":0},null,"Pasajes",{"$f":"+SUMIFS(Tabla33[Importe en\npesos],Tabla33[Presenta\ncomprobante],\"Si\",Tabla33[Forma\nde pago],Tabla4251[[#Headers],[TCC]],Tabla33[Concepto],Tabla4251[[#This Row],[Tipo]],Tabla33[Tipo\ncomprobante],Nacionales!$B$7)","v":0},{"$f":"+SUMIFS(Tabla33[Importe en\npesos],Tabla33[Presenta\ncomprobante],\"Si\",Tabla33[Forma\nde pago],Tabla4251[[#Headers],[TDD]],Tabla33[Concepto],Tabla4251[[#This Row],[Tipo]],Tabla33[Tipo\ncomprobante],Nacionales!$B$7)","v":0},{"$f":"+SUMIFS(Tabla33[Importe en\npesos],Tabla33[Presenta\ncomprobante],\"Si\",Tabla33[Forma\nde pago],Tabla4251[[#Headers],[TDE]],Tabla33[Concepto],Tabla4251[[#This Row],[Tipo]],Tabla33[Tipo\ncomprobante],Nacionales!$B$7)","v":0},{"$f":"+SUMIFS(Tabla33[Importe en\npesos],Tabla33[Presenta\ncomprobante],\"Si\",Tabla33[Forma\nde pago],Tabla4251[[#Headers],[TDC]],Tabla33[Concepto],Tabla4251[[#This Row],[Tipo]],Tabla33[Tipo\ncomprobante],Nacionales!$B$7)","v":0},{"$f":"+SUMIFS(Tabla33[Importe en\npesos],Tabla33[Presenta\ncomprobante],\"Si\",Tabla33[Forma\nde pago],Tabla4251[[#Headers],[E]],Tabla33[Concepto],Tabla4251[[#This Row],[Tipo]],Tabla33[Tipo\ncomprobante],Nacionales!$B$7)","v":0},{"$f":"+SUMIFS(Tabla33[Importe en\npesos],Tabla33[Presenta\ncomprobante],\"Si\",Tabla33[Forma\nde pago],Tabla4251[[#Headers],[Transfer. INAI]],Tabla33[Concepto],Tabla4251[[#This Row],[Tipo]],Tabla33[Tipo\ncomprobante],Nacionales!$B$7)","v":0},{"$f":"+SUMIFS(Tabla33[Importe en\npesos],Tabla33[Presenta\ncomprobante],\"Si\",Tabla33[Forma\nde pago],Tabla4251[[#Headers],[Por tercero]],Tabla33[Concepto],Tabla4251[[#This Row],[Tipo]],Tabla33[Tipo\ncomprobante],Nacionales!$B$7)","v":0},{"$f":"+SUM(Tabla4251[[#This Row],[TCC]:[E]])","v":0}]
[null,"Gasolina",{"$f":"+SUMIFS(Tabla33[Importe en\npesos],Tabla33[Presenta\ncomprobante],\"Si\",Tabla33[Forma\nde pago],Tabla42[[#Headers],[TCC]],Tabla33[Concepto],Tabla42[[#This Row],[Tipo]],Tabla33[Tipo\ncomprobante],Nacionales!$B$3)","v":0},{"$f":"+SUMIFS(Tabla33[Importe en\npesos],Tabla33[Presenta\ncomprobante],\"Si\",Tabla33[Forma\nde pago],Tabla42[[#Headers],[TDD]],Tabla33[Concepto],Tabla42[[#This Row],[Tipo]],Tabla33[Tipo\ncomprobante],Nacionales!$B$3)","v":0},{"$f":"+SUMIFS(Tabla33[Importe en\npesos],Tabla33[Presenta\ncomprobante],\"Si\",Tabla33[Forma\nde pago],Tabla42[[#Headers],[TDE]],Tabla33[Concepto],Tabla42[[#This Row],[Tipo]],Tabla33[Tipo\ncomprobante],Nacionales!$B$3)","v":0},{"$f":"+SUMIFS(Tabla33[Importe en\npesos],Tabla33[Presenta\ncomprobante],\"Si\",Tabla33[Forma\nde pago],Tabla42[[#Headers],[TDC]],Tabla33[Concepto],Tabla42[[#This Row],[Tipo]],Tabla33[Tipo\ncomprobante],Nacionales!$B$3)","v":0},{"$f":"+SUMIFS(Tabla33[Importe en\npesos],Tabla33[Presenta\ncomprobante],\"Si\",Tabla33[Forma\nde pago],Tabla42[[#Headers],[E]],Tabla33[Concepto],Tabla42[[#This Row],[Tipo]],Tabla33[Tipo\ncomprobante],Nacionales!$B$3)","v":0},{"$f":"+SUMIFS(Tabla33[Importe en\npesos],Tabla33[Presenta\ncomprobante],\"Si\",Tabla33[Forma\nde pago],Tabla42[[#Headers],[Transfer. INAI]],Tabla33[Concepto],Tabla42[[#This Row],[Tipo]],Tabla33[Tipo\ncomprobante],Nacionales!$B$3)","v":0},{"$f":"+SUMIFS(Tabla33[Importe en\npesos],Tabla33[Presenta\ncomprobante],\"Si\",Tabla33[Forma\nde pago],Tabla42[[#Headers],[Por tercero]],Tabla33[Concepto],Tabla42[[#This Row],[Tipo]],Tabla33[Tipo\ncomprobante],Nacionales!$B$3)","v":0},{"$f":"+SUM(Tabla42[[#This Row],[TCC]:[E]])","v":0},null,"Gasolina",{"$f":"+SUMIFS(Tabla33[Importe en\npesos],Tabla33[Presenta\ncomprobante],\"Si\",Tabla33[Forma\nde pago],Tabla4245[[#Headers],[TCC]],Tabla33[Concepto],Tabla4245[[#This Row],[Tipo]],Tabla33[Tipo\ncomprobante],Nacionales!$B$4)","v":0},{"$f":"+SUMIFS(Tabla33[Importe en\npesos],Tabla33[Presenta\ncomprobante],\"Si\",Tabla33[Forma\nde pago],Tabla4245[[#Headers],[TDD]],Tabla33[Concepto],Tabla4245[[#This Row],[Tipo]],Tabla33[Tipo\ncomprobante],Nacionales!$B$4)","v":0},{"$f":"+SUMIFS(Tabla33[Importe en\npesos],Tabla33[Presenta\ncomprobante],\"Si\",Tabla33[Forma\nde pago],Tabla4245[[#Headers],[TDE]],Tabla33[Concepto],Tabla4245[[#This Row],[Tipo]],Tabla33[Tipo\ncomprobante],Nacionales!$B$4)","v":0},{"$f":"+SUMIFS(Tabla33[Importe en\npesos],Tabla33[Presenta\ncomprobante],\"Si\",Tabla33[Forma\nde pago],Tabla4245[[#Headers],[TDC]],Tabla33[Concepto],Tabla4245[[#This Row],[Tipo]],Tabla33[Tipo\ncomprobante],Nacionales!$B$4)","v":0},{"$f":"+SUMIFS(Tabla33[Importe en\npesos],Tabla33[Presenta\ncomprobante],\"Si\",Tabla33[Forma\nde pago],Tabla4245[[#Headers],[E]],Tabla33[Concepto],Tabla4245[[#This Row],[Tipo]],Tabla33[Tipo\ncomprobante],Nacionales!$B$4)","v":0},{"$f":"+SUMIFS(Tabla33[Importe en\npesos],Tabla33[Presenta\ncomprobante],\"Si\",Tabla33[Forma\nde pago],Tabla4245[[#Headers],[Transfer. INAI]],Tabla33[Concepto],Tabla4245[[#This Row],[Tipo]],Tabla33[Tipo\ncomprobante],Nacionales!$B$4)","v":0},{"$f":"+SUMIFS(Tabla33[Importe en\npesos],Tabla33[Presenta\ncomprobante],\"Si\",Tabla33[Forma\nde pago],Tabla4245[[#Headers],[Por tercero]],Tabla33[Concepto],Tabla4245[[#This Row],[Tipo]],Tabla33[Tipo\ncomprobante],Nacionales!$B$4)","v":0},{"$f":"+SUM(Tabla4245[[#This Row],[TCC]:[E]])","v":0},null,"Gasolina",{"$f":"+SUMIFS(Tabla33[Importe en\npesos],Tabla33[Presenta\ncomprobante],\"Si\",Tabla33[Forma\nde pago],Tabla4247[[#Headers],[TCC]],Tabla33[Concepto],Tabla4247[[#This Row],[Tipo]],Tabla33[Tipo\ncomprobante],Nacionales!$B$5)","v":0},{"$f":"+SUMIFS(Tabla33[Importe en\npesos],Tabla33[Presenta\ncomprobante],\"Si\",Tabla33[Forma\nde pago],Tabla4247[[#Headers],[TDD]],Tabla33[Concepto],Tabla4247[[#This Row],[Tipo]],Tabla33[Tipo\ncomprobante],Nacionales!$B$5)","v":0},{"$f":"+SUMIFS(Tabla33[Importe en\npesos],Tabla33[Presenta\ncomprobante],\"Si\",Tabla33[Forma\nde pago],Tabla4247[[#Headers],[TDE]],Tabla33[Concepto],Tabla4247[[#This Row],[Tipo]],Tabla33[Tipo\ncomprobante],Nacionales!$B$5)","v":0},{"$f":"+SUMIFS(Tabla33[Importe en\npesos],Tabla33[Presenta\ncomprobante],\"Si\",Tabla33[Forma\nde pago],Tabla4247[[#Headers],[TDC]],Tabla33[Concepto],Tabla4247[[#This Row],[Tipo]],Tabla33[Tipo\ncomprobante],Nacionales!$B$5)","v":0},{"$f":"+SUMIFS(Tabla33[Importe en\npesos],Tabla33[Presenta\ncomprobante],\"Si\",Tabla33[Forma\nde pago],Tabla4247[[#Headers],[E]],Tabla33[Concepto],Tabla4247[[#This Row],[Tipo]],Tabla33[Tipo\ncomprobante],Nacionales!$B$5)","v":0},{"$f":"+SUMIFS(Tabla33[Importe en\npesos],Tabla33[Presenta\ncomprobante],\"Si\",Tabla33[Forma\nde pago],Tabla4247[[#Headers],[Transfer. INAI]],Tabla33[Concepto],Tabla4247[[#This Row],[Tipo]],Tabla33[Tipo\ncomprobante],Nacionales!$B$5)","v":0},{"$f":"+SUMIFS(Tabla33[Importe en\npesos],Tabla33[Presenta\ncomprobante],\"Si\",Tabla33[Forma\nde pago],Tabla4247[[#Headers],[Por tercero]],Tabla33[Concepto],Tabla4247[[#This Row],[Tipo]],Tabla33[Tipo\ncomprobante],Nacionales!$B$5)","v":0},{"$f":"+SUM(Tabla4247[[#This Row],[TCC]:[E]])","v":0},null,"Gasolina",{"$f":"+SUMIFS(Tabla33[Importe en\npesos],Tabla33[Presenta\ncomprobante],\"Si\",Tabla33[Forma\nde pago],Tabla4249[[#Headers],[TCC]],Tabla33[Concepto],Tabla4249[[#This Row],[Tipo]],Tabla33[Tipo\ncomprobante],Nacionales!$B$6)","v":0},{"$f":"+SUMIFS(Tabla33[Importe en\npesos],Tabla33[Presenta\ncomprobante],\"Si\",Tabla33[Forma\nde pago],Tabla4249[[#Headers],[TDD]],Tabla33[Concepto],Tabla4249[[#This Row],[Tipo]],Tabla33[Tipo\ncomprobante],Nacionales!$B$6)","v":0},{"$f":"+SUMIFS(Tabla33[Importe en\npesos],Tabla33[Presenta\ncomprobante],\"Si\",Tabla33[Forma\nde pago],Tabla4249[[#Headers],[TDE]],Tabla33[Concepto],Tabla4249[[#This Row],[Tipo]],Tabla33[Tipo\ncomprobante],Nacionales!$B$6)","v":0},{"$f":"+SUMIFS(Tabla33[Importe en\npesos],Tabla33[Presenta\ncomprobante],\"Si\",Tabla33[Forma\nde pago],Tabla4249[[#Headers],[TDC]],Tabla33[Concepto],Tabla4249[[#This Row],[Tipo]],Tabla33[Tipo\ncomprobante],Nacionales!$B$6)","v":0},{"$f":"+SUMIFS(Tabla33[Importe en\npesos],Tabla33[Presenta\ncomprobante],\"Si\",Tabla33[Forma\nde pago],Tabla4249[[#Headers],[E]],Tabla33[Concepto],Tabla4249[[#This Row],[Tipo]],Tabla33[Tipo\ncomprobante],Nacionales!$B$6)","v":0},{"$f":"+SUMIFS(Tabla33[Importe en\npesos],Tabla33[Presenta\ncomprobante],\"Si\",Tabla33[Forma\nde pago],Tabla4249[[#Headers],[Transfer. INAI]],Tabla33[Concepto],Tabla4249[[#This Row],[Tipo]],Tabla33[Tipo\ncomprobante],Nacionales!$B$6)","v":0},{"$f":"+SUMIFS(Tabla33[Importe en\npesos],Tabla33[Presenta\ncomprobante],\"Si\",Tabla33[Forma\nde pago],Tabla4249[[#Headers],[Por tercero]],Tabla33[Concepto],Tabla4249[[#This Row],[Tipo]],Tabla33[Tipo\ncomprobante],Nacionales!$B$6)","v":0},{"$f":"+SUM(Tabla4249[[#This Row],[TCC]:[E]])","v":0},null,"Gasolina",{"$f":"+SUMIFS(Tabla33[Importe en\npesos],Tabla33[Presenta\ncomprobante],\"Si\",Tabla33[Forma\nde pago],Tabla4251[[#Headers],[TCC]],Tabla33[Concepto],Tabla4251[[#This Row],[Tipo]],Tabla33[Tipo\ncomprobante],Nacionales!$B$7)","v":0},{"$f":"+SUMIFS(Tabla33[Importe en\npesos],Tabla33[Presenta\ncomprobante],\"Si\",Tabla33[Forma\nde pago],Tabla4251[[#Headers],[TDD]],Tabla33[Concepto],Tabla4251[[#This Row],[Tipo]],Tabla33[Tipo\ncomprobante],Nacionales!$B$7)","v":0},{"$f":"+SUMIFS(Tabla33[Importe en\npesos],Tabla33[Presenta\ncomprobante],\"Si\",Tabla33[Forma\nde pago],Tabla4251[[#Headers],[TDE]],Tabla33[Concepto],Tabla4251[[#This Row],[Tipo]],Tabla33[Tipo\ncomprobante],Nacionales!$B$7)","v":0},{"$f":"+SUMIFS(Tabla33[Importe en\npesos],Tabla33[Presenta\ncomprobante],\"Si\",Tabla33[Forma\nde pago],Tabla4251[[#Headers],[TDC]],Tabla33[Concepto],Tabla4251[[#This Row],[Tipo]],Tabla33[Tipo\ncomprobante],Nacionales!$B$7)","v":0},{"$f":"+SUMIFS(Tabla33[Importe en\npesos],Tabla33[Presenta\ncomprobante],\"Si\",Tabla33[Forma\nde pago],Tabla4251[[#Headers],[E]],Tabla33[Concepto],Tabla4251[[#This Row],[Tipo]],Tabla33[Tipo\ncomprobante],Nacionales!$B$7)","v":0},{"$f":"+SUMIFS(Tabla33[Importe en\npesos],Tabla33[Presenta\ncomprobante],\"Si\",Tabla33[Forma\nde pago],Tabla4251[[#Headers],[Transfer. INAI]],Tabla33[Concepto],Tabla4251[[#This Row],[Tipo]],Tabla33[Tipo\ncomprobante],Nacionales!$B$7)","v":0},{"$f":"+SUMIFS(Tabla33[Importe en\npesos],Tabla33[Presenta\ncomprobante],\"Si\",Tabla33[Forma\nde pago],Tabla4251[[#Headers],[Por tercero]],Tabla33[Concepto],Tabla4251[[#This Row],[Tipo]],Tabla33[Tipo\ncomprobante],Nacionales!$B$7)","v":0},{"$f":"+SUM(Tabla4251[[#This Row],[TCC]:[E]])","v":0}]
[null,"Peaje",{"$f":"+SUMIFS(Tabla33[Importe en\npesos],Tabla33[Presenta\ncomprobante],\"Si\",Tabla33[Forma\nde pago],Tabla42[[#Headers],[TCC]],Tabla33[Concepto],Tabla42[[#This Row],[Tipo]],Tabla33[Tipo\ncomprobante],Nacionales!$B$3)","v":0},{"$f":"+SUMIFS(Tabla33[Importe en\npesos],Tabla33[Presenta\ncomprobante],\"Si\",Tabla33[Forma\nde pago],Tabla42[[#Headers],[TDD]],Tabla33[Concepto],Tabla42[[#This Row],[Tipo]],Tabla33[Tipo\ncomprobante],Nacionales!$B$3)","v":0},{"$f":"+SUMIFS(Tabla33[Importe en\npesos],Tabla33[Presenta\ncomprobante],\"Si\",Tabla33[Forma\nde pago],Tabla42[[#Headers],[TDE]],Tabla33[Concepto],Tabla42[[#This Row],[Tipo]],Tabla33[Tipo\ncomprobante],Nacionales!$B$3)","v":0},{"$f":"+SUMIFS(Tabla33[Importe en\npesos],Tabla33[Presenta\ncomprobante],\"Si\",Tabla33[Forma\nde pago],Tabla42[[#Headers],[TDC]],Tabla33[Concepto],Tabla42[[#This Row],[Tipo]],Tabla33[Tipo\ncomprobante],Nacionales!$B$3)","v":0},{"$f":"+SUMIFS(Tabla33[Importe en\npesos],Tabla33[Presenta\ncomprobante],\"Si\",Tabla33[Forma\nde pago],Tabla42[[#Headers],[E]],Tabla33[Concepto],Tabla42[[#This Row],[Tipo]],Tabla33[Tipo\ncomprobante],Nacionales!$B$3)","v":0},{"$f":"+SUMIFS(Tabla33[Importe en\npesos],Tabla33[Presenta\ncomprobante],\"Si\",Tabla33[Forma\nde pago],Tabla42[[#Headers],[Transfer. INAI]],Tabla33[Concepto],Tabla42[[#This Row],[Tipo]],Tabla33[Tipo\ncomprobante],Nacionales!$B$3)","v":0},{"$f":"+SUMIFS(Tabla33[Importe en\npesos],Tabla33[Presenta\ncomprobante],\"Si\",Tabla33[Forma\nde pago],Tabla42[[#Headers],[Por tercero]],Tabla33[Concepto],Tabla42[[#This Row],[Tipo]],Tabla33[Tipo\ncomprobante],Nacionales!$B$3)","v":0},{"$f":"+SUM(Tabla42[[#This Row],[TCC]:[E]])","v":0},null,"Peaje",{"$f":"+SUMIFS(Tabla33[Importe en\npesos],Tabla33[Presenta\ncomprobante],\"Si\",Tabla33[Forma\nde pago],Tabla4245[[#Headers],[TCC]],Tabla33[Concepto],Tabla4245[[#This Row],[Tipo]],Tabla33[Tipo\ncomprobante],Nacionales!$B$4)","v":0},{"$f":"+SUMIFS(Tabla33[Importe en\npesos],Tabla33[Presenta\ncomprobante],\"Si\",Tabla33[Forma\nde pago],Tabla4245[[#Headers],[TDD]],Tabla33[Concepto],Tabla4245[[#This Row],[Tipo]],Tabla33[Tipo\ncomprobante],Nacionales!$B$4)","v":0},{"$f":"+SUMIFS(Tabla33[Importe en\npesos],Tabla33[Presenta\ncomprobante],\"Si\",Tabla33[Forma\nde pago],Tabla4245[[#Headers],[TDE]],Tabla33[Concepto],Tabla4245[[#This Row],[Tipo]],Tabla33[Tipo\ncomprobante],Nacionales!$B$4)","v":0},{"$f":"+SUMIFS(Tabla33[Importe en\npesos],Tabla33[Presenta\ncomprobante],\"Si\",Tabla33[Forma\nde pago],Tabla4245[[#Headers],[TDC]],Tabla33[Concepto],Tabla4245[[#This Row],[Tipo]],Tabla33[Tipo\ncomprobante],Nacionales!$B$4)","v":0},{"$f":"+SUMIFS(Tabla33[Importe en\npesos],Tabla33[Presenta\ncomprobante],\"Si\",Tabla33[Forma\nde pago],Tabla4245[[#Headers],[E]],Tabla33[Concepto],Tabla4245[[#This Row],[Tipo]],Tabla33[Tipo\ncomprobante],Nacionales!$B$4)","v":0},{"$f":"+SUMIFS(Tabla33[Importe en\npesos],Tabla33[Presenta\ncomprobante],\"Si\",Tabla33[Forma\nde pago],Tabla4245[[#Headers],[Transfer. INAI]],Tabla33[Concepto],Tabla4245[[#This Row],[Tipo]],Tabla33[Tipo\ncomprobante],Nacionales!$B$4)","v":0},{"$f":"+SUMIFS(Tabla33[Importe en\npesos],Tabla33[Presenta\ncomprobante],\"Si\",Tabla33[Forma\nde pago],Tabla4245[[#Headers],[Por tercero]],Tabla33[Concepto],Tabla4245[[#This Row],[Tipo]],Tabla33[Tipo\ncomprobante],Nacionales!$B$4)","v":0},{"$f":"+SUM(Tabla4245[[#This Row],[TCC]:[E]])","v":0},null,"Peaje",{"$f":"+SUMIFS(Tabla33[Importe en\npesos],Tabla33[Presenta\ncomprobante],\"Si\",Tabla33[Forma\nde pago],Tabla4247[[#Headers],[TCC]],Tabla33[Concepto],Tabla4247[[#This Row],[Tipo]],Tabla33[Tipo\ncomprobante],Nacionales!$B$5)","v":0},{"$f":"+SUMIFS(Tabla33[Importe en\npesos],Tabla33[Presenta\ncomprobante],\"Si\",Tabla33[Forma\nde pago],Tabla4247[[#Headers],[TDD]],Tabla33[Concepto],Tabla4247[[#This Row],[Tipo]],Tabla33[Tipo\ncomprobante],Nacionales!$B$5)","v":0},{"$f":"+SUMIFS(Tabla33[Importe en\npesos],Tabla33[Presenta\ncomprobante],\"Si\",Tabla33[Forma\nde pago],Tabla4247[[#Headers],[TDE]],Tabla33[Concepto],Tabla4247[[#This Row],[Tipo]],Tabla33[Tipo\ncomprobante],Nacionales!$B$5)","v":0},{"$f":"+SUMIFS(Tabla33[Importe en\npesos],Tabla33[Presenta\ncomprobante],\"Si\",Tabla33[Forma\nde pago],Tabla4247[[#Headers],[TDC]],Tabla33[Concepto],Tabla4247[[#This Row],[Tipo]],Tabla33[Tipo\ncomprobante],Nacionales!$B$5)","v":0},{"$f":"+SUMIFS(Tabla33[Importe en\npesos],Tabla33[Presenta\ncomprobante],\"Si\",Tabla33[Forma\nde pago],Tabla4247[[#Headers],[E]],Tabla33[Concepto],Tabla4247[[#This Row],[Tipo]],Tabla33[Tipo\ncomprobante],Nacionales!$B$5)","v":0},{"$f":"+SUMIFS(Tabla33[Importe en\npesos],Tabla33[Presenta\ncomprobante],\"Si\",Tabla33[Forma\nde pago],Tabla4247[[#Headers],[Transfer. INAI]],Tabla33[Concepto],Tabla4247[[#This Row],[Tipo]],Tabla33[Tipo\ncomprobante],Nacionales!$B$5)","v":0},{"$f":"+SUMIFS(Tabla33[Importe en\npesos],Tabla33[Presenta\ncomprobante],\"Si\",Tabla33[Forma\nde pago],Tabla4247[[#Headers],[Por tercero]],Tabla33[Concepto],Tabla4247[[#This Row],[Tipo]],Tabla33[Tipo\ncomprobante],Nacionales!$B$5)","v":0},{"$f":"+SUM(Tabla4247[[#This Row],[TCC]:[E]])","v":0},null,"Peaje",{"$f":"+SUMIFS(Tabla33[Importe en\npesos],Tabla33[Presenta\ncomprobante],\"Si\",Tabla33[Forma\nde pago],Tabla4249[[#Headers],[TCC]],Tabla33[Concepto],Tabla4249[[#This Row],[Tipo]],Tabla33[Tipo\ncomprobante],Nacionales!$B$6)","v":0},{"$f":"+SUMIFS(Tabla33[Importe en\npesos],Tabla33[Presenta\ncomprobante],\"Si\",Tabla33[Forma\nde pago],Tabla4249[[#Headers],[TDD]],Tabla33[Concepto],Tabla4249[[#This Row],[Tipo]],Tabla33[Tipo\ncomprobante],Nacionales!$B$6)","v":0},{"$f":"+SUMIFS(Tabla33[Importe en\npesos],Tabla33[Presenta\ncomprobante],\"Si\",Tabla33[Forma\nde pago],Tabla4249[[#Headers],[TDE]],Tabla33[Concepto],Tabla4249[[#This Row],[Tipo]],Tabla33[Tipo\ncomprobante],Nacionales!$B$6)","v":0},{"$f":"+SUMIFS(Tabla33[Importe en\npesos],Tabla33[Presenta\ncomprobante],\"Si\",Tabla33[Forma\nde pago],Tabla4249[[#Headers],[TDC]],Tabla33[Concepto],Tabla4249[[#This Row],[Tipo]],Tabla33[Tipo\ncomprobante],Nacionales!$B$6)","v":0},{"$f":"+SUMIFS(Tabla33[Importe en\npesos],Tabla33[Presenta\ncomprobante],\"Si\",Tabla33[Forma\nde pago],Tabla4249[[#Headers],[E]],Tabla33[Concepto],Tabla4249[[#This Row],[Tipo]],Tabla33[Tipo\ncomprobante],Nacionales!$B$6)","v":0},{"$f":"+SUMIFS(Tabla33[Importe en\npesos],Tabla33[Presenta\ncomprobante],\"Si\",Tabla33[Forma\nde pago],Tabla4249[[#Headers],[Transfer. INAI]],Tabla33[Concepto],Tabla4249[[#This Row],[Tipo]],Tabla33[Tipo\ncomprobante],Nacionales!$B$6)","v":0},{"$f":"+SUMIFS(Tabla33[Importe en\npesos],Tabla33[Presenta\ncomprobante],\"Si\",Tabla33[Forma\nde pago],Tabla4249[[#Headers],[Por tercero]],Tabla33[Concepto],Tabla4249[[#This Row],[Tipo]],Tabla33[Tipo\ncomprobante],Nacionales!$B$6)","v":0},{"$f":"+SUM(Tabla4249[[#This Row],[TCC]:[E]])","v":0},null,"Peaje",{"$f":"+SUMIFS(Tabla33[Importe en\npesos],Tabla33[Presenta\ncomprobante],\"Si\",Tabla33[Forma\nde pago],Tabla4251[[#Headers],[TCC]],Tabla33[Concepto],Tabla4251[[#This Row],[Tipo]],Tabla33[Tipo\ncomprobante],Nacionales!$B$7)","v":0},{"$f":"+SUMIFS(Tabla33[Importe en\npesos],Tabla33[Presenta\ncomprobante],\"Si\",Tabla33[Forma\nde pago],Tabla4251[[#Headers],[TDD]],Tabla33[Concepto],Tabla4251[[#This Row],[Tipo]],Tabla33[Tipo\ncomprobante],Nacionales!$B$7)","v":0},{"$f":"+SUMIFS(Tabla33[Importe en\npesos],Tabla33[Presenta\ncomprobante],\"Si\",Tabla33[Forma\nde pago],Tabla4251[[#Headers],[TDE]],Tabla33[Concepto],Tabla4251[[#This Row],[Tipo]],Tabla33[Tipo\ncomprobante],Nacionales!$B$7)","v":0},{"$f":"+SUMIFS(Tabla33[Importe en\npesos],Tabla33[Presenta\ncomprobante],\"Si\",Tabla33[Forma\nde pago],Tabla4251[[#Headers],[TDC]],Tabla33[Concepto],Tabla4251[[#This Row],[Tipo]],Tabla33[Tipo\ncomprobante],Nacionales!$B$7)","v":0},{"$f":"+SUMIFS(Tabla33[Importe en\npesos],Tabla33[Presenta\ncomprobante],\"Si\",Tabla33[Forma\nde pago],Tabla4251[[#Headers],[E]],Tabla33[Concepto],Tabla4251[[#This Row],[Tipo]],Tabla33[Tipo\ncomprobante],Nacionales!$B$7)","v":0},{"$f":"+SUMIFS(Tabla33[Importe en\npesos],Tabla33[Presenta\ncomprobante],\"Si\",Tabla33[Forma\nde pago],Tabla4251[[#Headers],[Transfer. INAI]],Tabla33[Concepto],Tabla4251[[#This Row],[Tipo]],Tabla33[Tipo\ncomprobante],Nacionales!$B$7)","v":0},{"$f":"+SUMIFS(Tabla33[Importe en\npesos],Tabla33[Presenta\ncomprobante],\"Si\",Tabla33[Forma\nde pago],Tabla4251[[#Headers],[Por tercero]],Tabla33[Concepto],Tabla4251[[#This Row],[Tipo]],Tabla33[Tipo\ncomprobante],Nacionales!$B$7)","v":0},{"$f":"+SUM(Tabla4251[[#This Row],[TCC]:[E]])","v":0}]
[null,"Otros pasajes",{"$f":"+SUMIFS(Tabla33[Importe en\npesos],Tabla33[Presenta\ncomprobante],\"Si\",Tabla33[Forma\nde pago],Tabla42[[#Headers],[TCC]],Tabla33[Concepto],Tabla42[[#This Row],[Tipo]],Tabla33[Tipo\ncomprobante],Nacionales!$B$3)","v":0},{"$f":"+SUMIFS(Tabla33[Importe en\npesos],Tabla33[Presenta\ncomprobante],\"Si\",Tabla33[Forma\nde pago],Tabla42[[#Headers],[TDD]],Tabla33[Concepto],Tabla42[[#This Row],[Tipo]],Tabla33[Tipo\ncomprobante],Nacionales!$B$3)","v":0},{"$f":"+SUMIFS(Tabla33[Importe en\npesos],Tabla33[Presenta\ncomprobante],\"Si\",Tabla33[Forma\nde pago],Tabla42[[#Headers],[TDE]],Tabla33[Concepto],Tabla42[[#This Row],[Tipo]],Tabla33[Tipo\ncomprobante],Nacionales!$B$3)","v":0},{"$f":"+SUMIFS(Tabla33[Importe en\npesos],Tabla33[Presenta\ncomprobante],\"Si\",Tabla33[Forma\nde pago],Tabla42[[#Headers],[TDC]],Tabla33[Concepto],Tabla42[[#This Row],[Tipo]],Tabla33[Tipo\ncomprobante],Nacionales!$B$3)","v":0},{"$f":"+SUMIFS(Tabla33[Importe en\npesos],Tabla33[Presenta\ncomprobante],\"Si\",Tabla33[Forma\nde pago],Tabla42[[#Headers],[E]],Tabla33[Concepto],Tabla42[[#This Row],[Tipo]],Tabla33[Tipo\ncomprobante],Nacionales!$B$3)","v":0},{"$f":"+SUMIFS(Tabla33[Importe en\npesos],Tabla33[Presenta\ncomprobante],\"Si\",Tabla33[Forma\nde pago],Tabla42[[#Headers],[Transfer. INAI]],Tabla33[Concepto],Tabla42[[#This Row],[Tipo]],Tabla33[Tipo\ncomprobante],Nacionales!$B$3)","v":0},{"$f":"+SUMIFS(Tabla33[Importe en\npesos],Tabla33[Presenta\ncomprobante],\"Si\",Tabla33[Forma\nde pago],Tabla42[[#Headers],[Por tercero]],Tabla33[Concepto],Tabla42[[#This Row],[Tipo]],Tabla33[Tipo\ncomprobante],Nacionales!$B$3)","v":0},{"$f":"+SUM(Tabla42[[#This Row],[TCC]:[E]])","v":0},null,"Otros pasajes",{"$f":"+SUMIFS(Tabla33[Importe en\npesos],Tabla33[Presenta\ncomprobante],\"Si\",Tabla33[Forma\nde pago],Tabla4245[[#Headers],[TCC]],Tabla33[Concepto],Tabla4245[[#This Row],[Tipo]],Tabla33[Tipo\ncomprobante],Nacionales!$B$4)","v":0},{"$f":"+SUMIFS(Tabla33[Importe en\npesos],Tabla33[Presenta\ncomprobante],\"Si\",Tabla33[Forma\nde pago],Tabla4245[[#Headers],[TDD]],Tabla33[Concepto],Tabla4245[[#This Row],[Tipo]],Tabla33[Tipo\ncomprobante],Nacionales!$B$4)","v":0},{"$f":"+SUMIFS(Tabla33[Importe en\npesos],Tabla33[Presenta\ncomprobante],\"Si\",Tabla33[Forma\nde pago],Tabla4245[[#Headers],[TDE]],Tabla33[Concepto],Tabla4245[[#This Row],[Tipo]],Tabla33[Tipo\ncomprobante],Nacionales!$B$4)","v":0},{"$f":"+SUMIFS(Tabla33[Importe en\npesos],Tabla33[Presenta\ncomprobante],\"Si\",Tabla33[Forma\nde pago],Tabla4245[[#Headers],[TDC]],Tabla33[Concepto],Tabla4245[[#This Row],[Tipo]],Tabla33[Tipo\ncomprobante],Nacionales!$B$4)","v":0},{"$f":"+SUMIFS(Tabla33[Importe en\npesos],Tabla33[Presenta\ncomprobante],\"Si\",Tabla33[Forma\nde pago],Tabla4245[[#Headers],[E]],Tabla33[Concepto],Tabla4245[[#This Row],[Tipo]],Tabla33[Tipo\ncomprobante],Nacionales!$B$4)","v":0},{"$f":"+SUMIFS(Tabla33[Importe en\npesos],Tabla33[Presenta\ncomprobante],\"Si\",Tabla33[Forma\nde pago],Tabla4245[[#Headers],[Transfer. INAI]],Tabla33[Concepto],Tabla4245[[#This Row],[Tipo]],Tabla33[Tipo\ncomprobante],Nacionales!$B$4)","v":0},{"$f":"+SUMIFS(Tabla33[Importe en\npesos],Tabla33[Presenta\ncomprobante],\"Si\",Tabla33[Forma\nde pago],Tabla4245[[#Headers],[Por tercero]],Tabla33[Concepto],Tabla4245[[#This Row],[Tipo]],Tabla33[Tipo\ncomprobante],Nacionales!$B$4)","v":0},{"$f":"+SUM(Tabla4245[[#This Row],[TCC]:[E]])","v":0},null,"Otros pasajes",{"$f":"+SUMIFS(Tabla33[Importe en\npesos],Tabla33[Presenta\ncomprobante],\"Si\",Tabla33[Forma\nde pago],Tabla4247[[#Headers],[TCC]],Tabla33[Concepto],Tabla4247[[#This Row],[Tipo]],Tabla33[Tipo\ncomprobante],Nacionales!$B$5)","v":0},{"$f":"+SUMIFS(Tabla33[Importe en\npesos],Tabla33[Presenta\ncomprobante],\"Si\",Tabla33[Forma\nde pago],Tabla4247[[#Headers],[TDD]],Tabla33[Concepto],Tabla4247[[#This Row],[Tipo]],Tabla33[Tipo\ncomprobante],Nacionales!$B$5)","v":0},{"$f":"+SUMIFS(Tabla33[Importe en\npesos],Tabla33[Presenta\ncomprobante],\"Si\",Tabla33[Forma\nde pago],Tabla4247[[#Headers],[TDE]],Tabla33[Concepto],Tabla4247[[#This Row],[Tipo]],Tabla33[Tipo\ncomprobante],Nacionales!$B$5)","v":0},{"$f":"+SUMIFS(Tabla33[Importe en\npesos],Tabla33[Presenta\ncomprobante],\"Si\",Tabla33[Forma\nde pago],Tabla4247[[#Headers],[TDC]],Tabla33[Concepto],Tabla4247[[#This Row],[Tipo]],Tabla33[Tipo\ncomprobante],Nacionales!$B$5)","v":0},{"$f":"+SUMIFS(Tabla33[Importe en\npesos],Tabla33[Presenta\ncomprobante],\"Si\",Tabla33[Forma\nde pago],Tabla4247[[#Headers],[E]],Tabla33[Concepto],Tabla4247[[#This Row],[Tipo]],Tabla33[Tipo\ncomprobante],Nacionales!$B$5)","v":0},{"$f":"+SUMIFS(Tabla33[Importe en\npesos],Tabla33[Presenta\ncomprobante],\"Si\",Tabla33[Forma\nde pago],Tabla4247[[#Headers],[Transfer. INAI]],Tabla33[Concepto],Tabla4247[[#This Row],[Tipo]],Tabla33[Tipo\ncomprobante],Nacionales!$B$5)","v":0},{"$f":"+SUMIFS(Tabla33[Importe en\npesos],Tabla33[Presenta\ncomprobante],\"Si\",Tabla33[Forma\nde pago],Tabla4247[[#Headers],[Por tercero]],Tabla33[Concepto],Tabla4247[[#This Row],[Tipo]],Tabla33[Tipo\ncomprobante],Nacionales!$B$5)","v":0},{"$f":"+SUM(Tabla4247[[#This Row],[TCC]:[E]])","v":0},null,"Otros pasajes",{"$f":"+SUMIFS(Tabla33[Importe en\npesos],Tabla33[Presenta\ncomprobante],\"Si\",Tabla33[Forma\nde pago],Tabla4249[[#Headers],[TCC]],Tabla33[Concepto],Tabla4249[[#This Row],[Tipo]],Tabla33[Tipo\ncomprobante],Nacionales!$B$6)","v":0},{"$f":"+SUMIFS(Tabla33[Importe en\npesos],Tabla33[Presenta\ncomprobante],\"Si\",Tabla33[Forma\nde pago],Tabla4249[[#Headers],[TDD]],Tabla33[Concepto],Tabla4249[[#This Row],[Tipo]],Tabla33[Tipo\ncomprobante],Nacionales!$B$6)","v":0},{"$f":"+SUMIFS(Tabla33[Importe en\npesos],Tabla33[Presenta\ncomprobante],\"Si\",Tabla33[Forma\nde pago],Tabla4249[[#Headers],[TDE]],Tabla33[Concepto],Tabla4249[[#This Row],[Tipo]],Tabla33[Tipo\ncomprobante],Nacionales!$B$6)","v":0},{"$f":"+SUMIFS(Tabla33[Importe en\npesos],Tabla33[Presenta\ncomprobante],\"Si\",Tabla33[Forma\nde pago],Tabla4249[[#Headers],[TDC]],Tabla33[Concepto],Tabla4249[[#This Row],[Tipo]],Tabla33[Tipo\ncomprobante],Nacionales!$B$6)","v":0},{"$f":"+SUMIFS(Tabla33[Importe en\npesos],Tabla33[Presenta\ncomprobante],\"Si\",Tabla33[Forma\nde pago],Tabla4249[[#Headers],[E]],Tabla33[Concepto],Tabla4249[[#This Row],[Tipo]],Tabla33[Tipo\ncomprobante],Nacionales!$B$6)","v":0},{"$f":"+SUMIFS(Tabla33[Importe en\npesos],Tabla33[Presenta\ncomprobante],\"Si\",Tabla33[Forma\nde pago],Tabla4249[[#Headers],[Transfer. INAI]],Tabla33[Concepto],Tabla4249[[#This Row],[Tipo]],Tabla33[Tipo\ncomprobante],Nacionales!$B$6)","v":0},{"$f":"+SUMIFS(Tabla33[Importe en\npesos],Tabla33[Presenta\ncomprobante],\"Si\",Tabla33[Forma\nde pago],Tabla4249[[#Headers],[Por tercero]],Tabla33[Concepto],Tabla4249[[#This Row],[Tipo]],Tabla33[Tipo\ncomprobante],Nacionales!$B$6)","v":0},{"$f":"+SUM(Tabla4249[[#This Row],[TCC]:[E]])","v":0},null,"Otros pasajes",{"$f":"+SUMIFS(Tabla33[Importe en\npesos],Tabla33[Presenta\ncomprobante],\"Si\",Tabla33[Forma\nde pago],Tabla4251[[#Headers],[TCC]],Tabla33[Concepto],Tabla4251[[#This Row],[Tipo]],Tabla33[Tipo\ncomprobante],Nacionales!$B$7)","v":0},{"$f":"+SUMIFS(Tabla33[Importe en\npesos],Tabla33[Presenta\ncomprobante],\"Si\",Tabla33[Forma\nde pago],Tabla4251[[#Headers],[TDD]],Tabla33[Concepto],Tabla4251[[#This Row],[Tipo]],Tabla33[Tipo\ncomprobante],Nacionales!$B$7)","v":0},{"$f":"+SUMIFS(Tabla33[Importe en\npesos],Tabla33[Presenta\ncomprobante],\"Si\",Tabla33[Forma\nde pago],Tabla4251[[#Headers],[TDE]],Tabla33[Concepto],Tabla4251[[#This Row],[Tipo]],Tabla33[Tipo\ncomprobante],Nacionales!$B$7)","v":0},{"$f":"+SUMIFS(Tabla33[Importe en\npesos],Tabla33[Presenta\ncomprobante],\"Si\",Tabla33[Forma\nde pago],Tabla4251[[#Headers],[TDC]],Tabla33[Concepto],Tabla4251[[#This Row],[Tipo]],Tabla33[Tipo\ncomprobante],Nacionales!$B$7)","v":0},{"$f":"+SUMIFS(Tabla33[Importe en\npesos],Tabla33[Presenta\ncomprobante],\"Si\",Tabla33[Forma\nde pago],Tabla4251[[#Headers],[E]],Tabla33[Concepto],Tabla4251[[#This Row],[Tipo]],Tabla33[Tipo\ncomprobante],Nacionales!$B$7)","v":0},{"$f":"+SUMIFS(Tabla33[Importe en\npesos],Tabla33[Presenta\ncomprobante],\"Si\",Tabla33[Forma\nde pago],Tabla4251[[#Headers],[Transfer. INAI]],Tabla33[Concepto],Tabla4251[[#This Row],[Tipo]],Tabla33[Tipo\ncomprobante],Nacionales!$B$7)","v":0},{"$f":"+SUMIFS(Tabla33[Importe en\npesos],Tabla33[Presenta\ncomprobante],\"Si\",Tabla33[Forma\nde pago],Tabla4251[[#Headers],[Por tercero]],Tabla33[Concepto],Tabla4251[[#This Row],[Tipo]],Tabla33[Tipo\ncomprobante],Nacionales!$B$7)","v":0},{"$f":"+SUM(Tabla4251[[#This Row],[TCC]:[E]])","v":0}]
[null,"Total",{"$f":"SUBTOTAL(109,Tabla42[TCC])","v":0},{"$f":"SUBTOTAL(109,Tabla42[TDD])","v":0},{"$f":"SUBTOTAL(109,Tabla42[TDE])","v":0},{"$f":"SUBTOTAL(109,Tabla42[TDC])","v":0},{"$f":"SUBTOTAL(109,Tabla42[E])","v":0},{"$f":"SUBTOTAL(109,Tabla42[Transfer. INAI])","v":0},{"$f":"SUBTOTAL(109,Tabla42[Por tercero])","v":0},{"$f":"SUBTOTAL(109,Tabla42[Sumas])","v":0},null,"Total",{"$f":"SUBTOTAL(109,Tabla4245[TCC])","v":0},{"$f":"SUBTOTAL(109,Tabla4245[TDD])","v":0},{"$f":"SUBTOTAL(109,Tabla4245[TDE])","v":0},{"$f":"SUBTOTAL(109,Tabla4245[TDC])","v":0},{"$f":"SUBTOTAL(109,Tabla4245[E])","v":0},{"$f":"SUBTOTAL(109,Tabla4245[Transfer. INAI])","v":0},{"$f":"SUBTOTAL(109,Tabla4245[Por tercero])","v":0},{"$f":"SUBTOTAL(109,Tabla4245[Sumas])","v":0},null,"Total",{"$f":"SUBTOTAL(109,Tabla4247[TCC])","v":0},{"$f":"SUBTOTAL(109,Tabla4247[TDD])","v":0},{"$f":"SUBTOTAL(109,Tabla4247[TDE])","v":0},{"$f":"SUBTOTAL(109,Tabla4247[TDC])","v":0},{"$f":"SUBTOTAL(109,Tabla4247[E])","v":0},{"$f":"SUBTOTAL(109,Tabla4247[Transfer. INAI])","v":0},{"$f":"SUBTOTAL(109,Tabla4247[Por tercero])","v":0},{"$f":"SUBTOTAL(109,Tabla4247[Sumas])","v":0},null,"Total",{"$f":"SUBTOTAL(109,Tabla4249[TCC])","v":0},{"$f":"SUBTOTAL(109,Tabla4249[TDD])","v":0},{"$f":"SUBTOTAL(109,Tabla4249[TDE])","v":0},{"$f":"SUBTOTAL(109,Tabla4249[TDC])","v":0},{"$f":"SUBTOTAL(109,Tabla4249[E])","v":0},{"$f":"SUBTOTAL(109,Tabla4249[Transfer. INAI])","v":0},{"$f":"SUBTOTAL(109,Tabla4249[Por tercero])","v":0},{"$f":"SUBTOTAL(109,Tabla4249[Sumas])","v":0},null,"Total",{"$f":"SUBTOTAL(109,Tabla4251[TCC])","v":0},{"$f":"SUBTOTAL(109,Tabla4251[TDD])","v":0},{"$f":"SUBTOTAL(109,Tabla4251[TDE])","v":0},{"$f":"SUBTOTAL(109,Tabla4251[TDC])","v":0},{"$f":"SUBTOTAL(109,Tabla4251[E])","v":0},{"$f":"SUBTOTAL(109,Tabla4251[Transfer. INAI])","v":0},{"$f":"SUBTOTAL(109,Tabla4251[Por tercero])","v":0},{"$f":"SUBTOTAL(109,Tabla4251[Sumas])","v":0}]

{"sheet":"Internacionales","index":10,"n_rows":25,"n_cols":10,"rows_kept":25,"cut":false,"hidden":true,"merged":[]}
[]
[null,"Tipo","TCC","TDD","TDE","TDC","E","Transfer. INAI","Por tercero","Suma"]
[null,"Alimentos",{"$f":"+SUMIFS(Tabla33[Importe en\npesos],Tabla33[Forma\nde pago],Tabla4152[[#Headers],[TCC]],Tabla33[Concepto],Tabla4152[[#This Row],[Tipo]])","v":0},{"$f":"+SUMIFS(Tabla33[Importe en\npesos],Tabla33[Forma\nde pago],Tabla4152[[#Headers],[TDD]],Tabla33[Concepto],Tabla4152[[#This Row],[Tipo]])","v":0},{"$f":"+SUMIFS(Tabla33[Importe en\npesos],Tabla33[Forma\nde pago],Tabla4152[[#Headers],[TDE]],Tabla33[Concepto],Tabla4152[[#This Row],[Tipo]])","v":0},{"$f":"+SUMIFS(Tabla33[Importe en\npesos],Tabla33[Forma\nde pago],Tabla4152[[#Headers],[TDC]],Tabla33[Concepto],Tabla4152[[#This Row],[Tipo]])","v":0},{"$f":"+SUMIFS(Tabla33[Importe en\npesos],Tabla33[Forma\nde pago],Tabla4152[[#Headers],[E]],Tabla33[Concepto],Tabla4152[[#This Row],[Tipo]])","v":0},{"$f":"+SUMIFS(Tabla33[Importe en\npesos],Tabla33[Forma\nde pago],Tabla4152[[#Headers],[Transfer. INAI]],Tabla33[Concepto],Tabla4152[[#This Row],[Tipo]])","v":0},{"$f":"+SUMIFS(Tabla33[Importe en\npesos],Tabla33[Forma\nde pago],Tabla4152[[#Headers],[Por tercero]],Tabla33[Concepto],Tabla4152[[#This Row],[Tipo]])","v":0},{"$f":"+SUM(Tabla4152[[#This Row],[TCC]:[E]])","v":0}]
[null,"Hospedaje",{"$f":"+SUMIFS(Tabla33[Importe en\npesos],Tabla33[Forma\nde pago],Tabla4152[[#Headers],[TCC]],Tabla33[Concepto],Tabla4152[[#This Row],[Tipo]])","v":0},{"$f":"+SUMIFS(Tabla33[Importe en\npesos],Tabla33[Forma\nde pago],Tabla4152[[#Headers],[TDD]],Tabla33[Concepto],Tabla4152[[#This Row],[Tipo]])","v":0},{"$f":"+SUMIFS(Tabla33[Importe en\npesos],Tabla33[Forma\nde pago],Tabla4152[[#Headers],[TDE]],Tabla33[Concepto],Tabla4152[[#This Row],[Tipo]])","v":0},{"$f":"+SUMIFS(Tabla33[Importe en\npesos],Tabla33[Forma\nde pago],Tabla4152[[#Headers],[TDC]],Tabla33[Concepto],Tabla4152[[#This Row],[Tipo]])","v":0},{"$f":"+SUMIFS(Tabla33[Importe en\npesos],Tabla33[Forma\nde pago],Tabla4152[[#Headers],[E]],Tabla33[Concepto],Tabla4152[[#This Row],[Tipo]])","v":0},{"$f":"+SUMIFS(Tabla33[Importe en\npesos],Tabla33[Forma\nde pago],Tabla4152[[#Headers],[Transfer. INAI]],Tabla33[Concepto],Tabla4152[[#This Row],[Tipo]])","v":0},{"$f":"+SUMIFS(Tabla33[Importe en\npesos],Tabla33[Forma\nde pago],Tabla4152[[#Headers],[Por tercero]],Tabla33[Concepto],Tabla4152[[#This Row],[Tipo]])","v":0},{"$f":"+SUM(Tabla4152[[#This Row],[TCC]:[E]])","v":0}]
[null,"Alimentos y hospedaje",{"$f":"+SUMIFS(Tabla33[Importe en\npesos],Tabla33[Forma\nde pago],Tabla4152[[#Headers],[TCC]],Tabla33[Concepto],Tabla4152[[#This Row],[Tipo]])","v":0},{"$f":"+SUMIFS(Tabla33[Importe en\npesos],Tabla33[Forma\nde pago],Tabla4152[[#Headers],[TDD]],Tabla33[Concepto],Tabla4152[[#This Row],[Tipo]])","v":0},{"$f":"+SUMIFS(Tabla33[Importe en\npesos],Tabla33[Forma\nde pago],Tabla4152[[#Headers],[TDE]],Tabla33[Concepto],Tabla4152[[#This Row],[Tipo]])","v":0},{"$f":"+SUMIFS(Tabla33[Importe en\npesos],Tabla33[Forma\nde pago],Tabla4152[[#Headers],[TDC]],Tabla33[Concepto],Tabla4152[[#This Row],[Tipo]])","v":0},{"$f":"+SUMIFS(Tabla33[Importe en\npesos],Tabla33[Forma\nde pago],Tabla4152[[#Headers],[E]],Tabla33[Concepto],Tabla4152[[#This Row],[Tipo]])","v":0},{"$f":"+SUMIFS(Tabla33[Importe en\npesos],Tabla33[Forma\nde pago],Tabla4152[[#Headers],[Transfer. INAI]],Tabla33[Concepto],Tabla4152[[#This Row],[Tipo]])","v":0},{"$f":"+SUMIFS(Tabla33[Importe en\npesos],Tabla33[Forma\nde pago],Tabla4152[[#Headers],[Por tercero]],Tabla33[Concepto],Tabla4152[[#This Row],[Tipo]])","v":0},{"$f":"+SUM(Tabla4152[[#This Row],[TCC]:[E]])","v":0}]
[null,"Propinas",{"$f":"+SUMIFS(Tabla33[Importe en\npesos],Tabla33[Forma\nde pago],Tabla4152[[#Headers],[TCC]],Tabla33[Concepto],Tabla4152[[#This Row],[Tipo]])","v":0},{"$f":"+SUMIFS(Tabla33[Importe en\npesos],Tabla33[Forma\nde pago],Tabla4152[[#Headers],[TDD]],Tabla33[Concepto],Tabla4152[[#This Row],[Tipo]])","v":0},{"$f":"+SUMIFS(Tabla33[Importe en\npesos],Tabla33[Forma\nde pago],Tabla4152[[#Headers],[TDE]],Tabla33[Concepto],Tabla4152[[#This Row],[Tipo]])","v":0},{"$f":"+SUMIFS(Tabla33[Importe en\npesos],Tabla33[Forma\nde pago],Tabla4152[[#Headers],[TDC]],Tabla33[Concepto],Tabla4152[[#This Row],[Tipo]])","v":0},{"$f":"+SUMIFS(Tabla33[Importe en\npesos],Tabla33[Forma\nde pago],Tabla4152[[#Headers],[E]],Tabla33[Concepto],Tabla4152[[#This Row],[Tipo]])","v":0},{"$f":"+SUMIFS(Tabla33[Importe en\npesos],Tabla33[Forma\nde pago],Tabla4152[[#Headers],[Transfer. INAI]],Tabla33[Concepto],Tabla4152[[#This Row],[Tipo]])","v":0},{"$f":"+SUMIFS(Tabla33[Importe en\npesos],Tabla33[Forma\nde pago],Tabla4152[[#Headers],[Por tercero]],Tabla33[Concepto],Tabla4152[[#This Row],[Tipo]])","v":0},{"$f":"+SUM(Tabla4152[[#This Row],[TCC]:[E]])","v":0}]
[null,"Transporte local",{"$f":"+SUMIFS(Tabla33[Importe en\npesos],Tabla33[Forma\nde pago],Tabla4152[[#Headers],[TCC]],Tabla33[Concepto],Tabla4152[[#This Row],[Tipo]])","v":0},{"$f":"+SUMIFS(Tabla33[Importe en\npesos],Tabla33[Forma\nde pago],Tabla4152[[#Headers],[TDD]],Tabla33[Concepto],Tabla4152[[#This Row],[Tipo]])","v":0},{"$f":"+SUMIFS(Tabla33[Importe en\npesos],Tabla33[Forma\nde pago],Tabla4152[[#Headers],[TDE]],Tabla33[Concepto],Tabla4152[[#This Row],[Tipo]])","v":0},{"$f":"+SUMIFS(Tabla33[Importe en\npesos],Tabla33[Forma\nde pago],Tabla4152[[#Headers],[TDC]],Tabla33[Concepto],Tabla4152[[#This Row],[Tipo]])","v":0},{"$f":"+SUMIFS(Tabla33[Importe en\npesos],Tabla33[Forma\nde pago],Tabla4152[[#Headers],[E]],Tabla33[Concepto],Tabla4152[[#This Row],[Tipo]])","v":0},{"$f":"+SUMIFS(Tabla33[Importe en\npesos],Tabla33[Forma\nde pago],Tabla4152[[#Headers],[Transfer. INAI]],Tabla33[Concepto],Tabla4152[[#This Row],[Tipo]])","v":0},{"$f":"+SUMIFS(Tabla33[Importe en\npesos],Tabla33[Forma\nde pago],Tabla4152[[#Headers],[Por tercero]],Tabla33[Concepto],Tabla4152[[#This Row],[Tipo]])","v":0},{"$f":"+SUM(Tabla4152[[#This Row],[TCC]:[E]])","v":0}]
[null,"Prueba COVID-19",{"$f":"+SUMIFS(Tabla33[Importe en\npesos],Tabla33[Forma\nde pago],Tabla4152[[#Headers],[TCC]],Tabla33[Concepto],Tabla4152[[#This Row],[Tipo]])","v":0},{"$f":"+SUMIFS(Tabla33[Importe en\npesos],Tabla33[Forma\nde pago],Tabla4152[[#Headers],[TDD]],Tabla33[Concepto],Tabla4152[[#This Row],[Tipo]])","v":0},{"$f":"+SUMIFS(Tabla33[Importe en\npesos],Tabla33[Forma\nde pago],Tabla4152[[#Headers],[TDE]],Tabla33[Concepto],Tabla4152[[#This Row],[Tipo]])","v":0},{"$f":"+SUMIFS(Tabla33[Importe en\npesos],Tabla33[Forma\nde pago],Tabla4152[[#Headers],[TDC]],Tabla33[Concepto],Tabla4152[[#This Row],[Tipo]])","v":0},{"$f":"+SUMIFS(Tabla33[Importe en\npesos],Tabla33[Forma\nde pago],Tabla4152[[#Headers],[E]],Tabla33[Concepto],Tabla4152[[#This Row],[Tipo]])","v":0},{"$f":"+SUMIFS(Tabla33[Importe en\npesos],Tabla33[Forma\nde pago],Tabla4152[[#Headers],[Transfer. INAI]],Tabla33[Concepto],Tabla4152[[#This Row],[Tipo]])","v":0},{"$f":"+SUMIFS(Tabla33[Importe en\npesos],Tabla33[Forma\nde pago],Tabla4152[[#Headers],[Por tercero]],Tabla33[Concepto],Tabla4152[[#This Row],[Tipo]])","v":0},{"$f":"+SUM(Tabla4152[[#This Row],[TCC]:[E]])","v":0}]
[null,"Lavandería",{"$f":"+SUMIFS(Tabla33[Importe en\npesos],Tabla33[Forma\nde pago],Tabla4152[[#Headers],[TCC]],Tabla33[Concepto],Tabla4152[[#This Row],[Tipo]])","v":0},{"$f":"+SUMIFS(Tabla33[Importe en\npesos],Tabla33[Forma\nde pago],Tabla4152[[#Headers],[TDD]],Tabla33[Concepto],Tabla4152[[#This Row],[Tipo]])","v":0},{"$f":"+SUMIFS(Tabla33[Importe en\npesos],Tabla33[Forma\nde pago],Tabla4152[[#Headers],[TDE]],Tabla33[Concepto],Tabla4152[[#This Row],[Tipo]])","v":0},{"$f":"+SUMIFS(Tabla33[Importe en\npesos],Tabla33[Forma\nde pago],Tabla4152[[#Headers],[TDC]],Tabla33[Concepto],Tabla4152[[#This Row],[Tipo]])","v":0},{"$f":"+SUMIFS(Tabla33[Importe en\npesos],Tabla33[Forma\nde pago],Tabla4152[[#Headers],[E]],Tabla33[Concepto],Tabla4152[[#This Row],[Tipo]])","v":0},{"$f":"+SUMIFS(Tabla33[Importe en\npesos],Tabla33[Forma\nde pago],Tabla4152[[#Headers],[Transfer. INAI]],Tabla33[Concepto],Tabla4152[[#This Row],[Tipo]])","v":0},{"$f":"+SUMIFS(Tabla33[Importe en\npesos],Tabla33[Forma\nde pago],Tabla4152[[#Headers],[Por tercero]],Tabla33[Concepto],Tabla4152[[#This Row],[Tipo]])","v":0},{"$f":"+SUM(Tabla4152[[#This Row],[TCC]:[E]])","v":0}]
[null,"Servicio de internet",{"$f":"+SUMIFS(Tabla33[Importe en\npesos],Tabla33[Forma\nde pago],Tabla4152[[#Headers],[TCC]],Tabla33[Concepto],Tabla4152[[#This Row],[Tipo]])","v":0},{"$f":"+SUMIFS(Tabla33[Importe en\npesos],Tabla33[Forma\nde pago],Tabla4152[[#Headers],[TDD]],Tabla33[Concepto],Tabla4152[[#This Row],[Tipo]])","v":0},{"$f":"+SUMIFS(Tabla33[Importe en\npesos],Tabla33[Forma\nde pago],Tabla4152[[#Headers],[TDE]],Tabla33[Concepto],Tabla4152[[#This Row],[Tipo]])","v":0},{"$f":"+SUMIFS(Tabla33[Importe en\npesos],Tabla33[Forma\nde pago],Tabla4152[[#Headers],[TDC]],Tabla33[Concepto],Tabla4152[[#This Row],[Tipo]])","v":0},{"$f":"+SUMIFS(Tabla33[Importe en\npesos],Tabla33[Forma\nde pago],Tabla4152[[#Headers],[E]],Tabla33[Concepto],Tabla4152[[#This Row],[Tipo]])","v":0},{"$f":"+SUMIFS(Tabla33[Importe en\npesos],Tabla33[Forma\nde pago],Tabla4152[[#Headers],[Transfer. INAI]],Tabla33[Concepto],Tabla4152[[#This Row],[Tipo]])","v":0},{"$f":"+SUMIFS(Tabla33[Importe en\npesos],Tabla33[Forma\nde pago],Tabla4152[[#Headers],[Por tercero]],Tabla33[Concepto],Tabla4152[[#This Row],[Tipo]])","v":0},{"$f":"+SUM(Tabla4152[[#This Row],[TCC]:[E]])","v":0}]
[null,"Llamadas telefónicas oficiales",{"$f":"+SUMIFS(Tabla33[Importe en\npesos],Tabla33[Forma\nde pago],Tabla4152[[#Headers],[TCC]],Tabla33[Concepto],Tabla4152[[#This Row],[Tipo]])","v":0},{"$f":"+SUMIFS(Tabla33[Importe en\npesos],Tabla33[Forma\nde pago],Tabla4152[[#Headers],[TDD]],Tabla33[Concepto],Tabla4152[[#This Row],[Tipo]])","v":0},{"$f":"+SUMIFS(Tabla33[Importe en\npesos],Tabla33[Forma\nde pago],Tabla4152[[#Headers],[TDE]],Tabla33[Concepto],Tabla4152[[#This Row],[Tipo]])","v":0},{"$f":"+SUMIFS(Tabla33[Importe en\npesos],Tabla33[Forma\nde pago],Tabla4152[[#Headers],[TDC]],Tabla33[Concepto],Tabla4152[[#This Row],[Tipo]])","v":0},{"$f":"+SUMIFS(Tabla33[Importe en\npesos],Tabla33[Forma\nde pago],Tabla4152[[#Headers],[E]],Tabla33[Concepto],Tabla4152[[#This Row],[Tipo]])","v":0},{"$f":"+SUMIFS(Tabla33[Importe en\npesos],Tabla33[Forma\nde pago],Tabla4152[[#Headers],[Transfer. INAI]],Tabla33[Concepto],Tabla4152[[#This Row],[Tipo]])","v":0},{"$f":"+SUMIFS(Tabla33[Importe en\npesos],Tabla33[Forma\nde pago],Tabla4152[[#Headers],[Por tercero]],Tabla33[Concepto],Tabla4152[[#This Row],[Tipo]])","v":0},{"$f":"+SUM(Tabla4152[[#This Row],[TCC]:[E]])","v":0}]
[null,"Tarjeta telefónica prepagada",{"$f":"+SUMIFS(Tabla33[Importe en\npesos],Tabla33[Forma\nde pago],Tabla4152[[#Headers],[TCC]],Tabla33[Concepto],Tabla4152[[#This Row],[Tipo]])","v":0},{"$f":"+SUMIFS(Tabla33[Importe en\npesos],Tabla33[Forma\nde pago],Tabla4152[[#Headers],[TDD]],Tabla33[Concepto],Tabla4152[[#This Row],[Tipo]])","v":0},{"$f":"+SUMIFS(Tabla33[Importe en\npesos],Tabla33[Forma\nde pago],Tabla4152[[#Headers],[TDE]],Tabla33[Concepto],Tabla4152[[#This Row],[Tipo]])","v":0},{"$f":"+SUMIFS(Tabla33[Importe en\npesos],Tabla33[Forma\nde pago],Tabla4152[[#Headers],[TDC]],Tabla33[Concepto],Tabla4152[[#This Row],[Tipo]])","v":0},{"$f":"+SUMIFS(Tabla33[Importe en\npesos],Tabla33[Forma\nde pago],Tabla4152[[#Headers],[E]],Tabla33[Concepto],Tabla4152[[#This Row],[Tipo]])","v":0},{"$f":"+SUMIFS(Tabla33[Importe en\npesos],Tabla33[Forma\nde pago],Tabla4152[[#Headers],[Transfer. INAI]],Tabla33[Concepto],Tabla4152[[#This Row],[Tipo]])","v":0},{"$f":"+SUMIFS(Tabla33[Importe en\npesos],Tabla33[Forma\nde pago],Tabla4152[[#Headers],[Por tercero]],Tabla33[Concepto],Tabla4152[[#This Row],[Tipo]])","v":0},{"$f":"+SUM(Tabla4152[[#This Row],[TCC]:[E]])","v":0}]
[null,"Fotocopiado",{"$f":"+SUMIFS(Tabla33[Importe en\npesos],Tabla33[Forma\nde pago],Tabla4152[[#Headers],[TCC]],Tabla33[Concepto],Tabla4152[[#This Row],[Tipo]])","v":0},{"$f":"+SUMIFS(Tabla33[Importe en\npesos],Tabla33[Forma\nde pago],Tabla4152[[#Headers],[TDD]],Tabla33[Concepto],Tabla4152[[#This Row],[Tipo]])","v":0},{"$f":"+SUMIFS(Tabla33[Importe en\npesos],Tabla33[Forma\nde pago],Tabla4152[[#Headers],[TDE]],Tabla33[Concepto],Tabla4152[[#This Row],[Tipo]])","v":0},{"$f":"+SUMIFS(Tabla33[Importe en\npesos],Tabla33[Forma\nde pago],Tabla4152[[#Headers],[TDC]],Tabla33[Concepto],Tabla4152[[#This Row],[Tipo]])","v":0},{"$f":"+SUMIFS(Tabla33[Importe en\npesos],Tabla33[Forma\nde pago],Tabla4152[[#Headers],[E]],Tabla33[Concepto],Tabla4152[[#This Row],[Tipo]])","v":0},{"$f":"+SUMIFS(Tabla33[Importe en\npesos],Tabla33[Forma\nde pago],Tabla4152[[#Headers],[Transfer. INAI]],Tabla33[Concepto],Tabla4152[[#This Row],[Tipo]])","v":0},{"$f":"+SUMIFS(Tabla33[Importe en\npesos],Tabla33[Forma\nde pago],Tabla4152[[#Headers],[Por tercero]],Tabla33[Concepto],Tabla4152[[#This Row],[Tipo]])","v":0},{"$f":"+SUM(Tabla4152[[#This Row],[TCC]:[E]])","v":0}]
[null,"Estacionamiento",{"$f":"+SUMIFS(Tabla33[Importe en\npesos],Tabla33[Forma\nde pago],Tabla4152[[#Headers],[TCC]],Tabla33[Concepto],Tabla4152[[#This Row],[Tipo]])","v":0},{"$f":"+SUMIFS(Tabla33[Importe en\npesos],Tabla33[Forma\nde pago],Tabla4152[[#Headers],[TDD]],Tabla33[Concepto],Tabla4152[[#This Row],[Tipo]])","v":0},{"$f":"+SUMIFS(Tabla33[Importe en\npesos],Tabla33[Forma\nde pago],Tabla4152[[#Headers],[TDE]],Tabla33[Concepto],Tabla4152[[#This Row],[Tipo]])","v":0},{"$f":"+SUMIFS(Tabla33[Importe en\npesos],Tabla33[Forma\nde pago],Tabla4152[[#Headers],[TDC]],Tabla33[Concepto],Tabla4152[[#This Row],[Tipo]])","v":0},{"$f":"+SUMIFS(Tabla33[Importe en\npesos],Tabla33[Forma\nde pago],Tabla4152[[#Headers],[E]],Tabla33[Concepto],Tabla4152[[#This Row],[Tipo]])","v":0},{"$f":"+SUMIFS(Tabla33[Importe en\npesos],Tabla33[Forma\nde pago],Tabla4152[[#Headers],[Transfer. INAI]],Tabla33[Concepto],Tabla4152[[#This Row],[Tipo]])","v":0},{"$f":"+SUMIFS(Tabla33[Importe en\npesos],Tabla33[Forma\nde pago],Tabla4152[[#Headers],[Por tercero]],Tabla33[Concepto],Tabla4152[[#This Row],[Tipo]])","v":0},{"$f":"+SUM(Tabla4152[[#This Row],[TCC]:[E]])","v":0}]
[null,"Otros viáticos",{"$f":"+SUMIFS(Tabla33[Importe en\npesos],Tabla33[Forma\nde pago],Tabla4152[[#Headers],[TCC]],Tabla33[Concepto],Tabla4152[[#This Row],[Tipo]])","v":0},{"$f":"+SUMIFS(Tabla33[Importe en\npesos],Tabla33[Forma\nde pago],Tabla4152[[#Headers],[TDD]],Tabla33[Concepto],Tabla4152[[#This Row],[Tipo]])","v":0},{"$f":"+SUMIFS(Tabla33[Importe en\npesos],Tabla33[Forma\nde pago],Tabla4152[[#Headers],[TDE]],Tabla33[Concepto],Tabla4152[[#This Row],[Tipo]])","v":0},{"$f":"+SUMIFS(Tabla33[Importe en\npesos],Tabla33[Forma\nde pago],Tabla4152[[#Headers],[TDC]],Tabla33[Concepto],Tabla4152[[#This Row],[Tipo]])","v":0},{"$f":"+SUMIFS(Tabla33[Importe en\npesos],Tabla33[Forma\nde pago],Tabla4152[[#Headers],[E]],Tabla33[Concepto],Tabla4152[[#This Row],[Tipo]])","v":0},{"$f":"+SUMIFS(Tabla33[Importe en\npesos],Tabla33[Forma\nde pago],Tabla4152[[#Headers],[Transfer. INAI]],Tabla33[Concepto],Tabla4152[[#This Row],[Tipo]])","v":0},{"$f":"+SUMIFS(Tabla33[Importe en\npesos],Tabla33[Forma\nde pago],Tabla4152[[#Headers],[Por tercero]],Tabla33[Concepto],Tabla4152[[#This Row],[Tipo]])","v":0},{"$f":"+SUM(Tabla4152[[#This Row],[TCC]:[E]])","v":0}]
[null,"Total",{"$f":"SUBTOTAL(109,Tabla4152[TCC])","v":0},{"$f":"SUBTOTAL(109,Tabla4152[TDD])","v":0},{"$f":"SUBTOTAL(109,Tabla4152[TDE])","v":0},{"$f":"SUBTOTAL(109,Tabla4152[TDC])","v":0},{"$f":"SUBTOTAL(109,Tabla4152[E])","v":0},null,null,{"$f":"SUBTOTAL(109,Tabla4152[Suma])","v":0}]
[]
[null,"Tipo","TCC","TDD","TDE","TDC","E","Transfer. INAI","Por tercero","Sumas"]
[null,"Vuelo",{"$f":"+SUMIFS(Tabla33[Importe en\npesos],Tabla33[Forma\nde pago],Tabla4253[[#Headers],[TCC]],Tabla33[Concepto],Tabla4253[[#This Row],[Tipo]])","v":0},{"$f":"+SUMIFS(Tabla33[Importe en\npesos],Tabla33[Presenta\ncomprobante],\"Si\",Tabla33[Forma\nde pago],Tabla4253[[#Headers],[TDD]],Tabla33[Concepto],Tabla4253[[#This Row],[Tipo]])","v":0},{"$f":"+SUMIFS(Tabla33[Importe en\npesos],Tabla33[Presenta\ncomprobante],\"Si\",Tabla33[Forma\nde pago],Tabla4253[[#Headers],[TDE]],Tabla33[Concepto],Tabla4253[[#This Row],[Tipo]])","v":0},{"$f":"+SUMIFS(Tabla33[Importe en\npesos],Tabla33[Presenta\ncomprobante],\"Si\",Tabla33[Forma\nde pago],Tabla4253[[#Headers],[TDC]],Tabla33[Concepto],Tabla4253[[#This Row],[Tipo]])","v":0},{"$f":"+SUMIFS(Tabla33[Importe en\npesos],Tabla33[Presenta\ncomprobante],\"Si\",Tabla33[Forma\nde pago],Tabla4253[[#Headers],[E]],Tabla33[Concepto],Tabla4253[[#This Row],[Tipo]])","v":0},{"$f":"+SUMIFS(Tabla33[Importe en\npesos],Tabla33[Presenta\ncomprobante],\"Si\",Tabla33[Forma\nde pago],Tabla4253[[#Headers],[Transfer. INAI]],Tabla33[Concepto],Tabla4253[[#This Row],[Tipo]])","v":0},{"$f":"+SUMIFS(Tabla33[Importe en\npesos],Tabla33[Presenta\ncomprobante],\"Si\",Tabla33[Forma\nde pago],Tabla4253[[#Headers],[Por tercero]],Tabla33[Concepto],Tabla4253[[#This Row],[Tipo]])","v":0},{"$f":"+SUM(Tabla4253[[#This Row],[TCC]:[E]])","v":0}]
[null,"Autobús",{"$f":"+SUMIFS(Tabla33[Importe en\npesos],Tabla33[Forma\nde pago],Tabla4253[[#Headers],[TCC]],Tabla33[Concepto],Tabla4253[[#This Row],[Tipo]])","v":0},{"$f":"+SUMIFS(Tabla33[Importe en\npesos],Tabla33[Presenta\ncomprobante],\"Si\",Tabla33[Forma\nde pago],Tabla4253[[#Headers],[TDD]],Tabla33[Concepto],Tabla4253[[#This Row],[Tipo]])","v":0},{"$f":"+SUMIFS(Tabla33[Importe en\npesos],Tabla33[Presenta\ncomprobante],\"Si\",Tabla33[Forma\nde pago],Tabla4253[[#Headers],[TDE]],Tabla33[Concepto],Tabla4253[[#This Row],[Tipo]])","v":0},{"$f":"+SUMIFS(Tabla33[Importe en\npesos],Tabla33[Presenta\ncomprobante],\"Si\",Tabla33[Forma\nde pago],Tabla4253[[#Headers],[TDC]],Tabla33[Concepto],Tabla4253[[#This Row],[Tipo]])","v":0},{"$f":"+SUMIFS(Tabla33[Importe en\npesos],Tabla33[Presenta\ncomprobante],\"Si\",Tabla33[Forma\nde pago],Tabla4253[[#Headers],[E]],Tabla33[Concepto],Tabla4253[[#This Row],[Tipo]])","v":0},{"$f":"+SUMIFS(Tabla33[Importe en\npesos],Tabla33[Presenta\ncomprobante],\"Si\",Tabla33[Forma\nde pago],Tabla4253[[#Headers],[Transfer. INAI]],Tabla33[Concepto],Tabla4253[[#This Row],[Tipo]])","v":0},{"$f":"+SUMIFS(Tabla33[Importe en\npesos],Tabla33[Presenta\ncomprobante],\"Si\",Tabla33[Forma\nde pago],Tabla4253[[#Headers],[Por tercero]],Tabla33[Concepto],Tabla4253[[#This Row],[Tipo]])","v":0},{"$f":"+SUM(Tabla4253[[#This Row],[TCC]:[E]])","v":0}]
[null,"Pasajes",{"$f":"+SUMIFS(Tabla33[Importe en\npesos],Tabla33[Forma\nde pago],Tabla4253[[#Headers],[TCC]],Tabla33[Concepto],Tabla4253[[#This Row],[Tipo]])","v":0},{"$f":"+SUMIFS(Tabla33[Importe en\npesos],Tabla33[Presenta\ncomprobante],\"Si\",Tabla33[Forma\nde pago],Tabla4253[[#Headers],[TDD]],Tabla33[Concepto],Tabla4253[[#This Row],[Tipo]])","v":0},{"$f":"+SUMIFS(Tabla33[Importe en\npesos],Tabla33[Presenta\ncomprobante],\"Si\",Tabla33[Forma\nde pago],Tabla4253[[#Headers],[TDE]],Tabla33[Concepto],Tabla4253[[#This Row],[Tipo]])","v":0},{"$f":"+SUMIFS(Tabla33[Importe en\npesos],Tabla33[Presenta\ncomprobante],\"Si\",Tabla33[Forma\nde pago],Tabla4253[[#Headers],[TDC]],Tabla33[Concepto],Tabla4253[[#This Row],[Tipo]])","v":0},{"$f":"+SUMIFS(Tabla33[Importe en\npesos],Tabla33[Presenta\ncomprobante],\"Si\",Tabla33[Forma\nde pago],Tabla4253[[#Headers],[E]],Tabla33[Concepto],Tabla4253[[#This Row],[Tipo]])","v":0},{"$f":"+SUMIFS(Tabla33[Importe en\npesos],Tabla33[Presenta\ncomprobante],\"Si\",Tabla33[Forma\nde pago],Tabla4253[[#Headers],[Transfer. INAI]],Tabla33[Concepto],Tabla4253[[#This Row],[Tipo]])","v":0},{"$f":"+SUMIFS(Tabla33[Importe en\npesos],Tabla33[Presenta\ncomprobante],\"Si\",Tabla33[Forma\nde pago],Tabla4253[[#Headers],[Por tercero]],Tabla33[Concepto],Tabla4253[[#This Row],[Tipo]])","v":0},{"$f":"+SUM(Tabla4253[[#This Row],[TCC]:[E]])","v":0}]
[null,"Gasolina",{"$f":"+SUMIFS(Tabla33[Importe en\npesos],Tabla33[Forma\nde pago],Tabla4253[[#Headers],[TCC]],Tabla33[Concepto],Tabla4253[[#This Row],[Tipo]])","v":0},{"$f":"+SUMIFS(Tabla33[Importe en\npesos],Tabla33[Presenta\ncomprobante],\"Si\",Tabla33[Forma\nde pago],Tabla4253[[#Headers],[TDD]],Tabla33[Concepto],Tabla4253[[#This Row],[Tipo]])","v":0},{"$f":"+SUMIFS(Tabla33[Importe en\npesos],Tabla33[Presenta\ncomprobante],\"Si\",Tabla33[Forma\nde pago],Tabla4253[[#Headers],[TDE]],Tabla33[Concepto],Tabla4253[[#This Row],[Tipo]])","v":0},{"$f":"+SUMIFS(Tabla33[Importe en\npesos],Tabla33[Presenta\ncomprobante],\"Si\",Tabla33[Forma\nde pago],Tabla4253[[#Headers],[TDC]],Tabla33[Concepto],Tabla4253[[#This Row],[Tipo]])","v":0},{"$f":"+SUMIFS(Tabla33[Importe en\npesos],Tabla33[Presenta\ncomprobante],\"Si\",Tabla33[Forma\nde pago],Tabla4253[[#Headers],[E]],Tabla33[Concepto],Tabla4253[[#This Row],[Tipo]])","v":0},{"$f":"+SUMIFS(Tabla33[Importe en\npesos],Tabla33[Presenta\ncomprobante],\"Si\",Tabla33[Forma\nde pago],Tabla4253[[#Headers],[Transfer. INAI]],Tabla33[Concepto],Tabla4253[[#This Row],[Tipo]])","v":0},{"$f":"+SUMIFS(Tabla33[Importe en\npesos],Tabla33[Presenta\ncomprobante],\"Si\",Tabla33[Forma\nde pago],Tabla4253[[#Headers],[Por tercero]],Tabla33[Concepto],Tabla4253[[#This Row],[Tipo]])","v":0},{"$f":"+SUM(Tabla4253[[#This Row],[TCC]:[E]])","v":0}]
[null,"Peaje",{"$f":"+SUMIFS(Tabla33[Importe en\npesos],Tabla33[Forma\nde pago],Tabla4253[[#Headers],[TCC]],Tabla33[Concepto],Tabla4253[[#This Row],[Tipo]])","v":0},{"$f":"+SUMIFS(Tabla33[Importe en\npesos],Tabla33[Presenta\ncomprobante],\"Si\",Tabla33[Forma\nde pago],Tabla4253[[#Headers],[TDD]],Tabla33[Concepto],Tabla4253[[#This Row],[Tipo]])","v":0},{"$f":"+SUMIFS(Tabla33[Importe en\npesos],Tabla33[Presenta\ncomprobante],\"Si\",Tabla33[Forma\nde pago],Tabla4253[[#Headers],[TDE]],Tabla33[Concepto],Tabla4253[[#This Row],[Tipo]])","v":0},{"$f":"+SUMIFS(Tabla33[Importe en\npesos],Tabla33[Presenta\ncomprobante],\"Si\",Tabla33[Forma\nde pago],Tabla4253[[#Headers],[TDC]],Tabla33[Concepto],Tabla4253[[#This Row],[Tipo]])","v":0},{"$f":"+SUMIFS(Tabla33[Importe en\npesos],Tabla33[Presenta\ncomprobante],\"Si\",Tabla33[Forma\nde pago],Tabla4253[[#Headers],[E]],Tabla33[Concepto],Tabla4253[[#This Row],[Tipo]])","v":0},{"$f":"+SUMIFS(Tabla33[Importe en\npesos],Tabla33[Presenta\ncomprobante],\"Si\",Tabla33[Forma\nde pago],Tabla4253[[#Headers],[Transfer. INAI]],Tabla33[Concepto],Tabla4253[[#This Row],[Tipo]])","v":0},{"$f":"+SUMIFS(Tabla33[Importe en\npesos],Tabla33[Presenta\ncomprobante],\"Si\",Tabla33[Forma\nde pago],Tabla4253[[#Headers],[Por tercero]],Tabla33[Concepto],Tabla4253[[#This Row],[Tipo]])","v":0},{"$f":"+SUM(Tabla4253[[#This Row],[TCC]:[E]])","v":0}]
[null,"Otros pasajes",{"$f":"+SUMIFS(Tabla33[Importe en\npesos],Tabla33[Forma\nde pago],Tabla4253[[#Headers],[TCC]],Tabla33[Concepto],Tabla4253[[#This Row],[Tipo]])","v":0},{"$f":"+SUMIFS(Tabla33[Importe en\npesos],Tabla33[Presenta\ncomprobante],\"Si\",Tabla33[Forma\nde pago],Tabla4253[[#Headers],[TDD]],Tabla33[Concepto],Tabla4253[[#This Row],[Tipo]])","v":0},{"$f":"+SUMIFS(Tabla33[Importe en\npesos],Tabla33[Presenta\ncomprobante],\"Si\",Tabla33[Forma\nde pago],Tabla4253[[#Headers],[TDE]],Tabla33[Concepto],Tabla4253[[#This Row],[Tipo]])","v":0},{"$f":"+SUMIFS(Tabla33[Importe en\npesos],Tabla33[Presenta\ncomprobante],\"Si\",Tabla33[Forma\nde pago],Tabla4253[[#Headers],[TDC]],Tabla33[Concepto],Tabla4253[[#This Row],[Tipo]])","v":0},{"$f":"+SUMIFS(Tabla33[Importe en\npesos],Tabla33[Presenta\ncomprobante],\"Si\",Tabla33[Forma\nde pago],Tabla4253[[#Headers],[E]],Tabla33[Concepto],Tabla4253[[#This Row],[Tipo]])","v":0},{"$f":"+SUMIFS(Tabla33[Importe en\npesos],Tabla33[Presenta\ncomprobante],\"Si\",Tabla33[Forma\nde pago],Tabla4253[[#Headers],[Transfer. INAI]],Tabla33[Concepto],Tabla4253[[#This Row],[Tipo]])","v":0},{"$f":"+SUMIFS(Tabla33[Importe en\npesos],Tabla33[Presenta\ncomprobante],\"Si\",Tabla33[Forma\nde pago],Tabla4253[[#Headers],[Por tercero]],Tabla33[Concepto],Tabla4253[[#This Row],[Tipo]])","v":0},{"$f":"+SUM(Tabla4253[[#This Row],[TCC]:[E]])","v":0}]
[null,"Total",{"$f":"SUBTOTAL(109,Tabla4253[TCC])","v":0},{"$f":"SUBTOTAL(109,Tabla4253[TDD])","v":0},{"$f":"SUBTOTAL(109,Tabla4253[TDE])","v":0},{"$f":"SUBTOTAL(109,Tabla4253[TDC])","v":0},{"$f":"SUBTOTAL(109,Tabla4253[E])","v":0},null,null,{"$f":"SUBTOTAL(109,Tabla4253[Sumas])","v":0}]

{"sheet":"Tipo_Comprobante","index":11,"n_rows":7,"n_cols":3,"rows_kept":7,"cut":false,"hidden":true,"merged":[]}
[]
[null,"No","Tipo de comprobante"]
[null,1,"Factura"]
[null,2,"Ticket"]
[null,3,"Nota"]
[null,4,"Edo. Cuenta"]
[null,5,"No aplica"]

{"sheet":"Comprobante","index":12,"n_rows":4,"n_cols":2,"rows_kept":4,"cut":false,"hidden":true,"merged":[]}
[]
[null,"Comprobante"]
[null,"Si"]
[null,"No"]

{"sheet":"Forma_Pago","index":13,"n_rows":9,"n_cols":3,"rows_kept":9,"cut":false,"hidden":true,"merged":[]}
[]
[null,"No","Tipo de pago"]
[null,1,"TCC"]
[null,2,"TDD"]
[null,3,"TDE"]
[null,4,"TDC"]
[null,5,"E"]
[null,6,"Transfer. INAI"]
[null,7,"Por tercero"]

{"sheet":"Conceptos","index":14,"n_rows":21,"n_cols":13,"rows_kept":21,"cut":false,"hidden":true,"merged":[]}
[]
[null,"Consecutivo","Nacional","Partida","Clasificacion",null,"Consecutivo","Internacional","Partida","Clasificacion"]
[null,1,"Alimentos",37504,"Viaticos",null,1,"Alimentos",37602,"Viaticos",null,44102,"Viaticos de invitados"]
[null,2,"Hospedaje",37504,"Viaticos",null,2,"Hospedaje",37602,"Viaticos"]
[null,3,"Alimentos y hospedaje",37504,"Viaticos",null,3,"Alimentos y hospedaje",37602,"Viaticos"]
[null,4,"Propinas",37504,"Viaticos",null,4,"Propinas",37602,"Viaticos"]
[null,5,"Transporte local",37504,"Pasajes",null,5,"Transporte local",37602,"Pasajes"]
[null,6,"Prueba COVID-19",37504,"Viaticos",null,6,"Prueba COVID-19",37602,"Viaticos"]
[null,7,"Lavandería",37504,"Viaticos",null,7,"Lavandería",37602,"Viaticos"]
[null,8,"Servicio de internet",37504,"Viaticos",null,8,"Servicio de internet",37602,"Viaticos"]
[null,9,"Llamadas telefónicas oficiales",37504,"Viaticos",null,9,"Llamadas telefónicas oficiales",37602,"Viaticos"]
[null,10,"Tarjeta telefónica prepagada",37504,"Viaticos",null,10,"Tarjeta telefónica prepagada",37602,"Viaticos"]
[null,11,"Fotocopiado",37504,"Viaticos",null,11,"Fotocopiado",37602,"Viaticos"]
[null,12,"Estacionamiento",37504,"Viaticos",null,12,"Estacionamiento",37602,"Viaticos"]
[null,13,"Otros viáticos",37504,"Viaticos",null,13,"Otros viáticos",37602,"Viaticos"]
[null,14,"Vuelo",37104,"Pasajes",null,14,"Vuelo",37602,"Pasajes"]
[null,15,"Autobús",37204,"Pasajes",null,15,"Autobús",37602,"Pasajes"]
[null,16,"Pasajes",37204,"Pasajes",null,16,"Pasajes",37602,"Pasajes"]
[null,17,"Gasolina",37204,"Pasajes",null,17,"Gasolina",37602,"Pasajes"]
[null,18,"Peaje",37204,"Pasajes",null,18,"Peaje",37602,"Pasajes"]
[null,19,"Otros pasajes",37204,"Pasajes",null,19,"Otros pasajes",37602,"Pasajes"]

{"sheet":"Vehiculos","index":15,"n_rows":8,"n_cols":2,"rows_kept":8,"cut":false,"hidden":true,"merged":[]}
[]
[null,"Tipo de vehículo"]
[null,"Autobús"]
[null,"Otro"]
[null,"Taxi público/privado"]
[null,"Vehículo arrendado"]
[null,"Vehículo oficial INAI"]
[null,"Vehículo particular"]

{"sheet":"Tipo_Pasajes","index":16,"n_rows":4,"n_cols":2,"rows_kept":4,"cut":false,"hidden":true,"merged":[]}
[]
[null,"Pasajes"]
[null,"Anticipados"]
[null,"Devengados"]

{"sheet":"Homologacion","index":17,"n_rows":4,"n_cols":2,"rows_kept":4,"cut":false,"hidden":true,"merged":[]}
[]
[null,"Homologacion"]
[null,"Si"]
[null,"No"]

{"sheet":"Dias_Inhabiles","index":18,"n_rows":44,"n_cols":4,"rows_kept":44,"cut":false,"hidden":true,"merged":[[3,1,3,3]]}
[]
[null,"Término comision",{"$f":"+'1.- Oficio de comision'!K43","v":"00:00:00"}]
[null,"Plazo para comprobar",20]
[null,"Dias inhabiles"]
[null,"t-1","t","t+1"]
[null,{"$f":"+DATE(YEAR($C$2)-1,1,1)","v":"3799-01-01"},{"$f":"+DATE(YEAR($C$2),1,1)","v":"1900-01-01"},{"$f":"+DATE(YEAR($C$2)+1,1,1)","v":"1901-01-01"}]
[null,{"$f":"+DATE(YEAR($C$2)-1,12,31)","v":"3799-12-31"},{"$f":"+DATE(YEAR($C$2),12,31)","v":"1900-12-31"},{"$f":"+DATE(YEAR($C$2)+1,12,31)","v":"1901-12-31"}]
[null,{"$f":"+DATE(YEAR($C$2)-1,5,10)","v":"3799-05-10"},{"$f":"+DATE(YEAR($C$2),5,10)","v":"1900-05-10"},{"$f":"+DATE(YEAR($C$2)+1,5,10)","v":"1901-05-10"}]
[null,{"$f":"DATE(YEAR($C$2)-1,2,1)-WEEKDAY(DATE(YEAR($C$2)-1,2,1)-2)+7","v":"3799-02-04"},{"$f":"DATE(YEAR($C$2),2,1)-WEEKDAY(DATE(YEAR($C$2),2,1)-2)+7","v":"1900-02-06"},{"$f":"DATE(YEAR($C$2)+1,2,1)-WEEKDAY(DATE(YEAR($C$2)+1,2,1)-2)+7","v":"1901-02-04"}]
[null,{"$f":"DATE(YEAR($C$2)-1,3,1)-WEEKDAY(DATE(YEAR($C$2)-1,3,1)-2)+21","v":"3799-03-18"},{"$f":"DATE(YEAR($C$2),3,1)-WEEKDAY(DATE(YEAR($C$2),3,1)-2)+21","v":"1900-03-19"},{"$f":"DATE(YEAR($C$2)+1,3,1)-WEEKDAY(DATE(YEAR($C$2)+1,3,1)-2)+21","v":"1901-03-18"}]
[null,{"$f":"+DATE(YEAR($C$2)-1,5,1)","v":"3799-05-01"},{"$f":"+DATE(YEAR($C$2),5,1)","v":"1900-05-01"},{"$f":"+DATE(YEAR($C$2)+1,5,1)","v":"1901-05-01"}]
[null,{"$f":"+DATE(YEAR($C$2)-1,9,16)","v":"3799-09-16"},{"$f":"+DATE(YEAR($C$2),9,16)","v":"1900-09-16"},{"$f":"+DATE(YEAR($C$2)+1,9,16)","v":"1901-09-16"}]
[null,{"$f":"+DATE(YEAR($C$2)-1,11,2)","v":"3799-11-02"},{"$f":"+DATE(YEAR($C$2),11,2)","v":"1900-11-02"},{"$f":"+DATE(YEAR($C$2)+1,11,2)","v":"1901-11-02"}]
[null,{"$f":"DATE(YEAR($C$2)-1,11,1)-WEEKDAY(DATE(YEAR($C$2)-1,11,1)-2)+21","v":"3799-11-18"},{"$f":"DATE(YEAR($C$2),11,1)-WEEKDAY(DATE(YEAR($C$2),11,1)-2)+21","v":"1900-11-19"},{"$f":"DATE(YEAR($C$2)+1,11,1)-WEEKDAY(DATE(YEAR($C$2)+1,11,1)-2)+21","v":"1901-11-18"}]
[null,{"$f":"+DATE(YEAR($C$2)-1,12,25)","v":"3799-12-25"},{"$f":"+DATE(YEAR($C$2),12,25)","v":"1900-12-25"},{"$f":"+DATE(YEAR($C$2)+1,12,25)","v":"1901-12-25"}]
[null,{"$f":"(FLOOR(DATE(YEAR($C$2)-1,5,DAY(MINUTE((YEAR($C$2)-1)/38)/2+56)),7)-34)-6","v":"3799-03-25"},{"$f":"(FLOOR(DATE(YEAR($C$2),5,DAY(MINUTE(YEAR($C$2)/38)/2+56)),7)-34)-6","v":"1900-04-09"},{"$f":"(FLOOR(DATE(YEAR($C$2)+1,5,DAY(MINUTE((YEAR($C$2)+1)/38)/2+56)),7)-34)-6","v":"1901-04-01"}]
[null,{"$f":"(FLOOR(DATE(YEAR($C$2)-1,5,DAY(MINUTE((YEAR($C$2)-1)/38)/2+56)),7)-34)-5","v":"3799-03-26"},{"$f":"(FLOOR(DATE(YEAR($C$2),5,DAY(MINUTE(YEAR($C$2)/38)/2+56)),7)-34)-5","v":"1900-04-10"},{"$f":"(FLOOR(DATE(YEAR($C$2)+1,5,DAY(MINUTE((YEAR($C$2)+1)/38)/2+56)),7)-34)-5","v":"1901-04-02"}]
[null,{"$f":"(FLOOR(DATE(YEAR($C$2)-1,5,DAY(MINUTE((YEAR($C$2)-1)/38)/2+56)),7)-34)-4","v":"3799-03-27"},{"$f":"(FLOOR(DATE(YEAR($C$2),5,DAY(MINUTE(YEAR($C$2)/38)/2+56)),7)-34)-4","v":"1900-04-11"},{"$f":"(FLOOR(DATE(YEAR($C$2)+1,5,DAY(MINUTE((YEAR($C$2)+1)/38)/2+56)),7)-34)-4","v":"1901-04-03"}]
[null,{"$f":"(FLOOR(DATE(YEAR($C$2)-1,5,DAY(MINUTE((YEAR($C$2)-1)/38)/2+56)),7)-34)-3","v":"3799-03-28"},{"$f":"(FLOOR(DATE(YEAR($C$2),5,DAY(MINUTE(YEAR($C$2)/38)/2+56)),7)-34)-3","v":"1900-04-12"},{"$f":"(FLOOR(DATE(YEAR($C$2)+1,5,DAY(MINUTE((YEAR($C$2)+1)/38)/2+56)),7)-34)-3","v":"1901-04-04"}]
[null,{"$f":"(FLOOR(DATE(YEAR($C$2)-1,5,DAY(MINUTE((YEAR($C$2)-1)/38)/2+56)),7)-34)-2","v":"3799-03-29"},{"$f":"(FLOOR(DATE(YEAR($C$2),5,DAY(MINUTE(YEAR($C$2)/38)/2+56)),7)-34)-2","v":"1900-04-13"},{"$f":"(FLOOR(DATE(YEAR($C$2)+1,5,DAY(MINUTE((YEAR($C$2)+1)/38)/2+56)),7)-34)-2","v":"1901-04-05"}]
[null,{"$f":"+WORKDAY(DATE(YEAR($C$2)-1,7,31),-9)","v":"3799-07-18"},{"$f":"+WORKDAY(DATE(YEAR($C$2),7,31),-9)","v":"1900-07-18"},{"$f":"+WORKDAY(DATE(YEAR($C$2)+1,7,31),-9)","v":"1901-07-18"}]
[null,{"$f":"+WORKDAY(DATE(YEAR($C$2)-1,7,31),-8)","v":"3799-07-19"},{"$f":"+WORKDAY(DATE(YEAR($C$2),7,31),-8)","v":"1900-07-19"},{"$f":"+WORKDAY(DATE(YEAR($C$2)+1,7,31),-8)","v":"1901-07-19"}]
[null,{"$f":"+WORKDAY(DATE(YEAR($C$2)-1,7,31),-7)","v":"3799-07-22"},{"$f":"+WORKDAY(DATE(YEAR($C$2),7,31),-7)","v":"1900-07-20"},{"$f":"+WORKDAY(DATE(YEAR($C$2)+1,7,31),-7)","v":"1901-07-22"}]
[null,{"$f":"+WORKDAY(DATE(YEAR($C$2)-1,7,31),-6)","v":"3799-07-23"},{"$f":"+WORKDAY(DATE(YEAR($C$2),7,31),-6)","v":"1900-07-23"},{"$f":"+WORKDAY(DATE(YEAR($C$2)+1,7,31),-6)","v":"1901-07-23"}]
[null,{"$f":"+WORKDAY(DATE(YEAR($C$2)-1,7,31),-5)","v":"3799-07-24"},{"$f":"+WORKDAY(DATE(YEAR($C$2),7,31),-5)","v":"1900-07-24"},{"$f":"+WORKDAY(DATE(YEAR($C$2)+1,7,31),-5)","v":"1901-07-24"}]
[null,{"$f":"+WORKDAY(DATE(YEAR($C$2)-1,7,31),-4)","v":"3799-07-25"},{"$f":"+WORKDAY(DATE(YEAR($C$2),7,31),-4)","v":"1900-07-25"},{"$f":"+WORKDAY(DATE(YEAR($C$2)+1,7,31),-4)","v":"1901-07-25"}]
[null,{"$f":"+WORKDAY(DATE(YEAR($C$2)-1,7,31),-3)","v":"3799-07-26"},{"$f":"+WORKDAY(DATE(YEAR($C$2),7,31),-3)","v":"1900-07-26"},{"$f":"+WORKDAY(DATE(YEAR($C$2)+1,7,31),-3)","v":"1901-07-26"}]
[null,{"$f":"+WORKDAY(DATE(YEAR($C$2)-1,7,31),-2)","v":"3799-07-29"},{"$f":"+WORKDAY(DATE(YEAR($C$2),7,31),-2)","v":"1900-07-27"},{"$f":"+WORKDAY(DATE(YEAR($C$2)+1,7,31),-2)","v":"1901-07-29"}]
[null,{"$f":"+WORKDAY(DATE(YEAR($C$2)-1,7,31),-1)","v":"3799-07-30"},{"$f":"+WORKDAY(DATE(YEAR($C$2),7,31),-1)","v":"1900-07-30"},{"$f":"+WORKDAY(DATE(YEAR($C$2)+1,7,31),-1)","v":"1901-07-30"}]
[null,{"$f":"+WORKDAY(DATE(YEAR($C$2)-1,7,31),0)","v":"3799-07-31"},{"$f":"+WORKDAY(DATE(YEAR($C$2),7,31),0)","v":"1900-07-31"},{"$f":"+WORKDAY(DATE(YEAR($C$2)+1,7,31),0)","v":"1901-07-31"}]
[null,{"$f":"+WORKDAY(DATE(YEAR($C$2)-1,12,31),-6)","v":"3799-12-23"},{"$f":"+WORKDAY(DATE(YEAR($C$2),12,31),-6)","v":"1900-12-21"},{"$f":"+WORKDAY(DATE(YEAR($C$2)+1,12,31),-6)","v":"1901-12-23"}]
[null,{"$f":"+WORKDAY(DATE(YEAR($C$2)-1,12,31),-5)","v":"3799-12-24"},{"$f":"+WORKDAY(DATE(YEAR($C$2),12,31),-5)","v":"1900-12-24"},{"$f":"+WORKDAY(DATE(YEAR($C$2)+1,12,31),-5)","v":"1901-12-24"}]
[null,{"$f":"+WORKDAY(DATE(YEAR($C$2)-1,12,31),-4)","v":"3799-12-25"},{"$f":"+WORKDAY(DATE(YEAR($C$2),12,31),-4)","v":"1900-12-25"},{"$f":"+WORKDAY(DATE(YEAR($C$2)+1,12,31),-4)","v":"1901-12-25"}]
[null,{"$f":"+WORKDAY(DATE(YEAR($C$2)-1,12,31),-3)","v":"3799-12-26"},{"$f":"+WORKDAY(DATE(YEAR($C$2),12,31),-3)","v":"1900-12-26"},{"$f":"+WORKDAY(DATE(YEAR($C$2)+1,12,31),-3)","v":"1901-12-26"}]
[null,{"$f":"+WORKDAY(DATE(YEAR($C$2)-1,12,31),-2)","v":"3799-12-27"},{"$f":"+WORKDAY(DATE(YEAR($C$2),12,31),-2)","v":"1900-12-27"},{"$f":"+WORKDAY(DATE(YEAR($C$2)+1,12,31),-2)","v":"1901-12-27"}]
[null,{"$f":"+WORKDAY(DATE(YEAR($C$2)-1,12,31),-1)","v":"3799-12-30"},{"$f":"+WORKDAY(DATE(YEAR($C$2),12,31),-1)","v":"1900-12-28"},{"$f":"+WORKDAY(DATE(YEAR($C$2)+1,12,31),-1)","v":"1901-12-30"}]
[null,{"$f":"+WORKDAY(DATE(YEAR($C$2)-1,12,31),0)","v":"3799-12-31"},{"$f":"+WORKDAY(DATE(YEAR($C$2),12,31),0)","v":"1900-12-31"},{"$f":"+WORKDAY(DATE(YEAR($C$2)+1,12,31),0)","v":"1901-12-31"}]
[null,{"$f":"+WORKDAY(DATE(YEAR($C$2)-1,12,31),1)","v":"3800-01-01"},{"$f":"+WORKDAY(DATE(YEAR($C$2),12,31),1)","v":"1901-01-01"},{"$f":"+WORKDAY(DATE(YEAR($C$2)+1,12,31),1)","v":"1902-01-01"}]
[null,{"$f":"+WORKDAY(DATE(YEAR($C$2)-1,12,31),2)","v":"3800-01-02"},{"$f":"+WORKDAY(DATE(YEAR($C$2),12,31),2)","v":"1901-01-02"},{"$f":"+WORKDAY(DATE(YEAR($C$2)+1,12,31),2)","v":"1902-01-02"}]
[null,{"$f":"+WORKDAY(DATE(YEAR($C$2)-1,12,31),3)","v":"3800-01-03"},{"$f":"+WORKDAY(DATE(YEAR($C$2),12,31),3)","v":"1901-01-03"},{"$f":"+WORKDAY(DATE(YEAR($C$2)+1,12,31),3)","v":"1902-01-03"}]
[null,{"$f":"+WORKDAY(DATE(YEAR($C$2)-1,12,31),4)","v":"3800-01-06"},{"$f":"+WORKDAY(DATE(YEAR($C$2),12,31),4)","v":"1901-01-04"},{"$f":"+WORKDAY(DATE(YEAR($C$2)+1,12,31),4)","v":"1902-01-06"}]
[null,{"$f":"+WORKDAY(DATE(YEAR($C$2)-1,12,31),5)","v":"3800-01-07"},{"$f":"+WORKDAY(DATE(YEAR($C$2),12,31),5)","v":"1901-01-07"},{"$f":"+WORKDAY(DATE(YEAR($C$2)+1,12,31),5)","v":"1902-01-07"}]
[null,{"$f":"+WORKDAY(DATE(YEAR($C$2)-1,12,31),6)","v":"3800-01-08"},{"$f":"+WORKDAY(DATE(YEAR($C$2),12,31),6)","v":"1901-01-08"},{"$f":"+WORKDAY(DATE(YEAR($C$2)+1,12,31),6)","v":"1902-01-08"}]
[null,{"$f":"+WORKDAY(DATE(YEAR($C$2)-1,12,31),7)","v":"3800-01-09"},{"$f":"+WORKDAY(DATE(YEAR($C$2),12,31),7)","v":"1901-01-09"},{"$f":"+WORKDAY(DATE(YEAR($C$2)+1,12,31),7)","v":"1902-01-09"}]

{"sheet":"Divisas","index":19,"n_rows":176,"n_cols":5,"rows_kept":176,"cut":false,"hidden":true,"merged":[]}
[]
[null,"Divisa",null,"Código_ISO","Nombre"]
[null,"MXN",null,"AED","Dírham de los Emiratos Árabes Unidos"]
[null,"USD",null,"AFN","Afgani"]
[null,"EUR",null,"ALL","Lek"]
[null,null,null,"AMD","Dram armenio"]
[null,null,null,"ANG","Florín antillano neerlandés"]
[null,null,null,"AOA","Kwanza"]
[null,null,null,"ARS","Peso argentino"]
[null,null,null,"AUD","Dólar australiano"]
[null,null,null,"AWG","Florín arubeño"]
[null,null,null,"AZN","Manat azerbaiyano"]
[null,null,null,"BAM","Marco convertible"]
[null,null,null,"BBD","Dólar barbadense"]
[null,null,null,"BDT","Taka"]
[null,null,null,"BGN","Lev búlgaro"]
[null,null,null,"BHD","Dinar bareiní"]
[null,null,null,"BIF","Franco de Burundi"]
[null,null,null,"BMD","Dólar bermudeño"]
[null,null,null,"BND","Dólar de Brunéi"]
[null,null,null,"BOB","Boliviano"]
[null,null,null,"BOV","MVDOL"]
[null,null,null,"BRL","Real brasileño"]
[null,null,null,"BSD","Dólar bahameño"]
[null,null,null,"BTN","Ngultrum"]
[null,null,null,"BWP","Pula"]
[null,null,null,"BYN","Rublo bielorruso"]
[null,null,null,"BZD","Dólar beliceño"]
[null,null,null,"CAD","Dólar canadiense"]
[null,null,null,"CDF","Franco congoleño"]
[null,null,null,"CHE","Euro WIR"]
[null,null,null,"CHF","Franco suizo"]
[null,null,null,"CHW","Franco WIR"]
[null,null,null,"CLF","Unidad de fomento"]
[null,null,null,"CLP","Peso chileno"]
[null,null,null,"CNY","Yuan chino"]
[null,null,null,"COP","Peso colombiano"]
[null,null,null,"COU","Unidad de valor real"]
[null,null,null,"CRC","Colón costarricense"]
[null,null,null,"CUC","Peso convertible"]
[null,null,null,"CUP","Peso cubano"]
[null,null,null,"CVE","Escudo caboverdiano"]
[null,null,null,"CZK","Corona checa"]
[null,null,null,"DJF","Franco yibutiano"]
[null,null,null,"DKK","Corona danesa"]
[null,null,null,"DOP","Peso dominicano"]
[null,null,null,"DZD","Dinar argelino"]
[null,null,null,"EGP","Libra egipcia"]
[null,null,null,"ERN","Nakfa"]
[null,null,null,"ETB","Birr etíope"]
[null,null,null,"EUR","Euro"]
[null,null,null,"FJD","Dólar fiyiano"]
[null,null,null,"FKP","Libra malvinense"]
[null,null,null,"GBP","Libra esterlina"]
[null,null,null,"GEL","Lari"]
[null,null,null,"GHS","Cedi ghanés"]
[null,null,null,"GIP","Libra de Gibraltar"]
[null,null,null,"GMD","Dalasi"]
[null,null,null,"GNF","Franco guineano"]
[null,null,null,"GTQ","Quetzal"]
[null,null,null,"GYD","Dólar guyanés"]
[null,null,null,"HKD","Dólar de Hong Kong"]
[null,null,null,"HNL","Lempira"]
[null,null,null,"HRK","Kuna"]
[null,null,null,"HTG","Gourde"]
[null,null,null,"HUF","Forinto"]
[null,null,null,"IDR","Rupia indonesia"]
[null,null,null,"ILS","Nuevo séquel israelí"]
[null,null,null,"INR","Rupia india"]
[null,null,null,"IQD","Dinar iraquí"]
[null,null,null,"IRR","Rial iraní"]
[null,null,null,"ISK","Corona islandesa"]
[null,null,null,"JMD","Dólar jamaiquino"]
[null,null,null,"JOD","Dinar jordano"]
[null,null,null,"JPY","Yen"]
[null,null,null,"KES","Chelín keniano"]
[null,null,null,"KGS","Som"]
[null,null,null,"KHR","Riel"]
[null,null,null,"KMF","Franco comorense"]
[null,null,null,"KPW","Won norcoreano"]
[null,null,null,"KRW","Won"]
[null,null,null,"KWD","Dinar kuwaití"]
[null,null,null,"KYD","Dólar de las Islas Caimán"]
[null,null,null,"KZT","Tenge"]
[null,null,null,"LAK","Kip"]
[null,null,null,"LBP","Libra libanesa"]
[null,null,null,"LKR","Rupia de Sri Lanka"]
[null,null,null,"LRD","Dólar liberiano"]
[null,null,null,"LSL","Loti"]
[null,null,null,"LYD","Dinar libio"]
[null,null,null,"MAD","Dírham marroquí"]
[null,null,null,"MDL","Leu moldavo"]
[null,null,null,"MGA","Ariary malgache"]
[null,null,null,"MKD","Denar"]
[null,null,null,"MMK","Kyat"]
[null,null,null,"MNT","Tugrik"]
[null,null,null,"MOP","Pataca"]
[null,null,null,"MRU","Uguiya"]
[null,null,null,"MUR","Rupia de Mauricio"]
[null,null,null,"MVR","Rufiyaa"]
[null,null,null,"MWK","Kwacha"]
[null,null,null,"MXN","Peso mexicano"]
[null,null,null,"MXV","Unidad de Inversión (UDI) mexicana"]
[null,null,null,"MYR","Ringgit malayo"]
[null,null,null,"MZN","Metical mozambiqueño"]
[null,null,null,"NAD","Dólar namibio"]
[null,null,null,"NGN","Naira"]
[null,null,null,"NIO","Córdoba"]
[null,null,null,"NOK","Corona noruega"]
[null,null,null,"NPR","Rupia nepalí"]
[null,null,null,"NZD","Dólar neozelandés"]
[null,null,null,"OMR","Rial omaní"]
[null,null,null,"PAB","Balboa"]
[null,null,null,"PEN","Sol"]
[null,null,null,"PGK","Kina"]
[null,null,null,"PHP","Peso filipino"]
[null,null,null,"PKR","Rupia pakistaní"]
[null,null,null,"PLN","Złoty"]
[null,null,null,"PYG","Guaraní"]
[null,null,null,"QAR","Rial catarí"]
[null,null,null,"RON","Leu rumano"]
[null,null,null,"RSD","Dinar serbio"]
[null,null,null,"RUB","Rublo ruso"]
[null,null,null,"RWF","Franco ruandés"]
[null,null,null,"SAR","Rial saudí"]
[null,null,null,"SBD","Dólar de las Islas Salomón"]
[null,null,null,"SCR","Rupia seychelense"]
[null,null,null,"SDG","Libra sudanesa"]
[null,null,null,"SEK","Corona sueca"]
[null,null,null,"SGD","Dólar de Singapur"]
[null,null,null,"SHP","Libra de Santa Elena"]
[null,null,null,"SLE7​","Leone"]
[null,null,null,"SOS","Chelín somalí"]
[null,null,null,"SRD","Dólar surinamés"]
[null,null,null,"SSP","Libra sursudanesa"]
[null,null,null,"STN","Dobra"]
[null,null,null,"SVC","Colón Salvadoreño"]
[null,null,null,"SYP","Libra siria"]
[null,null,null,"SZL","Lilangeni"]
[null,null,null,"THB","Baht"]
[null,null,null,"TJS","Somoni tayiko"]
[null,null,null,"TMT","Manat turcomano"]
[null,null,null,"TND","Dinar tunecino"]
[null,null,null,"TOP","Paʻanga"]
[null,null,null,"TRY","Lira turca"]
[null,null,null,"TTD","Dólar de Trinidad y Tobago"]
[null,null,null,"TWD","Nuevo dólar taiwanés"]
[null,null,null,"TZS","Chelín tanzano"]
[null,null,null,"UAH","Grivna"]
[null,null,null,"UGX","Chelín ugandés"]
[null,null,null,"USD","Dólar estadounidense"]
[null,null,null,"USN","Dólar estadounidense (Siguiente día)"]
[null,null,null,"UYI","Peso en Unidades Indexadas (Uruguay)"]
[null,null,null,"UYU","Peso uruguayo"]
[null,null,null,"UYW","Unidad Previsional"]
[null,null,null,"UZS","Som uzbeko"]
[null,null,null,"VED","Bolívar soberano"]
[null,null,null,"VND","Dong vietnamita"]
[null,null,null,"VUV","Vatu"]
[null,null,null,"WST","Tala"]
[null,null,null,"XAF","Franco CFA de África Central"]
[null,null,null,"XAG","Plata (denominado en onza troy)"]
[null,null,null,"XAU","Oro (denominado en onza troy)"]
[null,null,null,"XCD","Dólar del Caribe Oriental"]
[null,null,null,"XDR","Derechos especiales de giro"]
[null,null,null,"XOF","Franco CFA de África Occidental"]
[null,null,null,"XPD","Paladio (denominado en onza troy)"]
[null,null,null,"XPF","Franco CFP"]
[null,null,null,"XPT","Platino (denominado en onza troy)"]
[null,null,null,"XSU","SUCRE"]
[null,null,null,"XTS","Reservado para pruebas"]
[null,null,null,"XUA","Unidad de cuenta BAD"]
[null,null,null,"YER","Rial yemení"]
[null,null,null,"ZAR","Rand"]
[null,null,null,"ZMW","Kwacha zambiano"]
[null,null,null,"ZWL","Dólar zimbabuense"]

{"sheet":"Programa_Presupuestal","index":20,"n_rows":10,"n_cols":4,"rows_kept":10,"cut":false,"hidden":true,"merged":[]}
[]
[null,"Columna1","PP","CP2"]
[null,1,"Actividades de Apoyo a la Función Pública y Buen Gobierno","O001"]
[null,2,"Actividades de Apoyo Administrativo","M001"]
[null,3,"Coordinar el Sistema Nacional de Transparencia y Protección de Datos personales, así como, ser miembro del Sistema Nacional Anticorrupción, del Sistema Nacional de Archivos y demás colegiados que establezcan las normas vigentes.","E003"]
[null,4,"Desempeño organizacional y modelo institucional orientado a resultados con enfoque de derechos humanos y perspectiva de género.","E004"]
[null,5,"Garantizar el óptimo cumplimiento de los derechos de acceso a la información pública y la protección de datos personales.","E001"]
[null,6,"Promover el pleno ejercicio de los derechos de acceso a la información pública y de protección de datos personales.","E002"]
[null,7,"Proyectos de inmuebles (oficinas administrativas)","K025"]
[null,8,"Otro","--"]

{"sheet":"Unidades_Administrativas","index":21,"n_rows":31,"n_cols":3,"rows_kept":31,"cut":false,"hidden":true,"merged":[]}
[]
[null,"Unidad administrativa","clave"]
[null,"Dirección General de Administración","210"]
[null,"Dirección General de Administración - DRM","214"]
[null,"Dirección General de Asuntos Internacionales","220"]
[null,"Dirección General de Asuntos Jurídicos","160"]
[null,"Dirección General de Atención al Pleno","710"]
[null,"Dirección General de Capacitación","250"]
[null,"Dirección General de Comunicación Social y Difusión","170"]
[null,"Dirección General de Cumplimientos y Responsabilidades","720"]
[null,"Dirección General de Enlace con Autoridades Laborales, Sindicatos, Universidades, Personas Físicas y Morales","340"]
[null,"Dirección General de Enlace con la Administración Pública Centralizada y Tribunales Administrativos","380"]
[null,"Dirección General de Enlace con los Poderes Legislativo y Judicial","370"]
[null,"Dirección General de Enlace con Organismos Públicos Autónomos, Empresas Paraestatales, Entidades Financieras, Fondos y Fideicomisos","360"]
[null,"Dirección General de Enlace con Partidos Políticos, Organismos Electorales y Descentralizados","350"]
[null,"Dirección General de Evaluación","320"]
[null,"Dirección General de Evaluación, Investigación y Verificación del Sector Público","450"]
[null,"Dirección General de Gestión de Información y Estudios","240"]
[null,"Dirección General de Gobierno Abierto y Transparencia","330"]
[null,"Dirección General de Investigación y Verificación del Sector Privado","420"]
[null,"Dirección General de Normatividad y Consulta","410"]
[null,"Dirección General de Planeación y Desempeño Institucional","180"]
[null,"Dirección General de Políticas de Acceso","310"]
[null,"Dirección General de Prevención y Autorregulación","440"]
[null,"Dirección General de Promoción y Vinculación con la Sociedad","260"]
[null,"Dirección General de Protección de Derechos y Sanción","430"]
[null,"Dirección General de Tecnologías de la Información","230"]
[null,"Dirección General de Vinculación, Coordinación y Colaboración con Entidades Federativas","610"]
[null,"Dirección General Técnica, Seguimiento y Normatividad del SNT","620"]
[null,"Oficina de Control Interno","108"]
[null,"Órgano Interno de Control","500"]

{"sheet":"Tipo_Representacion","index":22,"n_rows":17,"n_cols":3,"rows_kept":17,"cut":false,"hidden":true,"merged":[]}
[]
[null,"No","Tipo representacion"]
[null,1,"Alto nivel"]
[null,2,"Apoyo logístico"]
[null,3,"Comentarista"]
[null,4,"Coordinación de evento"]
[null,5,"Cobertura y difusión"]
[null,6,"Asistencia a evento"]
[null,7,"Supervisión, vigilancia, verificación y sanciones"]
[null,8,"Reuniones de trabajo"]
[null,9,"Impartir capacitación"]
[null,10,"Representación del INAI"]
[null,11,"Firma de Convenio"]
[null,12,"Recibir capacitación"]
[null,13,"Ponente"]
[null,14,"Técnico"]
[null,15,"Otro"]

{"sheet":"Puestos","index":23,"n_rows":68,"n_cols":10,"rows_kept":68,"cut":false,"hidden":true,"merged":[]}
[]
[null,"Categoria","Nivel","Grupo","Pernocta MXP","Sin pernocta MXP","Pernocta USD","Sin pernocta USD","Pernocta EUR","Sin pernocta EUR"]
[null,"Comisionada - Comisionado Presidente","HB1","Mando superior",3500,2000,450,225,450,225]
[null,"Comisionada - Comisionado","HB1","Mando superior",{"$f":"+E$3","v":3500},{"$f":"+F$3","v":2000},450,225,450,225]
[null,"Titular de Secretaría","KB2","Mando superior",{"$f":"+E$3","v":3500},2000,450,225,450,225]
[null,"Titular de Dirección General","KA4","Mando superior",3500,2000,450,225,450,225]
[null,"Titular de Jefatura de Ponencia","KA4","Mando superior",3500,2000,450,225,450,225]
[null,"Titular Órgano Interno de Control","KA4","Mando superior",3500,2000,450,225,450,225]
[null,"Secretaria - Secretario de Ponencia","MD5","Mando superior",3500,2000,450,225,450,225]
[null,"Secretaria - Secretario de Ponencia","MD4","Mando superior",3500,2000,{"$f":"+G$9","v":450},225,450,225]
[null,"Secretaria - Secretario de Ponencia","MD3","Mando superior",3500,2000,450,225,450,225]
[null,"Secretaria - Secretario de Ponencia","MD2","Mando superior",3500,2000,450,225,450,225]
[null,"Secretaria - Secretario de Ponencia","MD1","Mando superior",3500,2000,450,225,450,225]
[null,"Titular de Dirección de Área","MC5","Mando medio",2000,1500,450,225,450,225]
[null,"Titular de Dirección de Área","MC4","Mando medio",{"$f":"+E$14","v":2000},{"$f":"+F$14","v":1500},450,225,450,225]
[null,"Titular de Dirección de Área","MC3","Mando medio",{"$f":"+E$14","v":2000},1500,450,225,450,225]
[null,"Titular de Dirección de Área","MC2","Mando medio",2000,1500,450,225,450,225]
[null,"Titular de Subdirección de Área","MB2","Mando medio",2000,1500,450,225,450,225]
[null,"Titular de Subdirección de Área","MB1","Mando medio",2000,1500,450,225,450,225]
[null,"Titular de Subdirección de Área","NC3","Mando medio",2000,1500,450,225,450,225]
[null,"Titular de Subdirección de Área","NC2","Mando medio",2000,1500,450,225,450,225]
[null,"Titular de Jefatura de Departamento","NB2","Mando medio",2000,1500,450,225,450,225]
[null,"Titular de Jefatura de Departamento","NB1","Mando medio",2000,1500,450,225,450,225]
[null,"Titular de Jefatura de Departamento","OC4","Mando medio",2000,1500,450,225,450,225]
[null,"Titular de Jefatura de Departamento","OC3","Mando medio",2000,1500,450,225,450,225]
[null,"Consultora - Consultor","NB2","Mando medio",2000,1500,{"$f":"+G$9","v":450},225,450,225]
[null,"Consultora - Consultor","NB1","Mando medio",2000,1500,450,225,450,225]
[null,"Consultora - Consultor","OC4","Mando medio",2000,1500,450,225,450,225]
[null,"Consultora - Consultor","OC3","Mando medio",2000,1500,450,225,450,225]
[null,"Auditora - Auditor","NB2","Mando medio",2000,1500,450,225,450,225]
[null,"Auditora - Auditor","NB1","Mando medio",2000,1500,450,225,450,225]
[null,"Auditora - Auditor","OC4","Mando medio",2000,1500,450,225,450,225]
[null,"Auditora - Auditor","OC3","Mando medio",2000,1500,450,225,450,225]
[null,"Personal de Enlace","OB6","Apoyo operativo",2000,1500,450,225,450,225]
[null,"Personal de Enlace","OC1","Apoyo operativo",2000,1500,450,225,450,225]
[null,"Personal de Enlace","PC6","Apoyo operativo",2000,1500,450,225,450,225]
[null,"Personal de Enlace","PC4","Apoyo operativo",2000,1500,450,225,450,225]
[null,"Personal de Enlace","PC2","Apoyo operativo",2000,1500,450,225,450,225]
[null,"Personal de Enlace","PC1","Apoyo operativo",2000,1500,450,225,450,225]
[null,"Personal Proyectista","OB6","Apoyo operativo",2000,1500,450,225,450,225]
[null,"Personal Proyectista","OC1","Apoyo operativo",2000,1500,450,225,450,225]
[null,"Personal Proyectista","PC6","Apoyo operativo",2000,1500,450,225,450,225]
[null,"Personal Proyectista","PC4","Apoyo operativo",2000,1500,{"$f":"+G$9","v":450},225,450,225]
[null,"Personal Proyectista","PC2","Apoyo operativo",2000,1500,450,225,450,225]
[null,"Personal Proyectista","PC1","Apoyo operativo",2000,1500,450,225,450,225]
[null,"Asesora - Asesor","OB6","Apoyo operativo",2000,1500,450,225,450,225]
[null,"Asesora - Asesor","OC1","Apoyo operativo",2000,1500,450,225,450,225]
[null,"Asesora - Asesor","PC6","Apoyo operativo",2000,1500,450,225,450,225]
[null,"Asesora - Asesor","PC4","Apoyo operativo",2000,1500,450,225,450,225]
[null,"Asesora - Asesor","PC2","Apoyo operativo",2000,1500,450,225,450,225]
[null,"Asesora - Asesor","PC1","Apoyo operativo",2000,1500,450,225,450,225]
[null,"Secretaria - Secretario","OD3","Apoyo operativo",2000,1500,450,225,450,225]
[null,"Secretaria - Secretario","OD2","Apoyo operativo",2000,1500,450,225,450,225]
[null,"Secretaria - Secretario","OD1","Apoyo operativo",2000,1500,450,225,450,225]
[null,"Secretaria - Secretario","OC1","Apoyo operativo",2000,1500,450,225,450,225]
[null,"Secretaria - Secretario","PC5","Apoyo operativo",2000,1500,450,225,450,225]
[null,"Secretaria - Secretario","PC3","Apoyo operativo",2000,1500,450,225,450,225]
[null,"Choferesa - Chofer","OB5","Apoyo operativo",2000,1500,450,225,450,225]
[null,"Choferesa - Chofer","OB4","Apoyo operativo",2000,1500,450,225,450,225]
[null,"Choferesa - Chofer","OB3","Apoyo operativo",2000,1500,450,225,450,225]
[null,"Choferesa - Chofer","OB2","Apoyo operativo",2000,1500,450,225,450,225]
[null,"Choferesa - Chofer","OB1","Apoyo operativo",2000,1500,450,225,450,225]
[null,"Auxiliar Administrativa - Auxiliar Administrativo","PA6","Apoyo operativo",2000,1500,450,225,450,225]
[null,"Auxiliar Administrativa - Auxiliar Administrativo","PA5","Apoyo operativo",2000,1500,450,225,450,225]
[null,"Auxiliar Administrativa - Auxiliar Administrativo","PA4","Apoyo operativo",2000,1500,450,225,450,225]
[null,"Auxiliar Administrativa - Auxiliar Administrativo","PA3","Apoyo operativo",2000,1500,450,225,450,225]
[null,"Auxiliar Administrativa - Auxiliar Administrativo","PA2","Apoyo operativo",2000,1500,450,225,450,225]
[null,"Auxiliar Administrativa - Auxiliar Administrativo","PA1","Apoyo operativo",2000,1500,450,225,450,225]

{"sheet":"Puestos_listas","index":24,"n_rows":8,"n_cols":19,"rows_kept":8,"cut":false,"hidden":true,"merged":[]}
[]
[null,"Comisionada - Comisionado Presidente","Comisionada - Comisionado","Titular de Secretaría","Titular de Dirección General","Titular de Jefatura de Ponencia","Titular Órgano Interno de Control","Secretaria - Secretario de Ponencia","Titular de Dirección de Área","Titular de Subdirección de Área","Titular de Jefatura de Departamento","Consultora - Consultor","Auditora - Auditor","Personal de Enlace","Personal Proyectista","Asesora - Asesor","Secretaria - Secretario","Choferesa - Chofer","Auxiliar Administrativa - Auxiliar Administrativo"]
[null,"HB1","HB1","KB2","KA4","KA4","KA4","MD5","MC5","MB2","NB2","NB2","NB2","OB6","OB6","OB6","OD3","OB5","PA6"]
[null,null,null,null,null,null,null,"MD4","MC4","MB1","NB1","NB1","NB1","OC1","OC1","OC1","OD2","OB4","PA5"]
[null,null,null,null,null,null,null,"MD3","MC3","NC3","OC4","OC4","OC4","PC6","PC6","PC6","OD1","OB3","PA4"]
[null,null,null,null,null,null,null,"MD2","MC2","NC2","OC3","OC3","OC3","PC4","PC4","PC4","OC1","OB2","PA3"]
[null,null,null,null,null,null,null,"MD1",null,null,null,null,null,"PC2","PC2","PC2","PC5","OB1","PA2"]
[null,null,null,null,null,null,null,null,null,null,null,null,null,"PC1","PC1","PC1","PC3",null,"PA1"]

{"sheet":"Tipo_Comision","index":25,"n_rows":4,"n_cols":2,"rows_kept":4,"cut":false,"hidden":true,"merged":[]}
[]
[null,"Tipo de Comisión"]
[null,"Nacional"]
[null,"Internacional"]

{"sheet":"Tipo_Viaticos","index":26,"n_rows":4,"n_cols":2,"rows_kept":4,"cut":false,"hidden":true,"merged":[]}
[]
[null,"Tipo de viáticos"]
[null,"Anticipados"]
[null,"Devengados"]

{"sheet":"Paises","index":27,"n_rows":196,"n_cols":3,"rows_kept":196,"cut":false,"hidden":true,"merged":[]}
[]
[null,"No.","Pais"]
[null,1,"Afganistán"]
[null,2,"Albania"]
[null,3,"Alemania"]
[null,4,"Andorra"]
[null,5,"Angola"]
[null,6,"Antigua y Barbuda"]
[null,7,"Arabia Saudita"]
[null,8,"Argelia"]
[null,9,"Argentina"]
[null,10,"Armenia"]
[null,11,"Australia"]
[null,12,"Austria"]
[null,13,"Azerbaiyán"]
[null,14,"Bahamas"]
[null,17,"Bahréin (Baréin)"]
[null,15,"Bangladesh"]
[null,16,"Barbados"]
[null,18,"Bélgica"]
[null,19,"Belice"]
[null,20,"Benín"]
[null,21,"Bielorrusia"]
[null,22,"Birmania/Myanmar"]
[null,23,"Bolivia"]
[null,24,"Bosnia y Herzegovina"]
[null,25,"Botsuana"]
[null,26,"Brasil"]
[null,27,"Brunéi"]
[null,28,"Bulgaria"]
[null,29,"Burkina Faso"]
[null,30,"Burundi"]
[null,31,"Bután"]
[null,32,"Cabo Verde"]
[null,33,"Camboya"]
[null,34,"Camerún"]
[null,35,"Canadá"]
[null,36,"Catar"]
[null,37,"Chad"]
[null,38,"Chile"]
[null,39,"China"]
[null,40,"Chipre"]
[null,43,"Ciudad del Vaticano"]
[null,44,"Colombia"]
[null,45,"Comoras"]
[null,46,"Corea del Norte"]
[null,47,"Corea del Sur"]
[null,48,"Costa de Marfil"]
[null,49,"Costa Rica"]
[null,50,"Croacia"]
[null,51,"Cuba"]
[null,52,"Dinamarca"]
[null,53,"Dominica"]
[null,54,"Ecuador"]
[null,55,"Egipto"]
[null,56,"El Salvador"]
[null,57,"Emiratos Árabes Unidos"]
[null,58,"Eritrea"]
[null,59,"Eslovaquia"]
[null,60,"Eslovenia"]
[null,61,"España"]
[null,62,"Estados Unidos"]
[null,63,"Estonia"]
[null,64,"Etiopía"]
[null,65,"Filipinas"]
[null,66,"Finlandia"]
[null,67,"Fiyi"]
[null,68,"Francia"]
[null,69,"Gabón"]
[null,70,"Gambia"]
[null,71,"Georgia"]
[null,72,"Ghana"]
[null,73,"Granada"]
[null,74,"Grecia"]
[null,75,"Guatemala"]
[null,77,"Guinea"]
[null,78,"Guinea ecuatorial"]
[null,79,"Guinea-Bisáu"]
[null,76,"Guyana"]
[null,80,"Haití"]
[null,81,"Honduras"]
[null,82,"Hungría"]
[null,85,"India"]
[null,86,"Indonesia"]
[null,87,"Irak"]
[null,88,"Irán"]
[null,89,"Irlanda"]
[null,90,"Islandia"]
[null,91,"Islas Marshall"]
[null,92,"Islas Salomón"]
[null,93,"Israel"]
[null,94,"Italia"]
[null,95,"Jamaica"]
[null,96,"Japón"]
[null,97,"Jordania"]
[null,98,"Kazajistán"]
[null,99,"Kenia"]
[null,100,"Kirguistán"]
[null,101,"Kiribati"]
[null,102,"Kuwait"]
[null,103,"Laos"]
[null,104,"Lesoto"]
[null,105,"Letonia"]
[null,106,"Líbano"]
[null,107,"Liberia"]
[null,108,"Libia"]
[null,109,"Liechtenstein"]
[null,110,"Lituania"]
[null,111,"Luxemburgo"]
[null,112,"Macedonia del Norte"]
[null,113,"Madagascar"]
[null,114,"Malasia"]
[null,115,"Malaui"]
[null,116,"Maldivas"]
[null,117,"Malí"]
[null,118,"Malta"]
[null,119,"Marruecos"]
[null,120,"Mauricio"]
[null,121,"Mauritania"]
[null,122,"México"]
[null,123,"Micronesia"]
[null,124,"Moldavia"]
[null,127,"Mónaco"]
[null,128,"Mongolia"]
[null,129,"Montenegro"]
[null,130,"Mozambique"]
[null,131,"Namibia"]
[null,132,"Nauru"]
[null,133,"Nepal"]
[null,134,"Nicaragua"]
[null,135,"Níger"]
[null,136,"Nigeria"]
[null,137,"Noruega"]
[null,138,"Nueva Zelanda"]
[null,139,"Omán"]
[null,140,"Países Bajos"]
[null,141,"Pakistán"]
[null,142,"Palaos"]
[null,143,"Panamá"]
[null,144,"Papúa Nueva Guinea"]
[null,145,"Paraguay"]
[null,146,"Perú"]
[null,147,"Polonia"]
[null,148,"Portugal"]
[null,149,"Reino Unido"]
[null,150,"República Centroafricana"]
[null,151,"República Checa"]
[null,152,"República del Congo"]
[null,153,"República Democrática del Congo"]
[null,154,"República Dominicana"]
[null,155,"República Sudafricana"]
[null,156,"Ruanda"]
[null,157,"Rumanía"]
[null,158,"Rusia"]
[null,159,"Samoa"]
[null,160,"San Cristóbal y Nieves"]
[null,161,"San Marino"]
[null,162,"San Vicente y las Granadinas"]
[null,163,"Santa Lucía"]
[null,164,"Santo Tomé y Príncipe"]
[null,165,"Senegal"]
[null,166,"Serbia"]
[null,169,"Seychelles"]
[null,170,"Sierra Leona"]
[null,171,"Singapur"]
[null,172,"Siria"]
[null,173,"Somalia"]
[null,174,"Sri Lanka"]
[null,175,"Suazilandia"]
[null,176,"Sudán"]
[null,177,"Sudán del Sur"]
[null,178,"Suecia"]
[null,179,"Suiza"]
[null,180,"Surinam"]
[null,181,"Tailandia"]
[null,182,"Tanzania"]
[null,183,"Tayikistán"]
[null,184,"Timor Oriental (Timor-Leste)"]
[null,185,"Togo"]
[null,186,"Tonga"]
[null,187,"Trinidad y Tobago"]
[null,188,"Túnez"]
[null,189,"Turkmenistán"]
[null,190,"Turquía"]
[null,191,"Tuvalu"]
[null,192,"Ucrania"]
[null,193,"Uganda"]
[null,194,"Uruguay"]
[null,195,"Uzbekistán"]
[null,196,"Vanuatu"]
[null,197,"Venezuela"]
[null,198,"Vietnam"]
[null,199,"Yemen"]
[null,200,"Yibuti (Djibouti)"]
[null,201,"Zambia"]
[null,202,"Zimbabue"]

{"sheet":"Estados","index":28,"n_rows":35,"n_cols":2,"rows_kept":35,"cut":false,"hidden":true,"merged":[]}
[]
[null,"Estados"]
[null,"Aguascalientes"]
[null,"Baja California Norte"]
[null,"Baja California Sur"]
[null,"Campeche"]
[null,"Chiapas"]
[null,"Chihuahua"]
[null,"Ciudad de México"]
[null,"Coahuila"]
[null,"Colima"]
[null,"Durango"]
[null,"Guanajuato"]
[null,"Guerrero"]
[null,"Hidalgo"]
[null,"Jalisco"]
[null,"Estado de México"]
[null,"Michoacán"]
[null,"Morelos"]
[null,"Nayarit"]
[null,"Nuevo León"]
[null,"Oaxaca"]
[null,"Puebla"]
[null,"Querétaro"]
[null,"Quintana Roo"]
[null,"San Luis Potosí"]
[null,"Sinaloa"]
[null,"Sonora"]
[null,"Tabasco"]
[null,"Tamaulipas"]
[null,"Tlaxcala"]
[null,"Veracruz"]
[null,"Yucatán"]
[null,"Zacatecas"]
[null,"N/A"]